Workbook

Sheet MENÙ
A1: DATI GENERALI del
F3: =DATIG!A64 -> Condomino Amministratore | L3: =DATIG!A5 -> Condominio "PROTOTIPO"
F4: =DATIG!A65 -> Ing. Pietro CHIEFARI | L4: =DATIG!A6 -> Via BELLA, 22-30-38
F5: =DATIG!A66 -> Viale CUTURELLA, 2/D | L5: =DATIG!A7 -> 88068 - SOVERATO (CZ) | AE5: Codice Condominio-Codice Lavoro
F6: =DATIG!A67 -> 88068 - SOVERATO (CZ) | K6: =DATIG!A8 -> C.F. 80000000796 | N6: =DATIG!A12 -> piasoft@piasoft.it | AA6: =IF(DATIG!A9<>"",DATIG!A9,DATIG!A10) -> tel. 0967-922235 | AE6: =DATIG!A11 & "-" & DATIG!A37 -> Prototipo-LAVORO-01
F8: Giornale aggiornato al 13/11/2019 | AE8: =DATIG!A39 -> 2019-12-31
E9: ="FUNZIONI per la GESTIONE del FONDO per l'esecuzione di LAVORI STRAORDINARI" -> FUNZIONI per la GESTIONE del FONDO per l'esecuzione di LAVORI STRAORDINARI
G24: 0
E28: FUNZIONI DI GESTIONE DEL PROGRAMMA
F29: AIUTI ALL'UTILIZZO | K29: DATI GENERALI | P29: ADATTAMENTO | U29: PREFERENZE UTILIZZATORE | Z29: IMPORT-EXPORT CONDOMINIO | AE29: FINE UTILIZZO PROGRAMMA

Sheet HELP (hidden)
A1: GUIDA SINTETICA ALL'USO DELLA PROCEDURA
A2: La presente guida sintetica è integrata con le note di cella, visualizzabili facendo sostare il puntatore del mouse sul triangolino rosso della cella contenente la nota.
A3: LA PERSONALIZZAZIONE
A4: LA PERSONALIZZAZIONE INIZIALE
A5: Prima di utilizzare la procedura, occorre personalizzarla, ovvero adattarla al condominio e al lavoro da gestire ed alle preferenze dell'utilizzatore. La personalizzazione è fatta utilizzando le "FUNZIONI DI GESTIONE DELLA PROCEDURA" dei riquadri "DATI GENERALI", "ADATTAMENTO" e "PREFERENZE DELL'UTILIZZATORE". Cliccando sui pulsanti in essi contenuti, sono visualizzati dei prospetti le cui celle contengono le variabili di personalizzazione. Le variabili sono spiegate dalle indicazioni riportate nei prospetti stessi; per alcune sono indicati anche dei valori limiti che occorre rispettare nell'assegnarne i valori. Ovviamente la personalizzazione può essere fatta anche nel corso dell'utilizzo, ogni volta cioè che si desidera o occorra variare qualche aspetto personalizzabile del programma. In particolare è necessario farlo quando si cambia condominio e/o lavoro.
A6: Pulsanti del riquadro "DATI GENERALI": 1) "CONDOMINIO" : il prospetto contiene i dati generali del condominio da gestire. 2) "LAVORO" : il prospetto contiene i dati relativi al lavoro da gestire. 3) "UTILIZZATORE" : il prospetto contiene i dati dell'utilizzatore-amministratore.
A7: Pulsanti del riquadro "ADATTAMENTO": 1) "PROSPETTI DATI e RISULTATI" : il prospetto contiene dei dati i cui valori adattano gli altri prospetti della procedura, variandone la visualizzazione di righe e colonne, in accordo con i valori forniti nel prospetto. La variazione è eseguita in automatico alla chiusura del foglio "ADP" che contiene il prospetto (per chiuderlo basta cliccare sulla linguetta del foglio "MENÙ"). 2) "COPERTINA delle STAMPE" : è proposto il modulo della copertine delle stampe. È possibile apportarvi delle variazioni,ma rispettando la posizione dei campi indicati. 3) "SOMMARI dei BILANCI" : sono proposti i sommari del bilancio preventivo e del rendiconto in esecuzione del lavoro o a consuntivo, È possibile variarli.
A8: Pulsanti del riquadro "PREFERENZE UTILIZZATORE": 1) "PROMEMORIE" : il prospetto contiene le stringhe che il programma riporta sui pulsanti di promemoria. Variandole l'utilizzatore specifica meglio i promemoria che utilizza. 2) "CREAZIONE PDF" : il prospetto contiene alcuni parametri che adattano la creazione dei file pdf alle preferenze dell'utilizzatore. Ad esempio variando il valore di un parametro è possibile creare un file PDF per ogni condomino contenente la comunicazione a lui indirizzata o un unico file contenente la stessa comunicazioni ai vari condomini. 3) "INTESTAZIONE-PIE' di PAGINA" : il prospetto permette di variare le stringhe utilizzate nelle intestazioni ed nei piè di pagina dei fogli da stampare. L'esecuzione dell'operazione è però alquanto lenta.
A9: LA PERSONALIZZAZIONE DEI MODULI DELLE COMUNICAZIONE
A10: I "MODULI AVVISI" sono una serie di fogli che riportano i moduli o schemi di base di alcune tipiche comunicazioni che l'amministratore è solito inviare ai condomini. È possibile personalizzare tali moduli, richiamando il foglio che li contiene tramite il relativo pulsante. Si possono personalizzare sia le intestazioni che il contenuto testuale, si possono aggiungere righe e immagini, ma non possono essere variati, sia per posizione che per lunghezza i campi, ovvero quella parte della comunicazione che viene scritta in automatico dalla procedura. I campi sono facilmente individuabili perchè sugli schemi appaiono racchiusi fra parentesi quadre oppure sono celle bordate da linee tratteggiate o hanno fondo colorato e non contengono in questo ultimo caso alcun valore. Naturalmente gli schemi di comunicazione devono essere sempre variati quando variano i dati testuali oggetto di comunicazione.
A11: L'USO
A12: Il foglio "MENÙ" rimane sempre scoperto e presenta una serie di riquadri, contenenti dei pulsanti che se cliccati eseguono una o più funzioni di gestione condominiale. È opportuno ripartire sempre dal foglio, per cui dopo aver eseguito una opzione del menù è bene cliccare sulla linguetta del foglio "MENU", per poterne avviare un'altra funzione.
A13: PROSPETTI INPUT DATI
A14: I pulsanti attivano dei fogli da riempire con i dati che caratterizzano il condominio, il lavoro, le unità immobiliari, le tabelle millesimali, i piani dei conti, il giornale contabile ecc. Tali dati sono necessari, senza di essi o con dati incompleti la procedura non dà risultati attendibili. Un particolare foglio è il "GIORNALE CONTABILE" , sul quale occorre riportare le operazioni contabili effettuate nel corso della gestione del lavoro. Maggiori informazioni d'uso sono fornite nel foglio "ESEMPI_RC".
A15: PROSPETTI CALCOLATI
A16: Il riquadro propone una serie di pulsanti che, se cliccati, avviano l'esecuzione di particolari elaborazioni sui dati di input riportando i relativi risultati su uno o più prospetti, a seconda dell'elaborazione eseguita.
A17: PROMEMORIE
A18: Il riquadro può proporre fino a due pulsanti che visualizzano ciascuno un foglio diverso, riportante un prospetto di promemoria che l'utilizzatore può variare a suo piacimento.
A19: SUSSIDI CONTABILI
A20: Il riquadro propone due pulsanti che avviano l'esecuzione di due diverse funzioni. La prima permette di ripartire una spesa solo fra alcuni dei condomini, ovvero fra i condomini le cui proprietà per la particolare spesa costituiscono un sub-condominio. Naturalmente i risultati del riparto vanno poi riportati come spese personali nella contabilità condominiale. La seconda permette di scrivere le ricevute di versamento per le quote condominiali.
A21: FASCICOLI PDF di DATI
A22: Il riquadro propone una serie di pulsanti che permettono di creare dei file PDF riportanti i prospetti dei dati forniti.
A23: FASCICOLI PDF dei BILANCI
A24: Il riquadro propone due pulsanti che permettono di creare dei file PDF riportanti i Bilancio preventivo ed il Rendiconto consuntivo, tipici della gestione condominiale.
A25: CARTELLE EXCEL
A26: Il riquadro propone due pulsanti. Il primo crea una cartella di lavoro EXCEL contenente le schede contabili dei singoli condomini alla data di esecuzione della funzione. Il secondo crea una cartella di lavoro EXCEL contenente in ogni scheda le ricevute delle quote ancora da pagare da un condomino. Le schede sono pari al numero di condomini chenon hanno ancora saldato le proprie quote.
A27: MODULI AVVISI
A28: Il riquadro propone una serie di pulsanti che permettono di visualizzare e modificare alcuni moduli, usati normalmente dagli amministratore per fornire delle comunicazioni ai condomini.
A29: MODULI RICEVUTE
A30: Il riquadro propone un pulsante che permettono di visualizzare e modificare un modulo di ricevuta per consegna fatta dall'amministratore.
A31: PDF AVVISI AMMINISTRATORE
A32: Il riquadro propone una serie di pulsanti che permettono creare i file PDF delle comunicazioni ai condomini.
A33: PDF RICEVUTE
A34: Il riquadro propone un pulsante che permette di creare i file PDF delle ricevute di consegna.
A35: IMPORT EXPORT CONDOMINIO
A36: Con i due pulsati posti accoanto alla funzione di uscita dalla procedura è possibile compiere le due operazione di import ed export di condomini-lavori. L'export è inoltre deputato a creare delle copie di backup dei dati condominiali e del lavoro ad una determinata data. Con mquesto metodo il programma è in grado di gestire più condomini-lavori.

Sheet DATIG (hidden)
A1: DATI GENERALI dell'Utilizzatore: Ing. Pietro CHIEFARI | E1: 0
A2: È possibile variare solo i valori delle celle senza sfondo colorato, non è consentito spostare alcuna cella. I testi delle note al contenuto, pur se con sfondo colorato, possono essere variati, se l'utizzatore reputa che la variazione chiarisca meglio il contenuto cui fa riferimento.
A3: CONTENUTO | B3: FORMATO | C3: NOTA al CONTENUTO
A4: DATI GENERALI del CONDOMINIO
A5: Condominio "PROTOTIPO" | B5: Testo | C5: Nome ufficiale del Condominio
A6: Via BELLA, 22-30-38 | B6: Testo | C6: Indirizzo di Ubicazione
A7: 88068 - SOVERATO (CZ) | B7: Testo | C7: Città
A8: C.F. 80000000796 | B8: Testo | C8: Codice FISCALE del Condominio
A9: tel. 0967-922235 | B9: Testo | C9: Telefono (normalmente dell'Amministratore)
A10: cell. 999-11111111 | B10: Testo | C10: Cellulare (normalmente dell'Amministratore)
A11: Prototipo | B11: Testo | C11: Codice del Condominio (attribuito dall'utilizzatore)
A12: piasoft@piasoft.it | B12: Testo | C12: E-mail del Condominio o dell'Amministratore
A15: ESISTENZA, DENOMINAZIONE DELLE TABELLE DI RIPARTIZIONE DELLE SPESE e LORO SEQUENZA
A16: GENERALE | B16: Testo | C16: Tabella n. 1 - (max. 10 caratteri) | D16: A
A17: Lato NORD | B17: Testo | C17: Tabella n. 2 - (max. 10 caratteri) | D17: B
A18: Lato SUD | B18: Testo | C18: Tabella n. 3 - (max. 10 caratteri) | D18: C
B19: Testo | C19: Tabella n. 4 - (max. 10 caratteri) | D19: D
B20: Testo | C20: Tabella n. 5 - (max. 10 caratteri) | D20: E
B21: Testo | C21: Tabella n. 6 - (max. 10 caratteri) | D21: F
B22: Testo | C22: Tabella n. 7 - (max. 10 caratteri) | D22: G
B23: Testo | C23: Tabella n. 8 - (max. 10 caratteri) | D23: H
B24: Testo | C24: Tabella n. 9 - (max. 10 caratteri) | D24: I
B25: Testo | C25: Tabella n. 10 - (max. 10 caratteri) | D25: J
A32: DATE DI APPROVAZIONE DI PARTICOLARI DELIBERE CONDOMINIALI
A33: 2016-12-16 | B33: Data | C33: Data delle TABELLE MILLESIMALI (Delibera di approvazione o Deposito del Regolamento)
A36: DATI GENERALI relativi al FONDO LAVORI gestito
A37: LAVORO-01 | B37: Testo | C37: Codice FONDO LAVORI
A38: 2017-01-05 | B38: Data | C38: Data redazione del QUADRO ECONOMICO di PREVENTIVO
A39: 2019-12-31 | B39: Data | C39: Data alla quale viene eseguito il rendiconto (per lavori ancora in corso si pone la formula "=OGGI()", per lavori finiti si pone si pone direttamente la data del 31-12 dell'anno di fine lavori)
A40: Lavori messa in sicurezza fondazioni da infiltrazioni fognarie | B40: Testo | C40: Indicazione del lavoro
A41: DATE di SCADENZA dei PAGAMENTI per le RATE del FONDO LAVORI (max 4 rate)
A42: 2017-01-25 | B42: Data | C42: Data approvazione QUADRO ECONOMICO di PREVENTIVO e relativo RIPARTO.
A43: 2017-04-10 | B43: Data | C43: 1a Rata
A44: 2018-04-10 | B44: Data | C44: 2a Rata
A45: 2019-07-10 | B45: Data | C45: 3a Rata
B46: Data | C46: 4a Rata
A47: DILAZIONI concesse dall'Assemblea
A48: 30 | B48: Numero | C48: Numero di giorni di dilazione pagamento rate
A50: ANNUALITÀ interessate al FONDO LAVORI (max 4 annualità)
A51: 2017 | B51: Numero | C51: Annualità n. 1
A52: 2018 | B52: Numero | C52: Annualità n. 2
A53: 2019 | B53: Numero | C53: Annualità n. 3
B54: Numero | C54: Annualità n. 4
A55: STATO DEI LAVORI
A56: 0 | C56: 0: in corso di esecuzione o d'opera --- 1: finiti
A57: DATI AGGIUNTIVI RICHIESTI DALL' AGENZIA delle ENTRATE PER LA COMUNICAZIONE DELLE DETRAZIONI
A58: 2019 | B58: Testo | C58: Anno di riferimento ovvero annualità della comunicazione delle detrazioni fiscali, se l'intervento ricade su più annualità.
A59: I872 | B59: Testo | C59: Codice catastale del Comune cui appartiene il condominio
A60: A | B60: Testo | C60: Tipologia dell'intervento
A61: 1 | B61: Testo | C61: Progressivo dell'intervento
A63: DATI AMMINISTRATORE
A64: Condomino Amministratore | B64: Testo | C64: Incarico (Amministratore o Condomino Amministratore)
A65: Ing. Pietro CHIEFARI | B65: Testo | C65: Titolo, Cognome e Nome
A66: Viale CUTURELLA, 2/D | B66: Testo | C66: Indirizzo
A67: 88068 - SOVERATO (CZ) | B67: Testo | C67: CAP - Città -Provincia
A69: 0 | E69: 0

Sheet PREF (hidden)
A1: SCELTE dell'UTILIZZATORE nell'uso della PROCEDURA | D1: 0
A2: Nel prospetto è possibile variare i valori delle celle senza sfondo colorato, non è consentito spostare le celle. I valori delle celle con sfondo colorato potrebbero essere variati, ma si sconsiglia di farlo per non perdere utili indicazioni sulle celle i cui valori possono essere variati. I valori variabili esprimono delle scelte dell'utilizzatore nell'uso della procedura.
A3: VALORE | B3: FORMATO | C3: Descrizione del PARAMETRO ed indicazioni vari
A4: OPZIONI NELLA CREAZIONE DEI FILE PDF DELLE COMUNICAZIONI
A5: 1 | B5: Testo | C5: 0 - per creare un file della comunicazione per ogni condomino 1 - per creare un unico file della comunicazione per tutti i condomini
A6: 0 | B6: Testo | C6: 0 - per cancellare la cartella EXCEL utilizzata per la creazione del file PDF. 1 - per mantenere la cartella EXCEL utilizzata per la creazione del file PDF.
A7: A | B7: Testo | C7: Tabella i cui millesimi sono riportati nell'intestazione della comunicazione. (Nel caso di comunicazione generica, il parametro presiede inoltre all'individuazione dei condomini ai quali la comunicazione è indirizzata. La comunicazione sarà creata solo per i condomini hanno millesimi diversi da zero nella tabella indicata.)
A8: Adobe Acrobat Reader DC | B8: Testo | C8: Programma di lettura dei PDF (Vivamente consigliato AdobeAcrobat Reader DC)
A9: 1 | B9: Testo | C9: 0 - per non riportare la data di stampa sulla copertina 1 - per riportare la data di stampa sulla copertina
A12: TESTO sui PULSANTI dei PROMEMORIA
A13: CONSEGNE COMUNICAZ. | B13: Testo | C13: Pulsante PROMEMORIA 1 [ max. 20 caratteri]
A14: SCADENZE | B14: Testo | C14: Pulsante PROMEMORIA 2 [ max. 20 caratteri]
A17: TESTO per le INTESTAZIONI e PIÈ DI PAGINA delle PAGINE da STAMPARE
A18: Condominio "PROTOTIPO"-FONDO LAVORI: LAVORO-01 | B18: Testo | C18: Intestazione [compatibilmente con la larghezza della pagina, max 40 caratter]
A19: Cond. PROTOTIPO LAVORO-01 | B19: Testo | C19: Piè di pagina [compatibilmente con la larghezza della pagina, max 30 caratteri]
A30: 0 | D30: 0

Sheet ADP (hidden)
A1: ="ADATTAMENTO DELLA CARTELLA DI LAVORO a " & DATIG!A5 -> ADATTAMENTO DELLA CARTELLA DI LAVORO a Condominio "PROTOTIPO" | E1: 0
A2: I prospetti della procedura, sia di input che di output, hanno un numero di righe e colonne fissate dal programma stesso, in funzione dei valori massimi di alcuni parametri che caratterizzano l'utilizzabilità del programma stesso. In considerazione del fatto che le righe e le colonne possono essere sovrabbondanti per il particolare condominio, la procedura automaticamente nasconde le righe e le colonne non necessarie, al fine di migliorare la leggibilità dei prospetti. Per farlo utilizza i valori delle celle senza sfondo colorato del prospetto sottostante. In esso è possibile variare i valori delle celle senza sfondo colorato, non è consentito spostare le celle. I valori delle celle con sfondo colorato potrebbero essere variati, ma si sconsiglia di farlo per non perdere utili indicazioni sulle celle i cui valori possono essere variati. Valori dei parametri superiori a quelli massimi riportati nella colonna D non saranno accettati.
A3: PARAMETRI DI ADEGUAMENTO
A4: VALORE | B4: TIPO | C4: Descrizione del PARAMETRO ed indicazioni vari | D4: VALORE MAX
A5: PARAMETRI relativi al CONDOMINIO
A6: 24 | B6: NUMERO | C6: Numero di Unità Funzionali costituenti il condominio (UFC) | D6: 99
A7: 22 | B7: NUMERO | C7: Numero di Unità Immobiliari catastali costituenti il condominio (UI) | D7: 99
A8: 19 | B8: NUMERO | C8: Numero di Condomini | D8: 99
A9: 3 | B9: NUMERO | C9: Il maggiore fra i numeri dei comproprietari delle singole U.I. | D9: 6
A10: 20 | B10: NUMERO | C10: Numero raggruppamenti di soggetti che sostengono le spese per il lavoro | D10: 99
A11: 3 | B11: NUMERO | C11: Il maggiore fra i numeri dei soggetti raggruppati che sostengono le spese per le singole U.I. | D11: 6
A12: 3 | B12: NUMERO | C12: Numero di tabelle usate per le ripartizioni delle spese | D12: 10
A13: NUMERO di CAPITOLI e VOCI nei PIANI DEI CONTI CONDOMINIALI
A14: 10 | B14: NUMERO | C14: Numero massimo di Capitoli nel piano dei conti delle USCITE | D14: 10
A15: 12 | B15: NUMERO | C15: Numero di voci del capitolo S.01 delle USCITE | D15: 15
A16: 3 | B16: NUMERO | C16: Numero di voci del capitolo S.02 delle USCITE | D16: 10
A17: 3 | B17: NUMERO | C17: Numero di voci del capitolo S.03 delle USCITE | D17: 10
A18: 3 | B18: NUMERO | C18: Numero di voci del capitolo S.04 delle USCITE | D18: 10
A19: 2 | B19: NUMERO | C19: Numero di voci del capitolo S.05 delle USCITE | D19: 10
A20: 0 | B20: NUMERO | C20: Numero di voci del capitolo S.06 delle USCITE | D20: 5
A21: 0 | B21: NUMERO | C21: Numero di voci del capitolo S.07 delle USCITE | D21: 5
A22: 0 | B22: NUMERO | C22: Numero di voci del capitolo L delle USCITE | D22: 5
A23: 3 | B23: NUMERO | C23: Numero di voci del capitolo U delle USCITE | D23: 5
A24: =A7 -> 22 | B24: NUMERO | C24: Numero di voci del capitolo P delle USCITE (= numero unità funzionali condominiali) | D24: 99
A25: 4 | B25: NUMERO | C25: Numero massimo di Capitoli nel piano dei conti delle ENTRATE | D25: 4
A26: 1 | B26: NUMERO | C26: Numero di voci del capitolo E delle ENTRATE | D26: 5
A27: 2 | B27: NUMERO | C27: Numero di voci del capitolo V delle ENTRATE | D27: 5
A28: =2*A51 -> 0 | B28: NUMERO | C28: Numero di voci del capitolo F delle Entrate (= 2 x numero FONDI SPECIALI) | D28: 0
A29: =A8 -> 19 | B29: NUMERO | C29: Numero di voci del capitolo Q delle Entrate (= numero condomini) | D29: 99
A30: 4 | B30: NUMERO | C30: Numero massimo di Capitoli nel piano dei conti dei CREDITI | D30: 4
A31: 0 | B31: NUMERO | C31: Numero di voci del capitolo C.01 dei CREDITI | D31: 0
A32: 3 | B32: NUMERO | C32: Numero di voci del capitolo C.02 dei CREDITI | D32: 5
A33: 1 | B33: NUMERO | C33: Numero di voci del capitolo C.03 dei CREDITI | D33: 5
A34: =A8 -> 19 | B34: NUMERO | C34: Numero di voci del capitolo C.04 dei CREDITI (= numero condomini) | D34: 99
A35: 4 | B35: NUMERO | C35: Numero massimo di Capitoli nel piano dei conti dei DEBITI | D35: 4
A36: 0 | B36: NUMERO | C36: Numero di voci del capitolo D.01 dei DEBITI | D36: 0
A37: 5 | B37: NUMERO | C37: Numero di voci del capitolo D.02 dei DEBITI (sempre 5) | D37: 5
A38: 0 | B38: NUMERO | C38: Numero di voci del capitolo D.03 dei DEBITI | D38: 0
A39: =A8 -> 19 | B39: NUMERO | C39: Numero di voci dei capitoli Z.04 e K.04 dei DEBITI (= numero condomini) | D39: 99
A61: 0 | E61: 0

Sheet CONDOMINI (hidden)
A1: !!! Non variare il contenuto delle celle con sfondo colorato. | BN1: 0 | BO1: 0
B8: DATI CONDOMINI | M8: DATI 1° PROPRIETARIO | V8: DATI 2° PROPRIETARIO | AE8: DATI 3° PROPRIETARIO | AN8: DATI 4° PROPRIETARIO | AW8: DATI 5° PROPRIETARIO | BF8: DATI 6° PROPRIETARIO
A9: n. Cond. | B9: Codice Condomino | C9: CONDOMINI | E9: RECAPITO DEL REFERENTE | N9: DATI FISCALI | T9: ALTRI RECAPITI | W9: DATI FISCALI | AC9: ALTRI RECAPITI | AF9: DATI FISCALI | AL9: RECAPITO | AO9: DATI FISCALI | AU9: ALTRI RECAPITI | AX9: DATI FISCALI | BD9: ALTRI RECAPITI | BG9: DATI FISCALI | BM9: ALTRI RECAPITI
C10: DENOMINAZIONE | D10: S | E10: REFERENTE | F10: INDIRIZZO | G10: CAP | H10: CITTÀ | I10: Prov. | J10: TEL. | K10: CELL. | L10: INDIRIZZO email | M10: % | N10: PROPRIETARIO | O10: Codice Fiscale | P10: DOMICILIO FISCALE | Q10: CAP | R10: CITTÀ | S10: Prov. | T10: TEL./CELL. | U10: INDIRIZZO email | V10: % | W10: PROPRIETARIO | X10: Codice Fiscale | Y10: DOMICILIO FISCALE | Z10: CAP | AA10: CITTÀ | AB10: Prov. | AC10: TEL./CELL. | AD10: INDIRIZZO email | AE10: % | AF10: PROPRIETARIO | AG10: Codice Fiscale | AH10: DOMICILIO FISCALE | AI10: CAP | AJ10: CITTÀ | AK10: Prov. | AL10: TEL./CELL. | AM10: INDIRIZZO email | AN10: % | AO10: PROPRIETARIO | AP10: Codice Fiscale | AQ10: DOMICILIO FISCALE | AR10: CAP | AS10: CITTÀ | AT10: Prov. | AU10: TEL./CELL. | AV10: INDIRIZZO email | AW10: % | AX10: PROPRIETARIO | AY10: Codice Fiscale | AZ10: DOMICILIO FISCALE | BA10: CAP | BB10: CITTÀ | BC10: Prov. | BD10: TEL./CELL. | BE10: INDIRIZZO email | BF10: % | BG10: PROPRIETARIO | BH10: Codice Fiscale | BI10: DOMICILIO FISCALE | BJ10: CAP | BK10: CITTÀ | BL10: Prov. | BM10: TEL./CELL. | BN10: INDIRIZZO email
A11: 1 | B11: C01 | C11: CONDOMINO01 | D11: P | E11: Referente01 | F11: Viale BELLA, 22 | G11: 88068 | H11: SOVERATO | I11: CZ | J11: 0000-000000 | K11: 000-0000000 | L11: Condomino01@gmail.com | M11: 100 | N11: PROPRIETARIO-01-01 | O11: PPPKKK00G00T100Q | P11: Via Pinco Pallino, 1 | Q11: 83100 | R11: AVELLINO | S11: AV
A12: 2 | B12: C02 | C12: CONDOMINO02 | D12: M | E12: CONDOMINO02 | F12: Viale BELLA, 22 | G12: 88068 | H12: SOVERATO | I12: CZ | J12: 0000-000000 | K12: 000-0000000 | L12: Condomino02@gmail.com | M12: 100 | N12: PROPRIETARIO-01-02 | O12: PPPKKK00G00T200Q | P12: Viale BELLA, 22 | Q12: 88068 | R12: SOVERATO | S12: CZ
A13: 3 | B13: C03 | C13: CONDOMINO03 | D13: M | E13: CONDOMINO03 | F13: Viale BELLA, 22 | G13: 88068 | H13: SOVERATO | I13: CZ | J13: 0000-000000 | K13: 000-0000000 | L13: Condomino03@gmail.com | M13: 100 | N13: PROPRIETARIO-01-03 | O13: PPPKKK00G00T300Q | P13: Viale BELLA, 22 | Q13: 88068 | R13: SOVERATO | S13: CZ
A14: 4 | B14: C04 | C14: CONDOMINO04 | D14: M | E14: CONDOMINO04 | F14: Viale BELLA, 22 | G14: 88068 | H14: SOVERATO | I14: CZ | J14: 0000-000000 | K14: 000-0000000 | L14: Condomino04@gmail.com | M14: 100 | N14: PROPRIETARIO-01-04 | O14: PPPKKK00G00T400Q | P14: Viale BELLA, 22 | Q14: 88068 | R14: SOVERATO | S14: CZ
A15: 5 | B15: C05 | C15: CONDOMINO05 | D15: M | E15: CONDOMINO05 | F15: Viale BELLA, 22 | G15: 88068 | H15: SOVERATO | I15: CZ | J15: 0000-000000 | K15: 000-0000000 | L15: Condomino05@gmail.com | M15: 100 | N15: PROPRIETARIO-01-05 | O15: PPPKKK00G00T500Q | P15: Viale BELLA, 22 | Q15: 88068 | R15: SOVERATO | S15: CZ
A16: 6 | B16: C06 | C16: CONDOMINO06 | D16: F | E16: CONDOMINO06 | F16: Viale BELLA, 22 | G16: 88068 | H16: SOVERATO | I16: CZ | J16: 0000-000000 | K16: 000-0000000 | L16: Condomino06@gmail.com | M16: 100 | N16: PROPRIETARIO-01-06 | O16: PPPKKK00G00T600Q | P16: Viale BELLA, 22 | Q16: 88068 | R16: SOVERATO | S16: CZ
A17: 7 | B17: C07 | C17: CONDOMINO07 | D17: M | E17: CONDOMINO07 | F17: Viale BELLA, 22 | G17: 88068 | H17: SOVERATO | I17: CZ | J17: 0000-000000 | K17: 000-0000000 | L17: Condomino07@gmail.com | M17: 100 | N17: PROPRIETARIO-01-07 | O17: PPPKKK00G00T700Q | P17: Viale BELLA, 22 | Q17: 88068 | R17: SOVERATO | S17: CZ
A18: 8 | B18: C08 | C18: CONDOMINO08 | D18: P | E18: Referente02 | F18: Viale BELLA, 30 | G18: 88068 | H18: SOVERATO | I18: CZ | J18: 0000-000000 | K18: 000-0000000 | L18: Condomino08@gmail.com | M18: 50 | N18: PROPRIETARIO-01-08 | O18: PPPKKK00G00T800Q | P18: Via PeppePeppe, 47 | Q18: 87100 | R18: COSENZA | S18: CS | V18: 50 | W18: PROPRIETARIO-02-08 | X18: UUUKKK00G00T100Q | Y18: Via PeppePeppe, 47 | Z18: 87100 | AA18: COSENZA | AB18: CS
A19: 9 | B19: C09 | C19: CONDOMINO09 | D19: M | E19: CONDOMINO09 | F19: Viale BELLA, 30 | G19: 88068 | H19: SOVERATO | I19: CZ | J19: 0000-000000 | K19: 000-0000000 | L19: Condomino09@gmail.com | M19: 100 | N19: PROPRIETARIO-01-09 | O19: PPPKKK00G00T900Q | P19: Viale BELLA, 22 | Q19: 88068 | R19: SOVERATO | S19: CZ
A20: 10 | B20: C10 | C20: CONDOMINO10 | D20: F | E20: CONDOMINO10 | F20: Viale BELLA, 30 | G20: 88068 | H20: SOVERATO | I20: CZ | J20: 0000-000000 | K20: 000-0000000 | L20: Condomino10@gmail.com | M20: 100 | N20: PROPRIETARIO-01-10 | O20: PPPKKK00G00T110Q | P20: Viale BELLA, 22 | Q20: 88068 | R20: SOVERATO | S20: CZ
A21: 11 | B21: C11 | C21: CONDOMINO11 | D21: M | E21: Referente03 | F21: Viale BELLA, 30 | G21: 88068 | H21: SOVERATO | I21: CZ | J21: 0000-000000 | K21: 000-0000000 | L21: Condomino11@gmail.com | M21: 100 | N21: PROPRIETARIO-01-11 | O21: PPPKKK00G00T120Q | P21: Viale BELLA, 22 | Q21: 88068 | R21: SOVERATO | S21: CZ
A22: 12 | B22: C12 | C22: CONDOMINO12 | D22: F | E22: Referente04 | F22: Viale BELLA, 30 | G22: 88068 | H22: SOVERATO | I22: CZ | J22: 0000-000000 | K22: 000-0000000 | L22: Condomino12@gmail.com | M22: 100 | N22: PROPRIETARIO-01-12 | O22: PPPKKK00G00T130Q | P22: Viale BELLA, 22 | Q22: 88068 | R22: SOVERATO | S22: CZ
A23: 13 | B23: C13 | C23: CONDOMINO13 | D23: D | E23: CONDOMINO13 | F23: Viale BELLA, 30 | G23: 88068 | H23: SOVERATO | I23: CZ | J23: 0000-000000 | K23: 000-0000000 | L23: Condomino13@gmail.com | M23: 100 | N23: PROPRIETARIO-01-13 | O23: 00044455566 | P23: Via TORINO, 15 | Q23: 88100 | R23: CATANZARO | S23: CZ
A24: 14 | B24: C14 | C24: CONDOMINO14 | D24: P | E24: Referente05 | F24: Viale BELLA, 30 | G24: 88068 | H24: SOVERATO | I24: CZ | J24: 0000-000000 | K24: 000-0000000 | L24: Condomino14@gmail.com | M24: 50 | N24: PROPRIETARIO-01-14 | O24: PPPKKK00G00T150Q | P24: Viale BELLA, 22 | Q24: 88068 | R24: SOVERATO | S24: CZ | V24: 50 | W24: PROPRIETARIO-02-14 | X24: UUUKKK00G00T200Q | Y24: Via Pane NERO, 44 | Z24: 88068 | AA24: SOVERATO | AB24: CZ
A25: 15 | B25: C15 | C25: CONDOMINO15 | D25: M | E25: CONDOMINO15 | F25: Viale BELLA, 30 | G25: 88068 | H25: SOVERATO | I25: CZ | J25: 0000-000000 | K25: 000-0000000 | L25: Condomino15@gmail.com | M25: 100 | N25: PROPRIETARIO-01-15 | O25: PPPKKK00G00T160Q | P25: Viale BELLA, 22 | Q25: 88068 | R25: SOVERATO | S25: CZ
A26: 16 | B26: C16 | C26: CONDOMINO16 | D26: F | E26: CONDOMINO16 | F26: Viale BELLA, 38 | G26: 88068 | H26: SOVERATO | I26: CZ | J26: 0000-000000 | K26: 000-0000000 | L26: Condomino16@gmail.com | M26: 100 | N26: PROPRIETARIO-01-16 | O26: PPPKKK00G00T170Q | P26: Via Pippo Pippo, 34 | Q26: 47921 | R26: RIMINI | S26: RN
A27: 17 | B27: C17 | C27: CONDOMINO17 | D27: F | E27: CONDOMINO17 | F27: Viale BELLA, 38 | G27: 88068 | H27: SOVERATO | I27: CZ | J27: 0000-000000 | K27: 000-0000000 | L27: Condomino17@gmail.com | M27: 100 | N27: PROPRIETARIO-01-17 | O27: PPPKKK00G00T180Q | P27: Viale BELLA, 22 | Q27: 88068 | R27: SOVERATO | S27: CZ
A28: 18 | B28: C18 | C28: CONDOMINO18 | D28: P | E28: CONDOMINO18 | F28: Viale BELLA, 38 | G28: 88068 | H28: SOVERATO | I28: CZ | J28: 0000-000000 | K28: 000-0000000 | L28: Condomino18@gmail.com | M28: 100 | N28: PROPRIETARIO-01-18 | O28: PPPKKK00G00T190Q | P28: Viale BELLA, 22 | Q28: 88068 | R28: SOVERATO | S28: CZ
A29: 19 | B29: C19 | C29: CONDOMINO19 | D29: P | E29: CONDOMINO19 | F29: Viale BELLA, 38 | G29: 88068 | H29: SOVERATO | I29: CZ | J29: 0000-000000 | K29: 000-0000000 | L29: Condomino19@gmail.com | M29: 50 | N29: PROPRIETARIO-01-19 | O29: PPPKKK00G00T200Q | P29: Viale BELLA, 22 | Q29: 88068 | R29: SOVERATO | S29: CZ | V29: 25 | W29: PROPRIETARIO-02-19 | X29: UUUKKK00G00T300Q | Y29: Via della Acque Sporche, 17 | Z29: 88068 | AA29: SOVERATO | AB29: CZ | AE29: 25 | AF29: PROPRIETARIO-03-19 | AG29: ZZZKKK55G55T555Q | AH29: Via delle Libertà Perdute,96 | AI29: 88060 | AJ29: SATRIANO | AK29: CZ
A30: 20 | B30: C20
A31: 21 | B31: C21
A32: 22 | B32: C22
A33: 23 | B33: C23
A34: 24 | B34: C24
A35: 25 | B35: C25
A36: 26 | B36: C26
A37: 27 | B37: C27
A38: 28 | B38: C28
A39: 29 | B39: C29
A40: 30 | B40: C30
A41: 31 | B41: C31
A42: 32 | B42: C32
A43: 33 | B43: C33
A44: 34 | B44: C34
A45: 35 | B45: C35
A46: 36 | B46: C36
A47: 37 | B47: C37
A48: 38 | B48: C38
A49: 39 | B49: C39
A50: 40 | B50: C40
A51: 41 | B51: C41
A52: 42 | B52: C42
A53: 43 | B53: C43
A54: 44 | B54: C44
A55: 45 | B55: C45
A56: 46 | B56: C46
A57: 47 | B57: C47
A58: 48 | B58: C48
A59: 49 | B59: C49
A60: 50 | B60: C50
A61: 51 | B61: C51
A62: 52 | B62: C52
A63: 53 | B63: C53
A64: 54 | B64: C54
A65: 55 | B65: C55
A66: 56 | B66: C56
A67: 57 | B67: C57
A68: 58 | B68: C58
A69: 59 | B69: C59
A70: 60 | B70: C60
A71: 61 | B71: C61
A72: 62 | B72: C62
A73: 63 | B73: C63
A74: 64 | B74: C64
A75: 65 | B75: C65
A76: 66 | B76: C66
A77: 67 | B77: C67
A78: 68 | B78: C68
A79: 69 | B79: C69
A80: 70 | B80: C70
A81: 71 | B81: C71
A82: 72 | B82: C72
A83: 73 | B83: C73
A84: 74 | B84: C74
A85: 75 | B85: C75
A86: 76 | B86: C76
A87: 77 | B87: C77
A88: 78 | B88: C78
A89: 79 | B89: C79
A90: 80 | B90: C80
A91: 81 | B91: C81
A92: 82 | B92: C82
A93: 83 | B93: C83
A94: 84 | B94: C84
A95: 85 | B95: C85
A96: 86 | B96: C86
A97: 87 | B97: C87
A98: 88 | B98: C88
A99: 89 | B99: C89
A100: 90 | B100: C90
A101: 91 | B101: C91
A102: 92 | B102: C92
A103: 93 | B103: C93
A104: 94 | B104: C94
A105: 95 | B105: C95
A106: 96 | B106: C96
A107: 97 | B107: C97
A108: 98 | B108: C98
A109: 99 | B109: C99
A111: 0 | BO111: 0

Sheet SS (hidden)
A1: !!! Non variare il contenuto delle celle con sfondo colorato. | AA1: 0
A8: n. | B8: Codice GRUPPO SOGGETTI SOSTENITORI | C8: 1° SOGGETTO CHE SOSTIENE LE SPESE | G8: 2° SOGGETTO CHE SOSTIENE LE SPESE | K8: 3° SOGGETTO CHE SOSTIENE LE SPESE | O8: 4° SOGGETTO CHE SOSTIENE LE SPESE | S8: 5° SOGGETTO CHE SOSTIENE LE SPESE | W8: 6° SOGGETTO CHE SOSTIENE LE SPESE
C9: DATI FISCALI | G9: DATI FISCALI | K9: DATI FISCALI | O9: DATI FISCALI | S9: DATI FISCALI | W9: DATI FISCALI
C10: % | D10: SOGGETTO | E10: Codice Fiscale | F10: T | G10: % | H10: SOGGETTO | I10: Codice Fiscale | J10: T | K10: % | L10: SOGGETTO | M10: Codice Fiscale | N10: T | O10: % | P10: SOGGETTO | Q10: Codice Fiscale | R10: T | S10: % | T10: SOGGETTO | U10: Codice Fiscale | V10: T | W10: % | X10: SOGGETTO | Y10: Codice Fiscale | Z10: T
A11: 1 | B11: S01 | C11: 100 | D11: SOGGETTO01-01 | E11: PPPKKK00G00T100Q | F11: 0
A12: 2 | B12: S02 | C12: 100 | D12: SOGGETTO01-02 | E12: PPPKKK00G00T200Q | F12: 0
A13: 3 | B13: S03 | C13: 100 | D13: SOGGETTO01-03 | E13: PPPKKK00G00T300Q | F13: 0
A14: 4 | B14: S04 | C14: 100 | D14: SOGGETTO01-04 | E14: PPPKKK00G00T400Q | F14: 0
A15: 5 | B15: S05 | C15: 100 | D15: SOGGETTO01-05 | E15: PPPKKK00G00T500Q | F15: 0
A16: 6 | B16: S06 | C16: 100 | D16: SOGGETTO01-06 | E16: PPPKKK00G00T600Q | F16: 0
A17: 7 | B17: S07 | C17: 100 | D17: SOGGETTO01-07 | E17: PPPKKK00G00T700Q | F17: 0
A18: 8 | B18: S08 | C18: 50 | D18: SOGGETTO01-08 | E18: PPPKKK00G00T800Q | F18: 0 | G18: 50 | H18: SOGGETTO02-08 | I18: UUUKKK00G00T100Q | J18: 0
A19: 9 | B19: S09 | C19: 100 | D19: SOGGETTO01-09 | E19: PPPKKK00G00T900Q | F19: 1
A20: 10 | B20: S10 | C20: 100 | D20: SOGGETTO01-10 | E20: PPPKKK00G00T110Q | F20: 0
A21: 11 | B21: S11 | C21: 100 | D21: SOGGETTO01-11 | E21: PPPKKK00G00T120Q | F21: 0
A22: 12 | B22: S12 | C22: 100 | D22: SOGGETTO01-12 | E22: PPPKKK00G00T130Q | F22: 0
A23: 13 | B23: S13 | C23: 100 | D23: SOGGETTO01-13 | E23: 00044455566 | F23: 0
A24: 14 | B24: S14 | C24: 50 | D24: SOGGETTO01-14 | E24: PPPKKK00G00T150Q | F24: 0 | G24: 50 | H24: SOGGETTO02-14 | I24: UUUKKK00G00T200Q | J24: 0
A25: 15 | B25: S15 | C25: 100 | D25: SOGGETTO01-15 | E25: PPPKKK00G00T160Q | F25: 2
A26: 16 | B26: S16 | C26: 100 | D26: SOGGETTO01-16 | E26: PPPKKK00G00T170Q | F26: 0
A27: 17 | B27: S17 | C27: 100 | D27: SOGGETTO01-17 | E27: PPPKKK00G00T180Q | F27: 0
A28: 18 | B28: S18 | C28: 100 | D28: SOGGETTO01-18 | E28: PPPKKK00G00T190Q | F28: 0
A29: 19 | B29: S19 | C29: 50 | D29: SOGGETTO01-19 | E29: PPPKKK00G00T200Q | F29: 0 | G29: 25 | H29: SOGGETTO02-19 | I29: UUUKKK00G00T300Q | J29: 0 | K29: 25 | L29: SOGGETTO03-19 | M29: ZZZKKK55G55T555Q | N29: 1
A30: 20 | B30: S20 | C30: 100 | D30: SOGGETTO01-20 | E30: PPPKKK00J00T200W | F30: 0
A31: 21 | B31: S21
A32: 22 | B32: S22
A33: 23 | B33: S23
A34: 24 | B34: S24
A35: 25 | B35: S25
A36: 26 | B36: S26
A37: 27 | B37: S27
A38: 28 | B38: S28
A39: 29 | B39: S29
A40: 30 | B40: S30
A41: 31 | B41: S31
A42: 32 | B42: S32
A43: 33 | B43: S33
A44: 34 | B44: S34
A45: 35 | B45: S35
A46: 36 | B46: S36
A47: 37 | B47: S37
A48: 38 | B48: S38
A49: 39 | B49: S39
A50: 40 | B50: S40
A51: 41 | B51: S41
A52: 42 | B52: S42
A53: 43 | B53: S43
A54: 44 | B54: S44
A55: 45 | B55: S45
A56: 46 | B56: S46
A57: 47 | B57: S47
A58: 48 | B58: S48
A59: 49 | B59: S49
A60: 50 | B60: S50
A61: 51 | B61: S51
A62: 52 | B62: S52
A63: 53 | B63: S53
A64: 54 | B64: S54
A65: 55 | B65: S55
A66: 56 | B66: S56
A67: 57 | B67: S57
A68: 58 | B68: S58
A69: 59 | B69: S59
A70: 60 | B70: S60
A71: 61 | B71: S61
A72: 62 | B72: S62
A73: 63 | B73: S63
A74: 64 | B74: S64
A75: 65 | B75: S65
A76: 66 | B76: S66
A77: 67 | B77: S67
A78: 68 | B78: S68
A79: 69 | B79: S69
A80: 70 | B80: S70
A81: 71 | B81: S71
A82: 72 | B82: S72
A83: 73 | B83: S73
A84: 74 | B84: S74
A85: 75 | B85: S75
A86: 76 | B86: S76
A87: 77 | B87: S77
A88: 78 | B88: S78
A89: 79 | B89: S79
A90: 80 | B90: S80
A91: 81 | B91: S81
A92: 82 | B92: S82
A93: 83 | B93: S83
A94: 84 | B94: S84
A95: 85 | B95: S85
A96: 86 | B96: S86
A97: 87 | B97: S87
A98: 88 | B98: S88
A99: 89 | B99: S89
A100: 90 | B100: S90
A101: 91 | B101: S91
A102: 92 | B102: S92
A103: 93 | B103: S93
A104: 94 | B104: S94
A105: 95 | B105: S95
A106: 96 | B106: S96
A107: 97 | B107: S97
A108: 98 | B108: S98
A109: 99 | B109: S99
A111: 0 | AA111: 0

Sheet UF (hidden)
A1: !!! Non variare il contenuto delle celle con sfondo colorato. | K1: 0
A5: UNITÀ FUNZIONALI CONDOMINIALI
A6: Condominio "PROTOTIPO" - Via BELLA, 22-30-38 - 88068 - SOVERATO (CZ)
A8: IDENTIFICATIVI CONDOMINIALI | D8: UBICAZIONE | J8: DESTINAZIONE
A9: n° UFC | B9: Codice Unità Funzionale Condominiale | C9: Codice Unità Immobiliare Catastale cui appartiene | D9: ODONIMO | E9: Civico | F9: Edificio | G9: Scala | H9: Piano | I9: Interno | J9: UTILIZZAZIONE
A11: 1 | B11: UFC01 | C11: U01 | D11: Via BELLA | E11: 38 | J11: Abitazione
A12: 2 | B12: UFC02 | C12: U02 | D12: Via BELLA | E12: 38 | J12: Abitazione
A13: 3 | B13: UFC03 | C13: U03 | D13: Via BELLA | E13: 38 | J13: Abitazione
A14: 4 | B14: UFC04 | C14: U04 | D14: Via BELLA | E14: 38 | J14: Abitazione
A15: 5 | B15: UFC05 | C15: U05 | D15: Via BELLA | E15: 38 | J15: Abitazione
A16: 6 | B16: UFC06 | C16: U06 | D16: Via BELLA | E16: 38 | J16: Abitazione
A17: 7 | B17: UFC07 | C17: U07 | D17: Via BELLA | E17: 30 | J17: Abitazione
A18: 8 | B18: UFC08 | C18: U08 | D18: Via BELLA | E18: 30 | J18: Abitazione
A19: 9 | B19: UFC09 | C19: U09 | D19: Via BELLA | E19: 30 | J19: Abitazione
A20: 10 | B20: UFC10 | C20: U10 | D20: Via BELLA | E20: 30 | J20: Abitazione
A21: 11 | B21: UFC11 | C21: U11 | D21: Via BELLA | E21: 30 | J21: Abitazione
A22: 12 | B22: UFC12 | C22: U12 | D22: Via BELLA | E22: 30 | J22: Abitazione
A23: 13 | B23: UFC13 | C23: U13 | D23: Via BELLA | E23: 22 | J23: Abitazione
A24: 14 | B24: UFC14 | C24: U14 | D24: Via BELLA | E24: 22 | J24: Abitazione
A25: 15 | B25: UFC15 | C25: U15 | D25: Via BELLA | E25: 22 | J25: Abitazione
A26: 16 | B26: UFC16 | C26: U16 | D26: Via BELLA | E26: 22 | J26: Abitazione
A27: 17 | B27: UFC17 | C27: U17 | D27: Via BELLA | E27: 22 | J27: Garage
A28: 18 | B28: UFC18 | C28: U18 | D28: Via BELLA | E28: 38 | J28: Abitazione
A29: 19 | B29: UFC19 | C29: U19 | D29: Via BELLA | E29: 38 | J29: Abitazione
A30: 20 | B30: UFC20 | C30: U20 | D30: Via BELLA | E30: 30 | J30: Abitazione
A31: 21 | B31: UFC21 | C31: U21 | D31: Via BELLA | E31: 30 | J31: Garage
A32: 22 | B32: UFC22 | C32: U22 | D32: Via BELLA | E32: 22 | J32: Abitazione
A33: 23 | B33: UFC23 | C33: U20 | D33: Via BELLA | E33: 22 | J33: Locale autoclave
A34: 24 | B34: UFC24 | C34: U15 | D34: Via BELLA | E34: 38 | J34: Stenditoio
A35: 25 | B35: UFC25
A36: 26 | B36: UFC26
A37: 27 | B37: UFC27
A38: 28 | B38: UFC28
A39: 29 | B39: UFC29
A40: 30 | B40: UFC30
A41: 31 | B41: UFC31
A42: 32 | B42: UFC32
A43: 33 | B43: UFC33
A44: 34 | B44: UFC34
A45: 35 | B45: UFC35
A46: 36 | B46: UFC36
A47: 37 | B47: UFC37
A48: 38 | B48: UFC38
A49: 39 | B49: UFC39
A50: 40 | B50: UFC40
A51: 41 | B51: UFC41
A52: 42 | B52: UFC42
A53: 43 | B53: UFC43
A54: 44 | B54: UFC44
A55: 45 | B55: UFC45
A56: 46 | B56: UFC46
A57: 47 | B57: UFC47
A58: 48 | B58: UFC48
A59: 49 | B59: UFC49
A60: 50 | B60: UFC50
A61: 51 | B61: UFC51
A62: 52 | B62: UFC52
A63: 53 | B63: UFC53
A64: 54 | B64: UFC54
A65: 55 | B65: UFC55
A66: 56 | B66: UFC56
A67: 57 | B67: UFC57
A68: 58 | B68: UFC58
A69: 59 | B69: UFC59
A70: 60 | B70: UFC60
A71: 61 | B71: UFC61
A72: 62 | B72: UFC62
A73: 63 | B73: UFC63
A74: 64 | B74: UFC64
A75: 65 | B75: UFC65
A76: 66 | B76: UFC66
A77: 67 | B77: UFC67
A78: 68 | B78: UFC68
A79: 69 | B79: UFC69
A80: 70 | B80: UFC70
A81: 71 | B81: UFC71
A82: 72 | B82: UFC72
A83: 73 | B83: UFC73
A84: 74 | B84: UFC74
A85: 75 | B85: UFC75
A86: 76 | B86: UFC76
A87: 77 | B87: UFC77
A88: 78 | B88: UFC78
A89: 79 | B89: UFC79
A90: 80 | B90: UFC80
A91: 81 | B91: UFC81
A92: 82 | B92: UFC82
A93: 83 | B93: UFC83
A94: 84 | B94: UFC84
A95: 85 | B95: UFC85
A96: 86 | B96: UFC86
A97: 87 | B97: UFC87
A98: 88 | B98: UFC88
A99: 89 | B99: UFC89
A100: 90 | B100: UFC90
A101: 91 | B101: UFC91
A102: 92 | B102: UFC92
A103: 93 | B103: UFC93
A104: 94 | B104: UFC94
A105: 95 | B105: UFC95
A106: 96 | B106: UFC96
A107: 97 | B107: UFC97
A108: 98 | B108: UFC98
A109: 99 | B109: UFC99
A111: 0 | K111: 0

Sheet UI (hidden)
A1: !!! Non variare il contenuto delle celle con sfondo colorato. | Z1: 0
A5: ="UNITÀ IMMOBILIARI CATASTALI" -> UNITÀ IMMOBILIARI CATASTALI
A6: Condominio "PROTOTIPO" - Via BELLA, 22-30-38 - 88068 - SOVERATO (CZ)
A7: ="CONDOMINI (al giorno " & TEXT(DATIG!A39,"gg-mmmm-aaaa") & ")" -> CONDOMINI (al giorno 31-dicembre-2019)
A8: IDENTIFICATIVI CONDOMINIALI | D8: PROPRIETÀ | F8: IDENTIFICATIVI CATASTALI | N8: UBICAZIONE CATASTALE | T8: DESTINAZIONE CATASTALE | U8: DETRAZIONI FISCALI | X8: FRUITORI DELLA DETRAZIONE FISCALE
A9: n° UI | B9: Codice Unità Catastale Immobiliare | C9: UFC costituenti | D9: Codice Condomino Proprietario | E9: CONDOMINO | F9: Foglio | G9: Particella | H9: Subalterno | I9: Categoria | J9: Classe | K9: Consistenza (vani) | L9: Consistenza (mq) | M9: Rendita (euro) | N9: ODONIMO | O9: Civico | P9: EDIFICIO | Q9: Scala | R9: Piano | S9: Interno | T9: UTILIZZAZIONE | U9: Codice Unità Immobiliare Principale | V9: Codice Unità Immobiliare Pertinenza 1 | W9: Codice Unità Immobiliare Pertinenza 2 | X9: Codice SOSTENITORI SPESE | Y9: FLAG U.I.
A11: 1 | B11: U01 | C11: UFC01 | D11: C01 | E11: =IF(D11<>"",IFERROR(VLOOKUP(D11,CONDOMINI!$B$11:$C$109,2,FALSE),""),"") -> CONDOMINO01 | F11: 40 | G11: 55 | H11: 1 | N11: Via BELLA | O11: 38 | T11: Abitazione | U11: U01 | X11: S01
A12: 2 | B12: U02 | C12: UFC02 | D12: C02 | E12: =IF(D12<>"",IFERROR(VLOOKUP(D12,CONDOMINI!$B$11:$C$109,2,FALSE),""),"") -> CONDOMINO02 | F12: 40 | G12: 55 | H12: 2 | N12: Via BELLA | O12: 38 | T12: Abitazione | U12: U02 | X12: S02
A13: 3 | B13: U03 | C13: UFC03 | D13: C03 | E13: =IF(D13<>"",IFERROR(VLOOKUP(D13,CONDOMINI!$B$11:$C$109,2,FALSE),""),"") -> CONDOMINO03 | F13: 40 | G13: 55 | H13: 3 | N13: Via BELLA | O13: 38 | T13: Abitazione | U13: U03 | X13: S03
A14: 4 | B14: U04 | C14: UFC04 | D14: C04 | E14: =IF(D14<>"",IFERROR(VLOOKUP(D14,CONDOMINI!$B$11:$C$109,2,FALSE),""),"") -> CONDOMINO04 | F14: 40 | G14: 55 | H14: 4 | N14: Via BELLA | O14: 38 | T14: Abitazione | U14: U04 | X14: S04
A15: 5 | B15: U05 | C15: UFC05 | D15: C05 | E15: =IF(D15<>"",IFERROR(VLOOKUP(D15,CONDOMINI!$B$11:$C$109,2,FALSE),""),"") -> CONDOMINO05 | F15: 40 | G15: 55 | H15: 5 | N15: Via BELLA | O15: 38 | T15: Abitazione | U15: U05 | X15: S05
A16: 6 | B16: U06 | C16: UFC06 | D16: C06 | E16: =IF(D16<>"",IFERROR(VLOOKUP(D16,CONDOMINI!$B$11:$C$109,2,FALSE),""),"") -> CONDOMINO06 | F16: 40 | G16: 55 | H16: 6 | N16: Via BELLA | O16: 38 | T16: Abitazione | U16: U06 | X16: S06
A17: 7 | B17: U07 | C17: UFC07 | D17: C07 | E17: =IF(D17<>"",IFERROR(VLOOKUP(D17,CONDOMINI!$B$11:$C$109,2,FALSE),""),"") -> CONDOMINO07 | F17: 40 | G17: 55 | H17: 7 | N17: Via BELLA | O17: 30 | T17: Abitazione | U17: U07 | X17: S07
A18: 8 | B18: U08 | C18: UFC08 | D18: C08 | E18: =IF(D18<>"",IFERROR(VLOOKUP(D18,CONDOMINI!$B$11:$C$109,2,FALSE),""),"") -> CONDOMINO08 | F18: 40 | G18: 55 | H18: 8 | N18: Via BELLA | O18: 30 | T18: Abitazione | U18: U08 | V18: U21 | X18: S08
A19: 9 | B19: U09 | C19: UFC09 | D19: C09 | E19: =IF(D19<>"",IFERROR(VLOOKUP(D19,CONDOMINI!$B$11:$C$109,2,FALSE),""),"") -> CONDOMINO09 | F19: 40 | G19: 55 | H19: 9 | N19: Via BELLA | O19: 30 | T19: Abitazione | U19: U09 | X19: S09
A20: 10 | B20: U10 | C20: UFC10 | D20: C10 | E20: =IF(D20<>"",IFERROR(VLOOKUP(D20,CONDOMINI!$B$11:$C$109,2,FALSE),""),"") -> CONDOMINO10 | F20: 40 | G20: 55 | H20: 10 | N20: Via BELLA | O20: 30 | T20: Abitazione | U20: U10 | X20: S10
A21: 11 | B21: U11 | C21: UFC11 | D21: C11 | E21: =IF(D21<>"",IFERROR(VLOOKUP(D21,CONDOMINI!$B$11:$C$109,2,FALSE),""),"") -> CONDOMINO11 | F21: 40 | G21: 55 | H21: 11 | N21: Via BELLA | O21: 30 | T21: Abitazione | U21: U11 | X21: S11
A22: 12 | B22: U12 | C22: UFC12 | D22: C12 | E22: =IF(D22<>"",IFERROR(VLOOKUP(D22,CONDOMINI!$B$11:$C$109,2,FALSE),""),"") -> CONDOMINO12 | F22: 40 | G22: 55 | H22: 12 | N22: Via BELLA | O22: 30 | T22: Abitazione | U22: U12 | X22: S12
A23: 13 | B23: U13 | C23: UFC13 | D23: C13 | E23: =IF(D23<>"",IFERROR(VLOOKUP(D23,CONDOMINI!$B$11:$C$109,2,FALSE),""),"") -> CONDOMINO13 | F23: 40 | G23: 55 | H23: 13 | N23: Via BELLA | O23: 22 | T23: Abitazione | U23: U13 | X23: S13
A24: 14 | B24: U14 | C24: UFC14 | D24: C14 | E24: =IF(D24<>"",IFERROR(VLOOKUP(D24,CONDOMINI!$B$11:$C$109,2,FALSE),""),"") -> CONDOMINO14 | F24: 40 | G24: 55 | H24: 14 | N24: Via BELLA | O24: 22 | T24: Abitazione | U24: U14 | X24: S14
A25: 15 | B25: U15 | C25: UFC15+UFC24 | D25: C15 | E25: =IF(D25<>"",IFERROR(VLOOKUP(D25,CONDOMINI!$B$11:$C$109,2,FALSE),""),"") -> CONDOMINO15 | F25: 40 | G25: 55 | H25: 15 | N25: Via BELLA | O25: 22 | T25: Abitazione | U25: U15 | X25: S15
A26: 16 | B26: U16 | C26: UFC16 | D26: C16 | E26: =IF(D26<>"",IFERROR(VLOOKUP(D26,CONDOMINI!$B$11:$C$109,2,FALSE),""),"") -> CONDOMINO16 | F26: 40 | G26: 55 | H26: 16 | N26: Via BELLA | O26: 22 | T26: Abitazione | U26: U16 | X26: S16
A27: 17 | B27: U17 | C27: UFC17 | D27: C17 | E27: =IF(D27<>"",IFERROR(VLOOKUP(D27,CONDOMINI!$B$11:$C$109,2,FALSE),""),"") -> CONDOMINO17 | F27: 40 | G27: 55 | H27: 17 | N27: Via BELLA | O27: 22 | T27: Garage | U27: U17 | X27: S17
A28: 18 | B28: U18 | C28: UFC18 | D28: C18 | E28: =IF(D28<>"",IFERROR(VLOOKUP(D28,CONDOMINI!$B$11:$C$109,2,FALSE),""),"") -> CONDOMINO18 | F28: 40 | G28: 55 | H28: 18 | N28: Via BELLA | O28: 38 | T28: Abitazione | U28: U18 | X28: S18
A29: 19 | B29: U19 | C29: UFC19 | D29: C19 | E29: =IF(D29<>"",IFERROR(VLOOKUP(D29,CONDOMINI!$B$11:$C$109,2,FALSE),""),"") -> CONDOMINO19 | F29: 40 | G29: 55 | H29: 24 | N29: Via BELLA | O29: 38 | T29: Abitazione | U29: U19 | X29: S19
A30: 20 | B30: U20 | C30: UFC20+UFC23 | D30: C07 | E30: =IF(D30<>"",IFERROR(VLOOKUP(D30,CONDOMINI!$B$11:$C$109,2,FALSE),""),"") -> CONDOMINO07 | F30: 40 | G30: 55 | H30: 23 | N30: Via BELLA | O30: 30 | T30: Abitazione | U30: U20 | X30: S20
A31: 21 | B31: U21 | C31: UFC21 | D31: C08 | E31: =IF(D31<>"",IFERROR(VLOOKUP(D31,CONDOMINI!$B$11:$C$109,2,FALSE),""),"") -> CONDOMINO08 | F31: 40 | G31: 55 | H31: 22 | N31: Via BELLA | O31: 30 | T31: Garage | U31: U21 | X31: S08
A32: 22 | B32: U22 | C32: UFC22 | D32: C19 | E32: =IF(D32<>"",IFERROR(VLOOKUP(D32,CONDOMINI!$B$11:$C$109,2,FALSE),""),"") -> CONDOMINO19 | F32: 40 | G32: 55 | H32: 55 | N32: Via BELLA | O32: 22 | T32: Abitazione | U32: U22 | X32: S19
A33: 23 | B33: U23 | E33: =IF(D33<>"",IFERROR(VLOOKUP(D33,CONDOMINI!$B$11:$C$109,2,FALSE),""),"") -> 
A34: 24 | B34: U24 | E34: =IF(D34<>"",IFERROR(VLOOKUP(D34,CONDOMINI!$B$11:$C$109,2,FALSE),""),"") -> 
A35: 25 | B35: U25 | E35: =IF(D35<>"",IFERROR(VLOOKUP(D35,CONDOMINI!$B$11:$C$109,2,FALSE),""),"") -> 
A36: 26 | B36: U26 | E36: =IF(D36<>"",IFERROR(VLOOKUP(D36,CONDOMINI!$B$11:$C$109,2,FALSE),""),"") -> 
A37: 27 | B37: U27 | E37: =IF(D37<>"",IFERROR(VLOOKUP(D37,CONDOMINI!$B$11:$C$109,2,FALSE),""),"") -> 
A38: 28 | B38: U28 | E38: =IF(D38<>"",IFERROR(VLOOKUP(D38,CONDOMINI!$B$11:$C$109,2,FALSE),""),"") -> 
A39: 29 | B39: U29 | E39: =IF(D39<>"",IFERROR(VLOOKUP(D39,CONDOMINI!$B$11:$C$109,2,FALSE),""),"") -> 
A40: 30 | B40: U30 | E40: =IF(D40<>"",IFERROR(VLOOKUP(D40,CONDOMINI!$B$11:$C$109,2,FALSE),""),"") -> 
A41: 31 | B41: U31 | E41: =IF(D41<>"",IFERROR(VLOOKUP(D41,CONDOMINI!$B$11:$C$109,2,FALSE),""),"") -> 
A42: 32 | B42: U32 | E42: =IF(D42<>"",IFERROR(VLOOKUP(D42,CONDOMINI!$B$11:$C$109,2,FALSE),""),"") -> 
A43: 33 | B43: U33 | E43: =IF(D43<>"",IFERROR(VLOOKUP(D43,CONDOMINI!$B$11:$C$109,2,FALSE),""),"") -> 
A44: 34 | B44: U34 | E44: =IF(D44<>"",IFERROR(VLOOKUP(D44,CONDOMINI!$B$11:$C$109,2,FALSE),""),"") -> 
A45: 35 | B45: U35 | E45: =IF(D45<>"",IFERROR(VLOOKUP(D45,CONDOMINI!$B$11:$C$109,2,FALSE),""),"") -> 
A46: 36 | B46: U36 | E46: =IF(D46<>"",IFERROR(VLOOKUP(D46,CONDOMINI!$B$11:$C$109,2,FALSE),""),"") -> 
A47: 37 | B47: U37 | E47: =IF(D47<>"",IFERROR(VLOOKUP(D47,CONDOMINI!$B$11:$C$109,2,FALSE),""),"") -> 
A48: 38 | B48: U38 | E48: =IF(D48<>"",IFERROR(VLOOKUP(D48,CONDOMINI!$B$11:$C$109,2,FALSE),""),"") -> 
A49: 39 | B49: U39 | E49: =IF(D49<>"",IFERROR(VLOOKUP(D49,CONDOMINI!$B$11:$C$109,2,FALSE),""),"") -> 
A50: 40 | B50: U40 | E50: =IF(D50<>"",IFERROR(VLOOKUP(D50,CONDOMINI!$B$11:$C$109,2,FALSE),""),"") -> 
A51: 41 | B51: U41 | E51: =IF(D51<>"",IFERROR(VLOOKUP(D51,CONDOMINI!$B$11:$C$109,2,FALSE),""),"") -> 
A52: 42 | B52: U42 | E52: =IF(D52<>"",IFERROR(VLOOKUP(D52,CONDOMINI!$B$11:$C$109,2,FALSE),""),"") -> 
A53: 43 | B53: U43 | E53: =IF(D53<>"",IFERROR(VLOOKUP(D53,CONDOMINI!$B$11:$C$109,2,FALSE),""),"") -> 
A54: 44 | B54: U44 | E54: =IF(D54<>"",IFERROR(VLOOKUP(D54,CONDOMINI!$B$11:$C$109,2,FALSE),""),"") -> 
A55: 45 | B55: U45 | E55: =IF(D55<>"",IFERROR(VLOOKUP(D55,CONDOMINI!$B$11:$C$109,2,FALSE),""),"") -> 
A56: 46 | B56: U46 | E56: =IF(D56<>"",IFERROR(VLOOKUP(D56,CONDOMINI!$B$11:$C$109,2,FALSE),""),"") -> 
A57: 47 | B57: U47 | E57: =IF(D57<>"",IFERROR(VLOOKUP(D57,CONDOMINI!$B$11:$C$109,2,FALSE),""),"") -> 
A58: 48 | B58: U48 | E58: =IF(D58<>"",IFERROR(VLOOKUP(D58,CONDOMINI!$B$11:$C$109,2,FALSE),""),"") -> 
A59: 49 | B59: U49 | E59: =IF(D59<>"",IFERROR(VLOOKUP(D59,CONDOMINI!$B$11:$C$109,2,FALSE),""),"") -> 
A60: 50 | B60: U50 | E60: =IF(D60<>"",IFERROR(VLOOKUP(D60,CONDOMINI!$B$11:$C$109,2,FALSE),""),"") -> 
A61: 51 | B61: U51 | E61: =IF(D61<>"",IFERROR(VLOOKUP(D61,CONDOMINI!$B$11:$C$109,2,FALSE),""),"") -> 
A62: 52 | B62: U52 | E62: =IF(D62<>"",IFERROR(VLOOKUP(D62,CONDOMINI!$B$11:$C$109,2,FALSE),""),"") -> 
A63: 53 | B63: U53 | E63: =IF(D63<>"",IFERROR(VLOOKUP(D63,CONDOMINI!$B$11:$C$109,2,FALSE),""),"") -> 
A64: 54 | B64: U54 | E64: =IF(D64<>"",IFERROR(VLOOKUP(D64,CONDOMINI!$B$11:$C$109,2,FALSE),""),"") -> 
A65: 55 | B65: U55 | E65: =IF(D65<>"",IFERROR(VLOOKUP(D65,CONDOMINI!$B$11:$C$109,2,FALSE),""),"") -> 
A66: 56 | B66: U56 | E66: =IF(D66<>"",IFERROR(VLOOKUP(D66,CONDOMINI!$B$11:$C$109,2,FALSE),""),"") -> 
A67: 57 | B67: U57 | E67: =IF(D67<>"",IFERROR(VLOOKUP(D67,CONDOMINI!$B$11:$C$109,2,FALSE),""),"") -> 
A68: 58 | B68: U58 | E68: =IF(D68<>"",IFERROR(VLOOKUP(D68,CONDOMINI!$B$11:$C$109,2,FALSE),""),"") -> 
A69: 59 | B69: U59 | E69: =IF(D69<>"",IFERROR(VLOOKUP(D69,CONDOMINI!$B$11:$C$109,2,FALSE),""),"") -> 
A70: 60 | B70: U60 | E70: =IF(D70<>"",IFERROR(VLOOKUP(D70,CONDOMINI!$B$11:$C$109,2,FALSE),""),"") -> 
A71: 61 | B71: U61 | E71: =IF(D71<>"",IFERROR(VLOOKUP(D71,CONDOMINI!$B$11:$C$109,2,FALSE),""),"") -> 
A72: 62 | B72: U62 | E72: =IF(D72<>"",IFERROR(VLOOKUP(D72,CONDOMINI!$B$11:$C$109,2,FALSE),""),"") -> 
A73: 63 | B73: U63 | E73: =IF(D73<>"",IFERROR(VLOOKUP(D73,CONDOMINI!$B$11:$C$109,2,FALSE),""),"") -> 
A74: 64 | B74: U64 | E74: =IF(D74<>"",IFERROR(VLOOKUP(D74,CONDOMINI!$B$11:$C$109,2,FALSE),""),"") -> 
A75: 65 | B75: U65 | E75: =IF(D75<>"",IFERROR(VLOOKUP(D75,CONDOMINI!$B$11:$C$109,2,FALSE),""),"") -> 
A76: 66 | B76: U66 | E76: =IF(D76<>"",IFERROR(VLOOKUP(D76,CONDOMINI!$B$11:$C$109,2,FALSE),""),"") -> 
A77: 67 | B77: U67 | E77: =IF(D77<>"",IFERROR(VLOOKUP(D77,CONDOMINI!$B$11:$C$109,2,FALSE),""),"") -> 
A78: 68 | B78: U68 | E78: =IF(D78<>"",IFERROR(VLOOKUP(D78,CONDOMINI!$B$11:$C$109,2,FALSE),""),"") -> 
A79: 69 | B79: U69 | E79: =IF(D79<>"",IFERROR(VLOOKUP(D79,CONDOMINI!$B$11:$C$109,2,FALSE),""),"") -> 
A80: 70 | B80: U70 | E80: =IF(D80<>"",IFERROR(VLOOKUP(D80,CONDOMINI!$B$11:$C$109,2,FALSE),""),"") -> 
A81: 71 | B81: U71 | E81: =IF(D81<>"",IFERROR(VLOOKUP(D81,CONDOMINI!$B$11:$C$109,2,FALSE),""),"") -> 
A82: 72 | B82: U72 | E82: =IF(D82<>"",IFERROR(VLOOKUP(D82,CONDOMINI!$B$11:$C$109,2,FALSE),""),"") -> 
A83: 73 | B83: U73 | E83: =IF(D83<>"",IFERROR(VLOOKUP(D83,CONDOMINI!$B$11:$C$109,2,FALSE),""),"") -> 
A84: 74 | B84: U74 | E84: =IF(D84<>"",IFERROR(VLOOKUP(D84,CONDOMINI!$B$11:$C$109,2,FALSE),""),"") -> 
A85: 75 | B85: U75 | E85: =IF(D85<>"",IFERROR(VLOOKUP(D85,CONDOMINI!$B$11:$C$109,2,FALSE),""),"") -> 
A86: 76 | B86: U76 | E86: =IF(D86<>"",IFERROR(VLOOKUP(D86,CONDOMINI!$B$11:$C$109,2,FALSE),""),"") -> 
A87: 77 | B87: U77 | E87: =IF(D87<>"",IFERROR(VLOOKUP(D87,CONDOMINI!$B$11:$C$109,2,FALSE),""),"") -> 
A88: 78 | B88: U78 | E88: =IF(D88<>"",IFERROR(VLOOKUP(D88,CONDOMINI!$B$11:$C$109,2,FALSE),""),"") -> 
A89: 79 | B89: U79 | E89: =IF(D89<>"",IFERROR(VLOOKUP(D89,CONDOMINI!$B$11:$C$109,2,FALSE),""),"") -> 
A90: 80 | B90: U80 | E90: =IF(D90<>"",IFERROR(VLOOKUP(D90,CONDOMINI!$B$11:$C$109,2,FALSE),""),"") -> 
A91: 81 | B91: U81 | E91: =IF(D91<>"",IFERROR(VLOOKUP(D91,CONDOMINI!$B$11:$C$109,2,FALSE),""),"") -> 
A92: 82 | B92: U82 | E92: =IF(D92<>"",IFERROR(VLOOKUP(D92,CONDOMINI!$B$11:$C$109,2,FALSE),""),"") -> 
A93: 83 | B93: U83 | E93: =IF(D93<>"",IFERROR(VLOOKUP(D93,CONDOMINI!$B$11:$C$109,2,FALSE),""),"") -> 
A94: 84 | B94: U84 | E94: =IF(D94<>"",IFERROR(VLOOKUP(D94,CONDOMINI!$B$11:$C$109,2,FALSE),""),"") -> 
A95: 85 | B95: U85 | E95: =IF(D95<>"",IFERROR(VLOOKUP(D95,CONDOMINI!$B$11:$C$109,2,FALSE),""),"") -> 
A96: 86 | B96: U86 | E96: =IF(D96<>"",IFERROR(VLOOKUP(D96,CONDOMINI!$B$11:$C$109,2,FALSE),""),"") -> 
A97: 87 | B97: U87 | E97: =IF(D97<>"",IFERROR(VLOOKUP(D97,CONDOMINI!$B$11:$C$109,2,FALSE),""),"") -> 
A98: 88 | B98: U88 | E98: =IF(D98<>"",IFERROR(VLOOKUP(D98,CONDOMINI!$B$11:$C$109,2,FALSE),""),"") -> 
A99: 89 | B99: U89 | E99: =IF(D99<>"",IFERROR(VLOOKUP(D99,CONDOMINI!$B$11:$C$109,2,FALSE),""),"") -> 
A100: 90 | B100: U90 | E100: =IF(D100<>"",IFERROR(VLOOKUP(D100,CONDOMINI!$B$11:$C$109,2,FALSE),""),"") -> 
A101: 91 | B101: U91 | E101: =IF(D101<>"",IFERROR(VLOOKUP(D101,CONDOMINI!$B$11:$C$109,2,FALSE),""),"") -> 
A102: 92 | B102: U92 | E102: =IF(D102<>"",IFERROR(VLOOKUP(D102,CONDOMINI!$B$11:$C$109,2,FALSE),""),"") -> 
A103: 93 | B103: U93 | E103: =IF(D103<>"",IFERROR(VLOOKUP(D103,CONDOMINI!$B$11:$C$109,2,FALSE),""),"") -> 
A104: 94 | B104: U94 | E104: =IF(D104<>"",IFERROR(VLOOKUP(D104,CONDOMINI!$B$11:$C$109,2,FALSE),""),"") -> 
A105: 95 | B105: U95 | E105: =IF(D105<>"",IFERROR(VLOOKUP(D105,CONDOMINI!$B$11:$C$109,2,FALSE),""),"") -> 
A106: 96 | B106: U96 | E106: =IF(D106<>"",IFERROR(VLOOKUP(D106,CONDOMINI!$B$11:$C$109,2,FALSE),""),"") -> 
A107: 97 | B107: U97 | E107: =IF(D107<>"",IFERROR(VLOOKUP(D107,CONDOMINI!$B$11:$C$109,2,FALSE),""),"") -> 
A108: 98 | B108: U98 | E108: =IF(D108<>"",IFERROR(VLOOKUP(D108,CONDOMINI!$B$11:$C$109,2,FALSE),""),"") -> 
A109: 99 | B109: U99 | E109: =IF(D109<>"",IFERROR(VLOOKUP(D109,CONDOMINI!$B$11:$C$109,2,FALSE),""),"") -> 
A111: 0 | Z111: 0

Sheet TAB-UF (hidden)
A1: !!! Non variare il contenuto delle celle con sfondo colorato. | N1: 0
A6: !!! ATTENZIONE: fornire i dati richiesti solo nelle celle senza sfondo colorato
A8: TABELLE MILLESIMALI per UNITÀ FUNZIONALI CONDOMINIALI
A9: n° UFC | B9: Codice Unità Funzionale Condominiale | C9: Codice Unità Immobiliare cui appartiene | D9: Tab. A | E9: Tab. B | F9: Tab. C | G9: Tab. D | H9: Tab. E | I9: Tab. F | J9: Tab. G | K9: Tab. H | L9: Tab. I | M9: Tab. J
D10: GENERALE | E10: Lato NORD | F10: Lato SUD
A11: 1 | B11: =UF!B11 -> UFC01 | C11: =IF(UF!C11<>"",UF!C11,"") -> U01 | D11: 39.637 | F11: 136.69
A12: 2 | B12: =UF!B12 -> UFC02 | C12: =IF(UF!C12<>"",UF!C12,"") -> U02 | D12: 47.566 | F12: 164.036
A13: 3 | B13: =UF!B13 -> UFC03 | C13: =IF(UF!C13<>"",UF!C13,"") -> U03 | D13: 45.34 | F13: 156.358
A14: 4 | B14: =UF!B14 -> UFC04 | C14: =IF(UF!C14<>"",UF!C14,"") -> U04 | D14: 41.104 | F14: 94.5
A15: 5 | B15: =UF!B15 -> UFC05 | C15: =IF(UF!C15<>"",UF!C15,"") -> U05 | D15: 50.971 | F15: 117.184
A16: 6 | B16: =UF!B16 -> UFC06 | C16: =IF(UF!C16<>"",UF!C16,"") -> U06 | D16: 48.351 | F16: 111.162
A17: 7 | B17: =UF!B17 -> UFC07 | C17: =IF(UF!C17<>"",UF!C17,"") -> U07 | D17: 40.464 | F17: 46.514
A18: 8 | B18: =UF!B18 -> UFC08 | C18: =IF(UF!C18<>"",UF!C18,"") -> U08 | D18: 49.539 | F18: 56.946
A19: 9 | B19: =UF!B19 -> UFC09 | C19: =IF(UF!C19<>"",UF!C19,"") -> U09 | D19: 47.052 | F19: 54.088
A20: 10 | B20: =UF!B20 -> UFC10 | C20: =IF(UF!C20<>"",UF!C20,"") -> U10 | D20: 35.484 | F20: 4.168
A21: 11 | B21: =UF!B21 -> UFC11 | C21: =IF(UF!C21<>"",UF!C21,"") -> U11 | D21: 45.632 | F21: 4.446
A22: 12 | B22: =UF!B22 -> UFC12 | C22: =IF(UF!C22<>"",UF!C22,"") -> U12 | D22: 32.654 | F22: 4.89
A23: 13 | B23: =UF!B23 -> UFC13 | C23: =IF(UF!C23<>"",UF!C23,"") -> U13 | D23: 10.153 | F23: 11.67
A24: 14 | B24: =UF!B24 -> UFC14 | C24: =IF(UF!C24<>"",UF!C24,"") -> U14 | D24: 32.49 | F24: 37.348
A25: 15 | B25: =UF!B25 -> UFC15 | C25: =IF(UF!C25<>"",UF!C25,"") -> U15 | D25: 46.884 | E25: 245.448
A26: 16 | B26: =UF!B26 -> UFC16 | C26: =IF(UF!C26<>"",UF!C26,"") -> U16 | D26: 47.919 | E26: 188.15
A27: 17 | B27: =UF!B27 -> UFC17 | C27: =IF(UF!C27<>"",UF!C27,"") -> U17 | D27: 37.721 | E27: 148.11
A28: 18 | B28: =UF!B28 -> UFC18 | C28: =IF(UF!C28<>"",UF!C28,"") -> U18 | D28: 50.139 | E28: 131.244
A29: 19 | B29: =UF!B29 -> UFC19 | C29: =IF(UF!C29<>"",UF!C29,"") -> U19 | D29: 41.028 | E29: 107.396
A30: 20 | B30: =UF!B30 -> UFC20 | C30: =IF(UF!C30<>"",UF!C30,"") -> U20 | D30: 50.919 | E30: 66.642
A31: 21 | B31: =UF!B31 -> UFC21 | C31: =IF(UF!C31<>"",UF!C31,"") -> U21 | D31: 38.403 | E31: 50.262
A32: 22 | B32: =UF!B32 -> UFC22 | C32: =IF(UF!C32<>"",UF!C32,"") -> U22 | D32: 45.516 | E32: 4.636
A33: 23 | B33: =UF!B33 -> UFC23 | C33: =IF(UF!C33<>"",UF!C33,"") -> U20 | D33: 35.238 | E33: 6.028
A34: 24 | B34: =UF!B34 -> UFC24 | C34: =IF(UF!C34<>"",UF!C34,"") -> U15 | D34: 39.796 | E34: 52.084
A35: 25 | B35: =UF!B35 -> UFC25 | C35: =IF(UF!C35<>"",UF!C35,"") -> 
A36: 26 | B36: =UF!B36 -> UFC26 | C36: =IF(UF!C36<>"",UF!C36,"") -> 
A37: 27 | B37: =UF!B37 -> UFC27 | C37: =IF(UF!C37<>"",UF!C37,"") -> 
A38: 28 | B38: =UF!B38 -> UFC28 | C38: =IF(UF!C38<>"",UF!C38,"") -> 
A39: 29 | B39: =UF!B39 -> UFC29 | C39: =IF(UF!C39<>"",UF!C39,"") -> 
A40: 30 | B40: =UF!B40 -> UFC30 | C40: =IF(UF!C40<>"",UF!C40,"") -> 
A41: 31 | B41: =UF!B41 -> UFC31 | C41: =IF(UF!C41<>"",UF!C41,"") -> 
A42: 32 | B42: =UF!B42 -> UFC32 | C42: =IF(UF!C42<>"",UF!C42,"") -> 
A43: 33 | B43: =UF!B43 -> UFC33 | C43: =IF(UF!C43<>"",UF!C43,"") -> 
A44: 34 | B44: =UF!B44 -> UFC34 | C44: =IF(UF!C44<>"",UF!C44,"") -> 
A45: 35 | B45: =UF!B45 -> UFC35 | C45: =IF(UF!C45<>"",UF!C45,"") -> 
A46: 36 | B46: =UF!B46 -> UFC36 | C46: =IF(UF!C46<>"",UF!C46,"") -> 
A47: 37 | B47: =UF!B47 -> UFC37 | C47: =IF(UF!C47<>"",UF!C47,"") -> 
A48: 38 | B48: =UF!B48 -> UFC38 | C48: =IF(UF!C48<>"",UF!C48,"") -> 
A49: 39 | B49: =UF!B49 -> UFC39 | C49: =IF(UF!C49<>"",UF!C49,"") -> 
A50: 40 | B50: =UF!B50 -> UFC40 | C50: =IF(UF!C50<>"",UF!C50,"") -> 
A51: 41 | B51: =UF!B51 -> UFC41 | C51: =IF(UF!C51<>"",UF!C51,"") -> 
A52: 42 | B52: =UF!B52 -> UFC42 | C52: =IF(UF!C52<>"",UF!C52,"") -> 
A53: 43 | B53: =UF!B53 -> UFC43 | C53: =IF(UF!C53<>"",UF!C53,"") -> 
A54: 44 | B54: =UF!B54 -> UFC44 | C54: =IF(UF!C54<>"",UF!C54,"") -> 
A55: 45 | B55: =UF!B55 -> UFC45 | C55: =IF(UF!C55<>"",UF!C55,"") -> 
A56: 46 | B56: =UF!B56 -> UFC46 | C56: =IF(UF!C56<>"",UF!C56,"") -> 
A57: 47 | B57: =UF!B57 -> UFC47 | C57: =IF(UF!C57<>"",UF!C57,"") -> 
A58: 48 | B58: =UF!B58 -> UFC48 | C58: =IF(UF!C58<>"",UF!C58,"") -> 
A59: 49 | B59: =UF!B59 -> UFC49 | C59: =IF(UF!C59<>"",UF!C59,"") -> 
A60: 50 | B60: =UF!B60 -> UFC50 | C60: =IF(UF!C60<>"",UF!C60,"") -> 
A61: 51 | B61: =UF!B61 -> UFC51 | C61: =IF(UF!C61<>"",UF!C61,"") -> 
A62: 52 | B62: =UF!B62 -> UFC52 | C62: =IF(UF!C62<>"",UF!C62,"") -> 
A63: 53 | B63: =UF!B63 -> UFC53 | C63: =IF(UF!C63<>"",UF!C63,"") -> 
A64: 54 | B64: =UF!B64 -> UFC54 | C64: =IF(UF!C64<>"",UF!C64,"") -> 
A65: 55 | B65: =UF!B65 -> UFC55 | C65: =IF(UF!C65<>"",UF!C65,"") -> 
A66: 56 | B66: =UF!B66 -> UFC56 | C66: =IF(UF!C66<>"",UF!C66,"") -> 
A67: 57 | B67: =UF!B67 -> UFC57 | C67: =IF(UF!C67<>"",UF!C67,"") -> 
A68: 58 | B68: =UF!B68 -> UFC58 | C68: =IF(UF!C68<>"",UF!C68,"") -> 
A69: 59 | B69: =UF!B69 -> UFC59 | C69: =IF(UF!C69<>"",UF!C69,"") -> 
A70: 60 | B70: =UF!B70 -> UFC60 | C70: =IF(UF!C70<>"",UF!C70,"") -> 
A71: 61 | B71: =UF!B71 -> UFC61 | C71: =IF(UF!C71<>"",UF!C71,"") -> 
A72: 62 | B72: =UF!B72 -> UFC62 | C72: =IF(UF!C72<>"",UF!C72,"") -> 
A73: 63 | B73: =UF!B73 -> UFC63 | C73: =IF(UF!C73<>"",UF!C73,"") -> 
A74: 64 | B74: =UF!B74 -> UFC64 | C74: =IF(UF!C74<>"",UF!C74,"") -> 
A75: 65 | B75: =UF!B75 -> UFC65 | C75: =IF(UF!C75<>"",UF!C75,"") -> 
A76: 66 | B76: =UF!B76 -> UFC66 | C76: =IF(UF!C76<>"",UF!C76,"") -> 
A77: 67 | B77: =UF!B77 -> UFC67 | C77: =IF(UF!C77<>"",UF!C77,"") -> 
A78: 68 | B78: =UF!B78 -> UFC68 | C78: =IF(UF!C78<>"",UF!C78,"") -> 
A79: 69 | B79: =UF!B79 -> UFC69 | C79: =IF(UF!C79<>"",UF!C79,"") -> 
A80: 70 | B80: =UF!B80 -> UFC70 | C80: =IF(UF!C80<>"",UF!C80,"") -> 
A81: 71 | B81: =UF!B81 -> UFC71 | C81: =IF(UF!C81<>"",UF!C81,"") -> 
A82: 72 | B82: =UF!B82 -> UFC72 | C82: =IF(UF!C82<>"",UF!C82,"") -> 
A83: 73 | B83: =UF!B83 -> UFC73 | C83: =IF(UF!C83<>"",UF!C83,"") -> 
A84: 74 | B84: =UF!B84 -> UFC74 | C84: =IF(UF!C84<>"",UF!C84,"") -> 
A85: 75 | B85: =UF!B85 -> UFC75 | C85: =IF(UF!C85<>"",UF!C85,"") -> 
A86: 76 | B86: =UF!B86 -> UFC76 | C86: =IF(UF!C86<>"",UF!C86,"") -> 
A87: 77 | B87: =UF!B87 -> UFC77 | C87: =IF(UF!C87<>"",UF!C87,"") -> 
A88: 78 | B88: =UF!B88 -> UFC78 | C88: =IF(UF!C88<>"",UF!C88,"") -> 
A89: 79 | B89: =UF!B89 -> UFC79 | C89: =IF(UF!C89<>"",UF!C89,"") -> 
A90: 80 | B90: =UF!B90 -> UFC80 | C90: =IF(UF!C90<>"",UF!C90,"") -> 
A91: 81 | B91: =UF!B91 -> UFC81 | C91: =IF(UF!C91<>"",UF!C91,"") -> 
A92: 82 | B92: =UF!B92 -> UFC82 | C92: =IF(UF!C92<>"",UF!C92,"") -> 
A93: 83 | B93: =UF!B93 -> UFC83 | C93: =IF(UF!C93<>"",UF!C93,"") -> 
A94: 84 | B94: =UF!B94 -> UFC84 | C94: =IF(UF!C94<>"",UF!C94,"") -> 
A95: 85 | B95: =UF!B95 -> UFC85 | C95: =IF(UF!C95<>"",UF!C95,"") -> 
A96: 86 | B96: =UF!B96 -> UFC86 | C96: =IF(UF!C96<>"",UF!C96,"") -> 
A97: 87 | B97: =UF!B97 -> UFC87 | C97: =IF(UF!C97<>"",UF!C97,"") -> 
A98: 88 | B98: =UF!B98 -> UFC88 | C98: =IF(UF!C98<>"",UF!C98,"") -> 
A99: 89 | B99: =UF!B99 -> UFC89 | C99: =IF(UF!C99<>"",UF!C99,"") -> 
A100: 90 | B100: =UF!B100 -> UFC90 | C100: =IF(UF!C100<>"",UF!C100,"") -> 
A101: 91 | B101: =UF!B101 -> UFC91 | C101: =IF(UF!C101<>"",UF!C101,"") -> 
A102: 92 | B102: =UF!B102 -> UFC92 | C102: =IF(UF!C102<>"",UF!C102,"") -> 
A103: 93 | B103: =UF!B103 -> UFC93 | C103: =IF(UF!C103<>"",UF!C103,"") -> 
A104: 94 | B104: =UF!B104 -> UFC94 | C104: =IF(UF!C104<>"",UF!C104,"") -> 
A105: 95 | B105: =UF!B105 -> UFC95 | C105: =IF(UF!C105<>"",UF!C105,"") -> 
A106: 96 | B106: =UF!B106 -> UFC96 | C106: =IF(UF!C106<>"",UF!C106,"") -> 
A107: 97 | B107: =UF!B107 -> UFC97 | C107: =IF(UF!C107<>"",UF!C107,"") -> 
A108: 98 | B108: =UF!B108 -> UFC98 | C108: =IF(UF!C108<>"",UF!C108,"") -> 
A109: 99 | B109: =UF!B109 -> UFC99 | C109: =IF(UF!C109<>"",UF!C109,"") -> 
D110: =SUM(D11:D109) -> 1000 | E110: 1000 | F110: 1000 | G110: 0 | H110: 0 | I110: 0 | J110: 0 | K110: 0 | L110: 0 | M110: 0
A111: 0 | N111: 0

Sheet TAB-UI (hidden)
A1: !!! Non variare il contenuto delle celle con sfondo colorato. | P1: 0
A6: !!! ATTENZIONE: fornire i dati richiesti solo nelle celle senza sfondo colorato
A8: TABELLE MILLESIMALI per UNITÀ IMMOBILIARI
A9: n° UI | B9: Codice Unità Immobiliare | C9: UFC Costituenti | D9: Codice Condomino | E9: CONDOMINO | F9: Tab. A | G9: Tab. B | H9: Tab. C | I9: Tab. D | J9: Tab. E | K9: Tab. F | L9: Tab. G | M9: Tab. H | N9: Tab. I | O9: Tab. J
F10: GENERALE | G10: Lato NORD | H10: Lato SUD
A11: 1 | B11: =UI!B11 -> U01 | C11: =IF(UI!C11<>"",UI!C11,"") -> UFC01 | D11: =IF(UI!D11<>"",UI!D11,"") -> C01 | E11: =IF(UI!E11<>"",UI!E11,"") -> CONDOMINO01 | F11: =SUMIFS('TAB-UF'!$D$11:$D$109,'TAB-UF'!$C$11:$C$109,B11) -> 39.637 | G11: =SUMIFS('TAB-UF'!$E$11:$E$109,'TAB-UF'!$C$11:$C$109,B11) -> 0 | H11: =SUMIFS('TAB-UF'!$F$11:$F$109,'TAB-UF'!$C$11:$C$109,B11) -> 136.69 | I11: =SUMIFS('TAB-UF'!$G$11:$G$109,'TAB-UF'!$C$11:$C$109,B11) -> 0 | J11: =SUMIFS('TAB-UF'!$H$11:$H$109,'TAB-UF'!$C$11:$C$109,B11) -> 0 | K11: =SUMIFS('TAB-UF'!$I$11:$I$109,'TAB-UF'!$C$11:$C$109,B11) -> 0 | L11: =SUMIFS('TAB-UF'!$J$11:$J$109,'TAB-UF'!$C$11:$C$109,B11) -> 0 | M11: =SUMIFS('TAB-UF'!$K$11:$K$109,'TAB-UF'!$C$11:$C$109,B11) -> 0 | N11: =SUMIFS('TAB-UF'!$L$11:$L$109,'TAB-UF'!$C$11:$C$109,B11) -> 0 | O11: =SUMIFS('TAB-UF'!$M$11:$M$109,'TAB-UF'!$C$11:$C$109,B11) -> 0
A12: 2 | B12: =UI!B12 -> U02 | C12: =IF(UI!C12<>"",UI!C12,"") -> UFC02 | D12: =IF(UI!D12<>"",UI!D12,"") -> C02 | E12: =IF(UI!E12<>"",UI!E12,"") -> CONDOMINO02 | F12: =SUMIFS('TAB-UF'!$D$11:$D$109,'TAB-UF'!$C$11:$C$109,B12) -> 47.566 | G12: =SUMIFS('TAB-UF'!$E$11:$E$109,'TAB-UF'!$C$11:$C$109,B12) -> 0 | H12: =SUMIFS('TAB-UF'!$F$11:$F$109,'TAB-UF'!$C$11:$C$109,B12) -> 164.036 | I12: =SUMIFS('TAB-UF'!$G$11:$G$109,'TAB-UF'!$C$11:$C$109,B12) -> 0 | J12: =SUMIFS('TAB-UF'!$H$11:$H$109,'TAB-UF'!$C$11:$C$109,B12) -> 0 | K12: =SUMIFS('TAB-UF'!$I$11:$I$109,'TAB-UF'!$C$11:$C$109,B12) -> 0 | L12: =SUMIFS('TAB-UF'!$J$11:$J$109,'TAB-UF'!$C$11:$C$109,B12) -> 0 | M12: =SUMIFS('TAB-UF'!$K$11:$K$109,'TAB-UF'!$C$11:$C$109,B12) -> 0 | N12: =SUMIFS('TAB-UF'!$L$11:$L$109,'TAB-UF'!$C$11:$C$109,B12) -> 0 | O12: =SUMIFS('TAB-UF'!$M$11:$M$109,'TAB-UF'!$C$11:$C$109,B12) -> 0
A13: 3 | B13: =UI!B13 -> U03 | C13: =IF(UI!C13<>"",UI!C13,"") -> UFC03 | D13: =IF(UI!D13<>"",UI!D13,"") -> C03 | E13: =IF(UI!E13<>"",UI!E13,"") -> CONDOMINO03 | F13: =SUMIFS('TAB-UF'!$D$11:$D$109,'TAB-UF'!$C$11:$C$109,B13) -> 45.34 | G13: =SUMIFS('TAB-UF'!$E$11:$E$109,'TAB-UF'!$C$11:$C$109,B13) -> 0 | H13: =SUMIFS('TAB-UF'!$F$11:$F$109,'TAB-UF'!$C$11:$C$109,B13) -> 156.358 | I13: =SUMIFS('TAB-UF'!$G$11:$G$109,'TAB-UF'!$C$11:$C$109,B13) -> 0 | J13: =SUMIFS('TAB-UF'!$H$11:$H$109,'TAB-UF'!$C$11:$C$109,B13) -> 0 | K13: =SUMIFS('TAB-UF'!$I$11:$I$109,'TAB-UF'!$C$11:$C$109,B13) -> 0 | L13: =SUMIFS('TAB-UF'!$J$11:$J$109,'TAB-UF'!$C$11:$C$109,B13) -> 0 | M13: =SUMIFS('TAB-UF'!$K$11:$K$109,'TAB-UF'!$C$11:$C$109,B13) -> 0 | N13: =SUMIFS('TAB-UF'!$L$11:$L$109,'TAB-UF'!$C$11:$C$109,B13) -> 0 | O13: =SUMIFS('TAB-UF'!$M$11:$M$109,'TAB-UF'!$C$11:$C$109,B13) -> 0
A14: 4 | B14: =UI!B14 -> U04 | C14: =IF(UI!C14<>"",UI!C14,"") -> UFC04 | D14: =IF(UI!D14<>"",UI!D14,"") -> C04 | E14: =IF(UI!E14<>"",UI!E14,"") -> CONDOMINO04 | F14: =SUMIFS('TAB-UF'!$D$11:$D$109,'TAB-UF'!$C$11:$C$109,B14) -> 41.104 | G14: =SUMIFS('TAB-UF'!$E$11:$E$109,'TAB-UF'!$C$11:$C$109,B14) -> 0 | H14: =SUMIFS('TAB-UF'!$F$11:$F$109,'TAB-UF'!$C$11:$C$109,B14) -> 94.5 | I14: =SUMIFS('TAB-UF'!$G$11:$G$109,'TAB-UF'!$C$11:$C$109,B14) -> 0 | J14: =SUMIFS('TAB-UF'!$H$11:$H$109,'TAB-UF'!$C$11:$C$109,B14) -> 0 | K14: =SUMIFS('TAB-UF'!$I$11:$I$109,'TAB-UF'!$C$11:$C$109,B14) -> 0 | L14: =SUMIFS('TAB-UF'!$J$11:$J$109,'TAB-UF'!$C$11:$C$109,B14) -> 0 | M14: =SUMIFS('TAB-UF'!$K$11:$K$109,'TAB-UF'!$C$11:$C$109,B14) -> 0 | N14: =SUMIFS('TAB-UF'!$L$11:$L$109,'TAB-UF'!$C$11:$C$109,B14) -> 0 | O14: =SUMIFS('TAB-UF'!$M$11:$M$109,'TAB-UF'!$C$11:$C$109,B14) -> 0
A15: 5 | B15: =UI!B15 -> U05 | C15: =IF(UI!C15<>"",UI!C15,"") -> UFC05 | D15: =IF(UI!D15<>"",UI!D15,"") -> C05 | E15: =IF(UI!E15<>"",UI!E15,"") -> CONDOMINO05 | F15: =SUMIFS('TAB-UF'!$D$11:$D$109,'TAB-UF'!$C$11:$C$109,B15) -> 50.971 | G15: =SUMIFS('TAB-UF'!$E$11:$E$109,'TAB-UF'!$C$11:$C$109,B15) -> 0 | H15: =SUMIFS('TAB-UF'!$F$11:$F$109,'TAB-UF'!$C$11:$C$109,B15) -> 117.184 | I15: =SUMIFS('TAB-UF'!$G$11:$G$109,'TAB-UF'!$C$11:$C$109,B15) -> 0 | J15: =SUMIFS('TAB-UF'!$H$11:$H$109,'TAB-UF'!$C$11:$C$109,B15) -> 0 | K15: =SUMIFS('TAB-UF'!$I$11:$I$109,'TAB-UF'!$C$11:$C$109,B15) -> 0 | L15: =SUMIFS('TAB-UF'!$J$11:$J$109,'TAB-UF'!$C$11:$C$109,B15) -> 0 | M15: =SUMIFS('TAB-UF'!$K$11:$K$109,'TAB-UF'!$C$11:$C$109,B15) -> 0 | N15: =SUMIFS('TAB-UF'!$L$11:$L$109,'TAB-UF'!$C$11:$C$109,B15) -> 0 | O15: =SUMIFS('TAB-UF'!$M$11:$M$109,'TAB-UF'!$C$11:$C$109,B15) -> 0
A16: 6 | B16: =UI!B16 -> U06 | C16: =IF(UI!C16<>"",UI!C16,"") -> UFC06 | D16: =IF(UI!D16<>"",UI!D16,"") -> C06 | E16: =IF(UI!E16<>"",UI!E16,"") -> CONDOMINO06 | F16: =SUMIFS('TAB-UF'!$D$11:$D$109,'TAB-UF'!$C$11:$C$109,B16) -> 48.351 | G16: =SUMIFS('TAB-UF'!$E$11:$E$109,'TAB-UF'!$C$11:$C$109,B16) -> 0 | H16: =SUMIFS('TAB-UF'!$F$11:$F$109,'TAB-UF'!$C$11:$C$109,B16) -> 111.162 | I16: =SUMIFS('TAB-UF'!$G$11:$G$109,'TAB-UF'!$C$11:$C$109,B16) -> 0 | J16: =SUMIFS('TAB-UF'!$H$11:$H$109,'TAB-UF'!$C$11:$C$109,B16) -> 0 | K16: =SUMIFS('TAB-UF'!$I$11:$I$109,'TAB-UF'!$C$11:$C$109,B16) -> 0 | L16: =SUMIFS('TAB-UF'!$J$11:$J$109,'TAB-UF'!$C$11:$C$109,B16) -> 0 | M16: =SUMIFS('TAB-UF'!$K$11:$K$109,'TAB-UF'!$C$11:$C$109,B16) -> 0 | N16: =SUMIFS('TAB-UF'!$L$11:$L$109,'TAB-UF'!$C$11:$C$109,B16) -> 0 | O16: =SUMIFS('TAB-UF'!$M$11:$M$109,'TAB-UF'!$C$11:$C$109,B16) -> 0
A17: 7 | B17: =UI!B17 -> U07 | C17: =IF(UI!C17<>"",UI!C17,"") -> UFC07 | D17: =IF(UI!D17<>"",UI!D17,"") -> C07 | E17: =IF(UI!E17<>"",UI!E17,"") -> CONDOMINO07 | F17: =SUMIFS('TAB-UF'!$D$11:$D$109,'TAB-UF'!$C$11:$C$109,B17) -> 40.464 | G17: =SUMIFS('TAB-UF'!$E$11:$E$109,'TAB-UF'!$C$11:$C$109,B17) -> 0 | H17: =SUMIFS('TAB-UF'!$F$11:$F$109,'TAB-UF'!$C$11:$C$109,B17) -> 46.514 | I17: =SUMIFS('TAB-UF'!$G$11:$G$109,'TAB-UF'!$C$11:$C$109,B17) -> 0 | J17: =SUMIFS('TAB-UF'!$H$11:$H$109,'TAB-UF'!$C$11:$C$109,B17) -> 0 | K17: =SUMIFS('TAB-UF'!$I$11:$I$109,'TAB-UF'!$C$11:$C$109,B17) -> 0 | L17: =SUMIFS('TAB-UF'!$J$11:$J$109,'TAB-UF'!$C$11:$C$109,B17) -> 0 | M17: =SUMIFS('TAB-UF'!$K$11:$K$109,'TAB-UF'!$C$11:$C$109,B17) -> 0 | N17: =SUMIFS('TAB-UF'!$L$11:$L$109,'TAB-UF'!$C$11:$C$109,B17) -> 0 | O17: =SUMIFS('TAB-UF'!$M$11:$M$109,'TAB-UF'!$C$11:$C$109,B17) -> 0
A18: 8 | B18: =UI!B18 -> U08 | C18: =IF(UI!C18<>"",UI!C18,"") -> UFC08 | D18: =IF(UI!D18<>"",UI!D18,"") -> C08 | E18: =IF(UI!E18<>"",UI!E18,"") -> CONDOMINO08 | F18: =SUMIFS('TAB-UF'!$D$11:$D$109,'TAB-UF'!$C$11:$C$109,B18) -> 49.539 | G18: =SUMIFS('TAB-UF'!$E$11:$E$109,'TAB-UF'!$C$11:$C$109,B18) -> 0 | H18: =SUMIFS('TAB-UF'!$F$11:$F$109,'TAB-UF'!$C$11:$C$109,B18) -> 56.946 | I18: =SUMIFS('TAB-UF'!$G$11:$G$109,'TAB-UF'!$C$11:$C$109,B18) -> 0 | J18: =SUMIFS('TAB-UF'!$H$11:$H$109,'TAB-UF'!$C$11:$C$109,B18) -> 0 | K18: =SUMIFS('TAB-UF'!$I$11:$I$109,'TAB-UF'!$C$11:$C$109,B18) -> 0 | L18: =SUMIFS('TAB-UF'!$J$11:$J$109,'TAB-UF'!$C$11:$C$109,B18) -> 0 | M18: =SUMIFS('TAB-UF'!$K$11:$K$109,'TAB-UF'!$C$11:$C$109,B18) -> 0 | N18: =SUMIFS('TAB-UF'!$L$11:$L$109,'TAB-UF'!$C$11:$C$109,B18) -> 0 | O18: =SUMIFS('TAB-UF'!$M$11:$M$109,'TAB-UF'!$C$11:$C$109,B18) -> 0
A19: 9 | B19: =UI!B19 -> U09 | C19: =IF(UI!C19<>"",UI!C19,"") -> UFC09 | D19: =IF(UI!D19<>"",UI!D19,"") -> C09 | E19: =IF(UI!E19<>"",UI!E19,"") -> CONDOMINO09 | F19: =SUMIFS('TAB-UF'!$D$11:$D$109,'TAB-UF'!$C$11:$C$109,B19) -> 47.052 | G19: =SUMIFS('TAB-UF'!$E$11:$E$109,'TAB-UF'!$C$11:$C$109,B19) -> 0 | H19: =SUMIFS('TAB-UF'!$F$11:$F$109,'TAB-UF'!$C$11:$C$109,B19) -> 54.088 | I19: =SUMIFS('TAB-UF'!$G$11:$G$109,'TAB-UF'!$C$11:$C$109,B19) -> 0 | J19: =SUMIFS('TAB-UF'!$H$11:$H$109,'TAB-UF'!$C$11:$C$109,B19) -> 0 | K19: =SUMIFS('TAB-UF'!$I$11:$I$109,'TAB-UF'!$C$11:$C$109,B19) -> 0 | L19: =SUMIFS('TAB-UF'!$J$11:$J$109,'TAB-UF'!$C$11:$C$109,B19) -> 0 | M19: =SUMIFS('TAB-UF'!$K$11:$K$109,'TAB-UF'!$C$11:$C$109,B19) -> 0 | N19: =SUMIFS('TAB-UF'!$L$11:$L$109,'TAB-UF'!$C$11:$C$109,B19) -> 0 | O19: =SUMIFS('TAB-UF'!$M$11:$M$109,'TAB-UF'!$C$11:$C$109,B19) -> 0
A20: 10 | B20: =UI!B20 -> U10 | C20: =IF(UI!C20<>"",UI!C20,"") -> UFC10 | D20: =IF(UI!D20<>"",UI!D20,"") -> C10 | E20: =IF(UI!E20<>"",UI!E20,"") -> CONDOMINO10 | F20: =SUMIFS('TAB-UF'!$D$11:$D$109,'TAB-UF'!$C$11:$C$109,B20) -> 35.484 | G20: =SUMIFS('TAB-UF'!$E$11:$E$109,'TAB-UF'!$C$11:$C$109,B20) -> 0 | H20: =SUMIFS('TAB-UF'!$F$11:$F$109,'TAB-UF'!$C$11:$C$109,B20) -> 4.168 | I20: =SUMIFS('TAB-UF'!$G$11:$G$109,'TAB-UF'!$C$11:$C$109,B20) -> 0 | J20: =SUMIFS('TAB-UF'!$H$11:$H$109,'TAB-UF'!$C$11:$C$109,B20) -> 0 | K20: =SUMIFS('TAB-UF'!$I$11:$I$109,'TAB-UF'!$C$11:$C$109,B20) -> 0 | L20: =SUMIFS('TAB-UF'!$J$11:$J$109,'TAB-UF'!$C$11:$C$109,B20) -> 0 | M20: =SUMIFS('TAB-UF'!$K$11:$K$109,'TAB-UF'!$C$11:$C$109,B20) -> 0 | N20: =SUMIFS('TAB-UF'!$L$11:$L$109,'TAB-UF'!$C$11:$C$109,B20) -> 0 | O20: =SUMIFS('TAB-UF'!$M$11:$M$109,'TAB-UF'!$C$11:$C$109,B20) -> 0
A21: 11 | B21: =UI!B21 -> U11 | C21: =IF(UI!C21<>"",UI!C21,"") -> UFC11 | D21: =IF(UI!D21<>"",UI!D21,"") -> C11 | E21: =IF(UI!E21<>"",UI!E21,"") -> CONDOMINO11 | F21: =SUMIFS('TAB-UF'!$D$11:$D$109,'TAB-UF'!$C$11:$C$109,B21) -> 45.632 | G21: =SUMIFS('TAB-UF'!$E$11:$E$109,'TAB-UF'!$C$11:$C$109,B21) -> 0 | H21: =SUMIFS('TAB-UF'!$F$11:$F$109,'TAB-UF'!$C$11:$C$109,B21) -> 4.446 | I21: =SUMIFS('TAB-UF'!$G$11:$G$109,'TAB-UF'!$C$11:$C$109,B21) -> 0 | J21: =SUMIFS('TAB-UF'!$H$11:$H$109,'TAB-UF'!$C$11:$C$109,B21) -> 0 | K21: =SUMIFS('TAB-UF'!$I$11:$I$109,'TAB-UF'!$C$11:$C$109,B21) -> 0 | L21: =SUMIFS('TAB-UF'!$J$11:$J$109,'TAB-UF'!$C$11:$C$109,B21) -> 0 | M21: =SUMIFS('TAB-UF'!$K$11:$K$109,'TAB-UF'!$C$11:$C$109,B21) -> 0 | N21: =SUMIFS('TAB-UF'!$L$11:$L$109,'TAB-UF'!$C$11:$C$109,B21) -> 0 | O21: =SUMIFS('TAB-UF'!$M$11:$M$109,'TAB-UF'!$C$11:$C$109,B21) -> 0
A22: 12 | B22: =UI!B22 -> U12 | C22: =IF(UI!C22<>"",UI!C22,"") -> UFC12 | D22: =IF(UI!D22<>"",UI!D22,"") -> C12 | E22: =IF(UI!E22<>"",UI!E22,"") -> CONDOMINO12 | F22: =SUMIFS('TAB-UF'!$D$11:$D$109,'TAB-UF'!$C$11:$C$109,B22) -> 32.654 | G22: =SUMIFS('TAB-UF'!$E$11:$E$109,'TAB-UF'!$C$11:$C$109,B22) -> 0 | H22: =SUMIFS('TAB-UF'!$F$11:$F$109,'TAB-UF'!$C$11:$C$109,B22) -> 4.89 | I22: =SUMIFS('TAB-UF'!$G$11:$G$109,'TAB-UF'!$C$11:$C$109,B22) -> 0 | J22: =SUMIFS('TAB-UF'!$H$11:$H$109,'TAB-UF'!$C$11:$C$109,B22) -> 0 | K22: =SUMIFS('TAB-UF'!$I$11:$I$109,'TAB-UF'!$C$11:$C$109,B22) -> 0 | L22: =SUMIFS('TAB-UF'!$J$11:$J$109,'TAB-UF'!$C$11:$C$109,B22) -> 0 | M22: =SUMIFS('TAB-UF'!$K$11:$K$109,'TAB-UF'!$C$11:$C$109,B22) -> 0 | N22: =SUMIFS('TAB-UF'!$L$11:$L$109,'TAB-UF'!$C$11:$C$109,B22) -> 0 | O22: =SUMIFS('TAB-UF'!$M$11:$M$109,'TAB-UF'!$C$11:$C$109,B22) -> 0
A23: 13 | B23: =UI!B23 -> U13 | C23: =IF(UI!C23<>"",UI!C23,"") -> UFC13 | D23: =IF(UI!D23<>"",UI!D23,"") -> C13 | E23: =IF(UI!E23<>"",UI!E23,"") -> CONDOMINO13 | F23: =SUMIFS('TAB-UF'!$D$11:$D$109,'TAB-UF'!$C$11:$C$109,B23) -> 10.153 | G23: =SUMIFS('TAB-UF'!$E$11:$E$109,'TAB-UF'!$C$11:$C$109,B23) -> 0 | H23: =SUMIFS('TAB-UF'!$F$11:$F$109,'TAB-UF'!$C$11:$C$109,B23) -> 11.67 | I23: =SUMIFS('TAB-UF'!$G$11:$G$109,'TAB-UF'!$C$11:$C$109,B23) -> 0 | J23: =SUMIFS('TAB-UF'!$H$11:$H$109,'TAB-UF'!$C$11:$C$109,B23) -> 0 | K23: =SUMIFS('TAB-UF'!$I$11:$I$109,'TAB-UF'!$C$11:$C$109,B23) -> 0 | L23: =SUMIFS('TAB-UF'!$J$11:$J$109,'TAB-UF'!$C$11:$C$109,B23) -> 0 | M23: =SUMIFS('TAB-UF'!$K$11:$K$109,'TAB-UF'!$C$11:$C$109,B23) -> 0 | N23: =SUMIFS('TAB-UF'!$L$11:$L$109,'TAB-UF'!$C$11:$C$109,B23) -> 0 | O23: =SUMIFS('TAB-UF'!$M$11:$M$109,'TAB-UF'!$C$11:$C$109,B23) -> 0
A24: 14 | B24: =UI!B24 -> U14 | C24: =IF(UI!C24<>"",UI!C24,"") -> UFC14 | D24: =IF(UI!D24<>"",UI!D24,"") -> C14 | E24: =IF(UI!E24<>"",UI!E24,"") -> CONDOMINO14 | F24: =SUMIFS('TAB-UF'!$D$11:$D$109,'TAB-UF'!$C$11:$C$109,B24) -> 32.49 | G24: =SUMIFS('TAB-UF'!$E$11:$E$109,'TAB-UF'!$C$11:$C$109,B24) -> 0 | H24: =SUMIFS('TAB-UF'!$F$11:$F$109,'TAB-UF'!$C$11:$C$109,B24) -> 37.348 | I24: =SUMIFS('TAB-UF'!$G$11:$G$109,'TAB-UF'!$C$11:$C$109,B24) -> 0 | J24: =SUMIFS('TAB-UF'!$H$11:$H$109,'TAB-UF'!$C$11:$C$109,B24) -> 0 | K24: =SUMIFS('TAB-UF'!$I$11:$I$109,'TAB-UF'!$C$11:$C$109,B24) -> 0 | L24: =SUMIFS('TAB-UF'!$J$11:$J$109,'TAB-UF'!$C$11:$C$109,B24) -> 0 | M24: =SUMIFS('TAB-UF'!$K$11:$K$109,'TAB-UF'!$C$11:$C$109,B24) -> 0 | N24: =SUMIFS('TAB-UF'!$L$11:$L$109,'TAB-UF'!$C$11:$C$109,B24) -> 0 | O24: =SUMIFS('TAB-UF'!$M$11:$M$109,'TAB-UF'!$C$11:$C$109,B24) -> 0
A25: 15 | B25: =UI!B25 -> U15 | C25: =IF(UI!C25<>"",UI!C25,"") -> UFC15+UFC24 | D25: =IF(UI!D25<>"",UI!D25,"") -> C15 | E25: =IF(UI!E25<>"",UI!E25,"") -> CONDOMINO15 | F25: =SUMIFS('TAB-UF'!$D$11:$D$109,'TAB-UF'!$C$11:$C$109,B25) -> 86.68 | G25: =SUMIFS('TAB-UF'!$E$11:$E$109,'TAB-UF'!$C$11:$C$109,B25) -> 297.532 | H25: =SUMIFS('TAB-UF'!$F$11:$F$109,'TAB-UF'!$C$11:$C$109,B25) -> 0 | I25: =SUMIFS('TAB-UF'!$G$11:$G$109,'TAB-UF'!$C$11:$C$109,B25) -> 0 | J25: =SUMIFS('TAB-UF'!$H$11:$H$109,'TAB-UF'!$C$11:$C$109,B25) -> 0 | K25: =SUMIFS('TAB-UF'!$I$11:$I$109,'TAB-UF'!$C$11:$C$109,B25) -> 0 | L25: =SUMIFS('TAB-UF'!$J$11:$J$109,'TAB-UF'!$C$11:$C$109,B25) -> 0 | M25: =SUMIFS('TAB-UF'!$K$11:$K$109,'TAB-UF'!$C$11:$C$109,B25) -> 0 | N25: =SUMIFS('TAB-UF'!$L$11:$L$109,'TAB-UF'!$C$11:$C$109,B25) -> 0 | O25: =SUMIFS('TAB-UF'!$M$11:$M$109,'TAB-UF'!$C$11:$C$109,B25) -> 0
A26: 16 | B26: =UI!B26 -> U16 | C26: =IF(UI!C26<>"",UI!C26,"") -> UFC16 | D26: =IF(UI!D26<>"",UI!D26,"") -> C16 | E26: =IF(UI!E26<>"",UI!E26,"") -> CONDOMINO16 | F26: =SUMIFS('TAB-UF'!$D$11:$D$109,'TAB-UF'!$C$11:$C$109,B26) -> 47.919 | G26: =SUMIFS('TAB-UF'!$E$11:$E$109,'TAB-UF'!$C$11:$C$109,B26) -> 188.15 | H26: =SUMIFS('TAB-UF'!$F$11:$F$109,'TAB-UF'!$C$11:$C$109,B26) -> 0 | I26: =SUMIFS('TAB-UF'!$G$11:$G$109,'TAB-UF'!$C$11:$C$109,B26) -> 0 | J26: =SUMIFS('TAB-UF'!$H$11:$H$109,'TAB-UF'!$C$11:$C$109,B26) -> 0 | K26: =SUMIFS('TAB-UF'!$I$11:$I$109,'TAB-UF'!$C$11:$C$109,B26) -> 0 | L26: =SUMIFS('TAB-UF'!$J$11:$J$109,'TAB-UF'!$C$11:$C$109,B26) -> 0 | M26: =SUMIFS('TAB-UF'!$K$11:$K$109,'TAB-UF'!$C$11:$C$109,B26) -> 0 | N26: =SUMIFS('TAB-UF'!$L$11:$L$109,'TAB-UF'!$C$11:$C$109,B26) -> 0 | O26: =SUMIFS('TAB-UF'!$M$11:$M$109,'TAB-UF'!$C$11:$C$109,B26) -> 0
A27: 17 | B27: =UI!B27 -> U17 | C27: =IF(UI!C27<>"",UI!C27,"") -> UFC17 | D27: =IF(UI!D27<>"",UI!D27,"") -> C17 | E27: =IF(UI!E27<>"",UI!E27,"") -> CONDOMINO17 | F27: =SUMIFS('TAB-UF'!$D$11:$D$109,'TAB-UF'!$C$11:$C$109,B27) -> 37.721 | G27: =SUMIFS('TAB-UF'!$E$11:$E$109,'TAB-UF'!$C$11:$C$109,B27) -> 148.11 | H27: =SUMIFS('TAB-UF'!$F$11:$F$109,'TAB-UF'!$C$11:$C$109,B27) -> 0 | I27: =SUMIFS('TAB-UF'!$G$11:$G$109,'TAB-UF'!$C$11:$C$109,B27) -> 0 | J27: =SUMIFS('TAB-UF'!$H$11:$H$109,'TAB-UF'!$C$11:$C$109,B27) -> 0 | K27: =SUMIFS('TAB-UF'!$I$11:$I$109,'TAB-UF'!$C$11:$C$109,B27) -> 0 | L27: =SUMIFS('TAB-UF'!$J$11:$J$109,'TAB-UF'!$C$11:$C$109,B27) -> 0 | M27: =SUMIFS('TAB-UF'!$K$11:$K$109,'TAB-UF'!$C$11:$C$109,B27) -> 0 | N27: =SUMIFS('TAB-UF'!$L$11:$L$109,'TAB-UF'!$C$11:$C$109,B27) -> 0 | O27: =SUMIFS('TAB-UF'!$M$11:$M$109,'TAB-UF'!$C$11:$C$109,B27) -> 0
A28: 18 | B28: =UI!B28 -> U18 | C28: =IF(UI!C28<>"",UI!C28,"") -> UFC18 | D28: =IF(UI!D28<>"",UI!D28,"") -> C18 | E28: =IF(UI!E28<>"",UI!E28,"") -> CONDOMINO18 | F28: =SUMIFS('TAB-UF'!$D$11:$D$109,'TAB-UF'!$C$11:$C$109,B28) -> 50.139 | G28: =SUMIFS('TAB-UF'!$E$11:$E$109,'TAB-UF'!$C$11:$C$109,B28) -> 131.244 | H28: =SUMIFS('TAB-UF'!$F$11:$F$109,'TAB-UF'!$C$11:$C$109,B28) -> 0 | I28: =SUMIFS('TAB-UF'!$G$11:$G$109,'TAB-UF'!$C$11:$C$109,B28) -> 0 | J28: =SUMIFS('TAB-UF'!$H$11:$H$109,'TAB-UF'!$C$11:$C$109,B28) -> 0 | K28: =SUMIFS('TAB-UF'!$I$11:$I$109,'TAB-UF'!$C$11:$C$109,B28) -> 0 | L28: =SUMIFS('TAB-UF'!$J$11:$J$109,'TAB-UF'!$C$11:$C$109,B28) -> 0 | M28: =SUMIFS('TAB-UF'!$K$11:$K$109,'TAB-UF'!$C$11:$C$109,B28) -> 0 | N28: =SUMIFS('TAB-UF'!$L$11:$L$109,'TAB-UF'!$C$11:$C$109,B28) -> 0 | O28: =SUMIFS('TAB-UF'!$M$11:$M$109,'TAB-UF'!$C$11:$C$109,B28) -> 0
A29: 19 | B29: =UI!B29 -> U19 | C29: =IF(UI!C29<>"",UI!C29,"") -> UFC19 | D29: =IF(UI!D29<>"",UI!D29,"") -> C19 | E29: =IF(UI!E29<>"",UI!E29,"") -> CONDOMINO19 | F29: =SUMIFS('TAB-UF'!$D$11:$D$109,'TAB-UF'!$C$11:$C$109,B29) -> 41.028 | G29: =SUMIFS('TAB-UF'!$E$11:$E$109,'TAB-UF'!$C$11:$C$109,B29) -> 107.396 | H29: =SUMIFS('TAB-UF'!$F$11:$F$109,'TAB-UF'!$C$11:$C$109,B29) -> 0 | I29: =SUMIFS('TAB-UF'!$G$11:$G$109,'TAB-UF'!$C$11:$C$109,B29) -> 0 | J29: =SUMIFS('TAB-UF'!$H$11:$H$109,'TAB-UF'!$C$11:$C$109,B29) -> 0 | K29: =SUMIFS('TAB-UF'!$I$11:$I$109,'TAB-UF'!$C$11:$C$109,B29) -> 0 | L29: =SUMIFS('TAB-UF'!$J$11:$J$109,'TAB-UF'!$C$11:$C$109,B29) -> 0 | M29: =SUMIFS('TAB-UF'!$K$11:$K$109,'TAB-UF'!$C$11:$C$109,B29) -> 0 | N29: =SUMIFS('TAB-UF'!$L$11:$L$109,'TAB-UF'!$C$11:$C$109,B29) -> 0 | O29: =SUMIFS('TAB-UF'!$M$11:$M$109,'TAB-UF'!$C$11:$C$109,B29) -> 0
A30: 20 | B30: =UI!B30 -> U20 | C30: =IF(UI!C30<>"",UI!C30,"") -> UFC20+UFC23 | D30: =IF(UI!D30<>"",UI!D30,"") -> C07 | E30: =IF(UI!E30<>"",UI!E30,"") -> CONDOMINO07 | F30: =SUMIFS('TAB-UF'!$D$11:$D$109,'TAB-UF'!$C$11:$C$109,B30) -> 86.157 | G30: =SUMIFS('TAB-UF'!$E$11:$E$109,'TAB-UF'!$C$11:$C$109,B30) -> 72.67 | H30: =SUMIFS('TAB-UF'!$F$11:$F$109,'TAB-UF'!$C$11:$C$109,B30) -> 0 | I30: =SUMIFS('TAB-UF'!$G$11:$G$109,'TAB-UF'!$C$11:$C$109,B30) -> 0 | J30: =SUMIFS('TAB-UF'!$H$11:$H$109,'TAB-UF'!$C$11:$C$109,B30) -> 0 | K30: =SUMIFS('TAB-UF'!$I$11:$I$109,'TAB-UF'!$C$11:$C$109,B30) -> 0 | L30: =SUMIFS('TAB-UF'!$J$11:$J$109,'TAB-UF'!$C$11:$C$109,B30) -> 0 | M30: =SUMIFS('TAB-UF'!$K$11:$K$109,'TAB-UF'!$C$11:$C$109,B30) -> 0 | N30: =SUMIFS('TAB-UF'!$L$11:$L$109,'TAB-UF'!$C$11:$C$109,B30) -> 0 | O30: =SUMIFS('TAB-UF'!$M$11:$M$109,'TAB-UF'!$C$11:$C$109,B30) -> 0
A31: 21 | B31: =UI!B31 -> U21 | C31: =IF(UI!C31<>"",UI!C31,"") -> UFC21 | D31: =IF(UI!D31<>"",UI!D31,"") -> C08 | E31: =IF(UI!E31<>"",UI!E31,"") -> CONDOMINO08 | F31: =SUMIFS('TAB-UF'!$D$11:$D$109,'TAB-UF'!$C$11:$C$109,B31) -> 38.403 | G31: =SUMIFS('TAB-UF'!$E$11:$E$109,'TAB-UF'!$C$11:$C$109,B31) -> 50.262 | H31: =SUMIFS('TAB-UF'!$F$11:$F$109,'TAB-UF'!$C$11:$C$109,B31) -> 0 | I31: =SUMIFS('TAB-UF'!$G$11:$G$109,'TAB-UF'!$C$11:$C$109,B31) -> 0 | J31: =SUMIFS('TAB-UF'!$H$11:$H$109,'TAB-UF'!$C$11:$C$109,B31) -> 0 | K31: =SUMIFS('TAB-UF'!$I$11:$I$109,'TAB-UF'!$C$11:$C$109,B31) -> 0 | L31: =SUMIFS('TAB-UF'!$J$11:$J$109,'TAB-UF'!$C$11:$C$109,B31) -> 0 | M31: =SUMIFS('TAB-UF'!$K$11:$K$109,'TAB-UF'!$C$11:$C$109,B31) -> 0 | N31: =SUMIFS('TAB-UF'!$L$11:$L$109,'TAB-UF'!$C$11:$C$109,B31) -> 0 | O31: =SUMIFS('TAB-UF'!$M$11:$M$109,'TAB-UF'!$C$11:$C$109,B31) -> 0
A32: 22 | B32: =UI!B32 -> U22 | C32: =IF(UI!C32<>"",UI!C32,"") -> UFC22 | D32: =IF(UI!D32<>"",UI!D32,"") -> C19 | E32: =IF(UI!E32<>"",UI!E32,"") -> CONDOMINO19 | F32: =SUMIFS('TAB-UF'!$D$11:$D$109,'TAB-UF'!$C$11:$C$109,B32) -> 45.516 | G32: =SUMIFS('TAB-UF'!$E$11:$E$109,'TAB-UF'!$C$11:$C$109,B32) -> 4.636 | H32: =SUMIFS('TAB-UF'!$F$11:$F$109,'TAB-UF'!$C$11:$C$109,B32) -> 0 | I32: =SUMIFS('TAB-UF'!$G$11:$G$109,'TAB-UF'!$C$11:$C$109,B32) -> 0 | J32: =SUMIFS('TAB-UF'!$H$11:$H$109,'TAB-UF'!$C$11:$C$109,B32) -> 0 | K32: =SUMIFS('TAB-UF'!$I$11:$I$109,'TAB-UF'!$C$11:$C$109,B32) -> 0 | L32: =SUMIFS('TAB-UF'!$J$11:$J$109,'TAB-UF'!$C$11:$C$109,B32) -> 0 | M32: =SUMIFS('TAB-UF'!$K$11:$K$109,'TAB-UF'!$C$11:$C$109,B32) -> 0 | N32: =SUMIFS('TAB-UF'!$L$11:$L$109,'TAB-UF'!$C$11:$C$109,B32) -> 0 | O32: =SUMIFS('TAB-UF'!$M$11:$M$109,'TAB-UF'!$C$11:$C$109,B32) -> 0
A33: 23 | B33: =UI!B33 -> U23 | C33: =IF(UI!C33<>"",UI!C33,"") ->  | D33: =IF(UI!D33<>"",UI!D33,"") ->  | E33: =IF(UI!E33<>"",UI!E33,"") ->  | F33: =SUMIFS('TAB-UF'!$D$11:$D$109,'TAB-UF'!$C$11:$C$109,B33) -> 0 | G33: =SUMIFS('TAB-UF'!$E$11:$E$109,'TAB-UF'!$C$11:$C$109,B33) -> 0 | H33: =SUMIFS('TAB-UF'!$F$11:$F$109,'TAB-UF'!$C$11:$C$109,B33) -> 0 | I33: =SUMIFS('TAB-UF'!$G$11:$G$109,'TAB-UF'!$C$11:$C$109,B33) -> 0 | J33: =SUMIFS('TAB-UF'!$H$11:$H$109,'TAB-UF'!$C$11:$C$109,B33) -> 0 | K33: =SUMIFS('TAB-UF'!$I$11:$I$109,'TAB-UF'!$C$11:$C$109,B33) -> 0 | L33: =SUMIFS('TAB-UF'!$J$11:$J$109,'TAB-UF'!$C$11:$C$109,B33) -> 0 | M33: =SUMIFS('TAB-UF'!$K$11:$K$109,'TAB-UF'!$C$11:$C$109,B33) -> 0 | N33: =SUMIFS('TAB-UF'!$L$11:$L$109,'TAB-UF'!$C$11:$C$109,B33) -> 0 | O33: =SUMIFS('TAB-UF'!$M$11:$M$109,'TAB-UF'!$C$11:$C$109,B33) -> 0
A34: 24 | B34: =UI!B34 -> U24 | C34: =IF(UI!C34<>"",UI!C34,"") ->  | D34: =IF(UI!D34<>"",UI!D34,"") ->  | E34: =IF(UI!E34<>"",UI!E34,"") ->  | F34: =SUMIFS('TAB-UF'!$D$11:$D$109,'TAB-UF'!$C$11:$C$109,B34) -> 0 | G34: =SUMIFS('TAB-UF'!$E$11:$E$109,'TAB-UF'!$C$11:$C$109,B34) -> 0 | H34: =SUMIFS('TAB-UF'!$F$11:$F$109,'TAB-UF'!$C$11:$C$109,B34) -> 0 | I34: =SUMIFS('TAB-UF'!$G$11:$G$109,'TAB-UF'!$C$11:$C$109,B34) -> 0 | J34: =SUMIFS('TAB-UF'!$H$11:$H$109,'TAB-UF'!$C$11:$C$109,B34) -> 0 | K34: =SUMIFS('TAB-UF'!$I$11:$I$109,'TAB-UF'!$C$11:$C$109,B34) -> 0 | L34: =SUMIFS('TAB-UF'!$J$11:$J$109,'TAB-UF'!$C$11:$C$109,B34) -> 0 | M34: =SUMIFS('TAB-UF'!$K$11:$K$109,'TAB-UF'!$C$11:$C$109,B34) -> 0 | N34: =SUMIFS('TAB-UF'!$L$11:$L$109,'TAB-UF'!$C$11:$C$109,B34) -> 0 | O34: =SUMIFS('TAB-UF'!$M$11:$M$109,'TAB-UF'!$C$11:$C$109,B34) -> 0
A35: 25 | B35: =UI!B35 -> U25 | C35: =IF(UI!C35<>"",UI!C35,"") ->  | D35: =IF(UI!D35<>"",UI!D35,"") ->  | E35: =IF(UI!E35<>"",UI!E35,"") ->  | F35: =SUMIFS('TAB-UF'!$D$11:$D$109,'TAB-UF'!$C$11:$C$109,B35) -> 0 | G35: =SUMIFS('TAB-UF'!$E$11:$E$109,'TAB-UF'!$C$11:$C$109,B35) -> 0 | H35: =SUMIFS('TAB-UF'!$F$11:$F$109,'TAB-UF'!$C$11:$C$109,B35) -> 0 | I35: =SUMIFS('TAB-UF'!$G$11:$G$109,'TAB-UF'!$C$11:$C$109,B35) -> 0 | J35: =SUMIFS('TAB-UF'!$H$11:$H$109,'TAB-UF'!$C$11:$C$109,B35) -> 0 | K35: =SUMIFS('TAB-UF'!$I$11:$I$109,'TAB-UF'!$C$11:$C$109,B35) -> 0 | L35: =SUMIFS('TAB-UF'!$J$11:$J$109,'TAB-UF'!$C$11:$C$109,B35) -> 0 | M35: =SUMIFS('TAB-UF'!$K$11:$K$109,'TAB-UF'!$C$11:$C$109,B35) -> 0 | N35: =SUMIFS('TAB-UF'!$L$11:$L$109,'TAB-UF'!$C$11:$C$109,B35) -> 0 | O35: =SUMIFS('TAB-UF'!$M$11:$M$109,'TAB-UF'!$C$11:$C$109,B35) -> 0
A36: 26 | B36: =UI!B36 -> U26 | C36: =IF(UI!C36<>"",UI!C36,"") ->  | D36: =IF(UI!D36<>"",UI!D36,"") ->  | E36: =IF(UI!E36<>"",UI!E36,"") ->  | F36: =SUMIFS('TAB-UF'!$D$11:$D$109,'TAB-UF'!$C$11:$C$109,B36) -> 0 | G36: =SUMIFS('TAB-UF'!$E$11:$E$109,'TAB-UF'!$C$11:$C$109,B36) -> 0 | H36: =SUMIFS('TAB-UF'!$F$11:$F$109,'TAB-UF'!$C$11:$C$109,B36) -> 0 | I36: =SUMIFS('TAB-UF'!$G$11:$G$109,'TAB-UF'!$C$11:$C$109,B36) -> 0 | J36: =SUMIFS('TAB-UF'!$H$11:$H$109,'TAB-UF'!$C$11:$C$109,B36) -> 0 | K36: =SUMIFS('TAB-UF'!$I$11:$I$109,'TAB-UF'!$C$11:$C$109,B36) -> 0 | L36: =SUMIFS('TAB-UF'!$J$11:$J$109,'TAB-UF'!$C$11:$C$109,B36) -> 0 | M36: =SUMIFS('TAB-UF'!$K$11:$K$109,'TAB-UF'!$C$11:$C$109,B36) -> 0 | N36: =SUMIFS('TAB-UF'!$L$11:$L$109,'TAB-UF'!$C$11:$C$109,B36) -> 0 | O36: =SUMIFS('TAB-UF'!$M$11:$M$109,'TAB-UF'!$C$11:$C$109,B36) -> 0
A37: 27 | B37: =UI!B37 -> U27 | C37: =IF(UI!C37<>"",UI!C37,"") ->  | D37: =IF(UI!D37<>"",UI!D37,"") ->  | E37: =IF(UI!E37<>"",UI!E37,"") ->  | F37: =SUMIFS('TAB-UF'!$D$11:$D$109,'TAB-UF'!$C$11:$C$109,B37) -> 0 | G37: =SUMIFS('TAB-UF'!$E$11:$E$109,'TAB-UF'!$C$11:$C$109,B37) -> 0 | H37: =SUMIFS('TAB-UF'!$F$11:$F$109,'TAB-UF'!$C$11:$C$109,B37) -> 0 | I37: =SUMIFS('TAB-UF'!$G$11:$G$109,'TAB-UF'!$C$11:$C$109,B37) -> 0 | J37: =SUMIFS('TAB-UF'!$H$11:$H$109,'TAB-UF'!$C$11:$C$109,B37) -> 0 | K37: =SUMIFS('TAB-UF'!$I$11:$I$109,'TAB-UF'!$C$11:$C$109,B37) -> 0 | L37: =SUMIFS('TAB-UF'!$J$11:$J$109,'TAB-UF'!$C$11:$C$109,B37) -> 0 | M37: =SUMIFS('TAB-UF'!$K$11:$K$109,'TAB-UF'!$C$11:$C$109,B37) -> 0 | N37: =SUMIFS('TAB-UF'!$L$11:$L$109,'TAB-UF'!$C$11:$C$109,B37) -> 0 | O37: =SUMIFS('TAB-UF'!$M$11:$M$109,'TAB-UF'!$C$11:$C$109,B37) -> 0
A38: 28 | B38: =UI!B38 -> U28 | C38: =IF(UI!C38<>"",UI!C38,"") ->  | D38: =IF(UI!D38<>"",UI!D38,"") ->  | E38: =IF(UI!E38<>"",UI!E38,"") ->  | F38: =SUMIFS('TAB-UF'!$D$11:$D$109,'TAB-UF'!$C$11:$C$109,B38) -> 0 | G38: =SUMIFS('TAB-UF'!$E$11:$E$109,'TAB-UF'!$C$11:$C$109,B38) -> 0 | H38: =SUMIFS('TAB-UF'!$F$11:$F$109,'TAB-UF'!$C$11:$C$109,B38) -> 0 | I38: =SUMIFS('TAB-UF'!$G$11:$G$109,'TAB-UF'!$C$11:$C$109,B38) -> 0 | J38: =SUMIFS('TAB-UF'!$H$11:$H$109,'TAB-UF'!$C$11:$C$109,B38) -> 0 | K38: =SUMIFS('TAB-UF'!$I$11:$I$109,'TAB-UF'!$C$11:$C$109,B38) -> 0 | L38: =SUMIFS('TAB-UF'!$J$11:$J$109,'TAB-UF'!$C$11:$C$109,B38) -> 0 | M38: =SUMIFS('TAB-UF'!$K$11:$K$109,'TAB-UF'!$C$11:$C$109,B38) -> 0 | N38: =SUMIFS('TAB-UF'!$L$11:$L$109,'TAB-UF'!$C$11:$C$109,B38) -> 0 | O38: =SUMIFS('TAB-UF'!$M$11:$M$109,'TAB-UF'!$C$11:$C$109,B38) -> 0
A39: 29 | B39: =UI!B39 -> U29 | C39: =IF(UI!C39<>"",UI!C39,"") ->  | D39: =IF(UI!D39<>"",UI!D39,"") ->  | E39: =IF(UI!E39<>"",UI!E39,"") ->  | F39: =SUMIFS('TAB-UF'!$D$11:$D$109,'TAB-UF'!$C$11:$C$109,B39) -> 0 | G39: =SUMIFS('TAB-UF'!$E$11:$E$109,'TAB-UF'!$C$11:$C$109,B39) -> 0 | H39: =SUMIFS('TAB-UF'!$F$11:$F$109,'TAB-UF'!$C$11:$C$109,B39) -> 0 | I39: =SUMIFS('TAB-UF'!$G$11:$G$109,'TAB-UF'!$C$11:$C$109,B39) -> 0 | J39: =SUMIFS('TAB-UF'!$H$11:$H$109,'TAB-UF'!$C$11:$C$109,B39) -> 0 | K39: =SUMIFS('TAB-UF'!$I$11:$I$109,'TAB-UF'!$C$11:$C$109,B39) -> 0 | L39: =SUMIFS('TAB-UF'!$J$11:$J$109,'TAB-UF'!$C$11:$C$109,B39) -> 0 | M39: =SUMIFS('TAB-UF'!$K$11:$K$109,'TAB-UF'!$C$11:$C$109,B39) -> 0 | N39: =SUMIFS('TAB-UF'!$L$11:$L$109,'TAB-UF'!$C$11:$C$109,B39) -> 0 | O39: =SUMIFS('TAB-UF'!$M$11:$M$109,'TAB-UF'!$C$11:$C$109,B39) -> 0
A40: 30 | B40: =UI!B40 -> U30 | C40: =IF(UI!C40<>"",UI!C40,"") ->  | D40: =IF(UI!D40<>"",UI!D40,"") ->  | E40: =IF(UI!E40<>"",UI!E40,"") ->  | F40: =SUMIFS('TAB-UF'!$D$11:$D$109,'TAB-UF'!$C$11:$C$109,B40) -> 0 | G40: =SUMIFS('TAB-UF'!$E$11:$E$109,'TAB-UF'!$C$11:$C$109,B40) -> 0 | H40: =SUMIFS('TAB-UF'!$F$11:$F$109,'TAB-UF'!$C$11:$C$109,B40) -> 0 | I40: =SUMIFS('TAB-UF'!$G$11:$G$109,'TAB-UF'!$C$11:$C$109,B40) -> 0 | J40: =SUMIFS('TAB-UF'!$H$11:$H$109,'TAB-UF'!$C$11:$C$109,B40) -> 0 | K40: =SUMIFS('TAB-UF'!$I$11:$I$109,'TAB-UF'!$C$11:$C$109,B40) -> 0 | L40: =SUMIFS('TAB-UF'!$J$11:$J$109,'TAB-UF'!$C$11:$C$109,B40) -> 0 | M40: =SUMIFS('TAB-UF'!$K$11:$K$109,'TAB-UF'!$C$11:$C$109,B40) -> 0 | N40: =SUMIFS('TAB-UF'!$L$11:$L$109,'TAB-UF'!$C$11:$C$109,B40) -> 0 | O40: =SUMIFS('TAB-UF'!$M$11:$M$109,'TAB-UF'!$C$11:$C$109,B40) -> 0
A41: 31 | B41: =UI!B41 -> U31 | C41: =IF(UI!C41<>"",UI!C41,"") ->  | D41: =IF(UI!D41<>"",UI!D41,"") ->  | E41: =IF(UI!E41<>"",UI!E41,"") ->  | F41: =SUMIFS('TAB-UF'!$D$11:$D$109,'TAB-UF'!$C$11:$C$109,B41) -> 0 | G41: =SUMIFS('TAB-UF'!$E$11:$E$109,'TAB-UF'!$C$11:$C$109,B41) -> 0 | H41: =SUMIFS('TAB-UF'!$F$11:$F$109,'TAB-UF'!$C$11:$C$109,B41) -> 0 | I41: =SUMIFS('TAB-UF'!$G$11:$G$109,'TAB-UF'!$C$11:$C$109,B41) -> 0 | J41: =SUMIFS('TAB-UF'!$H$11:$H$109,'TAB-UF'!$C$11:$C$109,B41) -> 0 | K41: =SUMIFS('TAB-UF'!$I$11:$I$109,'TAB-UF'!$C$11:$C$109,B41) -> 0 | L41: =SUMIFS('TAB-UF'!$J$11:$J$109,'TAB-UF'!$C$11:$C$109,B41) -> 0 | M41: =SUMIFS('TAB-UF'!$K$11:$K$109,'TAB-UF'!$C$11:$C$109,B41) -> 0 | N41: =SUMIFS('TAB-UF'!$L$11:$L$109,'TAB-UF'!$C$11:$C$109,B41) -> 0 | O41: =SUMIFS('TAB-UF'!$M$11:$M$109,'TAB-UF'!$C$11:$C$109,B41) -> 0
A42: 32 | B42: =UI!B42 -> U32 | C42: =IF(UI!C42<>"",UI!C42,"") ->  | D42: =IF(UI!D42<>"",UI!D42,"") ->  | E42: =IF(UI!E42<>"",UI!E42,"") ->  | F42: =SUMIFS('TAB-UF'!$D$11:$D$109,'TAB-UF'!$C$11:$C$109,B42) -> 0 | G42: =SUMIFS('TAB-UF'!$E$11:$E$109,'TAB-UF'!$C$11:$C$109,B42) -> 0 | H42: =SUMIFS('TAB-UF'!$F$11:$F$109,'TAB-UF'!$C$11:$C$109,B42) -> 0 | I42: =SUMIFS('TAB-UF'!$G$11:$G$109,'TAB-UF'!$C$11:$C$109,B42) -> 0 | J42: =SUMIFS('TAB-UF'!$H$11:$H$109,'TAB-UF'!$C$11:$C$109,B42) -> 0 | K42: =SUMIFS('TAB-UF'!$I$11:$I$109,'TAB-UF'!$C$11:$C$109,B42) -> 0 | L42: =SUMIFS('TAB-UF'!$J$11:$J$109,'TAB-UF'!$C$11:$C$109,B42) -> 0 | M42: =SUMIFS('TAB-UF'!$K$11:$K$109,'TAB-UF'!$C$11:$C$109,B42) -> 0 | N42: =SUMIFS('TAB-UF'!$L$11:$L$109,'TAB-UF'!$C$11:$C$109,B42) -> 0 | O42: =SUMIFS('TAB-UF'!$M$11:$M$109,'TAB-UF'!$C$11:$C$109,B42) -> 0
A43: 33 | B43: =UI!B43 -> U33 | C43: =IF(UI!C43<>"",UI!C43,"") ->  | D43: =IF(UI!D43<>"",UI!D43,"") ->  | E43: =IF(UI!E43<>"",UI!E43,"") ->  | F43: =SUMIFS('TAB-UF'!$D$11:$D$109,'TAB-UF'!$C$11:$C$109,B43) -> 0 | G43: =SUMIFS('TAB-UF'!$E$11:$E$109,'TAB-UF'!$C$11:$C$109,B43) -> 0 | H43: =SUMIFS('TAB-UF'!$F$11:$F$109,'TAB-UF'!$C$11:$C$109,B43) -> 0 | I43: =SUMIFS('TAB-UF'!$G$11:$G$109,'TAB-UF'!$C$11:$C$109,B43) -> 0 | J43: =SUMIFS('TAB-UF'!$H$11:$H$109,'TAB-UF'!$C$11:$C$109,B43) -> 0 | K43: =SUMIFS('TAB-UF'!$I$11:$I$109,'TAB-UF'!$C$11:$C$109,B43) -> 0 | L43: =SUMIFS('TAB-UF'!$J$11:$J$109,'TAB-UF'!$C$11:$C$109,B43) -> 0 | M43: =SUMIFS('TAB-UF'!$K$11:$K$109,'TAB-UF'!$C$11:$C$109,B43) -> 0 | N43: =SUMIFS('TAB-UF'!$L$11:$L$109,'TAB-UF'!$C$11:$C$109,B43) -> 0 | O43: =SUMIFS('TAB-UF'!$M$11:$M$109,'TAB-UF'!$C$11:$C$109,B43) -> 0
A44: 34 | B44: =UI!B44 -> U34 | C44: =IF(UI!C44<>"",UI!C44,"") ->  | D44: =IF(UI!D44<>"",UI!D44,"") ->  | E44: =IF(UI!E44<>"",UI!E44,"") ->  | F44: =SUMIFS('TAB-UF'!$D$11:$D$109,'TAB-UF'!$C$11:$C$109,B44) -> 0 | G44: =SUMIFS('TAB-UF'!$E$11:$E$109,'TAB-UF'!$C$11:$C$109,B44) -> 0 | H44: =SUMIFS('TAB-UF'!$F$11:$F$109,'TAB-UF'!$C$11:$C$109,B44) -> 0 | I44: =SUMIFS('TAB-UF'!$G$11:$G$109,'TAB-UF'!$C$11:$C$109,B44) -> 0 | J44: =SUMIFS('TAB-UF'!$H$11:$H$109,'TAB-UF'!$C$11:$C$109,B44) -> 0 | K44: =SUMIFS('TAB-UF'!$I$11:$I$109,'TAB-UF'!$C$11:$C$109,B44) -> 0 | L44: =SUMIFS('TAB-UF'!$J$11:$J$109,'TAB-UF'!$C$11:$C$109,B44) -> 0 | M44: =SUMIFS('TAB-UF'!$K$11:$K$109,'TAB-UF'!$C$11:$C$109,B44) -> 0 | N44: =SUMIFS('TAB-UF'!$L$11:$L$109,'TAB-UF'!$C$11:$C$109,B44) -> 0 | O44: =SUMIFS('TAB-UF'!$M$11:$M$109,'TAB-UF'!$C$11:$C$109,B44) -> 0
A45: 35 | B45: =UI!B45 -> U35 | C45: =IF(UI!C45<>"",UI!C45,"") ->  | D45: =IF(UI!D45<>"",UI!D45,"") ->  | E45: =IF(UI!E45<>"",UI!E45,"") ->  | F45: =SUMIFS('TAB-UF'!$D$11:$D$109,'TAB-UF'!$C$11:$C$109,B45) -> 0 | G45: =SUMIFS('TAB-UF'!$E$11:$E$109,'TAB-UF'!$C$11:$C$109,B45) -> 0 | H45: =SUMIFS('TAB-UF'!$F$11:$F$109,'TAB-UF'!$C$11:$C$109,B45) -> 0 | I45: =SUMIFS('TAB-UF'!$G$11:$G$109,'TAB-UF'!$C$11:$C$109,B45) -> 0 | J45: =SUMIFS('TAB-UF'!$H$11:$H$109,'TAB-UF'!$C$11:$C$109,B45) -> 0 | K45: =SUMIFS('TAB-UF'!$I$11:$I$109,'TAB-UF'!$C$11:$C$109,B45) -> 0 | L45: =SUMIFS('TAB-UF'!$J$11:$J$109,'TAB-UF'!$C$11:$C$109,B45) -> 0 | M45: =SUMIFS('TAB-UF'!$K$11:$K$109,'TAB-UF'!$C$11:$C$109,B45) -> 0 | N45: =SUMIFS('TAB-UF'!$L$11:$L$109,'TAB-UF'!$C$11:$C$109,B45) -> 0 | O45: =SUMIFS('TAB-UF'!$M$11:$M$109,'TAB-UF'!$C$11:$C$109,B45) -> 0
A46: 36 | B46: =UI!B46 -> U36 | C46: =IF(UI!C46<>"",UI!C46,"") ->  | D46: =IF(UI!D46<>"",UI!D46,"") ->  | E46: =IF(UI!E46<>"",UI!E46,"") ->  | F46: =SUMIFS('TAB-UF'!$D$11:$D$109,'TAB-UF'!$C$11:$C$109,B46) -> 0 | G46: =SUMIFS('TAB-UF'!$E$11:$E$109,'TAB-UF'!$C$11:$C$109,B46) -> 0 | H46: =SUMIFS('TAB-UF'!$F$11:$F$109,'TAB-UF'!$C$11:$C$109,B46) -> 0 | I46: =SUMIFS('TAB-UF'!$G$11:$G$109,'TAB-UF'!$C$11:$C$109,B46) -> 0 | J46: =SUMIFS('TAB-UF'!$H$11:$H$109,'TAB-UF'!$C$11:$C$109,B46) -> 0 | K46: =SUMIFS('TAB-UF'!$I$11:$I$109,'TAB-UF'!$C$11:$C$109,B46) -> 0 | L46: =SUMIFS('TAB-UF'!$J$11:$J$109,'TAB-UF'!$C$11:$C$109,B46) -> 0 | M46: =SUMIFS('TAB-UF'!$K$11:$K$109,'TAB-UF'!$C$11:$C$109,B46) -> 0 | N46: =SUMIFS('TAB-UF'!$L$11:$L$109,'TAB-UF'!$C$11:$C$109,B46) -> 0 | O46: =SUMIFS('TAB-UF'!$M$11:$M$109,'TAB-UF'!$C$11:$C$109,B46) -> 0
A47: 37 | B47: =UI!B47 -> U37 | C47: =IF(UI!C47<>"",UI!C47,"") ->  | D47: =IF(UI!D47<>"",UI!D47,"") ->  | E47: =IF(UI!E47<>"",UI!E47,"") ->  | F47: =SUMIFS('TAB-UF'!$D$11:$D$109,'TAB-UF'!$C$11:$C$109,B47) -> 0 | G47: =SUMIFS('TAB-UF'!$E$11:$E$109,'TAB-UF'!$C$11:$C$109,B47) -> 0 | H47: =SUMIFS('TAB-UF'!$F$11:$F$109,'TAB-UF'!$C$11:$C$109,B47) -> 0 | I47: =SUMIFS('TAB-UF'!$G$11:$G$109,'TAB-UF'!$C$11:$C$109,B47) -> 0 | J47: =SUMIFS('TAB-UF'!$H$11:$H$109,'TAB-UF'!$C$11:$C$109,B47) -> 0 | K47: =SUMIFS('TAB-UF'!$I$11:$I$109,'TAB-UF'!$C$11:$C$109,B47) -> 0 | L47: =SUMIFS('TAB-UF'!$J$11:$J$109,'TAB-UF'!$C$11:$C$109,B47) -> 0 | M47: =SUMIFS('TAB-UF'!$K$11:$K$109,'TAB-UF'!$C$11:$C$109,B47) -> 0 | N47: =SUMIFS('TAB-UF'!$L$11:$L$109,'TAB-UF'!$C$11:$C$109,B47) -> 0 | O47: =SUMIFS('TAB-UF'!$M$11:$M$109,'TAB-UF'!$C$11:$C$109,B47) -> 0
A48: 38 | B48: =UI!B48 -> U38 | C48: =IF(UI!C48<>"",UI!C48,"") ->  | D48: =IF(UI!D48<>"",UI!D48,"") ->  | E48: =IF(UI!E48<>"",UI!E48,"") ->  | F48: =SUMIFS('TAB-UF'!$D$11:$D$109,'TAB-UF'!$C$11:$C$109,B48) -> 0 | G48: =SUMIFS('TAB-UF'!$E$11:$E$109,'TAB-UF'!$C$11:$C$109,B48) -> 0 | H48: =SUMIFS('TAB-UF'!$F$11:$F$109,'TAB-UF'!$C$11:$C$109,B48) -> 0 | I48: =SUMIFS('TAB-UF'!$G$11:$G$109,'TAB-UF'!$C$11:$C$109,B48) -> 0 | J48: =SUMIFS('TAB-UF'!$H$11:$H$109,'TAB-UF'!$C$11:$C$109,B48) -> 0 | K48: =SUMIFS('TAB-UF'!$I$11:$I$109,'TAB-UF'!$C$11:$C$109,B48) -> 0 | L48: =SUMIFS('TAB-UF'!$J$11:$J$109,'TAB-UF'!$C$11:$C$109,B48) -> 0 | M48: =SUMIFS('TAB-UF'!$K$11:$K$109,'TAB-UF'!$C$11:$C$109,B48) -> 0 | N48: =SUMIFS('TAB-UF'!$L$11:$L$109,'TAB-UF'!$C$11:$C$109,B48) -> 0 | O48: =SUMIFS('TAB-UF'!$M$11:$M$109,'TAB-UF'!$C$11:$C$109,B48) -> 0
A49: 39 | B49: =UI!B49 -> U39 | C49: =IF(UI!C49<>"",UI!C49,"") ->  | D49: =IF(UI!D49<>"",UI!D49,"") ->  | E49: =IF(UI!E49<>"",UI!E49,"") ->  | F49: =SUMIFS('TAB-UF'!$D$11:$D$109,'TAB-UF'!$C$11:$C$109,B49) -> 0 | G49: =SUMIFS('TAB-UF'!$E$11:$E$109,'TAB-UF'!$C$11:$C$109,B49) -> 0 | H49: =SUMIFS('TAB-UF'!$F$11:$F$109,'TAB-UF'!$C$11:$C$109,B49) -> 0 | I49: =SUMIFS('TAB-UF'!$G$11:$G$109,'TAB-UF'!$C$11:$C$109,B49) -> 0 | J49: =SUMIFS('TAB-UF'!$H$11:$H$109,'TAB-UF'!$C$11:$C$109,B49) -> 0 | K49: =SUMIFS('TAB-UF'!$I$11:$I$109,'TAB-UF'!$C$11:$C$109,B49) -> 0 | L49: =SUMIFS('TAB-UF'!$J$11:$J$109,'TAB-UF'!$C$11:$C$109,B49) -> 0 | M49: =SUMIFS('TAB-UF'!$K$11:$K$109,'TAB-UF'!$C$11:$C$109,B49) -> 0 | N49: =SUMIFS('TAB-UF'!$L$11:$L$109,'TAB-UF'!$C$11:$C$109,B49) -> 0 | O49: =SUMIFS('TAB-UF'!$M$11:$M$109,'TAB-UF'!$C$11:$C$109,B49) -> 0
A50: 40 | B50: =UI!B50 -> U40 | C50: =IF(UI!C50<>"",UI!C50,"") ->  | D50: =IF(UI!D50<>"",UI!D50,"") ->  | E50: =IF(UI!E50<>"",UI!E50,"") ->  | F50: =SUMIFS('TAB-UF'!$D$11:$D$109,'TAB-UF'!$C$11:$C$109,B50) -> 0 | G50: =SUMIFS('TAB-UF'!$E$11:$E$109,'TAB-UF'!$C$11:$C$109,B50) -> 0 | H50: =SUMIFS('TAB-UF'!$F$11:$F$109,'TAB-UF'!$C$11:$C$109,B50) -> 0 | I50: =SUMIFS('TAB-UF'!$G$11:$G$109,'TAB-UF'!$C$11:$C$109,B50) -> 0 | J50: =SUMIFS('TAB-UF'!$H$11:$H$109,'TAB-UF'!$C$11:$C$109,B50) -> 0 | K50: =SUMIFS('TAB-UF'!$I$11:$I$109,'TAB-UF'!$C$11:$C$109,B50) -> 0 | L50: =SUMIFS('TAB-UF'!$J$11:$J$109,'TAB-UF'!$C$11:$C$109,B50) -> 0 | M50: =SUMIFS('TAB-UF'!$K$11:$K$109,'TAB-UF'!$C$11:$C$109,B50) -> 0 | N50: =SUMIFS('TAB-UF'!$L$11:$L$109,'TAB-UF'!$C$11:$C$109,B50) -> 0 | O50: =SUMIFS('TAB-UF'!$M$11:$M$109,'TAB-UF'!$C$11:$C$109,B50) -> 0
A51: 41 | B51: =UI!B51 -> U41 | C51: =IF(UI!C51<>"",UI!C51,"") ->  | D51: =IF(UI!D51<>"",UI!D51,"") ->  | E51: =IF(UI!E51<>"",UI!E51,"") ->  | F51: =SUMIFS('TAB-UF'!$D$11:$D$109,'TAB-UF'!$C$11:$C$109,B51) -> 0 | G51: =SUMIFS('TAB-UF'!$E$11:$E$109,'TAB-UF'!$C$11:$C$109,B51) -> 0 | H51: =SUMIFS('TAB-UF'!$F$11:$F$109,'TAB-UF'!$C$11:$C$109,B51) -> 0 | I51: =SUMIFS('TAB-UF'!$G$11:$G$109,'TAB-UF'!$C$11:$C$109,B51) -> 0 | J51: =SUMIFS('TAB-UF'!$H$11:$H$109,'TAB-UF'!$C$11:$C$109,B51) -> 0 | K51: =SUMIFS('TAB-UF'!$I$11:$I$109,'TAB-UF'!$C$11:$C$109,B51) -> 0 | L51: =SUMIFS('TAB-UF'!$J$11:$J$109,'TAB-UF'!$C$11:$C$109,B51) -> 0 | M51: =SUMIFS('TAB-UF'!$K$11:$K$109,'TAB-UF'!$C$11:$C$109,B51) -> 0 | N51: =SUMIFS('TAB-UF'!$L$11:$L$109,'TAB-UF'!$C$11:$C$109,B51) -> 0 | O51: =SUMIFS('TAB-UF'!$M$11:$M$109,'TAB-UF'!$C$11:$C$109,B51) -> 0
A52: 42 | B52: =UI!B52 -> U42 | C52: =IF(UI!C52<>"",UI!C52,"") ->  | D52: =IF(UI!D52<>"",UI!D52,"") ->  | E52: =IF(UI!E52<>"",UI!E52,"") ->  | F52: =SUMIFS('TAB-UF'!$D$11:$D$109,'TAB-UF'!$C$11:$C$109,B52) -> 0 | G52: =SUMIFS('TAB-UF'!$E$11:$E$109,'TAB-UF'!$C$11:$C$109,B52) -> 0 | H52: =SUMIFS('TAB-UF'!$F$11:$F$109,'TAB-UF'!$C$11:$C$109,B52) -> 0 | I52: =SUMIFS('TAB-UF'!$G$11:$G$109,'TAB-UF'!$C$11:$C$109,B52) -> 0 | J52: =SUMIFS('TAB-UF'!$H$11:$H$109,'TAB-UF'!$C$11:$C$109,B52) -> 0 | K52: =SUMIFS('TAB-UF'!$I$11:$I$109,'TAB-UF'!$C$11:$C$109,B52) -> 0 | L52: =SUMIFS('TAB-UF'!$J$11:$J$109,'TAB-UF'!$C$11:$C$109,B52) -> 0 | M52: =SUMIFS('TAB-UF'!$K$11:$K$109,'TAB-UF'!$C$11:$C$109,B52) -> 0 | N52: =SUMIFS('TAB-UF'!$L$11:$L$109,'TAB-UF'!$C$11:$C$109,B52) -> 0 | O52: =SUMIFS('TAB-UF'!$M$11:$M$109,'TAB-UF'!$C$11:$C$109,B52) -> 0
A53: 43 | B53: =UI!B53 -> U43 | C53: =IF(UI!C53<>"",UI!C53,"") ->  | D53: =IF(UI!D53<>"",UI!D53,"") ->  | E53: =IF(UI!E53<>"",UI!E53,"") ->  | F53: =SUMIFS('TAB-UF'!$D$11:$D$109,'TAB-UF'!$C$11:$C$109,B53) -> 0 | G53: =SUMIFS('TAB-UF'!$E$11:$E$109,'TAB-UF'!$C$11:$C$109,B53) -> 0 | H53: =SUMIFS('TAB-UF'!$F$11:$F$109,'TAB-UF'!$C$11:$C$109,B53) -> 0 | I53: =SUMIFS('TAB-UF'!$G$11:$G$109,'TAB-UF'!$C$11:$C$109,B53) -> 0 | J53: =SUMIFS('TAB-UF'!$H$11:$H$109,'TAB-UF'!$C$11:$C$109,B53) -> 0 | K53: =SUMIFS('TAB-UF'!$I$11:$I$109,'TAB-UF'!$C$11:$C$109,B53) -> 0 | L53: =SUMIFS('TAB-UF'!$J$11:$J$109,'TAB-UF'!$C$11:$C$109,B53) -> 0 | M53: =SUMIFS('TAB-UF'!$K$11:$K$109,'TAB-UF'!$C$11:$C$109,B53) -> 0 | N53: =SUMIFS('TAB-UF'!$L$11:$L$109,'TAB-UF'!$C$11:$C$109,B53) -> 0 | O53: =SUMIFS('TAB-UF'!$M$11:$M$109,'TAB-UF'!$C$11:$C$109,B53) -> 0
A54: 44 | B54: =UI!B54 -> U44 | C54: =IF(UI!C54<>"",UI!C54,"") ->  | D54: =IF(UI!D54<>"",UI!D54,"") ->  | E54: =IF(UI!E54<>"",UI!E54,"") ->  | F54: =SUMIFS('TAB-UF'!$D$11:$D$109,'TAB-UF'!$C$11:$C$109,B54) -> 0 | G54: =SUMIFS('TAB-UF'!$E$11:$E$109,'TAB-UF'!$C$11:$C$109,B54) -> 0 | H54: =SUMIFS('TAB-UF'!$F$11:$F$109,'TAB-UF'!$C$11:$C$109,B54) -> 0 | I54: =SUMIFS('TAB-UF'!$G$11:$G$109,'TAB-UF'!$C$11:$C$109,B54) -> 0 | J54: =SUMIFS('TAB-UF'!$H$11:$H$109,'TAB-UF'!$C$11:$C$109,B54) -> 0 | K54: =SUMIFS('TAB-UF'!$I$11:$I$109,'TAB-UF'!$C$11:$C$109,B54) -> 0 | L54: =SUMIFS('TAB-UF'!$J$11:$J$109,'TAB-UF'!$C$11:$C$109,B54) -> 0 | M54: =SUMIFS('TAB-UF'!$K$11:$K$109,'TAB-UF'!$C$11:$C$109,B54) -> 0 | N54: =SUMIFS('TAB-UF'!$L$11:$L$109,'TAB-UF'!$C$11:$C$109,B54) -> 0 | O54: =SUMIFS('TAB-UF'!$M$11:$M$109,'TAB-UF'!$C$11:$C$109,B54) -> 0
A55: 45 | B55: =UI!B55 -> U45 | C55: =IF(UI!C55<>"",UI!C55,"") ->  | D55: =IF(UI!D55<>"",UI!D55,"") ->  | E55: =IF(UI!E55<>"",UI!E55,"") ->  | F55: =SUMIFS('TAB-UF'!$D$11:$D$109,'TAB-UF'!$C$11:$C$109,B55) -> 0 | G55: =SUMIFS('TAB-UF'!$E$11:$E$109,'TAB-UF'!$C$11:$C$109,B55) -> 0 | H55: =SUMIFS('TAB-UF'!$F$11:$F$109,'TAB-UF'!$C$11:$C$109,B55) -> 0 | I55: =SUMIFS('TAB-UF'!$G$11:$G$109,'TAB-UF'!$C$11:$C$109,B55) -> 0 | J55: =SUMIFS('TAB-UF'!$H$11:$H$109,'TAB-UF'!$C$11:$C$109,B55) -> 0 | K55: =SUMIFS('TAB-UF'!$I$11:$I$109,'TAB-UF'!$C$11:$C$109,B55) -> 0 | L55: =SUMIFS('TAB-UF'!$J$11:$J$109,'TAB-UF'!$C$11:$C$109,B55) -> 0 | M55: =SUMIFS('TAB-UF'!$K$11:$K$109,'TAB-UF'!$C$11:$C$109,B55) -> 0 | N55: =SUMIFS('TAB-UF'!$L$11:$L$109,'TAB-UF'!$C$11:$C$109,B55) -> 0 | O55: =SUMIFS('TAB-UF'!$M$11:$M$109,'TAB-UF'!$C$11:$C$109,B55) -> 0
A56: 46 | B56: =UI!B56 -> U46 | C56: =IF(UI!C56<>"",UI!C56,"") ->  | D56: =IF(UI!D56<>"",UI!D56,"") ->  | E56: =IF(UI!E56<>"",UI!E56,"") ->  | F56: =SUMIFS('TAB-UF'!$D$11:$D$109,'TAB-UF'!$C$11:$C$109,B56) -> 0 | G56: =SUMIFS('TAB-UF'!$E$11:$E$109,'TAB-UF'!$C$11:$C$109,B56) -> 0 | H56: =SUMIFS('TAB-UF'!$F$11:$F$109,'TAB-UF'!$C$11:$C$109,B56) -> 0 | I56: =SUMIFS('TAB-UF'!$G$11:$G$109,'TAB-UF'!$C$11:$C$109,B56) -> 0 | J56: =SUMIFS('TAB-UF'!$H$11:$H$109,'TAB-UF'!$C$11:$C$109,B56) -> 0 | K56: =SUMIFS('TAB-UF'!$I$11:$I$109,'TAB-UF'!$C$11:$C$109,B56) -> 0 | L56: =SUMIFS('TAB-UF'!$J$11:$J$109,'TAB-UF'!$C$11:$C$109,B56) -> 0 | M56: =SUMIFS('TAB-UF'!$K$11:$K$109,'TAB-UF'!$C$11:$C$109,B56) -> 0 | N56: =SUMIFS('TAB-UF'!$L$11:$L$109,'TAB-UF'!$C$11:$C$109,B56) -> 0 | O56: =SUMIFS('TAB-UF'!$M$11:$M$109,'TAB-UF'!$C$11:$C$109,B56) -> 0
A57: 47 | B57: =UI!B57 -> U47 | C57: =IF(UI!C57<>"",UI!C57,"") ->  | D57: =IF(UI!D57<>"",UI!D57,"") ->  | E57: =IF(UI!E57<>"",UI!E57,"") ->  | F57: =SUMIFS('TAB-UF'!$D$11:$D$109,'TAB-UF'!$C$11:$C$109,B57) -> 0 | G57: =SUMIFS('TAB-UF'!$E$11:$E$109,'TAB-UF'!$C$11:$C$109,B57) -> 0 | H57: =SUMIFS('TAB-UF'!$F$11:$F$109,'TAB-UF'!$C$11:$C$109,B57) -> 0 | I57: =SUMIFS('TAB-UF'!$G$11:$G$109,'TAB-UF'!$C$11:$C$109,B57) -> 0 | J57: =SUMIFS('TAB-UF'!$H$11:$H$109,'TAB-UF'!$C$11:$C$109,B57) -> 0 | K57: =SUMIFS('TAB-UF'!$I$11:$I$109,'TAB-UF'!$C$11:$C$109,B57) -> 0 | L57: =SUMIFS('TAB-UF'!$J$11:$J$109,'TAB-UF'!$C$11:$C$109,B57) -> 0 | M57: =SUMIFS('TAB-UF'!$K$11:$K$109,'TAB-UF'!$C$11:$C$109,B57) -> 0 | N57: =SUMIFS('TAB-UF'!$L$11:$L$109,'TAB-UF'!$C$11:$C$109,B57) -> 0 | O57: =SUMIFS('TAB-UF'!$M$11:$M$109,'TAB-UF'!$C$11:$C$109,B57) -> 0
A58: 48 | B58: =UI!B58 -> U48 | C58: =IF(UI!C58<>"",UI!C58,"") ->  | D58: =IF(UI!D58<>"",UI!D58,"") ->  | E58: =IF(UI!E58<>"",UI!E58,"") ->  | F58: =SUMIFS('TAB-UF'!$D$11:$D$109,'TAB-UF'!$C$11:$C$109,B58) -> 0 | G58: =SUMIFS('TAB-UF'!$E$11:$E$109,'TAB-UF'!$C$11:$C$109,B58) -> 0 | H58: =SUMIFS('TAB-UF'!$F$11:$F$109,'TAB-UF'!$C$11:$C$109,B58) -> 0 | I58: =SUMIFS('TAB-UF'!$G$11:$G$109,'TAB-UF'!$C$11:$C$109,B58) -> 0 | J58: =SUMIFS('TAB-UF'!$H$11:$H$109,'TAB-UF'!$C$11:$C$109,B58) -> 0 | K58: =SUMIFS('TAB-UF'!$I$11:$I$109,'TAB-UF'!$C$11:$C$109,B58) -> 0 | L58: =SUMIFS('TAB-UF'!$J$11:$J$109,'TAB-UF'!$C$11:$C$109,B58) -> 0 | M58: =SUMIFS('TAB-UF'!$K$11:$K$109,'TAB-UF'!$C$11:$C$109,B58) -> 0 | N58: =SUMIFS('TAB-UF'!$L$11:$L$109,'TAB-UF'!$C$11:$C$109,B58) -> 0 | O58: =SUMIFS('TAB-UF'!$M$11:$M$109,'TAB-UF'!$C$11:$C$109,B58) -> 0
A59: 49 | B59: =UI!B59 -> U49 | C59: =IF(UI!C59<>"",UI!C59,"") ->  | D59: =IF(UI!D59<>"",UI!D59,"") ->  | E59: =IF(UI!E59<>"",UI!E59,"") ->  | F59: =SUMIFS('TAB-UF'!$D$11:$D$109,'TAB-UF'!$C$11:$C$109,B59) -> 0 | G59: =SUMIFS('TAB-UF'!$E$11:$E$109,'TAB-UF'!$C$11:$C$109,B59) -> 0 | H59: =SUMIFS('TAB-UF'!$F$11:$F$109,'TAB-UF'!$C$11:$C$109,B59) -> 0 | I59: =SUMIFS('TAB-UF'!$G$11:$G$109,'TAB-UF'!$C$11:$C$109,B59) -> 0 | J59: =SUMIFS('TAB-UF'!$H$11:$H$109,'TAB-UF'!$C$11:$C$109,B59) -> 0 | K59: =SUMIFS('TAB-UF'!$I$11:$I$109,'TAB-UF'!$C$11:$C$109,B59) -> 0 | L59: =SUMIFS('TAB-UF'!$J$11:$J$109,'TAB-UF'!$C$11:$C$109,B59) -> 0 | M59: =SUMIFS('TAB-UF'!$K$11:$K$109,'TAB-UF'!$C$11:$C$109,B59) -> 0 | N59: =SUMIFS('TAB-UF'!$L$11:$L$109,'TAB-UF'!$C$11:$C$109,B59) -> 0 | O59: =SUMIFS('TAB-UF'!$M$11:$M$109,'TAB-UF'!$C$11:$C$109,B59) -> 0
A60: 50 | B60: =UI!B60 -> U50 | C60: =IF(UI!C60<>"",UI!C60,"") ->  | D60: =IF(UI!D60<>"",UI!D60,"") ->  | E60: =IF(UI!E60<>"",UI!E60,"") ->  | F60: =SUMIFS('TAB-UF'!$D$11:$D$109,'TAB-UF'!$C$11:$C$109,B60) -> 0 | G60: =SUMIFS('TAB-UF'!$E$11:$E$109,'TAB-UF'!$C$11:$C$109,B60) -> 0 | H60: =SUMIFS('TAB-UF'!$F$11:$F$109,'TAB-UF'!$C$11:$C$109,B60) -> 0 | I60: =SUMIFS('TAB-UF'!$G$11:$G$109,'TAB-UF'!$C$11:$C$109,B60) -> 0 | J60: =SUMIFS('TAB-UF'!$H$11:$H$109,'TAB-UF'!$C$11:$C$109,B60) -> 0 | K60: =SUMIFS('TAB-UF'!$I$11:$I$109,'TAB-UF'!$C$11:$C$109,B60) -> 0 | L60: =SUMIFS('TAB-UF'!$J$11:$J$109,'TAB-UF'!$C$11:$C$109,B60) -> 0 | M60: =SUMIFS('TAB-UF'!$K$11:$K$109,'TAB-UF'!$C$11:$C$109,B60) -> 0 | N60: =SUMIFS('TAB-UF'!$L$11:$L$109,'TAB-UF'!$C$11:$C$109,B60) -> 0 | O60: =SUMIFS('TAB-UF'!$M$11:$M$109,'TAB-UF'!$C$11:$C$109,B60) -> 0
A61: 51 | B61: =UI!B61 -> U51 | C61: =IF(UI!C61<>"",UI!C61,"") ->  | D61: =IF(UI!D61<>"",UI!D61,"") ->  | E61: =IF(UI!E61<>"",UI!E61,"") ->  | F61: =SUMIFS('TAB-UF'!$D$11:$D$109,'TAB-UF'!$C$11:$C$109,B61) -> 0 | G61: =SUMIFS('TAB-UF'!$E$11:$E$109,'TAB-UF'!$C$11:$C$109,B61) -> 0 | H61: =SUMIFS('TAB-UF'!$F$11:$F$109,'TAB-UF'!$C$11:$C$109,B61) -> 0 | I61: =SUMIFS('TAB-UF'!$G$11:$G$109,'TAB-UF'!$C$11:$C$109,B61) -> 0 | J61: =SUMIFS('TAB-UF'!$H$11:$H$109,'TAB-UF'!$C$11:$C$109,B61) -> 0 | K61: =SUMIFS('TAB-UF'!$I$11:$I$109,'TAB-UF'!$C$11:$C$109,B61) -> 0 | L61: =SUMIFS('TAB-UF'!$J$11:$J$109,'TAB-UF'!$C$11:$C$109,B61) -> 0 | M61: =SUMIFS('TAB-UF'!$K$11:$K$109,'TAB-UF'!$C$11:$C$109,B61) -> 0 | N61: =SUMIFS('TAB-UF'!$L$11:$L$109,'TAB-UF'!$C$11:$C$109,B61) -> 0 | O61: =SUMIFS('TAB-UF'!$M$11:$M$109,'TAB-UF'!$C$11:$C$109,B61) -> 0
A62: 52 | B62: =UI!B62 -> U52 | C62: =IF(UI!C62<>"",UI!C62,"") ->  | D62: =IF(UI!D62<>"",UI!D62,"") ->  | E62: =IF(UI!E62<>"",UI!E62,"") ->  | F62: =SUMIFS('TAB-UF'!$D$11:$D$109,'TAB-UF'!$C$11:$C$109,B62) -> 0 | G62: =SUMIFS('TAB-UF'!$E$11:$E$109,'TAB-UF'!$C$11:$C$109,B62) -> 0 | H62: =SUMIFS('TAB-UF'!$F$11:$F$109,'TAB-UF'!$C$11:$C$109,B62) -> 0 | I62: =SUMIFS('TAB-UF'!$G$11:$G$109,'TAB-UF'!$C$11:$C$109,B62) -> 0 | J62: =SUMIFS('TAB-UF'!$H$11:$H$109,'TAB-UF'!$C$11:$C$109,B62) -> 0 | K62: =SUMIFS('TAB-UF'!$I$11:$I$109,'TAB-UF'!$C$11:$C$109,B62) -> 0 | L62: =SUMIFS('TAB-UF'!$J$11:$J$109,'TAB-UF'!$C$11:$C$109,B62) -> 0 | M62: =SUMIFS('TAB-UF'!$K$11:$K$109,'TAB-UF'!$C$11:$C$109,B62) -> 0 | N62: =SUMIFS('TAB-UF'!$L$11:$L$109,'TAB-UF'!$C$11:$C$109,B62) -> 0 | O62: =SUMIFS('TAB-UF'!$M$11:$M$109,'TAB-UF'!$C$11:$C$109,B62) -> 0
A63: 53 | B63: =UI!B63 -> U53 | C63: =IF(UI!C63<>"",UI!C63,"") ->  | D63: =IF(UI!D63<>"",UI!D63,"") ->  | E63: =IF(UI!E63<>"",UI!E63,"") ->  | F63: =SUMIFS('TAB-UF'!$D$11:$D$109,'TAB-UF'!$C$11:$C$109,B63) -> 0 | G63: =SUMIFS('TAB-UF'!$E$11:$E$109,'TAB-UF'!$C$11:$C$109,B63) -> 0 | H63: =SUMIFS('TAB-UF'!$F$11:$F$109,'TAB-UF'!$C$11:$C$109,B63) -> 0 | I63: =SUMIFS('TAB-UF'!$G$11:$G$109,'TAB-UF'!$C$11:$C$109,B63) -> 0 | J63: =SUMIFS('TAB-UF'!$H$11:$H$109,'TAB-UF'!$C$11:$C$109,B63) -> 0 | K63: =SUMIFS('TAB-UF'!$I$11:$I$109,'TAB-UF'!$C$11:$C$109,B63) -> 0 | L63: =SUMIFS('TAB-UF'!$J$11:$J$109,'TAB-UF'!$C$11:$C$109,B63) -> 0 | M63: =SUMIFS('TAB-UF'!$K$11:$K$109,'TAB-UF'!$C$11:$C$109,B63) -> 0 | N63: =SUMIFS('TAB-UF'!$L$11:$L$109,'TAB-UF'!$C$11:$C$109,B63) -> 0 | O63: =SUMIFS('TAB-UF'!$M$11:$M$109,'TAB-UF'!$C$11:$C$109,B63) -> 0
A64: 54 | B64: =UI!B64 -> U54 | C64: =IF(UI!C64<>"",UI!C64,"") ->  | D64: =IF(UI!D64<>"",UI!D64,"") ->  | E64: =IF(UI!E64<>"",UI!E64,"") ->  | F64: =SUMIFS('TAB-UF'!$D$11:$D$109,'TAB-UF'!$C$11:$C$109,B64) -> 0 | G64: =SUMIFS('TAB-UF'!$E$11:$E$109,'TAB-UF'!$C$11:$C$109,B64) -> 0 | H64: =SUMIFS('TAB-UF'!$F$11:$F$109,'TAB-UF'!$C$11:$C$109,B64) -> 0 | I64: =SUMIFS('TAB-UF'!$G$11:$G$109,'TAB-UF'!$C$11:$C$109,B64) -> 0 | J64: =SUMIFS('TAB-UF'!$H$11:$H$109,'TAB-UF'!$C$11:$C$109,B64) -> 0 | K64: =SUMIFS('TAB-UF'!$I$11:$I$109,'TAB-UF'!$C$11:$C$109,B64) -> 0 | L64: =SUMIFS('TAB-UF'!$J$11:$J$109,'TAB-UF'!$C$11:$C$109,B64) -> 0 | M64: =SUMIFS('TAB-UF'!$K$11:$K$109,'TAB-UF'!$C$11:$C$109,B64) -> 0 | N64: =SUMIFS('TAB-UF'!$L$11:$L$109,'TAB-UF'!$C$11:$C$109,B64) -> 0 | O64: =SUMIFS('TAB-UF'!$M$11:$M$109,'TAB-UF'!$C$11:$C$109,B64) -> 0
A65: 55 | B65: =UI!B65 -> U55 | C65: =IF(UI!C65<>"",UI!C65,"") ->  | D65: =IF(UI!D65<>"",UI!D65,"") ->  | E65: =IF(UI!E65<>"",UI!E65,"") ->  | F65: =SUMIFS('TAB-UF'!$D$11:$D$109,'TAB-UF'!$C$11:$C$109,B65) -> 0 | G65: =SUMIFS('TAB-UF'!$E$11:$E$109,'TAB-UF'!$C$11:$C$109,B65) -> 0 | H65: =SUMIFS('TAB-UF'!$F$11:$F$109,'TAB-UF'!$C$11:$C$109,B65) -> 0 | I65: =SUMIFS('TAB-UF'!$G$11:$G$109,'TAB-UF'!$C$11:$C$109,B65) -> 0 | J65: =SUMIFS('TAB-UF'!$H$11:$H$109,'TAB-UF'!$C$11:$C$109,B65) -> 0 | K65: =SUMIFS('TAB-UF'!$I$11:$I$109,'TAB-UF'!$C$11:$C$109,B65) -> 0 | L65: =SUMIFS('TAB-UF'!$J$11:$J$109,'TAB-UF'!$C$11:$C$109,B65) -> 0 | M65: =SUMIFS('TAB-UF'!$K$11:$K$109,'TAB-UF'!$C$11:$C$109,B65) -> 0 | N65: =SUMIFS('TAB-UF'!$L$11:$L$109,'TAB-UF'!$C$11:$C$109,B65) -> 0 | O65: =SUMIFS('TAB-UF'!$M$11:$M$109,'TAB-UF'!$C$11:$C$109,B65) -> 0
A66: 56 | B66: =UI!B66 -> U56 | C66: =IF(UI!C66<>"",UI!C66,"") ->  | D66: =IF(UI!D66<>"",UI!D66,"") ->  | E66: =IF(UI!E66<>"",UI!E66,"") ->  | F66: =SUMIFS('TAB-UF'!$D$11:$D$109,'TAB-UF'!$C$11:$C$109,B66) -> 0 | G66: =SUMIFS('TAB-UF'!$E$11:$E$109,'TAB-UF'!$C$11:$C$109,B66) -> 0 | H66: =SUMIFS('TAB-UF'!$F$11:$F$109,'TAB-UF'!$C$11:$C$109,B66) -> 0 | I66: =SUMIFS('TAB-UF'!$G$11:$G$109,'TAB-UF'!$C$11:$C$109,B66) -> 0 | J66: =SUMIFS('TAB-UF'!$H$11:$H$109,'TAB-UF'!$C$11:$C$109,B66) -> 0 | K66: =SUMIFS('TAB-UF'!$I$11:$I$109,'TAB-UF'!$C$11:$C$109,B66) -> 0 | L66: =SUMIFS('TAB-UF'!$J$11:$J$109,'TAB-UF'!$C$11:$C$109,B66) -> 0 | M66: =SUMIFS('TAB-UF'!$K$11:$K$109,'TAB-UF'!$C$11:$C$109,B66) -> 0 | N66: =SUMIFS('TAB-UF'!$L$11:$L$109,'TAB-UF'!$C$11:$C$109,B66) -> 0 | O66: =SUMIFS('TAB-UF'!$M$11:$M$109,'TAB-UF'!$C$11:$C$109,B66) -> 0
A67: 57 | B67: =UI!B67 -> U57 | C67: =IF(UI!C67<>"",UI!C67,"") ->  | D67: =IF(UI!D67<>"",UI!D67,"") ->  | E67: =IF(UI!E67<>"",UI!E67,"") ->  | F67: =SUMIFS('TAB-UF'!$D$11:$D$109,'TAB-UF'!$C$11:$C$109,B67) -> 0 | G67: =SUMIFS('TAB-UF'!$E$11:$E$109,'TAB-UF'!$C$11:$C$109,B67) -> 0 | H67: =SUMIFS('TAB-UF'!$F$11:$F$109,'TAB-UF'!$C$11:$C$109,B67) -> 0 | I67: =SUMIFS('TAB-UF'!$G$11:$G$109,'TAB-UF'!$C$11:$C$109,B67) -> 0 | J67: =SUMIFS('TAB-UF'!$H$11:$H$109,'TAB-UF'!$C$11:$C$109,B67) -> 0 | K67: =SUMIFS('TAB-UF'!$I$11:$I$109,'TAB-UF'!$C$11:$C$109,B67) -> 0 | L67: =SUMIFS('TAB-UF'!$J$11:$J$109,'TAB-UF'!$C$11:$C$109,B67) -> 0 | M67: =SUMIFS('TAB-UF'!$K$11:$K$109,'TAB-UF'!$C$11:$C$109,B67) -> 0 | N67: =SUMIFS('TAB-UF'!$L$11:$L$109,'TAB-UF'!$C$11:$C$109,B67) -> 0 | O67: =SUMIFS('TAB-UF'!$M$11:$M$109,'TAB-UF'!$C$11:$C$109,B67) -> 0
A68: 58 | B68: =UI!B68 -> U58 | C68: =IF(UI!C68<>"",UI!C68,"") ->  | D68: =IF(UI!D68<>"",UI!D68,"") ->  | E68: =IF(UI!E68<>"",UI!E68,"") ->  | F68: =SUMIFS('TAB-UF'!$D$11:$D$109,'TAB-UF'!$C$11:$C$109,B68) -> 0 | G68: =SUMIFS('TAB-UF'!$E$11:$E$109,'TAB-UF'!$C$11:$C$109,B68) -> 0 | H68: =SUMIFS('TAB-UF'!$F$11:$F$109,'TAB-UF'!$C$11:$C$109,B68) -> 0 | I68: =SUMIFS('TAB-UF'!$G$11:$G$109,'TAB-UF'!$C$11:$C$109,B68) -> 0 | J68: =SUMIFS('TAB-UF'!$H$11:$H$109,'TAB-UF'!$C$11:$C$109,B68) -> 0 | K68: =SUMIFS('TAB-UF'!$I$11:$I$109,'TAB-UF'!$C$11:$C$109,B68) -> 0 | L68: =SUMIFS('TAB-UF'!$J$11:$J$109,'TAB-UF'!$C$11:$C$109,B68) -> 0 | M68: =SUMIFS('TAB-UF'!$K$11:$K$109,'TAB-UF'!$C$11:$C$109,B68) -> 0 | N68: =SUMIFS('TAB-UF'!$L$11:$L$109,'TAB-UF'!$C$11:$C$109,B68) -> 0 | O68: =SUMIFS('TAB-UF'!$M$11:$M$109,'TAB-UF'!$C$11:$C$109,B68) -> 0
A69: 59 | B69: =UI!B69 -> U59 | C69: =IF(UI!C69<>"",UI!C69,"") ->  | D69: =IF(UI!D69<>"",UI!D69,"") ->  | E69: =IF(UI!E69<>"",UI!E69,"") ->  | F69: =SUMIFS('TAB-UF'!$D$11:$D$109,'TAB-UF'!$C$11:$C$109,B69) -> 0 | G69: =SUMIFS('TAB-UF'!$E$11:$E$109,'TAB-UF'!$C$11:$C$109,B69) -> 0 | H69: =SUMIFS('TAB-UF'!$F$11:$F$109,'TAB-UF'!$C$11:$C$109,B69) -> 0 | I69: =SUMIFS('TAB-UF'!$G$11:$G$109,'TAB-UF'!$C$11:$C$109,B69) -> 0 | J69: =SUMIFS('TAB-UF'!$H$11:$H$109,'TAB-UF'!$C$11:$C$109,B69) -> 0 | K69: =SUMIFS('TAB-UF'!$I$11:$I$109,'TAB-UF'!$C$11:$C$109,B69) -> 0 | L69: =SUMIFS('TAB-UF'!$J$11:$J$109,'TAB-UF'!$C$11:$C$109,B69) -> 0 | M69: =SUMIFS('TAB-UF'!$K$11:$K$109,'TAB-UF'!$C$11:$C$109,B69) -> 0 | N69: =SUMIFS('TAB-UF'!$L$11:$L$109,'TAB-UF'!$C$11:$C$109,B69) -> 0 | O69: =SUMIFS('TAB-UF'!$M$11:$M$109,'TAB-UF'!$C$11:$C$109,B69) -> 0
A70: 60 | B70: =UI!B70 -> U60 | C70: =IF(UI!C70<>"",UI!C70,"") ->  | D70: =IF(UI!D70<>"",UI!D70,"") ->  | E70: =IF(UI!E70<>"",UI!E70,"") ->  | F70: =SUMIFS('TAB-UF'!$D$11:$D$109,'TAB-UF'!$C$11:$C$109,B70) -> 0 | G70: =SUMIFS('TAB-UF'!$E$11:$E$109,'TAB-UF'!$C$11:$C$109,B70) -> 0 | H70: =SUMIFS('TAB-UF'!$F$11:$F$109,'TAB-UF'!$C$11:$C$109,B70) -> 0 | I70: =SUMIFS('TAB-UF'!$G$11:$G$109,'TAB-UF'!$C$11:$C$109,B70) -> 0 | J70: =SUMIFS('TAB-UF'!$H$11:$H$109,'TAB-UF'!$C$11:$C$109,B70) -> 0 | K70: =SUMIFS('TAB-UF'!$I$11:$I$109,'TAB-UF'!$C$11:$C$109,B70) -> 0 | L70: =SUMIFS('TAB-UF'!$J$11:$J$109,'TAB-UF'!$C$11:$C$109,B70) -> 0 | M70: =SUMIFS('TAB-UF'!$K$11:$K$109,'TAB-UF'!$C$11:$C$109,B70) -> 0 | N70: =SUMIFS('TAB-UF'!$L$11:$L$109,'TAB-UF'!$C$11:$C$109,B70) -> 0 | O70: =SUMIFS('TAB-UF'!$M$11:$M$109,'TAB-UF'!$C$11:$C$109,B70) -> 0
A71: 61 | B71: =UI!B71 -> U61 | C71: =IF(UI!C71<>"",UI!C71,"") ->  | D71: =IF(UI!D71<>"",UI!D71,"") ->  | E71: =IF(UI!E71<>"",UI!E71,"") ->  | F71: =SUMIFS('TAB-UF'!$D$11:$D$109,'TAB-UF'!$C$11:$C$109,B71) -> 0 | G71: =SUMIFS('TAB-UF'!$E$11:$E$109,'TAB-UF'!$C$11:$C$109,B71) -> 0 | H71: =SUMIFS('TAB-UF'!$F$11:$F$109,'TAB-UF'!$C$11:$C$109,B71) -> 0 | I71: =SUMIFS('TAB-UF'!$G$11:$G$109,'TAB-UF'!$C$11:$C$109,B71) -> 0 | J71: =SUMIFS('TAB-UF'!$H$11:$H$109,'TAB-UF'!$C$11:$C$109,B71) -> 0 | K71: =SUMIFS('TAB-UF'!$I$11:$I$109,'TAB-UF'!$C$11:$C$109,B71) -> 0 | L71: =SUMIFS('TAB-UF'!$J$11:$J$109,'TAB-UF'!$C$11:$C$109,B71) -> 0 | M71: =SUMIFS('TAB-UF'!$K$11:$K$109,'TAB-UF'!$C$11:$C$109,B71) -> 0 | N71: =SUMIFS('TAB-UF'!$L$11:$L$109,'TAB-UF'!$C$11:$C$109,B71) -> 0 | O71: =SUMIFS('TAB-UF'!$M$11:$M$109,'TAB-UF'!$C$11:$C$109,B71) -> 0
A72: 62 | B72: =UI!B72 -> U62 | C72: =IF(UI!C72<>"",UI!C72,"") ->  | D72: =IF(UI!D72<>"",UI!D72,"") ->  | E72: =IF(UI!E72<>"",UI!E72,"") ->  | F72: =SUMIFS('TAB-UF'!$D$11:$D$109,'TAB-UF'!$C$11:$C$109,B72) -> 0 | G72: =SUMIFS('TAB-UF'!$E$11:$E$109,'TAB-UF'!$C$11:$C$109,B72) -> 0 | H72: =SUMIFS('TAB-UF'!$F$11:$F$109,'TAB-UF'!$C$11:$C$109,B72) -> 0 | I72: =SUMIFS('TAB-UF'!$G$11:$G$109,'TAB-UF'!$C$11:$C$109,B72) -> 0 | J72: =SUMIFS('TAB-UF'!$H$11:$H$109,'TAB-UF'!$C$11:$C$109,B72) -> 0 | K72: =SUMIFS('TAB-UF'!$I$11:$I$109,'TAB-UF'!$C$11:$C$109,B72) -> 0 | L72: =SUMIFS('TAB-UF'!$J$11:$J$109,'TAB-UF'!$C$11:$C$109,B72) -> 0 | M72: =SUMIFS('TAB-UF'!$K$11:$K$109,'TAB-UF'!$C$11:$C$109,B72) -> 0 | N72: =SUMIFS('TAB-UF'!$L$11:$L$109,'TAB-UF'!$C$11:$C$109,B72) -> 0 | O72: =SUMIFS('TAB-UF'!$M$11:$M$109,'TAB-UF'!$C$11:$C$109,B72) -> 0
A73: 63 | B73: =UI!B73 -> U63 | C73: =IF(UI!C73<>"",UI!C73,"") ->  | D73: =IF(UI!D73<>"",UI!D73,"") ->  | E73: =IF(UI!E73<>"",UI!E73,"") ->  | F73: =SUMIFS('TAB-UF'!$D$11:$D$109,'TAB-UF'!$C$11:$C$109,B73) -> 0 | G73: =SUMIFS('TAB-UF'!$E$11:$E$109,'TAB-UF'!$C$11:$C$109,B73) -> 0 | H73: =SUMIFS('TAB-UF'!$F$11:$F$109,'TAB-UF'!$C$11:$C$109,B73) -> 0 | I73: =SUMIFS('TAB-UF'!$G$11:$G$109,'TAB-UF'!$C$11:$C$109,B73) -> 0 | J73: =SUMIFS('TAB-UF'!$H$11:$H$109,'TAB-UF'!$C$11:$C$109,B73) -> 0 | K73: =SUMIFS('TAB-UF'!$I$11:$I$109,'TAB-UF'!$C$11:$C$109,B73) -> 0 | L73: =SUMIFS('TAB-UF'!$J$11:$J$109,'TAB-UF'!$C$11:$C$109,B73) -> 0 | M73: =SUMIFS('TAB-UF'!$K$11:$K$109,'TAB-UF'!$C$11:$C$109,B73) -> 0 | N73: =SUMIFS('TAB-UF'!$L$11:$L$109,'TAB-UF'!$C$11:$C$109,B73) -> 0 | O73: =SUMIFS('TAB-UF'!$M$11:$M$109,'TAB-UF'!$C$11:$C$109,B73) -> 0
A74: 64 | B74: =UI!B74 -> U64 | C74: =IF(UI!C74<>"",UI!C74,"") ->  | D74: =IF(UI!D74<>"",UI!D74,"") ->  | E74: =IF(UI!E74<>"",UI!E74,"") ->  | F74: =SUMIFS('TAB-UF'!$D$11:$D$109,'TAB-UF'!$C$11:$C$109,B74) -> 0 | G74: =SUMIFS('TAB-UF'!$E$11:$E$109,'TAB-UF'!$C$11:$C$109,B74) -> 0 | H74: =SUMIFS('TAB-UF'!$F$11:$F$109,'TAB-UF'!$C$11:$C$109,B74) -> 0 | I74: =SUMIFS('TAB-UF'!$G$11:$G$109,'TAB-UF'!$C$11:$C$109,B74) -> 0 | J74: =SUMIFS('TAB-UF'!$H$11:$H$109,'TAB-UF'!$C$11:$C$109,B74) -> 0 | K74: =SUMIFS('TAB-UF'!$I$11:$I$109,'TAB-UF'!$C$11:$C$109,B74) -> 0 | L74: =SUMIFS('TAB-UF'!$J$11:$J$109,'TAB-UF'!$C$11:$C$109,B74) -> 0 | M74: =SUMIFS('TAB-UF'!$K$11:$K$109,'TAB-UF'!$C$11:$C$109,B74) -> 0 | N74: =SUMIFS('TAB-UF'!$L$11:$L$109,'TAB-UF'!$C$11:$C$109,B74) -> 0 | O74: =SUMIFS('TAB-UF'!$M$11:$M$109,'TAB-UF'!$C$11:$C$109,B74) -> 0
A75: 65 | B75: =UI!B75 -> U65 | C75: =IF(UI!C75<>"",UI!C75,"") ->  | D75: =IF(UI!D75<>"",UI!D75,"") ->  | E75: =IF(UI!E75<>"",UI!E75,"") ->  | F75: =SUMIFS('TAB-UF'!$D$11:$D$109,'TAB-UF'!$C$11:$C$109,B75) -> 0 | G75: =SUMIFS('TAB-UF'!$E$11:$E$109,'TAB-UF'!$C$11:$C$109,B75) -> 0 | H75: =SUMIFS('TAB-UF'!$F$11:$F$109,'TAB-UF'!$C$11:$C$109,B75) -> 0 | I75: =SUMIFS('TAB-UF'!$G$11:$G$109,'TAB-UF'!$C$11:$C$109,B75) -> 0 | J75: =SUMIFS('TAB-UF'!$H$11:$H$109,'TAB-UF'!$C$11:$C$109,B75) -> 0 | K75: =SUMIFS('TAB-UF'!$I$11:$I$109,'TAB-UF'!$C$11:$C$109,B75) -> 0 | L75: =SUMIFS('TAB-UF'!$J$11:$J$109,'TAB-UF'!$C$11:$C$109,B75) -> 0 | M75: =SUMIFS('TAB-UF'!$K$11:$K$109,'TAB-UF'!$C$11:$C$109,B75) -> 0 | N75: =SUMIFS('TAB-UF'!$L$11:$L$109,'TAB-UF'!$C$11:$C$109,B75) -> 0 | O75: =SUMIFS('TAB-UF'!$M$11:$M$109,'TAB-UF'!$C$11:$C$109,B75) -> 0
A76: 66 | B76: =UI!B76 -> U66 | C76: =IF(UI!C76<>"",UI!C76,"") ->  | D76: =IF(UI!D76<>"",UI!D76,"") ->  | E76: =IF(UI!E76<>"",UI!E76,"") ->  | F76: =SUMIFS('TAB-UF'!$D$11:$D$109,'TAB-UF'!$C$11:$C$109,B76) -> 0 | G76: =SUMIFS('TAB-UF'!$E$11:$E$109,'TAB-UF'!$C$11:$C$109,B76) -> 0 | H76: =SUMIFS('TAB-UF'!$F$11:$F$109,'TAB-UF'!$C$11:$C$109,B76) -> 0 | I76: =SUMIFS('TAB-UF'!$G$11:$G$109,'TAB-UF'!$C$11:$C$109,B76) -> 0 | J76: =SUMIFS('TAB-UF'!$H$11:$H$109,'TAB-UF'!$C$11:$C$109,B76) -> 0 | K76: =SUMIFS('TAB-UF'!$I$11:$I$109,'TAB-UF'!$C$11:$C$109,B76) -> 0 | L76: =SUMIFS('TAB-UF'!$J$11:$J$109,'TAB-UF'!$C$11:$C$109,B76) -> 0 | M76: =SUMIFS('TAB-UF'!$K$11:$K$109,'TAB-UF'!$C$11:$C$109,B76) -> 0 | N76: =SUMIFS('TAB-UF'!$L$11:$L$109,'TAB-UF'!$C$11:$C$109,B76) -> 0 | O76: =SUMIFS('TAB-UF'!$M$11:$M$109,'TAB-UF'!$C$11:$C$109,B76) -> 0
A77: 67 | B77: =UI!B77 -> U67 | C77: =IF(UI!C77<>"",UI!C77,"") ->  | D77: =IF(UI!D77<>"",UI!D77,"") ->  | E77: =IF(UI!E77<>"",UI!E77,"") ->  | F77: =SUMIFS('TAB-UF'!$D$11:$D$109,'TAB-UF'!$C$11:$C$109,B77) -> 0 | G77: =SUMIFS('TAB-UF'!$E$11:$E$109,'TAB-UF'!$C$11:$C$109,B77) -> 0 | H77: =SUMIFS('TAB-UF'!$F$11:$F$109,'TAB-UF'!$C$11:$C$109,B77) -> 0 | I77: =SUMIFS('TAB-UF'!$G$11:$G$109,'TAB-UF'!$C$11:$C$109,B77) -> 0 | J77: =SUMIFS('TAB-UF'!$H$11:$H$109,'TAB-UF'!$C$11:$C$109,B77) -> 0 | K77: =SUMIFS('TAB-UF'!$I$11:$I$109,'TAB-UF'!$C$11:$C$109,B77) -> 0 | L77: =SUMIFS('TAB-UF'!$J$11:$J$109,'TAB-UF'!$C$11:$C$109,B77) -> 0 | M77: =SUMIFS('TAB-UF'!$K$11:$K$109,'TAB-UF'!$C$11:$C$109,B77) -> 0 | N77: =SUMIFS('TAB-UF'!$L$11:$L$109,'TAB-UF'!$C$11:$C$109,B77) -> 0 | O77: =SUMIFS('TAB-UF'!$M$11:$M$109,'TAB-UF'!$C$11:$C$109,B77) -> 0
A78: 68 | B78: =UI!B78 -> U68 | C78: =IF(UI!C78<>"",UI!C78,"") ->  | D78: =IF(UI!D78<>"",UI!D78,"") ->  | E78: =IF(UI!E78<>"",UI!E78,"") ->  | F78: =SUMIFS('TAB-UF'!$D$11:$D$109,'TAB-UF'!$C$11:$C$109,B78) -> 0 | G78: =SUMIFS('TAB-UF'!$E$11:$E$109,'TAB-UF'!$C$11:$C$109,B78) -> 0 | H78: =SUMIFS('TAB-UF'!$F$11:$F$109,'TAB-UF'!$C$11:$C$109,B78) -> 0 | I78: =SUMIFS('TAB-UF'!$G$11:$G$109,'TAB-UF'!$C$11:$C$109,B78) -> 0 | J78: =SUMIFS('TAB-UF'!$H$11:$H$109,'TAB-UF'!$C$11:$C$109,B78) -> 0 | K78: =SUMIFS('TAB-UF'!$I$11:$I$109,'TAB-UF'!$C$11:$C$109,B78) -> 0 | L78: =SUMIFS('TAB-UF'!$J$11:$J$109,'TAB-UF'!$C$11:$C$109,B78) -> 0 | M78: =SUMIFS('TAB-UF'!$K$11:$K$109,'TAB-UF'!$C$11:$C$109,B78) -> 0 | N78: =SUMIFS('TAB-UF'!$L$11:$L$109,'TAB-UF'!$C$11:$C$109,B78) -> 0 | O78: =SUMIFS('TAB-UF'!$M$11:$M$109,'TAB-UF'!$C$11:$C$109,B78) -> 0
A79: 69 | B79: =UI!B79 -> U69 | C79: =IF(UI!C79<>"",UI!C79,"") ->  | D79: =IF(UI!D79<>"",UI!D79,"") ->  | E79: =IF(UI!E79<>"",UI!E79,"") ->  | F79: =SUMIFS('TAB-UF'!$D$11:$D$109,'TAB-UF'!$C$11:$C$109,B79) -> 0 | G79: =SUMIFS('TAB-UF'!$E$11:$E$109,'TAB-UF'!$C$11:$C$109,B79) -> 0 | H79: =SUMIFS('TAB-UF'!$F$11:$F$109,'TAB-UF'!$C$11:$C$109,B79) -> 0 | I79: =SUMIFS('TAB-UF'!$G$11:$G$109,'TAB-UF'!$C$11:$C$109,B79) -> 0 | J79: =SUMIFS('TAB-UF'!$H$11:$H$109,'TAB-UF'!$C$11:$C$109,B79) -> 0 | K79: =SUMIFS('TAB-UF'!$I$11:$I$109,'TAB-UF'!$C$11:$C$109,B79) -> 0 | L79: =SUMIFS('TAB-UF'!$J$11:$J$109,'TAB-UF'!$C$11:$C$109,B79) -> 0 | M79: =SUMIFS('TAB-UF'!$K$11:$K$109,'TAB-UF'!$C$11:$C$109,B79) -> 0 | N79: =SUMIFS('TAB-UF'!$L$11:$L$109,'TAB-UF'!$C$11:$C$109,B79) -> 0 | O79: =SUMIFS('TAB-UF'!$M$11:$M$109,'TAB-UF'!$C$11:$C$109,B79) -> 0
A80: 70 | B80: =UI!B80 -> U70 | C80: =IF(UI!C80<>"",UI!C80,"") ->  | D80: =IF(UI!D80<>"",UI!D80,"") ->  | E80: =IF(UI!E80<>"",UI!E80,"") ->  | F80: =SUMIFS('TAB-UF'!$D$11:$D$109,'TAB-UF'!$C$11:$C$109,B80) -> 0 | G80: =SUMIFS('TAB-UF'!$E$11:$E$109,'TAB-UF'!$C$11:$C$109,B80) -> 0 | H80: =SUMIFS('TAB-UF'!$F$11:$F$109,'TAB-UF'!$C$11:$C$109,B80) -> 0 | I80: =SUMIFS('TAB-UF'!$G$11:$G$109,'TAB-UF'!$C$11:$C$109,B80) -> 0 | J80: =SUMIFS('TAB-UF'!$H$11:$H$109,'TAB-UF'!$C$11:$C$109,B80) -> 0 | K80: =SUMIFS('TAB-UF'!$I$11:$I$109,'TAB-UF'!$C$11:$C$109,B80) -> 0 | L80: =SUMIFS('TAB-UF'!$J$11:$J$109,'TAB-UF'!$C$11:$C$109,B80) -> 0 | M80: =SUMIFS('TAB-UF'!$K$11:$K$109,'TAB-UF'!$C$11:$C$109,B80) -> 0 | N80: =SUMIFS('TAB-UF'!$L$11:$L$109,'TAB-UF'!$C$11:$C$109,B80) -> 0 | O80: =SUMIFS('TAB-UF'!$M$11:$M$109,'TAB-UF'!$C$11:$C$109,B80) -> 0
A81: 71 | B81: =UI!B81 -> U71 | C81: =IF(UI!C81<>"",UI!C81,"") ->  | D81: =IF(UI!D81<>"",UI!D81,"") ->  | E81: =IF(UI!E81<>"",UI!E81,"") ->  | F81: =SUMIFS('TAB-UF'!$D$11:$D$109,'TAB-UF'!$C$11:$C$109,B81) -> 0 | G81: =SUMIFS('TAB-UF'!$E$11:$E$109,'TAB-UF'!$C$11:$C$109,B81) -> 0 | H81: =SUMIFS('TAB-UF'!$F$11:$F$109,'TAB-UF'!$C$11:$C$109,B81) -> 0 | I81: =SUMIFS('TAB-UF'!$G$11:$G$109,'TAB-UF'!$C$11:$C$109,B81) -> 0 | J81: =SUMIFS('TAB-UF'!$H$11:$H$109,'TAB-UF'!$C$11:$C$109,B81) -> 0 | K81: =SUMIFS('TAB-UF'!$I$11:$I$109,'TAB-UF'!$C$11:$C$109,B81) -> 0 | L81: =SUMIFS('TAB-UF'!$J$11:$J$109,'TAB-UF'!$C$11:$C$109,B81) -> 0 | M81: =SUMIFS('TAB-UF'!$K$11:$K$109,'TAB-UF'!$C$11:$C$109,B81) -> 0 | N81: =SUMIFS('TAB-UF'!$L$11:$L$109,'TAB-UF'!$C$11:$C$109,B81) -> 0 | O81: =SUMIFS('TAB-UF'!$M$11:$M$109,'TAB-UF'!$C$11:$C$109,B81) -> 0
A82: 72 | B82: =UI!B82 -> U72 | C82: =IF(UI!C82<>"",UI!C82,"") ->  | D82: =IF(UI!D82<>"",UI!D82,"") ->  | E82: =IF(UI!E82<>"",UI!E82,"") ->  | F82: =SUMIFS('TAB-UF'!$D$11:$D$109,'TAB-UF'!$C$11:$C$109,B82) -> 0 | G82: =SUMIFS('TAB-UF'!$E$11:$E$109,'TAB-UF'!$C$11:$C$109,B82) -> 0 | H82: =SUMIFS('TAB-UF'!$F$11:$F$109,'TAB-UF'!$C$11:$C$109,B82) -> 0 | I82: =SUMIFS('TAB-UF'!$G$11:$G$109,'TAB-UF'!$C$11:$C$109,B82) -> 0 | J82: =SUMIFS('TAB-UF'!$H$11:$H$109,'TAB-UF'!$C$11:$C$109,B82) -> 0 | K82: =SUMIFS('TAB-UF'!$I$11:$I$109,'TAB-UF'!$C$11:$C$109,B82) -> 0 | L82: =SUMIFS('TAB-UF'!$J$11:$J$109,'TAB-UF'!$C$11:$C$109,B82) -> 0 | M82: =SUMIFS('TAB-UF'!$K$11:$K$109,'TAB-UF'!$C$11:$C$109,B82) -> 0 | N82: =SUMIFS('TAB-UF'!$L$11:$L$109,'TAB-UF'!$C$11:$C$109,B82) -> 0 | O82: =SUMIFS('TAB-UF'!$M$11:$M$109,'TAB-UF'!$C$11:$C$109,B82) -> 0
A83: 73 | B83: =UI!B83 -> U73 | C83: =IF(UI!C83<>"",UI!C83,"") ->  | D83: =IF(UI!D83<>"",UI!D83,"") ->  | E83: =IF(UI!E83<>"",UI!E83,"") ->  | F83: =SUMIFS('TAB-UF'!$D$11:$D$109,'TAB-UF'!$C$11:$C$109,B83) -> 0 | G83: =SUMIFS('TAB-UF'!$E$11:$E$109,'TAB-UF'!$C$11:$C$109,B83) -> 0 | H83: =SUMIFS('TAB-UF'!$F$11:$F$109,'TAB-UF'!$C$11:$C$109,B83) -> 0 | I83: =SUMIFS('TAB-UF'!$G$11:$G$109,'TAB-UF'!$C$11:$C$109,B83) -> 0 | J83: =SUMIFS('TAB-UF'!$H$11:$H$109,'TAB-UF'!$C$11:$C$109,B83) -> 0 | K83: =SUMIFS('TAB-UF'!$I$11:$I$109,'TAB-UF'!$C$11:$C$109,B83) -> 0 | L83: =SUMIFS('TAB-UF'!$J$11:$J$109,'TAB-UF'!$C$11:$C$109,B83) -> 0 | M83: =SUMIFS('TAB-UF'!$K$11:$K$109,'TAB-UF'!$C$11:$C$109,B83) -> 0 | N83: =SUMIFS('TAB-UF'!$L$11:$L$109,'TAB-UF'!$C$11:$C$109,B83) -> 0 | O83: =SUMIFS('TAB-UF'!$M$11:$M$109,'TAB-UF'!$C$11:$C$109,B83) -> 0
A84: 74 | B84: =UI!B84 -> U74 | C84: =IF(UI!C84<>"",UI!C84,"") ->  | D84: =IF(UI!D84<>"",UI!D84,"") ->  | E84: =IF(UI!E84<>"",UI!E84,"") ->  | F84: =SUMIFS('TAB-UF'!$D$11:$D$109,'TAB-UF'!$C$11:$C$109,B84) -> 0 | G84: =SUMIFS('TAB-UF'!$E$11:$E$109,'TAB-UF'!$C$11:$C$109,B84) -> 0 | H84: =SUMIFS('TAB-UF'!$F$11:$F$109,'TAB-UF'!$C$11:$C$109,B84) -> 0 | I84: =SUMIFS('TAB-UF'!$G$11:$G$109,'TAB-UF'!$C$11:$C$109,B84) -> 0 | J84: =SUMIFS('TAB-UF'!$H$11:$H$109,'TAB-UF'!$C$11:$C$109,B84) -> 0 | K84: =SUMIFS('TAB-UF'!$I$11:$I$109,'TAB-UF'!$C$11:$C$109,B84) -> 0 | L84: =SUMIFS('TAB-UF'!$J$11:$J$109,'TAB-UF'!$C$11:$C$109,B84) -> 0 | M84: =SUMIFS('TAB-UF'!$K$11:$K$109,'TAB-UF'!$C$11:$C$109,B84) -> 0 | N84: =SUMIFS('TAB-UF'!$L$11:$L$109,'TAB-UF'!$C$11:$C$109,B84) -> 0 | O84: =SUMIFS('TAB-UF'!$M$11:$M$109,'TAB-UF'!$C$11:$C$109,B84) -> 0
A85: 75 | B85: =UI!B85 -> U75 | C85: =IF(UI!C85<>"",UI!C85,"") ->  | D85: =IF(UI!D85<>"",UI!D85,"") ->  | E85: =IF(UI!E85<>"",UI!E85,"") ->  | F85: =SUMIFS('TAB-UF'!$D$11:$D$109,'TAB-UF'!$C$11:$C$109,B85) -> 0 | G85: =SUMIFS('TAB-UF'!$E$11:$E$109,'TAB-UF'!$C$11:$C$109,B85) -> 0 | H85: =SUMIFS('TAB-UF'!$F$11:$F$109,'TAB-UF'!$C$11:$C$109,B85) -> 0 | I85: =SUMIFS('TAB-UF'!$G$11:$G$109,'TAB-UF'!$C$11:$C$109,B85) -> 0 | J85: =SUMIFS('TAB-UF'!$H$11:$H$109,'TAB-UF'!$C$11:$C$109,B85) -> 0 | K85: =SUMIFS('TAB-UF'!$I$11:$I$109,'TAB-UF'!$C$11:$C$109,B85) -> 0 | L85: =SUMIFS('TAB-UF'!$J$11:$J$109,'TAB-UF'!$C$11:$C$109,B85) -> 0 | M85: =SUMIFS('TAB-UF'!$K$11:$K$109,'TAB-UF'!$C$11:$C$109,B85) -> 0 | N85: =SUMIFS('TAB-UF'!$L$11:$L$109,'TAB-UF'!$C$11:$C$109,B85) -> 0 | O85: =SUMIFS('TAB-UF'!$M$11:$M$109,'TAB-UF'!$C$11:$C$109,B85) -> 0
A86: 76 | B86: =UI!B86 -> U76 | C86: =IF(UI!C86<>"",UI!C86,"") ->  | D86: =IF(UI!D86<>"",UI!D86,"") ->  | E86: =IF(UI!E86<>"",UI!E86,"") ->  | F86: =SUMIFS('TAB-UF'!$D$11:$D$109,'TAB-UF'!$C$11:$C$109,B86) -> 0 | G86: =SUMIFS('TAB-UF'!$E$11:$E$109,'TAB-UF'!$C$11:$C$109,B86) -> 0 | H86: =SUMIFS('TAB-UF'!$F$11:$F$109,'TAB-UF'!$C$11:$C$109,B86) -> 0 | I86: =SUMIFS('TAB-UF'!$G$11:$G$109,'TAB-UF'!$C$11:$C$109,B86) -> 0 | J86: =SUMIFS('TAB-UF'!$H$11:$H$109,'TAB-UF'!$C$11:$C$109,B86) -> 0 | K86: =SUMIFS('TAB-UF'!$I$11:$I$109,'TAB-UF'!$C$11:$C$109,B86) -> 0 | L86: =SUMIFS('TAB-UF'!$J$11:$J$109,'TAB-UF'!$C$11:$C$109,B86) -> 0 | M86: =SUMIFS('TAB-UF'!$K$11:$K$109,'TAB-UF'!$C$11:$C$109,B86) -> 0 | N86: =SUMIFS('TAB-UF'!$L$11:$L$109,'TAB-UF'!$C$11:$C$109,B86) -> 0 | O86: =SUMIFS('TAB-UF'!$M$11:$M$109,'TAB-UF'!$C$11:$C$109,B86) -> 0
A87: 77 | B87: =UI!B87 -> U77 | C87: =IF(UI!C87<>"",UI!C87,"") ->  | D87: =IF(UI!D87<>"",UI!D87,"") ->  | E87: =IF(UI!E87<>"",UI!E87,"") ->  | F87: =SUMIFS('TAB-UF'!$D$11:$D$109,'TAB-UF'!$C$11:$C$109,B87) -> 0 | G87: =SUMIFS('TAB-UF'!$E$11:$E$109,'TAB-UF'!$C$11:$C$109,B87) -> 0 | H87: =SUMIFS('TAB-UF'!$F$11:$F$109,'TAB-UF'!$C$11:$C$109,B87) -> 0 | I87: =SUMIFS('TAB-UF'!$G$11:$G$109,'TAB-UF'!$C$11:$C$109,B87) -> 0 | J87: =SUMIFS('TAB-UF'!$H$11:$H$109,'TAB-UF'!$C$11:$C$109,B87) -> 0 | K87: =SUMIFS('TAB-UF'!$I$11:$I$109,'TAB-UF'!$C$11:$C$109,B87) -> 0 | L87: =SUMIFS('TAB-UF'!$J$11:$J$109,'TAB-UF'!$C$11:$C$109,B87) -> 0 | M87: =SUMIFS('TAB-UF'!$K$11:$K$109,'TAB-UF'!$C$11:$C$109,B87) -> 0 | N87: =SUMIFS('TAB-UF'!$L$11:$L$109,'TAB-UF'!$C$11:$C$109,B87) -> 0 | O87: =SUMIFS('TAB-UF'!$M$11:$M$109,'TAB-UF'!$C$11:$C$109,B87) -> 0
A88: 78 | B88: =UI!B88 -> U78 | C88: =IF(UI!C88<>"",UI!C88,"") ->  | D88: =IF(UI!D88<>"",UI!D88,"") ->  | E88: =IF(UI!E88<>"",UI!E88,"") ->  | F88: =SUMIFS('TAB-UF'!$D$11:$D$109,'TAB-UF'!$C$11:$C$109,B88) -> 0 | G88: =SUMIFS('TAB-UF'!$E$11:$E$109,'TAB-UF'!$C$11:$C$109,B88) -> 0 | H88: =SUMIFS('TAB-UF'!$F$11:$F$109,'TAB-UF'!$C$11:$C$109,B88) -> 0 | I88: =SUMIFS('TAB-UF'!$G$11:$G$109,'TAB-UF'!$C$11:$C$109,B88) -> 0 | J88: =SUMIFS('TAB-UF'!$H$11:$H$109,'TAB-UF'!$C$11:$C$109,B88) -> 0 | K88: =SUMIFS('TAB-UF'!$I$11:$I$109,'TAB-UF'!$C$11:$C$109,B88) -> 0 | L88: =SUMIFS('TAB-UF'!$J$11:$J$109,'TAB-UF'!$C$11:$C$109,B88) -> 0 | M88: =SUMIFS('TAB-UF'!$K$11:$K$109,'TAB-UF'!$C$11:$C$109,B88) -> 0 | N88: =SUMIFS('TAB-UF'!$L$11:$L$109,'TAB-UF'!$C$11:$C$109,B88) -> 0 | O88: =SUMIFS('TAB-UF'!$M$11:$M$109,'TAB-UF'!$C$11:$C$109,B88) -> 0
A89: 79 | B89: =UI!B89 -> U79 | C89: =IF(UI!C89<>"",UI!C89,"") ->  | D89: =IF(UI!D89<>"",UI!D89,"") ->  | E89: =IF(UI!E89<>"",UI!E89,"") ->  | F89: =SUMIFS('TAB-UF'!$D$11:$D$109,'TAB-UF'!$C$11:$C$109,B89) -> 0 | G89: =SUMIFS('TAB-UF'!$E$11:$E$109,'TAB-UF'!$C$11:$C$109,B89) -> 0 | H89: =SUMIFS('TAB-UF'!$F$11:$F$109,'TAB-UF'!$C$11:$C$109,B89) -> 0 | I89: =SUMIFS('TAB-UF'!$G$11:$G$109,'TAB-UF'!$C$11:$C$109,B89) -> 0 | J89: =SUMIFS('TAB-UF'!$H$11:$H$109,'TAB-UF'!$C$11:$C$109,B89) -> 0 | K89: =SUMIFS('TAB-UF'!$I$11:$I$109,'TAB-UF'!$C$11:$C$109,B89) -> 0 | L89: =SUMIFS('TAB-UF'!$J$11:$J$109,'TAB-UF'!$C$11:$C$109,B89) -> 0 | M89: =SUMIFS('TAB-UF'!$K$11:$K$109,'TAB-UF'!$C$11:$C$109,B89) -> 0 | N89: =SUMIFS('TAB-UF'!$L$11:$L$109,'TAB-UF'!$C$11:$C$109,B89) -> 0 | O89: =SUMIFS('TAB-UF'!$M$11:$M$109,'TAB-UF'!$C$11:$C$109,B89) -> 0
A90: 80 | B90: =UI!B90 -> U80 | C90: =IF(UI!C90<>"",UI!C90,"") ->  | D90: =IF(UI!D90<>"",UI!D90,"") ->  | E90: =IF(UI!E90<>"",UI!E90,"") ->  | F90: =SUMIFS('TAB-UF'!$D$11:$D$109,'TAB-UF'!$C$11:$C$109,B90) -> 0 | G90: =SUMIFS('TAB-UF'!$E$11:$E$109,'TAB-UF'!$C$11:$C$109,B90) -> 0 | H90: =SUMIFS('TAB-UF'!$F$11:$F$109,'TAB-UF'!$C$11:$C$109,B90) -> 0 | I90: =SUMIFS('TAB-UF'!$G$11:$G$109,'TAB-UF'!$C$11:$C$109,B90) -> 0 | J90: =SUMIFS('TAB-UF'!$H$11:$H$109,'TAB-UF'!$C$11:$C$109,B90) -> 0 | K90: =SUMIFS('TAB-UF'!$I$11:$I$109,'TAB-UF'!$C$11:$C$109,B90) -> 0 | L90: =SUMIFS('TAB-UF'!$J$11:$J$109,'TAB-UF'!$C$11:$C$109,B90) -> 0 | M90: =SUMIFS('TAB-UF'!$K$11:$K$109,'TAB-UF'!$C$11:$C$109,B90) -> 0 | N90: =SUMIFS('TAB-UF'!$L$11:$L$109,'TAB-UF'!$C$11:$C$109,B90) -> 0 | O90: =SUMIFS('TAB-UF'!$M$11:$M$109,'TAB-UF'!$C$11:$C$109,B90) -> 0
A91: 81 | B91: =UI!B91 -> U81 | C91: =IF(UI!C91<>"",UI!C91,"") ->  | D91: =IF(UI!D91<>"",UI!D91,"") ->  | E91: =IF(UI!E91<>"",UI!E91,"") ->  | F91: =SUMIFS('TAB-UF'!$D$11:$D$109,'TAB-UF'!$C$11:$C$109,B91) -> 0 | G91: =SUMIFS('TAB-UF'!$E$11:$E$109,'TAB-UF'!$C$11:$C$109,B91) -> 0 | H91: =SUMIFS('TAB-UF'!$F$11:$F$109,'TAB-UF'!$C$11:$C$109,B91) -> 0 | I91: =SUMIFS('TAB-UF'!$G$11:$G$109,'TAB-UF'!$C$11:$C$109,B91) -> 0 | J91: =SUMIFS('TAB-UF'!$H$11:$H$109,'TAB-UF'!$C$11:$C$109,B91) -> 0 | K91: =SUMIFS('TAB-UF'!$I$11:$I$109,'TAB-UF'!$C$11:$C$109,B91) -> 0 | L91: =SUMIFS('TAB-UF'!$J$11:$J$109,'TAB-UF'!$C$11:$C$109,B91) -> 0 | M91: =SUMIFS('TAB-UF'!$K$11:$K$109,'TAB-UF'!$C$11:$C$109,B91) -> 0 | N91: =SUMIFS('TAB-UF'!$L$11:$L$109,'TAB-UF'!$C$11:$C$109,B91) -> 0 | O91: =SUMIFS('TAB-UF'!$M$11:$M$109,'TAB-UF'!$C$11:$C$109,B91) -> 0
A92: 82 | B92: =UI!B92 -> U82 | C92: =IF(UI!C92<>"",UI!C92,"") ->  | D92: =IF(UI!D92<>"",UI!D92,"") ->  | E92: =IF(UI!E92<>"",UI!E92,"") ->  | F92: =SUMIFS('TAB-UF'!$D$11:$D$109,'TAB-UF'!$C$11:$C$109,B92) -> 0 | G92: =SUMIFS('TAB-UF'!$E$11:$E$109,'TAB-UF'!$C$11:$C$109,B92) -> 0 | H92: =SUMIFS('TAB-UF'!$F$11:$F$109,'TAB-UF'!$C$11:$C$109,B92) -> 0 | I92: =SUMIFS('TAB-UF'!$G$11:$G$109,'TAB-UF'!$C$11:$C$109,B92) -> 0 | J92: =SUMIFS('TAB-UF'!$H$11:$H$109,'TAB-UF'!$C$11:$C$109,B92) -> 0 | K92: =SUMIFS('TAB-UF'!$I$11:$I$109,'TAB-UF'!$C$11:$C$109,B92) -> 0 | L92: =SUMIFS('TAB-UF'!$J$11:$J$109,'TAB-UF'!$C$11:$C$109,B92) -> 0 | M92: =SUMIFS('TAB-UF'!$K$11:$K$109,'TAB-UF'!$C$11:$C$109,B92) -> 0 | N92: =SUMIFS('TAB-UF'!$L$11:$L$109,'TAB-UF'!$C$11:$C$109,B92) -> 0 | O92: =SUMIFS('TAB-UF'!$M$11:$M$109,'TAB-UF'!$C$11:$C$109,B92) -> 0
A93: 83 | B93: =UI!B93 -> U83 | C93: =IF(UI!C93<>"",UI!C93,"") ->  | D93: =IF(UI!D93<>"",UI!D93,"") ->  | E93: =IF(UI!E93<>"",UI!E93,"") ->  | F93: =SUMIFS('TAB-UF'!$D$11:$D$109,'TAB-UF'!$C$11:$C$109,B93) -> 0 | G93: =SUMIFS('TAB-UF'!$E$11:$E$109,'TAB-UF'!$C$11:$C$109,B93) -> 0 | H93: =SUMIFS('TAB-UF'!$F$11:$F$109,'TAB-UF'!$C$11:$C$109,B93) -> 0 | I93: =SUMIFS('TAB-UF'!$G$11:$G$109,'TAB-UF'!$C$11:$C$109,B93) -> 0 | J93: =SUMIFS('TAB-UF'!$H$11:$H$109,'TAB-UF'!$C$11:$C$109,B93) -> 0 | K93: =SUMIFS('TAB-UF'!$I$11:$I$109,'TAB-UF'!$C$11:$C$109,B93) -> 0 | L93: =SUMIFS('TAB-UF'!$J$11:$J$109,'TAB-UF'!$C$11:$C$109,B93) -> 0 | M93: =SUMIFS('TAB-UF'!$K$11:$K$109,'TAB-UF'!$C$11:$C$109,B93) -> 0 | N93: =SUMIFS('TAB-UF'!$L$11:$L$109,'TAB-UF'!$C$11:$C$109,B93) -> 0 | O93: =SUMIFS('TAB-UF'!$M$11:$M$109,'TAB-UF'!$C$11:$C$109,B93) -> 0
A94: 84 | B94: =UI!B94 -> U84 | C94: =IF(UI!C94<>"",UI!C94,"") ->  | D94: =IF(UI!D94<>"",UI!D94,"") ->  | E94: =IF(UI!E94<>"",UI!E94,"") ->  | F94: =SUMIFS('TAB-UF'!$D$11:$D$109,'TAB-UF'!$C$11:$C$109,B94) -> 0 | G94: =SUMIFS('TAB-UF'!$E$11:$E$109,'TAB-UF'!$C$11:$C$109,B94) -> 0 | H94: =SUMIFS('TAB-UF'!$F$11:$F$109,'TAB-UF'!$C$11:$C$109,B94) -> 0 | I94: =SUMIFS('TAB-UF'!$G$11:$G$109,'TAB-UF'!$C$11:$C$109,B94) -> 0 | J94: =SUMIFS('TAB-UF'!$H$11:$H$109,'TAB-UF'!$C$11:$C$109,B94) -> 0 | K94: =SUMIFS('TAB-UF'!$I$11:$I$109,'TAB-UF'!$C$11:$C$109,B94) -> 0 | L94: =SUMIFS('TAB-UF'!$J$11:$J$109,'TAB-UF'!$C$11:$C$109,B94) -> 0 | M94: =SUMIFS('TAB-UF'!$K$11:$K$109,'TAB-UF'!$C$11:$C$109,B94) -> 0 | N94: =SUMIFS('TAB-UF'!$L$11:$L$109,'TAB-UF'!$C$11:$C$109,B94) -> 0 | O94: =SUMIFS('TAB-UF'!$M$11:$M$109,'TAB-UF'!$C$11:$C$109,B94) -> 0
A95: 85 | B95: =UI!B95 -> U85 | C95: =IF(UI!C95<>"",UI!C95,"") ->  | D95: =IF(UI!D95<>"",UI!D95,"") ->  | E95: =IF(UI!E95<>"",UI!E95,"") ->  | F95: =SUMIFS('TAB-UF'!$D$11:$D$109,'TAB-UF'!$C$11:$C$109,B95) -> 0 | G95: =SUMIFS('TAB-UF'!$E$11:$E$109,'TAB-UF'!$C$11:$C$109,B95) -> 0 | H95: =SUMIFS('TAB-UF'!$F$11:$F$109,'TAB-UF'!$C$11:$C$109,B95) -> 0 | I95: =SUMIFS('TAB-UF'!$G$11:$G$109,'TAB-UF'!$C$11:$C$109,B95) -> 0 | J95: =SUMIFS('TAB-UF'!$H$11:$H$109,'TAB-UF'!$C$11:$C$109,B95) -> 0 | K95: =SUMIFS('TAB-UF'!$I$11:$I$109,'TAB-UF'!$C$11:$C$109,B95) -> 0 | L95: =SUMIFS('TAB-UF'!$J$11:$J$109,'TAB-UF'!$C$11:$C$109,B95) -> 0 | M95: =SUMIFS('TAB-UF'!$K$11:$K$109,'TAB-UF'!$C$11:$C$109,B95) -> 0 | N95: =SUMIFS('TAB-UF'!$L$11:$L$109,'TAB-UF'!$C$11:$C$109,B95) -> 0 | O95: =SUMIFS('TAB-UF'!$M$11:$M$109,'TAB-UF'!$C$11:$C$109,B95) -> 0
A96: 86 | B96: =UI!B96 -> U86 | C96: =IF(UI!C96<>"",UI!C96,"") ->  | D96: =IF(UI!D96<>"",UI!D96,"") ->  | E96: =IF(UI!E96<>"",UI!E96,"") ->  | F96: =SUMIFS('TAB-UF'!$D$11:$D$109,'TAB-UF'!$C$11:$C$109,B96) -> 0 | G96: =SUMIFS('TAB-UF'!$E$11:$E$109,'TAB-UF'!$C$11:$C$109,B96) -> 0 | H96: =SUMIFS('TAB-UF'!$F$11:$F$109,'TAB-UF'!$C$11:$C$109,B96) -> 0 | I96: =SUMIFS('TAB-UF'!$G$11:$G$109,'TAB-UF'!$C$11:$C$109,B96) -> 0 | J96: =SUMIFS('TAB-UF'!$H$11:$H$109,'TAB-UF'!$C$11:$C$109,B96) -> 0 | K96: =SUMIFS('TAB-UF'!$I$11:$I$109,'TAB-UF'!$C$11:$C$109,B96) -> 0 | L96: =SUMIFS('TAB-UF'!$J$11:$J$109,'TAB-UF'!$C$11:$C$109,B96) -> 0 | M96: =SUMIFS('TAB-UF'!$K$11:$K$109,'TAB-UF'!$C$11:$C$109,B96) -> 0 | N96: =SUMIFS('TAB-UF'!$L$11:$L$109,'TAB-UF'!$C$11:$C$109,B96) -> 0 | O96: =SUMIFS('TAB-UF'!$M$11:$M$109,'TAB-UF'!$C$11:$C$109,B96) -> 0
A97: 87 | B97: =UI!B97 -> U87 | C97: =IF(UI!C97<>"",UI!C97,"") ->  | D97: =IF(UI!D97<>"",UI!D97,"") ->  | E97: =IF(UI!E97<>"",UI!E97,"") ->  | F97: =SUMIFS('TAB-UF'!$D$11:$D$109,'TAB-UF'!$C$11:$C$109,B97) -> 0 | G97: =SUMIFS('TAB-UF'!$E$11:$E$109,'TAB-UF'!$C$11:$C$109,B97) -> 0 | H97: =SUMIFS('TAB-UF'!$F$11:$F$109,'TAB-UF'!$C$11:$C$109,B97) -> 0 | I97: =SUMIFS('TAB-UF'!$G$11:$G$109,'TAB-UF'!$C$11:$C$109,B97) -> 0 | J97: =SUMIFS('TAB-UF'!$H$11:$H$109,'TAB-UF'!$C$11:$C$109,B97) -> 0 | K97: =SUMIFS('TAB-UF'!$I$11:$I$109,'TAB-UF'!$C$11:$C$109,B97) -> 0 | L97: =SUMIFS('TAB-UF'!$J$11:$J$109,'TAB-UF'!$C$11:$C$109,B97) -> 0 | M97: =SUMIFS('TAB-UF'!$K$11:$K$109,'TAB-UF'!$C$11:$C$109,B97) -> 0 | N97: =SUMIFS('TAB-UF'!$L$11:$L$109,'TAB-UF'!$C$11:$C$109,B97) -> 0 | O97: =SUMIFS('TAB-UF'!$M$11:$M$109,'TAB-UF'!$C$11:$C$109,B97) -> 0
A98: 88 | B98: =UI!B98 -> U88 | C98: =IF(UI!C98<>"",UI!C98,"") ->  | D98: =IF(UI!D98<>"",UI!D98,"") ->  | E98: =IF(UI!E98<>"",UI!E98,"") ->  | F98: =SUMIFS('TAB-UF'!$D$11:$D$109,'TAB-UF'!$C$11:$C$109,B98) -> 0 | G98: =SUMIFS('TAB-UF'!$E$11:$E$109,'TAB-UF'!$C$11:$C$109,B98) -> 0 | H98: =SUMIFS('TAB-UF'!$F$11:$F$109,'TAB-UF'!$C$11:$C$109,B98) -> 0 | I98: =SUMIFS('TAB-UF'!$G$11:$G$109,'TAB-UF'!$C$11:$C$109,B98) -> 0 | J98: =SUMIFS('TAB-UF'!$H$11:$H$109,'TAB-UF'!$C$11:$C$109,B98) -> 0 | K98: =SUMIFS('TAB-UF'!$I$11:$I$109,'TAB-UF'!$C$11:$C$109,B98) -> 0 | L98: =SUMIFS('TAB-UF'!$J$11:$J$109,'TAB-UF'!$C$11:$C$109,B98) -> 0 | M98: =SUMIFS('TAB-UF'!$K$11:$K$109,'TAB-UF'!$C$11:$C$109,B98) -> 0 | N98: =SUMIFS('TAB-UF'!$L$11:$L$109,'TAB-UF'!$C$11:$C$109,B98) -> 0 | O98: =SUMIFS('TAB-UF'!$M$11:$M$109,'TAB-UF'!$C$11:$C$109,B98) -> 0
A99: 89 | B99: =UI!B99 -> U89 | C99: =IF(UI!C99<>"",UI!C99,"") ->  | D99: =IF(UI!D99<>"",UI!D99,"") ->  | E99: =IF(UI!E99<>"",UI!E99,"") ->  | F99: =SUMIFS('TAB-UF'!$D$11:$D$109,'TAB-UF'!$C$11:$C$109,B99) -> 0 | G99: =SUMIFS('TAB-UF'!$E$11:$E$109,'TAB-UF'!$C$11:$C$109,B99) -> 0 | H99: =SUMIFS('TAB-UF'!$F$11:$F$109,'TAB-UF'!$C$11:$C$109,B99) -> 0 | I99: =SUMIFS('TAB-UF'!$G$11:$G$109,'TAB-UF'!$C$11:$C$109,B99) -> 0 | J99: =SUMIFS('TAB-UF'!$H$11:$H$109,'TAB-UF'!$C$11:$C$109,B99) -> 0 | K99: =SUMIFS('TAB-UF'!$I$11:$I$109,'TAB-UF'!$C$11:$C$109,B99) -> 0 | L99: =SUMIFS('TAB-UF'!$J$11:$J$109,'TAB-UF'!$C$11:$C$109,B99) -> 0 | M99: =SUMIFS('TAB-UF'!$K$11:$K$109,'TAB-UF'!$C$11:$C$109,B99) -> 0 | N99: =SUMIFS('TAB-UF'!$L$11:$L$109,'TAB-UF'!$C$11:$C$109,B99) -> 0 | O99: =SUMIFS('TAB-UF'!$M$11:$M$109,'TAB-UF'!$C$11:$C$109,B99) -> 0
A100: 90 | B100: =UI!B100 -> U90 | C100: =IF(UI!C100<>"",UI!C100,"") ->  | D100: =IF(UI!D100<>"",UI!D100,"") ->  | E100: =IF(UI!E100<>"",UI!E100,"") ->  | F100: =SUMIFS('TAB-UF'!$D$11:$D$109,'TAB-UF'!$C$11:$C$109,B100) -> 0 | G100: =SUMIFS('TAB-UF'!$E$11:$E$109,'TAB-UF'!$C$11:$C$109,B100) -> 0 | H100: =SUMIFS('TAB-UF'!$F$11:$F$109,'TAB-UF'!$C$11:$C$109,B100) -> 0 | I100: =SUMIFS('TAB-UF'!$G$11:$G$109,'TAB-UF'!$C$11:$C$109,B100) -> 0 | J100: =SUMIFS('TAB-UF'!$H$11:$H$109,'TAB-UF'!$C$11:$C$109,B100) -> 0 | K100: =SUMIFS('TAB-UF'!$I$11:$I$109,'TAB-UF'!$C$11:$C$109,B100) -> 0 | L100: =SUMIFS('TAB-UF'!$J$11:$J$109,'TAB-UF'!$C$11:$C$109,B100) -> 0 | M100: =SUMIFS('TAB-UF'!$K$11:$K$109,'TAB-UF'!$C$11:$C$109,B100) -> 0 | N100: =SUMIFS('TAB-UF'!$L$11:$L$109,'TAB-UF'!$C$11:$C$109,B100) -> 0 | O100: =SUMIFS('TAB-UF'!$M$11:$M$109,'TAB-UF'!$C$11:$C$109,B100) -> 0
A101: 91 | B101: =UI!B101 -> U91 | C101: =IF(UI!C101<>"",UI!C101,"") ->  | D101: =IF(UI!D101<>"",UI!D101,"") ->  | E101: =IF(UI!E101<>"",UI!E101,"") ->  | F101: =SUMIFS('TAB-UF'!$D$11:$D$109,'TAB-UF'!$C$11:$C$109,B101) -> 0 | G101: =SUMIFS('TAB-UF'!$E$11:$E$109,'TAB-UF'!$C$11:$C$109,B101) -> 0 | H101: =SUMIFS('TAB-UF'!$F$11:$F$109,'TAB-UF'!$C$11:$C$109,B101) -> 0 | I101: =SUMIFS('TAB-UF'!$G$11:$G$109,'TAB-UF'!$C$11:$C$109,B101) -> 0 | J101: =SUMIFS('TAB-UF'!$H$11:$H$109,'TAB-UF'!$C$11:$C$109,B101) -> 0 | K101: =SUMIFS('TAB-UF'!$I$11:$I$109,'TAB-UF'!$C$11:$C$109,B101) -> 0 | L101: =SUMIFS('TAB-UF'!$J$11:$J$109,'TAB-UF'!$C$11:$C$109,B101) -> 0 | M101: =SUMIFS('TAB-UF'!$K$11:$K$109,'TAB-UF'!$C$11:$C$109,B101) -> 0 | N101: =SUMIFS('TAB-UF'!$L$11:$L$109,'TAB-UF'!$C$11:$C$109,B101) -> 0 | O101: =SUMIFS('TAB-UF'!$M$11:$M$109,'TAB-UF'!$C$11:$C$109,B101) -> 0
A102: 92 | B102: =UI!B102 -> U92 | C102: =IF(UI!C102<>"",UI!C102,"") ->  | D102: =IF(UI!D102<>"",UI!D102,"") ->  | E102: =IF(UI!E102<>"",UI!E102,"") ->  | F102: =SUMIFS('TAB-UF'!$D$11:$D$109,'TAB-UF'!$C$11:$C$109,B102) -> 0 | G102: =SUMIFS('TAB-UF'!$E$11:$E$109,'TAB-UF'!$C$11:$C$109,B102) -> 0 | H102: =SUMIFS('TAB-UF'!$F$11:$F$109,'TAB-UF'!$C$11:$C$109,B102) -> 0 | I102: =SUMIFS('TAB-UF'!$G$11:$G$109,'TAB-UF'!$C$11:$C$109,B102) -> 0 | J102: =SUMIFS('TAB-UF'!$H$11:$H$109,'TAB-UF'!$C$11:$C$109,B102) -> 0 | K102: =SUMIFS('TAB-UF'!$I$11:$I$109,'TAB-UF'!$C$11:$C$109,B102) -> 0 | L102: =SUMIFS('TAB-UF'!$J$11:$J$109,'TAB-UF'!$C$11:$C$109,B102) -> 0 | M102: =SUMIFS('TAB-UF'!$K$11:$K$109,'TAB-UF'!$C$11:$C$109,B102) -> 0 | N102: =SUMIFS('TAB-UF'!$L$11:$L$109,'TAB-UF'!$C$11:$C$109,B102) -> 0 | O102: =SUMIFS('TAB-UF'!$M$11:$M$109,'TAB-UF'!$C$11:$C$109,B102) -> 0
A103: 93 | B103: =UI!B103 -> U93 | C103: =IF(UI!C103<>"",UI!C103,"") ->  | D103: =IF(UI!D103<>"",UI!D103,"") ->  | E103: =IF(UI!E103<>"",UI!E103,"") ->  | F103: =SUMIFS('TAB-UF'!$D$11:$D$109,'TAB-UF'!$C$11:$C$109,B103) -> 0 | G103: =SUMIFS('TAB-UF'!$E$11:$E$109,'TAB-UF'!$C$11:$C$109,B103) -> 0 | H103: =SUMIFS('TAB-UF'!$F$11:$F$109,'TAB-UF'!$C$11:$C$109,B103) -> 0 | I103: =SUMIFS('TAB-UF'!$G$11:$G$109,'TAB-UF'!$C$11:$C$109,B103) -> 0 | J103: =SUMIFS('TAB-UF'!$H$11:$H$109,'TAB-UF'!$C$11:$C$109,B103) -> 0 | K103: =SUMIFS('TAB-UF'!$I$11:$I$109,'TAB-UF'!$C$11:$C$109,B103) -> 0 | L103: =SUMIFS('TAB-UF'!$J$11:$J$109,'TAB-UF'!$C$11:$C$109,B103) -> 0 | M103: =SUMIFS('TAB-UF'!$K$11:$K$109,'TAB-UF'!$C$11:$C$109,B103) -> 0 | N103: =SUMIFS('TAB-UF'!$L$11:$L$109,'TAB-UF'!$C$11:$C$109,B103) -> 0 | O103: =SUMIFS('TAB-UF'!$M$11:$M$109,'TAB-UF'!$C$11:$C$109,B103) -> 0
A104: 94 | B104: =UI!B104 -> U94 | C104: =IF(UI!C104<>"",UI!C104,"") ->  | D104: =IF(UI!D104<>"",UI!D104,"") ->  | E104: =IF(UI!E104<>"",UI!E104,"") ->  | F104: =SUMIFS('TAB-UF'!$D$11:$D$109,'TAB-UF'!$C$11:$C$109,B104) -> 0 | G104: =SUMIFS('TAB-UF'!$E$11:$E$109,'TAB-UF'!$C$11:$C$109,B104) -> 0 | H104: =SUMIFS('TAB-UF'!$F$11:$F$109,'TAB-UF'!$C$11:$C$109,B104) -> 0 | I104: =SUMIFS('TAB-UF'!$G$11:$G$109,'TAB-UF'!$C$11:$C$109,B104) -> 0 | J104: =SUMIFS('TAB-UF'!$H$11:$H$109,'TAB-UF'!$C$11:$C$109,B104) -> 0 | K104: =SUMIFS('TAB-UF'!$I$11:$I$109,'TAB-UF'!$C$11:$C$109,B104) -> 0 | L104: =SUMIFS('TAB-UF'!$J$11:$J$109,'TAB-UF'!$C$11:$C$109,B104) -> 0 | M104: =SUMIFS('TAB-UF'!$K$11:$K$109,'TAB-UF'!$C$11:$C$109,B104) -> 0 | N104: =SUMIFS('TAB-UF'!$L$11:$L$109,'TAB-UF'!$C$11:$C$109,B104) -> 0 | O104: =SUMIFS('TAB-UF'!$M$11:$M$109,'TAB-UF'!$C$11:$C$109,B104) -> 0
A105: 95 | B105: =UI!B105 -> U95 | C105: =IF(UI!C105<>"",UI!C105,"") ->  | D105: =IF(UI!D105<>"",UI!D105,"") ->  | E105: =IF(UI!E105<>"",UI!E105,"") ->  | F105: =SUMIFS('TAB-UF'!$D$11:$D$109,'TAB-UF'!$C$11:$C$109,B105) -> 0 | G105: =SUMIFS('TAB-UF'!$E$11:$E$109,'TAB-UF'!$C$11:$C$109,B105) -> 0 | H105: =SUMIFS('TAB-UF'!$F$11:$F$109,'TAB-UF'!$C$11:$C$109,B105) -> 0 | I105: =SUMIFS('TAB-UF'!$G$11:$G$109,'TAB-UF'!$C$11:$C$109,B105) -> 0 | J105: =SUMIFS('TAB-UF'!$H$11:$H$109,'TAB-UF'!$C$11:$C$109,B105) -> 0 | K105: =SUMIFS('TAB-UF'!$I$11:$I$109,'TAB-UF'!$C$11:$C$109,B105) -> 0 | L105: =SUMIFS('TAB-UF'!$J$11:$J$109,'TAB-UF'!$C$11:$C$109,B105) -> 0 | M105: =SUMIFS('TAB-UF'!$K$11:$K$109,'TAB-UF'!$C$11:$C$109,B105) -> 0 | N105: =SUMIFS('TAB-UF'!$L$11:$L$109,'TAB-UF'!$C$11:$C$109,B105) -> 0 | O105: =SUMIFS('TAB-UF'!$M$11:$M$109,'TAB-UF'!$C$11:$C$109,B105) -> 0
A106: 96 | B106: =UI!B106 -> U96 | C106: =IF(UI!C106<>"",UI!C106,"") ->  | D106: =IF(UI!D106<>"",UI!D106,"") ->  | E106: =IF(UI!E106<>"",UI!E106,"") ->  | F106: =SUMIFS('TAB-UF'!$D$11:$D$109,'TAB-UF'!$C$11:$C$109,B106) -> 0 | G106: =SUMIFS('TAB-UF'!$E$11:$E$109,'TAB-UF'!$C$11:$C$109,B106) -> 0 | H106: =SUMIFS('TAB-UF'!$F$11:$F$109,'TAB-UF'!$C$11:$C$109,B106) -> 0 | I106: =SUMIFS('TAB-UF'!$G$11:$G$109,'TAB-UF'!$C$11:$C$109,B106) -> 0 | J106: =SUMIFS('TAB-UF'!$H$11:$H$109,'TAB-UF'!$C$11:$C$109,B106) -> 0 | K106: =SUMIFS('TAB-UF'!$I$11:$I$109,'TAB-UF'!$C$11:$C$109,B106) -> 0 | L106: =SUMIFS('TAB-UF'!$J$11:$J$109,'TAB-UF'!$C$11:$C$109,B106) -> 0 | M106: =SUMIFS('TAB-UF'!$K$11:$K$109,'TAB-UF'!$C$11:$C$109,B106) -> 0 | N106: =SUMIFS('TAB-UF'!$L$11:$L$109,'TAB-UF'!$C$11:$C$109,B106) -> 0 | O106: =SUMIFS('TAB-UF'!$M$11:$M$109,'TAB-UF'!$C$11:$C$109,B106) -> 0
A107: 97 | B107: =UI!B107 -> U97 | C107: =IF(UI!C107<>"",UI!C107,"") ->  | D107: =IF(UI!D107<>"",UI!D107,"") ->  | E107: =IF(UI!E107<>"",UI!E107,"") ->  | F107: =SUMIFS('TAB-UF'!$D$11:$D$109,'TAB-UF'!$C$11:$C$109,B107) -> 0 | G107: =SUMIFS('TAB-UF'!$E$11:$E$109,'TAB-UF'!$C$11:$C$109,B107) -> 0 | H107: =SUMIFS('TAB-UF'!$F$11:$F$109,'TAB-UF'!$C$11:$C$109,B107) -> 0 | I107: =SUMIFS('TAB-UF'!$G$11:$G$109,'TAB-UF'!$C$11:$C$109,B107) -> 0 | J107: =SUMIFS('TAB-UF'!$H$11:$H$109,'TAB-UF'!$C$11:$C$109,B107) -> 0 | K107: =SUMIFS('TAB-UF'!$I$11:$I$109,'TAB-UF'!$C$11:$C$109,B107) -> 0 | L107: =SUMIFS('TAB-UF'!$J$11:$J$109,'TAB-UF'!$C$11:$C$109,B107) -> 0 | M107: =SUMIFS('TAB-UF'!$K$11:$K$109,'TAB-UF'!$C$11:$C$109,B107) -> 0 | N107: =SUMIFS('TAB-UF'!$L$11:$L$109,'TAB-UF'!$C$11:$C$109,B107) -> 0 | O107: =SUMIFS('TAB-UF'!$M$11:$M$109,'TAB-UF'!$C$11:$C$109,B107) -> 0
A108: 98 | B108: =UI!B108 -> U98 | C108: =IF(UI!C108<>"",UI!C108,"") ->  | D108: =IF(UI!D108<>"",UI!D108,"") ->  | E108: =IF(UI!E108<>"",UI!E108,"") ->  | F108: =SUMIFS('TAB-UF'!$D$11:$D$109,'TAB-UF'!$C$11:$C$109,B108) -> 0 | G108: =SUMIFS('TAB-UF'!$E$11:$E$109,'TAB-UF'!$C$11:$C$109,B108) -> 0 | H108: =SUMIFS('TAB-UF'!$F$11:$F$109,'TAB-UF'!$C$11:$C$109,B108) -> 0 | I108: =SUMIFS('TAB-UF'!$G$11:$G$109,'TAB-UF'!$C$11:$C$109,B108) -> 0 | J108: =SUMIFS('TAB-UF'!$H$11:$H$109,'TAB-UF'!$C$11:$C$109,B108) -> 0 | K108: =SUMIFS('TAB-UF'!$I$11:$I$109,'TAB-UF'!$C$11:$C$109,B108) -> 0 | L108: =SUMIFS('TAB-UF'!$J$11:$J$109,'TAB-UF'!$C$11:$C$109,B108) -> 0 | M108: =SUMIFS('TAB-UF'!$K$11:$K$109,'TAB-UF'!$C$11:$C$109,B108) -> 0 | N108: =SUMIFS('TAB-UF'!$L$11:$L$109,'TAB-UF'!$C$11:$C$109,B108) -> 0 | O108: =SUMIFS('TAB-UF'!$M$11:$M$109,'TAB-UF'!$C$11:$C$109,B108) -> 0
A109: 99 | B109: =UI!B109 -> U99 | C109: =IF(UI!C109<>"",UI!C109,"") ->  | D109: =IF(UI!D109<>"",UI!D109,"") ->  | E109: =IF(UI!E109<>"",UI!E109,"") ->  | F109: =SUMIFS('TAB-UF'!$D$11:$D$109,'TAB-UF'!$C$11:$C$109,B109) -> 0 | G109: =SUMIFS('TAB-UF'!$E$11:$E$109,'TAB-UF'!$C$11:$C$109,B109) -> 0 | H109: =SUMIFS('TAB-UF'!$F$11:$F$109,'TAB-UF'!$C$11:$C$109,B109) -> 0 | I109: =SUMIFS('TAB-UF'!$G$11:$G$109,'TAB-UF'!$C$11:$C$109,B109) -> 0 | J109: =SUMIFS('TAB-UF'!$H$11:$H$109,'TAB-UF'!$C$11:$C$109,B109) -> 0 | K109: =SUMIFS('TAB-UF'!$I$11:$I$109,'TAB-UF'!$C$11:$C$109,B109) -> 0 | L109: =SUMIFS('TAB-UF'!$J$11:$J$109,'TAB-UF'!$C$11:$C$109,B109) -> 0 | M109: =SUMIFS('TAB-UF'!$K$11:$K$109,'TAB-UF'!$C$11:$C$109,B109) -> 0 | N109: =SUMIFS('TAB-UF'!$L$11:$L$109,'TAB-UF'!$C$11:$C$109,B109) -> 0 | O109: =SUMIFS('TAB-UF'!$M$11:$M$109,'TAB-UF'!$C$11:$C$109,B109) -> 0
F110: =SUM(F11:F109) -> 1000 | G110: 1000 | H110: 1000 | I110: 0 | J110: 0 | K110: 0 | L110: 0 | M110: 0 | N110: 0 | O110: 0
A111: 0 | P111: 0

Sheet TAB-C (hidden)
A1: !!! Non variare il contenuto delle le celle con sfondo colorato. | O1: 0
A8: TABELLE MILLESIMALI PER CONDOMINI
A9: n. Cond. | B9: Codice Condomino | C9: Unità Immobiliari di proprietà | D9: Condomino | E9: Tab. A | F9: Tab. B | G9: Tab. C | H9: Tab. D | I9: Tab. E | J9: Tab. F | K9: Tab. G | L9: Tab. H | M9: Tab. I | N9: Tab. J
E10: GENERALE | F10: Lato NORD | G10: Lato SUD
A11: 1 | B11: =CONDOMINI!B11 -> C01 | C11: U01 | D11: =IF(C11<>"",IFERROR(VLOOKUP(B11,CONDOMINI!$B$11:$C$109,2,FALSE),""),"") -> CONDOMINO01 | E11: =IF(B11<>"",SUMIFS('TAB-UI'!$F$11:$F$109,'TAB-UI'!$D$11:$D$109,B11),0) -> 39.637 | F11: =IF(B11<>"",SUMIFS('TAB-UI'!$G$11:$G$109,'TAB-UI'!$D$11:$D$109,B11),0) -> 0 | G11: =IF(B11<>"",SUMIFS('TAB-UI'!$H$11:$H$109,'TAB-UI'!$D$11:$D$109,B11),0) -> 136.69 | H11: =IF(B11<>"",SUMIFS('TAB-UI'!$I$11:$I$109,'TAB-UI'!$D$11:$D$109,B11),0) -> 0 | I11: =IF(B11<>"",SUMIFS('TAB-UI'!$J$11:$J$109,'TAB-UI'!$D$11:$D$109,B11),0) -> 0 | J11: =IF(B11<>"",SUMIFS('TAB-UI'!$K$11:$K$109,'TAB-UI'!$D$11:$D$109,B11),0) -> 0 | K11: =IF(B11<>"",SUMIFS('TAB-UI'!$L$11:$L$109,'TAB-UI'!$D$11:$D$109,B11),0) -> 0 | L11: =IF(B11<>"",SUMIFS('TAB-UI'!$M$11:$M$109,'TAB-UI'!$D$11:$D$109,B11),0) -> 0 | M11: =IF(B11<>"",SUMIFS('TAB-UI'!$N$11:$N$109,'TAB-UI'!$D$11:$D$109,B11),0) -> 0 | N11: =IF(B11<>"",SUMIFS('TAB-UI'!$O$11:$O$109,'TAB-UI'!$D$11:$D$109,B11),0) -> 0
A12: 2 | B12: =CONDOMINI!B12 -> C02 | C12: U02 | D12: =IF(C12<>"",IFERROR(VLOOKUP(B12,CONDOMINI!$B$11:$C$109,2,FALSE),""),"") -> CONDOMINO02 | E12: =IF(B12<>"",SUMIFS('TAB-UI'!$F$11:$F$109,'TAB-UI'!$D$11:$D$109,B12),0) -> 47.566 | F12: =IF(B12<>"",SUMIFS('TAB-UI'!$G$11:$G$109,'TAB-UI'!$D$11:$D$109,B12),0) -> 0 | G12: =IF(B12<>"",SUMIFS('TAB-UI'!$H$11:$H$109,'TAB-UI'!$D$11:$D$109,B12),0) -> 164.036 | H12: =IF(B12<>"",SUMIFS('TAB-UI'!$I$11:$I$109,'TAB-UI'!$D$11:$D$109,B12),0) -> 0 | I12: =IF(B12<>"",SUMIFS('TAB-UI'!$J$11:$J$109,'TAB-UI'!$D$11:$D$109,B12),0) -> 0 | J12: =IF(B12<>"",SUMIFS('TAB-UI'!$K$11:$K$109,'TAB-UI'!$D$11:$D$109,B12),0) -> 0 | K12: =IF(B12<>"",SUMIFS('TAB-UI'!$L$11:$L$109,'TAB-UI'!$D$11:$D$109,B12),0) -> 0 | L12: =IF(B12<>"",SUMIFS('TAB-UI'!$M$11:$M$109,'TAB-UI'!$D$11:$D$109,B12),0) -> 0 | M12: =IF(B12<>"",SUMIFS('TAB-UI'!$N$11:$N$109,'TAB-UI'!$D$11:$D$109,B12),0) -> 0 | N12: =IF(B12<>"",SUMIFS('TAB-UI'!$O$11:$O$109,'TAB-UI'!$D$11:$D$109,B12),0) -> 0
A13: 3 | B13: =CONDOMINI!B13 -> C03 | C13: U03 | D13: =IF(C13<>"",IFERROR(VLOOKUP(B13,CONDOMINI!$B$11:$C$109,2,FALSE),""),"") -> CONDOMINO03 | E13: =IF(B13<>"",SUMIFS('TAB-UI'!$F$11:$F$109,'TAB-UI'!$D$11:$D$109,B13),0) -> 45.34 | F13: =IF(B13<>"",SUMIFS('TAB-UI'!$G$11:$G$109,'TAB-UI'!$D$11:$D$109,B13),0) -> 0 | G13: =IF(B13<>"",SUMIFS('TAB-UI'!$H$11:$H$109,'TAB-UI'!$D$11:$D$109,B13),0) -> 156.358 | H13: =IF(B13<>"",SUMIFS('TAB-UI'!$I$11:$I$109,'TAB-UI'!$D$11:$D$109,B13),0) -> 0 | I13: =IF(B13<>"",SUMIFS('TAB-UI'!$J$11:$J$109,'TAB-UI'!$D$11:$D$109,B13),0) -> 0 | J13: =IF(B13<>"",SUMIFS('TAB-UI'!$K$11:$K$109,'TAB-UI'!$D$11:$D$109,B13),0) -> 0 | K13: =IF(B13<>"",SUMIFS('TAB-UI'!$L$11:$L$109,'TAB-UI'!$D$11:$D$109,B13),0) -> 0 | L13: =IF(B13<>"",SUMIFS('TAB-UI'!$M$11:$M$109,'TAB-UI'!$D$11:$D$109,B13),0) -> 0 | M13: =IF(B13<>"",SUMIFS('TAB-UI'!$N$11:$N$109,'TAB-UI'!$D$11:$D$109,B13),0) -> 0 | N13: =IF(B13<>"",SUMIFS('TAB-UI'!$O$11:$O$109,'TAB-UI'!$D$11:$D$109,B13),0) -> 0
A14: 4 | B14: =CONDOMINI!B14 -> C04 | C14: U04 | D14: =IF(C14<>"",IFERROR(VLOOKUP(B14,CONDOMINI!$B$11:$C$109,2,FALSE),""),"") -> CONDOMINO04 | E14: =IF(B14<>"",SUMIFS('TAB-UI'!$F$11:$F$109,'TAB-UI'!$D$11:$D$109,B14),0) -> 41.104 | F14: =IF(B14<>"",SUMIFS('TAB-UI'!$G$11:$G$109,'TAB-UI'!$D$11:$D$109,B14),0) -> 0 | G14: =IF(B14<>"",SUMIFS('TAB-UI'!$H$11:$H$109,'TAB-UI'!$D$11:$D$109,B14),0) -> 94.5 | H14: =IF(B14<>"",SUMIFS('TAB-UI'!$I$11:$I$109,'TAB-UI'!$D$11:$D$109,B14),0) -> 0 | I14: =IF(B14<>"",SUMIFS('TAB-UI'!$J$11:$J$109,'TAB-UI'!$D$11:$D$109,B14),0) -> 0 | J14: =IF(B14<>"",SUMIFS('TAB-UI'!$K$11:$K$109,'TAB-UI'!$D$11:$D$109,B14),0) -> 0 | K14: =IF(B14<>"",SUMIFS('TAB-UI'!$L$11:$L$109,'TAB-UI'!$D$11:$D$109,B14),0) -> 0 | L14: =IF(B14<>"",SUMIFS('TAB-UI'!$M$11:$M$109,'TAB-UI'!$D$11:$D$109,B14),0) -> 0 | M14: =IF(B14<>"",SUMIFS('TAB-UI'!$N$11:$N$109,'TAB-UI'!$D$11:$D$109,B14),0) -> 0 | N14: =IF(B14<>"",SUMIFS('TAB-UI'!$O$11:$O$109,'TAB-UI'!$D$11:$D$109,B14),0) -> 0
A15: 5 | B15: =CONDOMINI!B15 -> C05 | C15: U05 | D15: =IF(C15<>"",IFERROR(VLOOKUP(B15,CONDOMINI!$B$11:$C$109,2,FALSE),""),"") -> CONDOMINO05 | E15: =IF(B15<>"",SUMIFS('TAB-UI'!$F$11:$F$109,'TAB-UI'!$D$11:$D$109,B15),0) -> 50.971 | F15: =IF(B15<>"",SUMIFS('TAB-UI'!$G$11:$G$109,'TAB-UI'!$D$11:$D$109,B15),0) -> 0 | G15: =IF(B15<>"",SUMIFS('TAB-UI'!$H$11:$H$109,'TAB-UI'!$D$11:$D$109,B15),0) -> 117.184 | H15: =IF(B15<>"",SUMIFS('TAB-UI'!$I$11:$I$109,'TAB-UI'!$D$11:$D$109,B15),0) -> 0 | I15: =IF(B15<>"",SUMIFS('TAB-UI'!$J$11:$J$109,'TAB-UI'!$D$11:$D$109,B15),0) -> 0 | J15: =IF(B15<>"",SUMIFS('TAB-UI'!$K$11:$K$109,'TAB-UI'!$D$11:$D$109,B15),0) -> 0 | K15: =IF(B15<>"",SUMIFS('TAB-UI'!$L$11:$L$109,'TAB-UI'!$D$11:$D$109,B15),0) -> 0 | L15: =IF(B15<>"",SUMIFS('TAB-UI'!$M$11:$M$109,'TAB-UI'!$D$11:$D$109,B15),0) -> 0 | M15: =IF(B15<>"",SUMIFS('TAB-UI'!$N$11:$N$109,'TAB-UI'!$D$11:$D$109,B15),0) -> 0 | N15: =IF(B15<>"",SUMIFS('TAB-UI'!$O$11:$O$109,'TAB-UI'!$D$11:$D$109,B15),0) -> 0
A16: 6 | B16: =CONDOMINI!B16 -> C06 | C16: U06 | D16: =IF(C16<>"",IFERROR(VLOOKUP(B16,CONDOMINI!$B$11:$C$109,2,FALSE),""),"") -> CONDOMINO06 | E16: =IF(B16<>"",SUMIFS('TAB-UI'!$F$11:$F$109,'TAB-UI'!$D$11:$D$109,B16),0) -> 48.351 | F16: =IF(B16<>"",SUMIFS('TAB-UI'!$G$11:$G$109,'TAB-UI'!$D$11:$D$109,B16),0) -> 0 | G16: =IF(B16<>"",SUMIFS('TAB-UI'!$H$11:$H$109,'TAB-UI'!$D$11:$D$109,B16),0) -> 111.162 | H16: =IF(B16<>"",SUMIFS('TAB-UI'!$I$11:$I$109,'TAB-UI'!$D$11:$D$109,B16),0) -> 0 | I16: =IF(B16<>"",SUMIFS('TAB-UI'!$J$11:$J$109,'TAB-UI'!$D$11:$D$109,B16),0) -> 0 | J16: =IF(B16<>"",SUMIFS('TAB-UI'!$K$11:$K$109,'TAB-UI'!$D$11:$D$109,B16),0) -> 0 | K16: =IF(B16<>"",SUMIFS('TAB-UI'!$L$11:$L$109,'TAB-UI'!$D$11:$D$109,B16),0) -> 0 | L16: =IF(B16<>"",SUMIFS('TAB-UI'!$M$11:$M$109,'TAB-UI'!$D$11:$D$109,B16),0) -> 0 | M16: =IF(B16<>"",SUMIFS('TAB-UI'!$N$11:$N$109,'TAB-UI'!$D$11:$D$109,B16),0) -> 0 | N16: =IF(B16<>"",SUMIFS('TAB-UI'!$O$11:$O$109,'TAB-UI'!$D$11:$D$109,B16),0) -> 0
A17: 7 | B17: =CONDOMINI!B17 -> C07 | C17: U07+U20 | D17: =IF(C17<>"",IFERROR(VLOOKUP(B17,CONDOMINI!$B$11:$C$109,2,FALSE),""),"") -> CONDOMINO07 | E17: =IF(B17<>"",SUMIFS('TAB-UI'!$F$11:$F$109,'TAB-UI'!$D$11:$D$109,B17),0) -> 126.621 | F17: =IF(B17<>"",SUMIFS('TAB-UI'!$G$11:$G$109,'TAB-UI'!$D$11:$D$109,B17),0) -> 72.67 | G17: =IF(B17<>"",SUMIFS('TAB-UI'!$H$11:$H$109,'TAB-UI'!$D$11:$D$109,B17),0) -> 46.514 | H17: =IF(B17<>"",SUMIFS('TAB-UI'!$I$11:$I$109,'TAB-UI'!$D$11:$D$109,B17),0) -> 0 | I17: =IF(B17<>"",SUMIFS('TAB-UI'!$J$11:$J$109,'TAB-UI'!$D$11:$D$109,B17),0) -> 0 | J17: =IF(B17<>"",SUMIFS('TAB-UI'!$K$11:$K$109,'TAB-UI'!$D$11:$D$109,B17),0) -> 0 | K17: =IF(B17<>"",SUMIFS('TAB-UI'!$L$11:$L$109,'TAB-UI'!$D$11:$D$109,B17),0) -> 0 | L17: =IF(B17<>"",SUMIFS('TAB-UI'!$M$11:$M$109,'TAB-UI'!$D$11:$D$109,B17),0) -> 0 | M17: =IF(B17<>"",SUMIFS('TAB-UI'!$N$11:$N$109,'TAB-UI'!$D$11:$D$109,B17),0) -> 0 | N17: =IF(B17<>"",SUMIFS('TAB-UI'!$O$11:$O$109,'TAB-UI'!$D$11:$D$109,B17),0) -> 0
A18: 8 | B18: =CONDOMINI!B18 -> C08 | C18: U08+U21 | D18: =IF(C18<>"",IFERROR(VLOOKUP(B18,CONDOMINI!$B$11:$C$109,2,FALSE),""),"") -> CONDOMINO08 | E18: =IF(B18<>"",SUMIFS('TAB-UI'!$F$11:$F$109,'TAB-UI'!$D$11:$D$109,B18),0) -> 87.942 | F18: =IF(B18<>"",SUMIFS('TAB-UI'!$G$11:$G$109,'TAB-UI'!$D$11:$D$109,B18),0) -> 50.262 | G18: =IF(B18<>"",SUMIFS('TAB-UI'!$H$11:$H$109,'TAB-UI'!$D$11:$D$109,B18),0) -> 56.946 | H18: =IF(B18<>"",SUMIFS('TAB-UI'!$I$11:$I$109,'TAB-UI'!$D$11:$D$109,B18),0) -> 0 | I18: =IF(B18<>"",SUMIFS('TAB-UI'!$J$11:$J$109,'TAB-UI'!$D$11:$D$109,B18),0) -> 0 | J18: =IF(B18<>"",SUMIFS('TAB-UI'!$K$11:$K$109,'TAB-UI'!$D$11:$D$109,B18),0) -> 0 | K18: =IF(B18<>"",SUMIFS('TAB-UI'!$L$11:$L$109,'TAB-UI'!$D$11:$D$109,B18),0) -> 0 | L18: =IF(B18<>"",SUMIFS('TAB-UI'!$M$11:$M$109,'TAB-UI'!$D$11:$D$109,B18),0) -> 0 | M18: =IF(B18<>"",SUMIFS('TAB-UI'!$N$11:$N$109,'TAB-UI'!$D$11:$D$109,B18),0) -> 0 | N18: =IF(B18<>"",SUMIFS('TAB-UI'!$O$11:$O$109,'TAB-UI'!$D$11:$D$109,B18),0) -> 0
A19: 9 | B19: =CONDOMINI!B19 -> C09 | C19: U09 | D19: =IF(C19<>"",IFERROR(VLOOKUP(B19,CONDOMINI!$B$11:$C$109,2,FALSE),""),"") -> CONDOMINO09 | E19: =IF(B19<>"",SUMIFS('TAB-UI'!$F$11:$F$109,'TAB-UI'!$D$11:$D$109,B19),0) -> 47.052 | F19: =IF(B19<>"",SUMIFS('TAB-UI'!$G$11:$G$109,'TAB-UI'!$D$11:$D$109,B19),0) -> 0 | G19: =IF(B19<>"",SUMIFS('TAB-UI'!$H$11:$H$109,'TAB-UI'!$D$11:$D$109,B19),0) -> 54.088 | H19: =IF(B19<>"",SUMIFS('TAB-UI'!$I$11:$I$109,'TAB-UI'!$D$11:$D$109,B19),0) -> 0 | I19: =IF(B19<>"",SUMIFS('TAB-UI'!$J$11:$J$109,'TAB-UI'!$D$11:$D$109,B19),0) -> 0 | J19: =IF(B19<>"",SUMIFS('TAB-UI'!$K$11:$K$109,'TAB-UI'!$D$11:$D$109,B19),0) -> 0 | K19: =IF(B19<>"",SUMIFS('TAB-UI'!$L$11:$L$109,'TAB-UI'!$D$11:$D$109,B19),0) -> 0 | L19: =IF(B19<>"",SUMIFS('TAB-UI'!$M$11:$M$109,'TAB-UI'!$D$11:$D$109,B19),0) -> 0 | M19: =IF(B19<>"",SUMIFS('TAB-UI'!$N$11:$N$109,'TAB-UI'!$D$11:$D$109,B19),0) -> 0 | N19: =IF(B19<>"",SUMIFS('TAB-UI'!$O$11:$O$109,'TAB-UI'!$D$11:$D$109,B19),0) -> 0
A20: 10 | B20: =CONDOMINI!B20 -> C10 | C20: U10 | D20: =IF(C20<>"",IFERROR(VLOOKUP(B20,CONDOMINI!$B$11:$C$109,2,FALSE),""),"") -> CONDOMINO10 | E20: =IF(B20<>"",SUMIFS('TAB-UI'!$F$11:$F$109,'TAB-UI'!$D$11:$D$109,B20),0) -> 35.484 | F20: =IF(B20<>"",SUMIFS('TAB-UI'!$G$11:$G$109,'TAB-UI'!$D$11:$D$109,B20),0) -> 0 | G20: =IF(B20<>"",SUMIFS('TAB-UI'!$H$11:$H$109,'TAB-UI'!$D$11:$D$109,B20),0) -> 4.168 | H20: =IF(B20<>"",SUMIFS('TAB-UI'!$I$11:$I$109,'TAB-UI'!$D$11:$D$109,B20),0) -> 0 | I20: =IF(B20<>"",SUMIFS('TAB-UI'!$J$11:$J$109,'TAB-UI'!$D$11:$D$109,B20),0) -> 0 | J20: =IF(B20<>"",SUMIFS('TAB-UI'!$K$11:$K$109,'TAB-UI'!$D$11:$D$109,B20),0) -> 0 | K20: =IF(B20<>"",SUMIFS('TAB-UI'!$L$11:$L$109,'TAB-UI'!$D$11:$D$109,B20),0) -> 0 | L20: =IF(B20<>"",SUMIFS('TAB-UI'!$M$11:$M$109,'TAB-UI'!$D$11:$D$109,B20),0) -> 0 | M20: =IF(B20<>"",SUMIFS('TAB-UI'!$N$11:$N$109,'TAB-UI'!$D$11:$D$109,B20),0) -> 0 | N20: =IF(B20<>"",SUMIFS('TAB-UI'!$O$11:$O$109,'TAB-UI'!$D$11:$D$109,B20),0) -> 0
A21: 11 | B21: =CONDOMINI!B21 -> C11 | C21: U11 | D21: =IF(C21<>"",IFERROR(VLOOKUP(B21,CONDOMINI!$B$11:$C$109,2,FALSE),""),"") -> CONDOMINO11 | E21: =IF(B21<>"",SUMIFS('TAB-UI'!$F$11:$F$109,'TAB-UI'!$D$11:$D$109,B21),0) -> 45.632 | F21: =IF(B21<>"",SUMIFS('TAB-UI'!$G$11:$G$109,'TAB-UI'!$D$11:$D$109,B21),0) -> 0 | G21: =IF(B21<>"",SUMIFS('TAB-UI'!$H$11:$H$109,'TAB-UI'!$D$11:$D$109,B21),0) -> 4.446 | H21: =IF(B21<>"",SUMIFS('TAB-UI'!$I$11:$I$109,'TAB-UI'!$D$11:$D$109,B21),0) -> 0 | I21: =IF(B21<>"",SUMIFS('TAB-UI'!$J$11:$J$109,'TAB-UI'!$D$11:$D$109,B21),0) -> 0 | J21: =IF(B21<>"",SUMIFS('TAB-UI'!$K$11:$K$109,'TAB-UI'!$D$11:$D$109,B21),0) -> 0 | K21: =IF(B21<>"",SUMIFS('TAB-UI'!$L$11:$L$109,'TAB-UI'!$D$11:$D$109,B21),0) -> 0 | L21: =IF(B21<>"",SUMIFS('TAB-UI'!$M$11:$M$109,'TAB-UI'!$D$11:$D$109,B21),0) -> 0 | M21: =IF(B21<>"",SUMIFS('TAB-UI'!$N$11:$N$109,'TAB-UI'!$D$11:$D$109,B21),0) -> 0 | N21: =IF(B21<>"",SUMIFS('TAB-UI'!$O$11:$O$109,'TAB-UI'!$D$11:$D$109,B21),0) -> 0
A22: 12 | B22: =CONDOMINI!B22 -> C12 | C22: U12 | D22: =IF(C22<>"",IFERROR(VLOOKUP(B22,CONDOMINI!$B$11:$C$109,2,FALSE),""),"") -> CONDOMINO12 | E22: =IF(B22<>"",SUMIFS('TAB-UI'!$F$11:$F$109,'TAB-UI'!$D$11:$D$109,B22),0) -> 32.654 | F22: =IF(B22<>"",SUMIFS('TAB-UI'!$G$11:$G$109,'TAB-UI'!$D$11:$D$109,B22),0) -> 0 | G22: =IF(B22<>"",SUMIFS('TAB-UI'!$H$11:$H$109,'TAB-UI'!$D$11:$D$109,B22),0) -> 4.89 | H22: =IF(B22<>"",SUMIFS('TAB-UI'!$I$11:$I$109,'TAB-UI'!$D$11:$D$109,B22),0) -> 0 | I22: =IF(B22<>"",SUMIFS('TAB-UI'!$J$11:$J$109,'TAB-UI'!$D$11:$D$109,B22),0) -> 0 | J22: =IF(B22<>"",SUMIFS('TAB-UI'!$K$11:$K$109,'TAB-UI'!$D$11:$D$109,B22),0) -> 0 | K22: =IF(B22<>"",SUMIFS('TAB-UI'!$L$11:$L$109,'TAB-UI'!$D$11:$D$109,B22),0) -> 0 | L22: =IF(B22<>"",SUMIFS('TAB-UI'!$M$11:$M$109,'TAB-UI'!$D$11:$D$109,B22),0) -> 0 | M22: =IF(B22<>"",SUMIFS('TAB-UI'!$N$11:$N$109,'TAB-UI'!$D$11:$D$109,B22),0) -> 0 | N22: =IF(B22<>"",SUMIFS('TAB-UI'!$O$11:$O$109,'TAB-UI'!$D$11:$D$109,B22),0) -> 0
A23: 13 | B23: =CONDOMINI!B23 -> C13 | C23: U13 | D23: =IF(C23<>"",IFERROR(VLOOKUP(B23,CONDOMINI!$B$11:$C$109,2,FALSE),""),"") -> CONDOMINO13 | E23: =IF(B23<>"",SUMIFS('TAB-UI'!$F$11:$F$109,'TAB-UI'!$D$11:$D$109,B23),0) -> 10.153 | F23: =IF(B23<>"",SUMIFS('TAB-UI'!$G$11:$G$109,'TAB-UI'!$D$11:$D$109,B23),0) -> 0 | G23: =IF(B23<>"",SUMIFS('TAB-UI'!$H$11:$H$109,'TAB-UI'!$D$11:$D$109,B23),0) -> 11.67 | H23: =IF(B23<>"",SUMIFS('TAB-UI'!$I$11:$I$109,'TAB-UI'!$D$11:$D$109,B23),0) -> 0 | I23: =IF(B23<>"",SUMIFS('TAB-UI'!$J$11:$J$109,'TAB-UI'!$D$11:$D$109,B23),0) -> 0 | J23: =IF(B23<>"",SUMIFS('TAB-UI'!$K$11:$K$109,'TAB-UI'!$D$11:$D$109,B23),0) -> 0 | K23: =IF(B23<>"",SUMIFS('TAB-UI'!$L$11:$L$109,'TAB-UI'!$D$11:$D$109,B23),0) -> 0 | L23: =IF(B23<>"",SUMIFS('TAB-UI'!$M$11:$M$109,'TAB-UI'!$D$11:$D$109,B23),0) -> 0 | M23: =IF(B23<>"",SUMIFS('TAB-UI'!$N$11:$N$109,'TAB-UI'!$D$11:$D$109,B23),0) -> 0 | N23: =IF(B23<>"",SUMIFS('TAB-UI'!$O$11:$O$109,'TAB-UI'!$D$11:$D$109,B23),0) -> 0
A24: 14 | B24: =CONDOMINI!B24 -> C14 | C24: U14 | D24: =IF(C24<>"",IFERROR(VLOOKUP(B24,CONDOMINI!$B$11:$C$109,2,FALSE),""),"") -> CONDOMINO14 | E24: =IF(B24<>"",SUMIFS('TAB-UI'!$F$11:$F$109,'TAB-UI'!$D$11:$D$109,B24),0) -> 32.49 | F24: =IF(B24<>"",SUMIFS('TAB-UI'!$G$11:$G$109,'TAB-UI'!$D$11:$D$109,B24),0) -> 0 | G24: =IF(B24<>"",SUMIFS('TAB-UI'!$H$11:$H$109,'TAB-UI'!$D$11:$D$109,B24),0) -> 37.348 | H24: =IF(B24<>"",SUMIFS('TAB-UI'!$I$11:$I$109,'TAB-UI'!$D$11:$D$109,B24),0) -> 0 | I24: =IF(B24<>"",SUMIFS('TAB-UI'!$J$11:$J$109,'TAB-UI'!$D$11:$D$109,B24),0) -> 0 | J24: =IF(B24<>"",SUMIFS('TAB-UI'!$K$11:$K$109,'TAB-UI'!$D$11:$D$109,B24),0) -> 0 | K24: =IF(B24<>"",SUMIFS('TAB-UI'!$L$11:$L$109,'TAB-UI'!$D$11:$D$109,B24),0) -> 0 | L24: =IF(B24<>"",SUMIFS('TAB-UI'!$M$11:$M$109,'TAB-UI'!$D$11:$D$109,B24),0) -> 0 | M24: =IF(B24<>"",SUMIFS('TAB-UI'!$N$11:$N$109,'TAB-UI'!$D$11:$D$109,B24),0) -> 0 | N24: =IF(B24<>"",SUMIFS('TAB-UI'!$O$11:$O$109,'TAB-UI'!$D$11:$D$109,B24),0) -> 0
A25: 15 | B25: =CONDOMINI!B25 -> C15 | C25: U15 | D25: =IF(C25<>"",IFERROR(VLOOKUP(B25,CONDOMINI!$B$11:$C$109,2,FALSE),""),"") -> CONDOMINO15 | E25: =IF(B25<>"",SUMIFS('TAB-UI'!$F$11:$F$109,'TAB-UI'!$D$11:$D$109,B25),0) -> 86.68 | F25: =IF(B25<>"",SUMIFS('TAB-UI'!$G$11:$G$109,'TAB-UI'!$D$11:$D$109,B25),0) -> 297.532 | G25: =IF(B25<>"",SUMIFS('TAB-UI'!$H$11:$H$109,'TAB-UI'!$D$11:$D$109,B25),0) -> 0 | H25: =IF(B25<>"",SUMIFS('TAB-UI'!$I$11:$I$109,'TAB-UI'!$D$11:$D$109,B25),0) -> 0 | I25: =IF(B25<>"",SUMIFS('TAB-UI'!$J$11:$J$109,'TAB-UI'!$D$11:$D$109,B25),0) -> 0 | J25: =IF(B25<>"",SUMIFS('TAB-UI'!$K$11:$K$109,'TAB-UI'!$D$11:$D$109,B25),0) -> 0 | K25: =IF(B25<>"",SUMIFS('TAB-UI'!$L$11:$L$109,'TAB-UI'!$D$11:$D$109,B25),0) -> 0 | L25: =IF(B25<>"",SUMIFS('TAB-UI'!$M$11:$M$109,'TAB-UI'!$D$11:$D$109,B25),0) -> 0 | M25: =IF(B25<>"",SUMIFS('TAB-UI'!$N$11:$N$109,'TAB-UI'!$D$11:$D$109,B25),0) -> 0 | N25: =IF(B25<>"",SUMIFS('TAB-UI'!$O$11:$O$109,'TAB-UI'!$D$11:$D$109,B25),0) -> 0
A26: 16 | B26: =CONDOMINI!B26 -> C16 | C26: U16 | D26: =IF(C26<>"",IFERROR(VLOOKUP(B26,CONDOMINI!$B$11:$C$109,2,FALSE),""),"") -> CONDOMINO16 | E26: =IF(B26<>"",SUMIFS('TAB-UI'!$F$11:$F$109,'TAB-UI'!$D$11:$D$109,B26),0) -> 47.919 | F26: =IF(B26<>"",SUMIFS('TAB-UI'!$G$11:$G$109,'TAB-UI'!$D$11:$D$109,B26),0) -> 188.15 | G26: =IF(B26<>"",SUMIFS('TAB-UI'!$H$11:$H$109,'TAB-UI'!$D$11:$D$109,B26),0) -> 0 | H26: =IF(B26<>"",SUMIFS('TAB-UI'!$I$11:$I$109,'TAB-UI'!$D$11:$D$109,B26),0) -> 0 | I26: =IF(B26<>"",SUMIFS('TAB-UI'!$J$11:$J$109,'TAB-UI'!$D$11:$D$109,B26),0) -> 0 | J26: =IF(B26<>"",SUMIFS('TAB-UI'!$K$11:$K$109,'TAB-UI'!$D$11:$D$109,B26),0) -> 0 | K26: =IF(B26<>"",SUMIFS('TAB-UI'!$L$11:$L$109,'TAB-UI'!$D$11:$D$109,B26),0) -> 0 | L26: =IF(B26<>"",SUMIFS('TAB-UI'!$M$11:$M$109,'TAB-UI'!$D$11:$D$109,B26),0) -> 0 | M26: =IF(B26<>"",SUMIFS('TAB-UI'!$N$11:$N$109,'TAB-UI'!$D$11:$D$109,B26),0) -> 0 | N26: =IF(B26<>"",SUMIFS('TAB-UI'!$O$11:$O$109,'TAB-UI'!$D$11:$D$109,B26),0) -> 0
A27: 17 | B27: =CONDOMINI!B27 -> C17 | C27: U17 | D27: =IF(C27<>"",IFERROR(VLOOKUP(B27,CONDOMINI!$B$11:$C$109,2,FALSE),""),"") -> CONDOMINO17 | E27: =IF(B27<>"",SUMIFS('TAB-UI'!$F$11:$F$109,'TAB-UI'!$D$11:$D$109,B27),0) -> 37.721 | F27: =IF(B27<>"",SUMIFS('TAB-UI'!$G$11:$G$109,'TAB-UI'!$D$11:$D$109,B27),0) -> 148.11 | G27: =IF(B27<>"",SUMIFS('TAB-UI'!$H$11:$H$109,'TAB-UI'!$D$11:$D$109,B27),0) -> 0 | H27: =IF(B27<>"",SUMIFS('TAB-UI'!$I$11:$I$109,'TAB-UI'!$D$11:$D$109,B27),0) -> 0 | I27: =IF(B27<>"",SUMIFS('TAB-UI'!$J$11:$J$109,'TAB-UI'!$D$11:$D$109,B27),0) -> 0 | J27: =IF(B27<>"",SUMIFS('TAB-UI'!$K$11:$K$109,'TAB-UI'!$D$11:$D$109,B27),0) -> 0 | K27: =IF(B27<>"",SUMIFS('TAB-UI'!$L$11:$L$109,'TAB-UI'!$D$11:$D$109,B27),0) -> 0 | L27: =IF(B27<>"",SUMIFS('TAB-UI'!$M$11:$M$109,'TAB-UI'!$D$11:$D$109,B27),0) -> 0 | M27: =IF(B27<>"",SUMIFS('TAB-UI'!$N$11:$N$109,'TAB-UI'!$D$11:$D$109,B27),0) -> 0 | N27: =IF(B27<>"",SUMIFS('TAB-UI'!$O$11:$O$109,'TAB-UI'!$D$11:$D$109,B27),0) -> 0
A28: 18 | B28: =CONDOMINI!B28 -> C18 | C28: U18 | D28: =IF(C28<>"",IFERROR(VLOOKUP(B28,CONDOMINI!$B$11:$C$109,2,FALSE),""),"") -> CONDOMINO18 | E28: =IF(B28<>"",SUMIFS('TAB-UI'!$F$11:$F$109,'TAB-UI'!$D$11:$D$109,B28),0) -> 50.139 | F28: =IF(B28<>"",SUMIFS('TAB-UI'!$G$11:$G$109,'TAB-UI'!$D$11:$D$109,B28),0) -> 131.244 | G28: =IF(B28<>"",SUMIFS('TAB-UI'!$H$11:$H$109,'TAB-UI'!$D$11:$D$109,B28),0) -> 0 | H28: =IF(B28<>"",SUMIFS('TAB-UI'!$I$11:$I$109,'TAB-UI'!$D$11:$D$109,B28),0) -> 0 | I28: =IF(B28<>"",SUMIFS('TAB-UI'!$J$11:$J$109,'TAB-UI'!$D$11:$D$109,B28),0) -> 0 | J28: =IF(B28<>"",SUMIFS('TAB-UI'!$K$11:$K$109,'TAB-UI'!$D$11:$D$109,B28),0) -> 0 | K28: =IF(B28<>"",SUMIFS('TAB-UI'!$L$11:$L$109,'TAB-UI'!$D$11:$D$109,B28),0) -> 0 | L28: =IF(B28<>"",SUMIFS('TAB-UI'!$M$11:$M$109,'TAB-UI'!$D$11:$D$109,B28),0) -> 0 | M28: =IF(B28<>"",SUMIFS('TAB-UI'!$N$11:$N$109,'TAB-UI'!$D$11:$D$109,B28),0) -> 0 | N28: =IF(B28<>"",SUMIFS('TAB-UI'!$O$11:$O$109,'TAB-UI'!$D$11:$D$109,B28),0) -> 0
A29: 19 | B29: =CONDOMINI!B29 -> C19 | C29: U19+U22 | D29: =IF(C29<>"",IFERROR(VLOOKUP(B29,CONDOMINI!$B$11:$C$109,2,FALSE),""),"") -> CONDOMINO19 | E29: =IF(B29<>"",SUMIFS('TAB-UI'!$F$11:$F$109,'TAB-UI'!$D$11:$D$109,B29),0) -> 86.544 | F29: =IF(B29<>"",SUMIFS('TAB-UI'!$G$11:$G$109,'TAB-UI'!$D$11:$D$109,B29),0) -> 112.032 | G29: =IF(B29<>"",SUMIFS('TAB-UI'!$H$11:$H$109,'TAB-UI'!$D$11:$D$109,B29),0) -> 0 | H29: =IF(B29<>"",SUMIFS('TAB-UI'!$I$11:$I$109,'TAB-UI'!$D$11:$D$109,B29),0) -> 0 | I29: =IF(B29<>"",SUMIFS('TAB-UI'!$J$11:$J$109,'TAB-UI'!$D$11:$D$109,B29),0) -> 0 | J29: =IF(B29<>"",SUMIFS('TAB-UI'!$K$11:$K$109,'TAB-UI'!$D$11:$D$109,B29),0) -> 0 | K29: =IF(B29<>"",SUMIFS('TAB-UI'!$L$11:$L$109,'TAB-UI'!$D$11:$D$109,B29),0) -> 0 | L29: =IF(B29<>"",SUMIFS('TAB-UI'!$M$11:$M$109,'TAB-UI'!$D$11:$D$109,B29),0) -> 0 | M29: =IF(B29<>"",SUMIFS('TAB-UI'!$N$11:$N$109,'TAB-UI'!$D$11:$D$109,B29),0) -> 0 | N29: =IF(B29<>"",SUMIFS('TAB-UI'!$O$11:$O$109,'TAB-UI'!$D$11:$D$109,B29),0) -> 0
A30: 20 | B30: =CONDOMINI!B30 -> C20 | D30: =IF(C30<>"",IFERROR(VLOOKUP(B30,CONDOMINI!$B$11:$C$109,2,FALSE),""),"") ->  | E30: =IF(B30<>"",SUMIFS('TAB-UI'!$F$11:$F$109,'TAB-UI'!$D$11:$D$109,B30),0) -> 0 | F30: =IF(B30<>"",SUMIFS('TAB-UI'!$G$11:$G$109,'TAB-UI'!$D$11:$D$109,B30),0) -> 0 | G30: =IF(B30<>"",SUMIFS('TAB-UI'!$H$11:$H$109,'TAB-UI'!$D$11:$D$109,B30),0) -> 0 | H30: =IF(B30<>"",SUMIFS('TAB-UI'!$I$11:$I$109,'TAB-UI'!$D$11:$D$109,B30),0) -> 0 | I30: =IF(B30<>"",SUMIFS('TAB-UI'!$J$11:$J$109,'TAB-UI'!$D$11:$D$109,B30),0) -> 0 | J30: =IF(B30<>"",SUMIFS('TAB-UI'!$K$11:$K$109,'TAB-UI'!$D$11:$D$109,B30),0) -> 0 | K30: =IF(B30<>"",SUMIFS('TAB-UI'!$L$11:$L$109,'TAB-UI'!$D$11:$D$109,B30),0) -> 0 | L30: =IF(B30<>"",SUMIFS('TAB-UI'!$M$11:$M$109,'TAB-UI'!$D$11:$D$109,B30),0) -> 0 | M30: =IF(B30<>"",SUMIFS('TAB-UI'!$N$11:$N$109,'TAB-UI'!$D$11:$D$109,B30),0) -> 0 | N30: =IF(B30<>"",SUMIFS('TAB-UI'!$O$11:$O$109,'TAB-UI'!$D$11:$D$109,B30),0) -> 0
A31: 21 | B31: =CONDOMINI!B31 -> C21 | D31: =IF(C31<>"",IFERROR(VLOOKUP(B31,CONDOMINI!$B$11:$C$109,2,FALSE),""),"") ->  | E31: =IF(B31<>"",SUMIFS('TAB-UI'!$F$11:$F$109,'TAB-UI'!$D$11:$D$109,B31),0) -> 0 | F31: =IF(B31<>"",SUMIFS('TAB-UI'!$G$11:$G$109,'TAB-UI'!$D$11:$D$109,B31),0) -> 0 | G31: =IF(B31<>"",SUMIFS('TAB-UI'!$H$11:$H$109,'TAB-UI'!$D$11:$D$109,B31),0) -> 0 | H31: =IF(B31<>"",SUMIFS('TAB-UI'!$I$11:$I$109,'TAB-UI'!$D$11:$D$109,B31),0) -> 0 | I31: =IF(B31<>"",SUMIFS('TAB-UI'!$J$11:$J$109,'TAB-UI'!$D$11:$D$109,B31),0) -> 0 | J31: =IF(B31<>"",SUMIFS('TAB-UI'!$K$11:$K$109,'TAB-UI'!$D$11:$D$109,B31),0) -> 0 | K31: =IF(B31<>"",SUMIFS('TAB-UI'!$L$11:$L$109,'TAB-UI'!$D$11:$D$109,B31),0) -> 0 | L31: =IF(B31<>"",SUMIFS('TAB-UI'!$M$11:$M$109,'TAB-UI'!$D$11:$D$109,B31),0) -> 0 | M31: =IF(B31<>"",SUMIFS('TAB-UI'!$N$11:$N$109,'TAB-UI'!$D$11:$D$109,B31),0) -> 0 | N31: =IF(B31<>"",SUMIFS('TAB-UI'!$O$11:$O$109,'TAB-UI'!$D$11:$D$109,B31),0) -> 0
A32: 22 | B32: =CONDOMINI!B32 -> C22 | D32: =IF(C32<>"",IFERROR(VLOOKUP(B32,CONDOMINI!$B$11:$C$109,2,FALSE),""),"") ->  | E32: =IF(B32<>"",SUMIFS('TAB-UI'!$F$11:$F$109,'TAB-UI'!$D$11:$D$109,B32),0) -> 0 | F32: =IF(B32<>"",SUMIFS('TAB-UI'!$G$11:$G$109,'TAB-UI'!$D$11:$D$109,B32),0) -> 0 | G32: =IF(B32<>"",SUMIFS('TAB-UI'!$H$11:$H$109,'TAB-UI'!$D$11:$D$109,B32),0) -> 0 | H32: =IF(B32<>"",SUMIFS('TAB-UI'!$I$11:$I$109,'TAB-UI'!$D$11:$D$109,B32),0) -> 0 | I32: =IF(B32<>"",SUMIFS('TAB-UI'!$J$11:$J$109,'TAB-UI'!$D$11:$D$109,B32),0) -> 0 | J32: =IF(B32<>"",SUMIFS('TAB-UI'!$K$11:$K$109,'TAB-UI'!$D$11:$D$109,B32),0) -> 0 | K32: =IF(B32<>"",SUMIFS('TAB-UI'!$L$11:$L$109,'TAB-UI'!$D$11:$D$109,B32),0) -> 0 | L32: =IF(B32<>"",SUMIFS('TAB-UI'!$M$11:$M$109,'TAB-UI'!$D$11:$D$109,B32),0) -> 0 | M32: =IF(B32<>"",SUMIFS('TAB-UI'!$N$11:$N$109,'TAB-UI'!$D$11:$D$109,B32),0) -> 0 | N32: =IF(B32<>"",SUMIFS('TAB-UI'!$O$11:$O$109,'TAB-UI'!$D$11:$D$109,B32),0) -> 0
A33: 23 | B33: =CONDOMINI!B33 -> C23 | D33: =IF(C33<>"",IFERROR(VLOOKUP(B33,CONDOMINI!$B$11:$C$109,2,FALSE),""),"") ->  | E33: =IF(B33<>"",SUMIFS('TAB-UI'!$F$11:$F$109,'TAB-UI'!$D$11:$D$109,B33),0) -> 0 | F33: =IF(B33<>"",SUMIFS('TAB-UI'!$G$11:$G$109,'TAB-UI'!$D$11:$D$109,B33),0) -> 0 | G33: =IF(B33<>"",SUMIFS('TAB-UI'!$H$11:$H$109,'TAB-UI'!$D$11:$D$109,B33),0) -> 0 | H33: =IF(B33<>"",SUMIFS('TAB-UI'!$I$11:$I$109,'TAB-UI'!$D$11:$D$109,B33),0) -> 0 | I33: =IF(B33<>"",SUMIFS('TAB-UI'!$J$11:$J$109,'TAB-UI'!$D$11:$D$109,B33),0) -> 0 | J33: =IF(B33<>"",SUMIFS('TAB-UI'!$K$11:$K$109,'TAB-UI'!$D$11:$D$109,B33),0) -> 0 | K33: =IF(B33<>"",SUMIFS('TAB-UI'!$L$11:$L$109,'TAB-UI'!$D$11:$D$109,B33),0) -> 0 | L33: =IF(B33<>"",SUMIFS('TAB-UI'!$M$11:$M$109,'TAB-UI'!$D$11:$D$109,B33),0) -> 0 | M33: =IF(B33<>"",SUMIFS('TAB-UI'!$N$11:$N$109,'TAB-UI'!$D$11:$D$109,B33),0) -> 0 | N33: =IF(B33<>"",SUMIFS('TAB-UI'!$O$11:$O$109,'TAB-UI'!$D$11:$D$109,B33),0) -> 0
A34: 24 | B34: =CONDOMINI!B34 -> C24 | D34: =IF(C34<>"",IFERROR(VLOOKUP(B34,CONDOMINI!$B$11:$C$109,2,FALSE),""),"") ->  | E34: =IF(B34<>"",SUMIFS('TAB-UI'!$F$11:$F$109,'TAB-UI'!$D$11:$D$109,B34),0) -> 0 | F34: =IF(B34<>"",SUMIFS('TAB-UI'!$G$11:$G$109,'TAB-UI'!$D$11:$D$109,B34),0) -> 0 | G34: =IF(B34<>"",SUMIFS('TAB-UI'!$H$11:$H$109,'TAB-UI'!$D$11:$D$109,B34),0) -> 0 | H34: =IF(B34<>"",SUMIFS('TAB-UI'!$I$11:$I$109,'TAB-UI'!$D$11:$D$109,B34),0) -> 0 | I34: =IF(B34<>"",SUMIFS('TAB-UI'!$J$11:$J$109,'TAB-UI'!$D$11:$D$109,B34),0) -> 0 | J34: =IF(B34<>"",SUMIFS('TAB-UI'!$K$11:$K$109,'TAB-UI'!$D$11:$D$109,B34),0) -> 0 | K34: =IF(B34<>"",SUMIFS('TAB-UI'!$L$11:$L$109,'TAB-UI'!$D$11:$D$109,B34),0) -> 0 | L34: =IF(B34<>"",SUMIFS('TAB-UI'!$M$11:$M$109,'TAB-UI'!$D$11:$D$109,B34),0) -> 0 | M34: =IF(B34<>"",SUMIFS('TAB-UI'!$N$11:$N$109,'TAB-UI'!$D$11:$D$109,B34),0) -> 0 | N34: =IF(B34<>"",SUMIFS('TAB-UI'!$O$11:$O$109,'TAB-UI'!$D$11:$D$109,B34),0) -> 0
A35: 25 | B35: =CONDOMINI!B35 -> C25 | D35: =IF(C35<>"",IFERROR(VLOOKUP(B35,CONDOMINI!$B$11:$C$109,2,FALSE),""),"") ->  | E35: =IF(B35<>"",SUMIFS('TAB-UI'!$F$11:$F$109,'TAB-UI'!$D$11:$D$109,B35),0) -> 0 | F35: =IF(B35<>"",SUMIFS('TAB-UI'!$G$11:$G$109,'TAB-UI'!$D$11:$D$109,B35),0) -> 0 | G35: =IF(B35<>"",SUMIFS('TAB-UI'!$H$11:$H$109,'TAB-UI'!$D$11:$D$109,B35),0) -> 0 | H35: =IF(B35<>"",SUMIFS('TAB-UI'!$I$11:$I$109,'TAB-UI'!$D$11:$D$109,B35),0) -> 0 | I35: =IF(B35<>"",SUMIFS('TAB-UI'!$J$11:$J$109,'TAB-UI'!$D$11:$D$109,B35),0) -> 0 | J35: =IF(B35<>"",SUMIFS('TAB-UI'!$K$11:$K$109,'TAB-UI'!$D$11:$D$109,B35),0) -> 0 | K35: =IF(B35<>"",SUMIFS('TAB-UI'!$L$11:$L$109,'TAB-UI'!$D$11:$D$109,B35),0) -> 0 | L35: =IF(B35<>"",SUMIFS('TAB-UI'!$M$11:$M$109,'TAB-UI'!$D$11:$D$109,B35),0) -> 0 | M35: =IF(B35<>"",SUMIFS('TAB-UI'!$N$11:$N$109,'TAB-UI'!$D$11:$D$109,B35),0) -> 0 | N35: =IF(B35<>"",SUMIFS('TAB-UI'!$O$11:$O$109,'TAB-UI'!$D$11:$D$109,B35),0) -> 0
A36: 26 | B36: =CONDOMINI!B36 -> C26 | D36: =IF(C36<>"",IFERROR(VLOOKUP(B36,CONDOMINI!$B$11:$C$109,2,FALSE),""),"") ->  | E36: =IF(B36<>"",SUMIFS('TAB-UI'!$F$11:$F$109,'TAB-UI'!$D$11:$D$109,B36),0) -> 0 | F36: =IF(B36<>"",SUMIFS('TAB-UI'!$G$11:$G$109,'TAB-UI'!$D$11:$D$109,B36),0) -> 0 | G36: =IF(B36<>"",SUMIFS('TAB-UI'!$H$11:$H$109,'TAB-UI'!$D$11:$D$109,B36),0) -> 0 | H36: =IF(B36<>"",SUMIFS('TAB-UI'!$I$11:$I$109,'TAB-UI'!$D$11:$D$109,B36),0) -> 0 | I36: =IF(B36<>"",SUMIFS('TAB-UI'!$J$11:$J$109,'TAB-UI'!$D$11:$D$109,B36),0) -> 0 | J36: =IF(B36<>"",SUMIFS('TAB-UI'!$K$11:$K$109,'TAB-UI'!$D$11:$D$109,B36),0) -> 0 | K36: =IF(B36<>"",SUMIFS('TAB-UI'!$L$11:$L$109,'TAB-UI'!$D$11:$D$109,B36),0) -> 0 | L36: =IF(B36<>"",SUMIFS('TAB-UI'!$M$11:$M$109,'TAB-UI'!$D$11:$D$109,B36),0) -> 0 | M36: =IF(B36<>"",SUMIFS('TAB-UI'!$N$11:$N$109,'TAB-UI'!$D$11:$D$109,B36),0) -> 0 | N36: =IF(B36<>"",SUMIFS('TAB-UI'!$O$11:$O$109,'TAB-UI'!$D$11:$D$109,B36),0) -> 0
A37: 27 | B37: =CONDOMINI!B37 -> C27 | D37: =IF(C37<>"",IFERROR(VLOOKUP(B37,CONDOMINI!$B$11:$C$109,2,FALSE),""),"") ->  | E37: =IF(B37<>"",SUMIFS('TAB-UI'!$F$11:$F$109,'TAB-UI'!$D$11:$D$109,B37),0) -> 0 | F37: =IF(B37<>"",SUMIFS('TAB-UI'!$G$11:$G$109,'TAB-UI'!$D$11:$D$109,B37),0) -> 0 | G37: =IF(B37<>"",SUMIFS('TAB-UI'!$H$11:$H$109,'TAB-UI'!$D$11:$D$109,B37),0) -> 0 | H37: =IF(B37<>"",SUMIFS('TAB-UI'!$I$11:$I$109,'TAB-UI'!$D$11:$D$109,B37),0) -> 0 | I37: =IF(B37<>"",SUMIFS('TAB-UI'!$J$11:$J$109,'TAB-UI'!$D$11:$D$109,B37),0) -> 0 | J37: =IF(B37<>"",SUMIFS('TAB-UI'!$K$11:$K$109,'TAB-UI'!$D$11:$D$109,B37),0) -> 0 | K37: =IF(B37<>"",SUMIFS('TAB-UI'!$L$11:$L$109,'TAB-UI'!$D$11:$D$109,B37),0) -> 0 | L37: =IF(B37<>"",SUMIFS('TAB-UI'!$M$11:$M$109,'TAB-UI'!$D$11:$D$109,B37),0) -> 0 | M37: =IF(B37<>"",SUMIFS('TAB-UI'!$N$11:$N$109,'TAB-UI'!$D$11:$D$109,B37),0) -> 0 | N37: =IF(B37<>"",SUMIFS('TAB-UI'!$O$11:$O$109,'TAB-UI'!$D$11:$D$109,B37),0) -> 0
A38: 28 | B38: =CONDOMINI!B38 -> C28 | D38: =IF(C38<>"",IFERROR(VLOOKUP(B38,CONDOMINI!$B$11:$C$109,2,FALSE),""),"") ->  | E38: =IF(B38<>"",SUMIFS('TAB-UI'!$F$11:$F$109,'TAB-UI'!$D$11:$D$109,B38),0) -> 0 | F38: =IF(B38<>"",SUMIFS('TAB-UI'!$G$11:$G$109,'TAB-UI'!$D$11:$D$109,B38),0) -> 0 | G38: =IF(B38<>"",SUMIFS('TAB-UI'!$H$11:$H$109,'TAB-UI'!$D$11:$D$109,B38),0) -> 0 | H38: =IF(B38<>"",SUMIFS('TAB-UI'!$I$11:$I$109,'TAB-UI'!$D$11:$D$109,B38),0) -> 0 | I38: =IF(B38<>"",SUMIFS('TAB-UI'!$J$11:$J$109,'TAB-UI'!$D$11:$D$109,B38),0) -> 0 | J38: =IF(B38<>"",SUMIFS('TAB-UI'!$K$11:$K$109,'TAB-UI'!$D$11:$D$109,B38),0) -> 0 | K38: =IF(B38<>"",SUMIFS('TAB-UI'!$L$11:$L$109,'TAB-UI'!$D$11:$D$109,B38),0) -> 0 | L38: =IF(B38<>"",SUMIFS('TAB-UI'!$M$11:$M$109,'TAB-UI'!$D$11:$D$109,B38),0) -> 0 | M38: =IF(B38<>"",SUMIFS('TAB-UI'!$N$11:$N$109,'TAB-UI'!$D$11:$D$109,B38),0) -> 0 | N38: =IF(B38<>"",SUMIFS('TAB-UI'!$O$11:$O$109,'TAB-UI'!$D$11:$D$109,B38),0) -> 0
A39: 29 | B39: =CONDOMINI!B39 -> C29 | D39: =IF(C39<>"",IFERROR(VLOOKUP(B39,CONDOMINI!$B$11:$C$109,2,FALSE),""),"") ->  | E39: =IF(B39<>"",SUMIFS('TAB-UI'!$F$11:$F$109,'TAB-UI'!$D$11:$D$109,B39),0) -> 0 | F39: =IF(B39<>"",SUMIFS('TAB-UI'!$G$11:$G$109,'TAB-UI'!$D$11:$D$109,B39),0) -> 0 | G39: =IF(B39<>"",SUMIFS('TAB-UI'!$H$11:$H$109,'TAB-UI'!$D$11:$D$109,B39),0) -> 0 | H39: =IF(B39<>"",SUMIFS('TAB-UI'!$I$11:$I$109,'TAB-UI'!$D$11:$D$109,B39),0) -> 0 | I39: =IF(B39<>"",SUMIFS('TAB-UI'!$J$11:$J$109,'TAB-UI'!$D$11:$D$109,B39),0) -> 0 | J39: =IF(B39<>"",SUMIFS('TAB-UI'!$K$11:$K$109,'TAB-UI'!$D$11:$D$109,B39),0) -> 0 | K39: =IF(B39<>"",SUMIFS('TAB-UI'!$L$11:$L$109,'TAB-UI'!$D$11:$D$109,B39),0) -> 0 | L39: =IF(B39<>"",SUMIFS('TAB-UI'!$M$11:$M$109,'TAB-UI'!$D$11:$D$109,B39),0) -> 0 | M39: =IF(B39<>"",SUMIFS('TAB-UI'!$N$11:$N$109,'TAB-UI'!$D$11:$D$109,B39),0) -> 0 | N39: =IF(B39<>"",SUMIFS('TAB-UI'!$O$11:$O$109,'TAB-UI'!$D$11:$D$109,B39),0) -> 0
A40: 30 | B40: =CONDOMINI!B40 -> C30 | D40: =IF(C40<>"",IFERROR(VLOOKUP(B40,CONDOMINI!$B$11:$C$109,2,FALSE),""),"") ->  | E40: =IF(B40<>"",SUMIFS('TAB-UI'!$F$11:$F$109,'TAB-UI'!$D$11:$D$109,B40),0) -> 0 | F40: =IF(B40<>"",SUMIFS('TAB-UI'!$G$11:$G$109,'TAB-UI'!$D$11:$D$109,B40),0) -> 0 | G40: =IF(B40<>"",SUMIFS('TAB-UI'!$H$11:$H$109,'TAB-UI'!$D$11:$D$109,B40),0) -> 0 | H40: =IF(B40<>"",SUMIFS('TAB-UI'!$I$11:$I$109,'TAB-UI'!$D$11:$D$109,B40),0) -> 0 | I40: =IF(B40<>"",SUMIFS('TAB-UI'!$J$11:$J$109,'TAB-UI'!$D$11:$D$109,B40),0) -> 0 | J40: =IF(B40<>"",SUMIFS('TAB-UI'!$K$11:$K$109,'TAB-UI'!$D$11:$D$109,B40),0) -> 0 | K40: =IF(B40<>"",SUMIFS('TAB-UI'!$L$11:$L$109,'TAB-UI'!$D$11:$D$109,B40),0) -> 0 | L40: =IF(B40<>"",SUMIFS('TAB-UI'!$M$11:$M$109,'TAB-UI'!$D$11:$D$109,B40),0) -> 0 | M40: =IF(B40<>"",SUMIFS('TAB-UI'!$N$11:$N$109,'TAB-UI'!$D$11:$D$109,B40),0) -> 0 | N40: =IF(B40<>"",SUMIFS('TAB-UI'!$O$11:$O$109,'TAB-UI'!$D$11:$D$109,B40),0) -> 0
A41: 31 | B41: =CONDOMINI!B41 -> C31 | D41: =IF(C41<>"",IFERROR(VLOOKUP(B41,CONDOMINI!$B$11:$C$109,2,FALSE),""),"") ->  | E41: =IF(B41<>"",SUMIFS('TAB-UI'!$F$11:$F$109,'TAB-UI'!$D$11:$D$109,B41),0) -> 0 | F41: =IF(B41<>"",SUMIFS('TAB-UI'!$G$11:$G$109,'TAB-UI'!$D$11:$D$109,B41),0) -> 0 | G41: =IF(B41<>"",SUMIFS('TAB-UI'!$H$11:$H$109,'TAB-UI'!$D$11:$D$109,B41),0) -> 0 | H41: =IF(B41<>"",SUMIFS('TAB-UI'!$I$11:$I$109,'TAB-UI'!$D$11:$D$109,B41),0) -> 0 | I41: =IF(B41<>"",SUMIFS('TAB-UI'!$J$11:$J$109,'TAB-UI'!$D$11:$D$109,B41),0) -> 0 | J41: =IF(B41<>"",SUMIFS('TAB-UI'!$K$11:$K$109,'TAB-UI'!$D$11:$D$109,B41),0) -> 0 | K41: =IF(B41<>"",SUMIFS('TAB-UI'!$L$11:$L$109,'TAB-UI'!$D$11:$D$109,B41),0) -> 0 | L41: =IF(B41<>"",SUMIFS('TAB-UI'!$M$11:$M$109,'TAB-UI'!$D$11:$D$109,B41),0) -> 0 | M41: =IF(B41<>"",SUMIFS('TAB-UI'!$N$11:$N$109,'TAB-UI'!$D$11:$D$109,B41),0) -> 0 | N41: =IF(B41<>"",SUMIFS('TAB-UI'!$O$11:$O$109,'TAB-UI'!$D$11:$D$109,B41),0) -> 0
A42: 32 | B42: =CONDOMINI!B42 -> C32 | D42: =IF(C42<>"",IFERROR(VLOOKUP(B42,CONDOMINI!$B$11:$C$109,2,FALSE),""),"") ->  | E42: =IF(B42<>"",SUMIFS('TAB-UI'!$F$11:$F$109,'TAB-UI'!$D$11:$D$109,B42),0) -> 0 | F42: =IF(B42<>"",SUMIFS('TAB-UI'!$G$11:$G$109,'TAB-UI'!$D$11:$D$109,B42),0) -> 0 | G42: =IF(B42<>"",SUMIFS('TAB-UI'!$H$11:$H$109,'TAB-UI'!$D$11:$D$109,B42),0) -> 0 | H42: =IF(B42<>"",SUMIFS('TAB-UI'!$I$11:$I$109,'TAB-UI'!$D$11:$D$109,B42),0) -> 0 | I42: =IF(B42<>"",SUMIFS('TAB-UI'!$J$11:$J$109,'TAB-UI'!$D$11:$D$109,B42),0) -> 0 | J42: =IF(B42<>"",SUMIFS('TAB-UI'!$K$11:$K$109,'TAB-UI'!$D$11:$D$109,B42),0) -> 0 | K42: =IF(B42<>"",SUMIFS('TAB-UI'!$L$11:$L$109,'TAB-UI'!$D$11:$D$109,B42),0) -> 0 | L42: =IF(B42<>"",SUMIFS('TAB-UI'!$M$11:$M$109,'TAB-UI'!$D$11:$D$109,B42),0) -> 0 | M42: =IF(B42<>"",SUMIFS('TAB-UI'!$N$11:$N$109,'TAB-UI'!$D$11:$D$109,B42),0) -> 0 | N42: =IF(B42<>"",SUMIFS('TAB-UI'!$O$11:$O$109,'TAB-UI'!$D$11:$D$109,B42),0) -> 0
A43: 33 | B43: =CONDOMINI!B43 -> C33 | D43: =IF(C43<>"",IFERROR(VLOOKUP(B43,CONDOMINI!$B$11:$C$109,2,FALSE),""),"") ->  | E43: =IF(B43<>"",SUMIFS('TAB-UI'!$F$11:$F$109,'TAB-UI'!$D$11:$D$109,B43),0) -> 0 | F43: =IF(B43<>"",SUMIFS('TAB-UI'!$G$11:$G$109,'TAB-UI'!$D$11:$D$109,B43),0) -> 0 | G43: =IF(B43<>"",SUMIFS('TAB-UI'!$H$11:$H$109,'TAB-UI'!$D$11:$D$109,B43),0) -> 0 | H43: =IF(B43<>"",SUMIFS('TAB-UI'!$I$11:$I$109,'TAB-UI'!$D$11:$D$109,B43),0) -> 0 | I43: =IF(B43<>"",SUMIFS('TAB-UI'!$J$11:$J$109,'TAB-UI'!$D$11:$D$109,B43),0) -> 0 | J43: =IF(B43<>"",SUMIFS('TAB-UI'!$K$11:$K$109,'TAB-UI'!$D$11:$D$109,B43),0) -> 0 | K43: =IF(B43<>"",SUMIFS('TAB-UI'!$L$11:$L$109,'TAB-UI'!$D$11:$D$109,B43),0) -> 0 | L43: =IF(B43<>"",SUMIFS('TAB-UI'!$M$11:$M$109,'TAB-UI'!$D$11:$D$109,B43),0) -> 0 | M43: =IF(B43<>"",SUMIFS('TAB-UI'!$N$11:$N$109,'TAB-UI'!$D$11:$D$109,B43),0) -> 0 | N43: =IF(B43<>"",SUMIFS('TAB-UI'!$O$11:$O$109,'TAB-UI'!$D$11:$D$109,B43),0) -> 0
A44: 34 | B44: =CONDOMINI!B44 -> C34 | D44: =IF(C44<>"",IFERROR(VLOOKUP(B44,CONDOMINI!$B$11:$C$109,2,FALSE),""),"") ->  | E44: =IF(B44<>"",SUMIFS('TAB-UI'!$F$11:$F$109,'TAB-UI'!$D$11:$D$109,B44),0) -> 0 | F44: =IF(B44<>"",SUMIFS('TAB-UI'!$G$11:$G$109,'TAB-UI'!$D$11:$D$109,B44),0) -> 0 | G44: =IF(B44<>"",SUMIFS('TAB-UI'!$H$11:$H$109,'TAB-UI'!$D$11:$D$109,B44),0) -> 0 | H44: =IF(B44<>"",SUMIFS('TAB-UI'!$I$11:$I$109,'TAB-UI'!$D$11:$D$109,B44),0) -> 0 | I44: =IF(B44<>"",SUMIFS('TAB-UI'!$J$11:$J$109,'TAB-UI'!$D$11:$D$109,B44),0) -> 0 | J44: =IF(B44<>"",SUMIFS('TAB-UI'!$K$11:$K$109,'TAB-UI'!$D$11:$D$109,B44),0) -> 0 | K44: =IF(B44<>"",SUMIFS('TAB-UI'!$L$11:$L$109,'TAB-UI'!$D$11:$D$109,B44),0) -> 0 | L44: =IF(B44<>"",SUMIFS('TAB-UI'!$M$11:$M$109,'TAB-UI'!$D$11:$D$109,B44),0) -> 0 | M44: =IF(B44<>"",SUMIFS('TAB-UI'!$N$11:$N$109,'TAB-UI'!$D$11:$D$109,B44),0) -> 0 | N44: =IF(B44<>"",SUMIFS('TAB-UI'!$O$11:$O$109,'TAB-UI'!$D$11:$D$109,B44),0) -> 0
A45: 35 | B45: =CONDOMINI!B45 -> C35 | D45: =IF(C45<>"",IFERROR(VLOOKUP(B45,CONDOMINI!$B$11:$C$109,2,FALSE),""),"") ->  | E45: =IF(B45<>"",SUMIFS('TAB-UI'!$F$11:$F$109,'TAB-UI'!$D$11:$D$109,B45),0) -> 0 | F45: =IF(B45<>"",SUMIFS('TAB-UI'!$G$11:$G$109,'TAB-UI'!$D$11:$D$109,B45),0) -> 0 | G45: =IF(B45<>"",SUMIFS('TAB-UI'!$H$11:$H$109,'TAB-UI'!$D$11:$D$109,B45),0) -> 0 | H45: =IF(B45<>"",SUMIFS('TAB-UI'!$I$11:$I$109,'TAB-UI'!$D$11:$D$109,B45),0) -> 0 | I45: =IF(B45<>"",SUMIFS('TAB-UI'!$J$11:$J$109,'TAB-UI'!$D$11:$D$109,B45),0) -> 0 | J45: =IF(B45<>"",SUMIFS('TAB-UI'!$K$11:$K$109,'TAB-UI'!$D$11:$D$109,B45),0) -> 0 | K45: =IF(B45<>"",SUMIFS('TAB-UI'!$L$11:$L$109,'TAB-UI'!$D$11:$D$109,B45),0) -> 0 | L45: =IF(B45<>"",SUMIFS('TAB-UI'!$M$11:$M$109,'TAB-UI'!$D$11:$D$109,B45),0) -> 0 | M45: =IF(B45<>"",SUMIFS('TAB-UI'!$N$11:$N$109,'TAB-UI'!$D$11:$D$109,B45),0) -> 0 | N45: =IF(B45<>"",SUMIFS('TAB-UI'!$O$11:$O$109,'TAB-UI'!$D$11:$D$109,B45),0) -> 0
A46: 36 | B46: =CONDOMINI!B46 -> C36 | D46: =IF(C46<>"",IFERROR(VLOOKUP(B46,CONDOMINI!$B$11:$C$109,2,FALSE),""),"") ->  | E46: =IF(B46<>"",SUMIFS('TAB-UI'!$F$11:$F$109,'TAB-UI'!$D$11:$D$109,B46),0) -> 0 | F46: =IF(B46<>"",SUMIFS('TAB-UI'!$G$11:$G$109,'TAB-UI'!$D$11:$D$109,B46),0) -> 0 | G46: =IF(B46<>"",SUMIFS('TAB-UI'!$H$11:$H$109,'TAB-UI'!$D$11:$D$109,B46),0) -> 0 | H46: =IF(B46<>"",SUMIFS('TAB-UI'!$I$11:$I$109,'TAB-UI'!$D$11:$D$109,B46),0) -> 0 | I46: =IF(B46<>"",SUMIFS('TAB-UI'!$J$11:$J$109,'TAB-UI'!$D$11:$D$109,B46),0) -> 0 | J46: =IF(B46<>"",SUMIFS('TAB-UI'!$K$11:$K$109,'TAB-UI'!$D$11:$D$109,B46),0) -> 0 | K46: =IF(B46<>"",SUMIFS('TAB-UI'!$L$11:$L$109,'TAB-UI'!$D$11:$D$109,B46),0) -> 0 | L46: =IF(B46<>"",SUMIFS('TAB-UI'!$M$11:$M$109,'TAB-UI'!$D$11:$D$109,B46),0) -> 0 | M46: =IF(B46<>"",SUMIFS('TAB-UI'!$N$11:$N$109,'TAB-UI'!$D$11:$D$109,B46),0) -> 0 | N46: =IF(B46<>"",SUMIFS('TAB-UI'!$O$11:$O$109,'TAB-UI'!$D$11:$D$109,B46),0) -> 0
A47: 37 | B47: =CONDOMINI!B47 -> C37 | D47: =IF(C47<>"",IFERROR(VLOOKUP(B47,CONDOMINI!$B$11:$C$109,2,FALSE),""),"") ->  | E47: =IF(B47<>"",SUMIFS('TAB-UI'!$F$11:$F$109,'TAB-UI'!$D$11:$D$109,B47),0) -> 0 | F47: =IF(B47<>"",SUMIFS('TAB-UI'!$G$11:$G$109,'TAB-UI'!$D$11:$D$109,B47),0) -> 0 | G47: =IF(B47<>"",SUMIFS('TAB-UI'!$H$11:$H$109,'TAB-UI'!$D$11:$D$109,B47),0) -> 0 | H47: =IF(B47<>"",SUMIFS('TAB-UI'!$I$11:$I$109,'TAB-UI'!$D$11:$D$109,B47),0) -> 0 | I47: =IF(B47<>"",SUMIFS('TAB-UI'!$J$11:$J$109,'TAB-UI'!$D$11:$D$109,B47),0) -> 0 | J47: =IF(B47<>"",SUMIFS('TAB-UI'!$K$11:$K$109,'TAB-UI'!$D$11:$D$109,B47),0) -> 0 | K47: =IF(B47<>"",SUMIFS('TAB-UI'!$L$11:$L$109,'TAB-UI'!$D$11:$D$109,B47),0) -> 0 | L47: =IF(B47<>"",SUMIFS('TAB-UI'!$M$11:$M$109,'TAB-UI'!$D$11:$D$109,B47),0) -> 0 | M47: =IF(B47<>"",SUMIFS('TAB-UI'!$N$11:$N$109,'TAB-UI'!$D$11:$D$109,B47),0) -> 0 | N47: =IF(B47<>"",SUMIFS('TAB-UI'!$O$11:$O$109,'TAB-UI'!$D$11:$D$109,B47),0) -> 0
A48: 38 | B48: =CONDOMINI!B48 -> C38 | D48: =IF(C48<>"",IFERROR(VLOOKUP(B48,CONDOMINI!$B$11:$C$109,2,FALSE),""),"") ->  | E48: =IF(B48<>"",SUMIFS('TAB-UI'!$F$11:$F$109,'TAB-UI'!$D$11:$D$109,B48),0) -> 0 | F48: =IF(B48<>"",SUMIFS('TAB-UI'!$G$11:$G$109,'TAB-UI'!$D$11:$D$109,B48),0) -> 0 | G48: =IF(B48<>"",SUMIFS('TAB-UI'!$H$11:$H$109,'TAB-UI'!$D$11:$D$109,B48),0) -> 0 | H48: =IF(B48<>"",SUMIFS('TAB-UI'!$I$11:$I$109,'TAB-UI'!$D$11:$D$109,B48),0) -> 0 | I48: =IF(B48<>"",SUMIFS('TAB-UI'!$J$11:$J$109,'TAB-UI'!$D$11:$D$109,B48),0) -> 0 | J48: =IF(B48<>"",SUMIFS('TAB-UI'!$K$11:$K$109,'TAB-UI'!$D$11:$D$109,B48),0) -> 0 | K48: =IF(B48<>"",SUMIFS('TAB-UI'!$L$11:$L$109,'TAB-UI'!$D$11:$D$109,B48),0) -> 0 | L48: =IF(B48<>"",SUMIFS('TAB-UI'!$M$11:$M$109,'TAB-UI'!$D$11:$D$109,B48),0) -> 0 | M48: =IF(B48<>"",SUMIFS('TAB-UI'!$N$11:$N$109,'TAB-UI'!$D$11:$D$109,B48),0) -> 0 | N48: =IF(B48<>"",SUMIFS('TAB-UI'!$O$11:$O$109,'TAB-UI'!$D$11:$D$109,B48),0) -> 0
A49: 39 | B49: =CONDOMINI!B49 -> C39 | D49: =IF(C49<>"",IFERROR(VLOOKUP(B49,CONDOMINI!$B$11:$C$109,2,FALSE),""),"") ->  | E49: =IF(B49<>"",SUMIFS('TAB-UI'!$F$11:$F$109,'TAB-UI'!$D$11:$D$109,B49),0) -> 0 | F49: =IF(B49<>"",SUMIFS('TAB-UI'!$G$11:$G$109,'TAB-UI'!$D$11:$D$109,B49),0) -> 0 | G49: =IF(B49<>"",SUMIFS('TAB-UI'!$H$11:$H$109,'TAB-UI'!$D$11:$D$109,B49),0) -> 0 | H49: =IF(B49<>"",SUMIFS('TAB-UI'!$I$11:$I$109,'TAB-UI'!$D$11:$D$109,B49),0) -> 0 | I49: =IF(B49<>"",SUMIFS('TAB-UI'!$J$11:$J$109,'TAB-UI'!$D$11:$D$109,B49),0) -> 0 | J49: =IF(B49<>"",SUMIFS('TAB-UI'!$K$11:$K$109,'TAB-UI'!$D$11:$D$109,B49),0) -> 0 | K49: =IF(B49<>"",SUMIFS('TAB-UI'!$L$11:$L$109,'TAB-UI'!$D$11:$D$109,B49),0) -> 0 | L49: =IF(B49<>"",SUMIFS('TAB-UI'!$M$11:$M$109,'TAB-UI'!$D$11:$D$109,B49),0) -> 0 | M49: =IF(B49<>"",SUMIFS('TAB-UI'!$N$11:$N$109,'TAB-UI'!$D$11:$D$109,B49),0) -> 0 | N49: =IF(B49<>"",SUMIFS('TAB-UI'!$O$11:$O$109,'TAB-UI'!$D$11:$D$109,B49),0) -> 0
A50: 40 | B50: =CONDOMINI!B50 -> C40 | D50: =IF(C50<>"",IFERROR(VLOOKUP(B50,CONDOMINI!$B$11:$C$109,2,FALSE),""),"") ->  | E50: =IF(B50<>"",SUMIFS('TAB-UI'!$F$11:$F$109,'TAB-UI'!$D$11:$D$109,B50),0) -> 0 | F50: =IF(B50<>"",SUMIFS('TAB-UI'!$G$11:$G$109,'TAB-UI'!$D$11:$D$109,B50),0) -> 0 | G50: =IF(B50<>"",SUMIFS('TAB-UI'!$H$11:$H$109,'TAB-UI'!$D$11:$D$109,B50),0) -> 0 | H50: =IF(B50<>"",SUMIFS('TAB-UI'!$I$11:$I$109,'TAB-UI'!$D$11:$D$109,B50),0) -> 0 | I50: =IF(B50<>"",SUMIFS('TAB-UI'!$J$11:$J$109,'TAB-UI'!$D$11:$D$109,B50),0) -> 0 | J50: =IF(B50<>"",SUMIFS('TAB-UI'!$K$11:$K$109,'TAB-UI'!$D$11:$D$109,B50),0) -> 0 | K50: =IF(B50<>"",SUMIFS('TAB-UI'!$L$11:$L$109,'TAB-UI'!$D$11:$D$109,B50),0) -> 0 | L50: =IF(B50<>"",SUMIFS('TAB-UI'!$M$11:$M$109,'TAB-UI'!$D$11:$D$109,B50),0) -> 0 | M50: =IF(B50<>"",SUMIFS('TAB-UI'!$N$11:$N$109,'TAB-UI'!$D$11:$D$109,B50),0) -> 0 | N50: =IF(B50<>"",SUMIFS('TAB-UI'!$O$11:$O$109,'TAB-UI'!$D$11:$D$109,B50),0) -> 0
A51: 41 | B51: =CONDOMINI!B51 -> C41 | D51: =IF(C51<>"",IFERROR(VLOOKUP(B51,CONDOMINI!$B$11:$C$109,2,FALSE),""),"") ->  | E51: =IF(B51<>"",SUMIFS('TAB-UI'!$F$11:$F$109,'TAB-UI'!$D$11:$D$109,B51),0) -> 0 | F51: =IF(B51<>"",SUMIFS('TAB-UI'!$G$11:$G$109,'TAB-UI'!$D$11:$D$109,B51),0) -> 0 | G51: =IF(B51<>"",SUMIFS('TAB-UI'!$H$11:$H$109,'TAB-UI'!$D$11:$D$109,B51),0) -> 0 | H51: =IF(B51<>"",SUMIFS('TAB-UI'!$I$11:$I$109,'TAB-UI'!$D$11:$D$109,B51),0) -> 0 | I51: =IF(B51<>"",SUMIFS('TAB-UI'!$J$11:$J$109,'TAB-UI'!$D$11:$D$109,B51),0) -> 0 | J51: =IF(B51<>"",SUMIFS('TAB-UI'!$K$11:$K$109,'TAB-UI'!$D$11:$D$109,B51),0) -> 0 | K51: =IF(B51<>"",SUMIFS('TAB-UI'!$L$11:$L$109,'TAB-UI'!$D$11:$D$109,B51),0) -> 0 | L51: =IF(B51<>"",SUMIFS('TAB-UI'!$M$11:$M$109,'TAB-UI'!$D$11:$D$109,B51),0) -> 0 | M51: =IF(B51<>"",SUMIFS('TAB-UI'!$N$11:$N$109,'TAB-UI'!$D$11:$D$109,B51),0) -> 0 | N51: =IF(B51<>"",SUMIFS('TAB-UI'!$O$11:$O$109,'TAB-UI'!$D$11:$D$109,B51),0) -> 0
A52: 42 | B52: =CONDOMINI!B52 -> C42 | D52: =IF(C52<>"",IFERROR(VLOOKUP(B52,CONDOMINI!$B$11:$C$109,2,FALSE),""),"") ->  | E52: =IF(B52<>"",SUMIFS('TAB-UI'!$F$11:$F$109,'TAB-UI'!$D$11:$D$109,B52),0) -> 0 | F52: =IF(B52<>"",SUMIFS('TAB-UI'!$G$11:$G$109,'TAB-UI'!$D$11:$D$109,B52),0) -> 0 | G52: =IF(B52<>"",SUMIFS('TAB-UI'!$H$11:$H$109,'TAB-UI'!$D$11:$D$109,B52),0) -> 0 | H52: =IF(B52<>"",SUMIFS('TAB-UI'!$I$11:$I$109,'TAB-UI'!$D$11:$D$109,B52),0) -> 0 | I52: =IF(B52<>"",SUMIFS('TAB-UI'!$J$11:$J$109,'TAB-UI'!$D$11:$D$109,B52),0) -> 0 | J52: =IF(B52<>"",SUMIFS('TAB-UI'!$K$11:$K$109,'TAB-UI'!$D$11:$D$109,B52),0) -> 0 | K52: =IF(B52<>"",SUMIFS('TAB-UI'!$L$11:$L$109,'TAB-UI'!$D$11:$D$109,B52),0) -> 0 | L52: =IF(B52<>"",SUMIFS('TAB-UI'!$M$11:$M$109,'TAB-UI'!$D$11:$D$109,B52),0) -> 0 | M52: =IF(B52<>"",SUMIFS('TAB-UI'!$N$11:$N$109,'TAB-UI'!$D$11:$D$109,B52),0) -> 0 | N52: =IF(B52<>"",SUMIFS('TAB-UI'!$O$11:$O$109,'TAB-UI'!$D$11:$D$109,B52),0) -> 0
A53: 43 | B53: =CONDOMINI!B53 -> C43 | D53: =IF(C53<>"",IFERROR(VLOOKUP(B53,CONDOMINI!$B$11:$C$109,2,FALSE),""),"") ->  | E53: =IF(B53<>"",SUMIFS('TAB-UI'!$F$11:$F$109,'TAB-UI'!$D$11:$D$109,B53),0) -> 0 | F53: =IF(B53<>"",SUMIFS('TAB-UI'!$G$11:$G$109,'TAB-UI'!$D$11:$D$109,B53),0) -> 0 | G53: =IF(B53<>"",SUMIFS('TAB-UI'!$H$11:$H$109,'TAB-UI'!$D$11:$D$109,B53),0) -> 0 | H53: =IF(B53<>"",SUMIFS('TAB-UI'!$I$11:$I$109,'TAB-UI'!$D$11:$D$109,B53),0) -> 0 | I53: =IF(B53<>"",SUMIFS('TAB-UI'!$J$11:$J$109,'TAB-UI'!$D$11:$D$109,B53),0) -> 0 | J53: =IF(B53<>"",SUMIFS('TAB-UI'!$K$11:$K$109,'TAB-UI'!$D$11:$D$109,B53),0) -> 0 | K53: =IF(B53<>"",SUMIFS('TAB-UI'!$L$11:$L$109,'TAB-UI'!$D$11:$D$109,B53),0) -> 0 | L53: =IF(B53<>"",SUMIFS('TAB-UI'!$M$11:$M$109,'TAB-UI'!$D$11:$D$109,B53),0) -> 0 | M53: =IF(B53<>"",SUMIFS('TAB-UI'!$N$11:$N$109,'TAB-UI'!$D$11:$D$109,B53),0) -> 0 | N53: =IF(B53<>"",SUMIFS('TAB-UI'!$O$11:$O$109,'TAB-UI'!$D$11:$D$109,B53),0) -> 0
A54: 44 | B54: =CONDOMINI!B54 -> C44 | D54: =IF(C54<>"",IFERROR(VLOOKUP(B54,CONDOMINI!$B$11:$C$109,2,FALSE),""),"") ->  | E54: =IF(B54<>"",SUMIFS('TAB-UI'!$F$11:$F$109,'TAB-UI'!$D$11:$D$109,B54),0) -> 0 | F54: =IF(B54<>"",SUMIFS('TAB-UI'!$G$11:$G$109,'TAB-UI'!$D$11:$D$109,B54),0) -> 0 | G54: =IF(B54<>"",SUMIFS('TAB-UI'!$H$11:$H$109,'TAB-UI'!$D$11:$D$109,B54),0) -> 0 | H54: =IF(B54<>"",SUMIFS('TAB-UI'!$I$11:$I$109,'TAB-UI'!$D$11:$D$109,B54),0) -> 0 | I54: =IF(B54<>"",SUMIFS('TAB-UI'!$J$11:$J$109,'TAB-UI'!$D$11:$D$109,B54),0) -> 0 | J54: =IF(B54<>"",SUMIFS('TAB-UI'!$K$11:$K$109,'TAB-UI'!$D$11:$D$109,B54),0) -> 0 | K54: =IF(B54<>"",SUMIFS('TAB-UI'!$L$11:$L$109,'TAB-UI'!$D$11:$D$109,B54),0) -> 0 | L54: =IF(B54<>"",SUMIFS('TAB-UI'!$M$11:$M$109,'TAB-UI'!$D$11:$D$109,B54),0) -> 0 | M54: =IF(B54<>"",SUMIFS('TAB-UI'!$N$11:$N$109,'TAB-UI'!$D$11:$D$109,B54),0) -> 0 | N54: =IF(B54<>"",SUMIFS('TAB-UI'!$O$11:$O$109,'TAB-UI'!$D$11:$D$109,B54),0) -> 0
A55: 45 | B55: =CONDOMINI!B55 -> C45 | D55: =IF(C55<>"",IFERROR(VLOOKUP(B55,CONDOMINI!$B$11:$C$109,2,FALSE),""),"") ->  | E55: =IF(B55<>"",SUMIFS('TAB-UI'!$F$11:$F$109,'TAB-UI'!$D$11:$D$109,B55),0) -> 0 | F55: =IF(B55<>"",SUMIFS('TAB-UI'!$G$11:$G$109,'TAB-UI'!$D$11:$D$109,B55),0) -> 0 | G55: =IF(B55<>"",SUMIFS('TAB-UI'!$H$11:$H$109,'TAB-UI'!$D$11:$D$109,B55),0) -> 0 | H55: =IF(B55<>"",SUMIFS('TAB-UI'!$I$11:$I$109,'TAB-UI'!$D$11:$D$109,B55),0) -> 0 | I55: =IF(B55<>"",SUMIFS('TAB-UI'!$J$11:$J$109,'TAB-UI'!$D$11:$D$109,B55),0) -> 0 | J55: =IF(B55<>"",SUMIFS('TAB-UI'!$K$11:$K$109,'TAB-UI'!$D$11:$D$109,B55),0) -> 0 | K55: =IF(B55<>"",SUMIFS('TAB-UI'!$L$11:$L$109,'TAB-UI'!$D$11:$D$109,B55),0) -> 0 | L55: =IF(B55<>"",SUMIFS('TAB-UI'!$M$11:$M$109,'TAB-UI'!$D$11:$D$109,B55),0) -> 0 | M55: =IF(B55<>"",SUMIFS('TAB-UI'!$N$11:$N$109,'TAB-UI'!$D$11:$D$109,B55),0) -> 0 | N55: =IF(B55<>"",SUMIFS('TAB-UI'!$O$11:$O$109,'TAB-UI'!$D$11:$D$109,B55),0) -> 0
A56: 46 | B56: =CONDOMINI!B56 -> C46 | D56: =IF(C56<>"",IFERROR(VLOOKUP(B56,CONDOMINI!$B$11:$C$109,2,FALSE),""),"") ->  | E56: =IF(B56<>"",SUMIFS('TAB-UI'!$F$11:$F$109,'TAB-UI'!$D$11:$D$109,B56),0) -> 0 | F56: =IF(B56<>"",SUMIFS('TAB-UI'!$G$11:$G$109,'TAB-UI'!$D$11:$D$109,B56),0) -> 0 | G56: =IF(B56<>"",SUMIFS('TAB-UI'!$H$11:$H$109,'TAB-UI'!$D$11:$D$109,B56),0) -> 0 | H56: =IF(B56<>"",SUMIFS('TAB-UI'!$I$11:$I$109,'TAB-UI'!$D$11:$D$109,B56),0) -> 0 | I56: =IF(B56<>"",SUMIFS('TAB-UI'!$J$11:$J$109,'TAB-UI'!$D$11:$D$109,B56),0) -> 0 | J56: =IF(B56<>"",SUMIFS('TAB-UI'!$K$11:$K$109,'TAB-UI'!$D$11:$D$109,B56),0) -> 0 | K56: =IF(B56<>"",SUMIFS('TAB-UI'!$L$11:$L$109,'TAB-UI'!$D$11:$D$109,B56),0) -> 0 | L56: =IF(B56<>"",SUMIFS('TAB-UI'!$M$11:$M$109,'TAB-UI'!$D$11:$D$109,B56),0) -> 0 | M56: =IF(B56<>"",SUMIFS('TAB-UI'!$N$11:$N$109,'TAB-UI'!$D$11:$D$109,B56),0) -> 0 | N56: =IF(B56<>"",SUMIFS('TAB-UI'!$O$11:$O$109,'TAB-UI'!$D$11:$D$109,B56),0) -> 0
A57: 47 | B57: =CONDOMINI!B57 -> C47 | D57: =IF(C57<>"",IFERROR(VLOOKUP(B57,CONDOMINI!$B$11:$C$109,2,FALSE),""),"") ->  | E57: =IF(B57<>"",SUMIFS('TAB-UI'!$F$11:$F$109,'TAB-UI'!$D$11:$D$109,B57),0) -> 0 | F57: =IF(B57<>"",SUMIFS('TAB-UI'!$G$11:$G$109,'TAB-UI'!$D$11:$D$109,B57),0) -> 0 | G57: =IF(B57<>"",SUMIFS('TAB-UI'!$H$11:$H$109,'TAB-UI'!$D$11:$D$109,B57),0) -> 0 | H57: =IF(B57<>"",SUMIFS('TAB-UI'!$I$11:$I$109,'TAB-UI'!$D$11:$D$109,B57),0) -> 0 | I57: =IF(B57<>"",SUMIFS('TAB-UI'!$J$11:$J$109,'TAB-UI'!$D$11:$D$109,B57),0) -> 0 | J57: =IF(B57<>"",SUMIFS('TAB-UI'!$K$11:$K$109,'TAB-UI'!$D$11:$D$109,B57),0) -> 0 | K57: =IF(B57<>"",SUMIFS('TAB-UI'!$L$11:$L$109,'TAB-UI'!$D$11:$D$109,B57),0) -> 0 | L57: =IF(B57<>"",SUMIFS('TAB-UI'!$M$11:$M$109,'TAB-UI'!$D$11:$D$109,B57),0) -> 0 | M57: =IF(B57<>"",SUMIFS('TAB-UI'!$N$11:$N$109,'TAB-UI'!$D$11:$D$109,B57),0) -> 0 | N57: =IF(B57<>"",SUMIFS('TAB-UI'!$O$11:$O$109,'TAB-UI'!$D$11:$D$109,B57),0) -> 0
A58: 48 | B58: =CONDOMINI!B58 -> C48 | D58: =IF(C58<>"",IFERROR(VLOOKUP(B58,CONDOMINI!$B$11:$C$109,2,FALSE),""),"") ->  | E58: =IF(B58<>"",SUMIFS('TAB-UI'!$F$11:$F$109,'TAB-UI'!$D$11:$D$109,B58),0) -> 0 | F58: =IF(B58<>"",SUMIFS('TAB-UI'!$G$11:$G$109,'TAB-UI'!$D$11:$D$109,B58),0) -> 0 | G58: =IF(B58<>"",SUMIFS('TAB-UI'!$H$11:$H$109,'TAB-UI'!$D$11:$D$109,B58),0) -> 0 | H58: =IF(B58<>"",SUMIFS('TAB-UI'!$I$11:$I$109,'TAB-UI'!$D$11:$D$109,B58),0) -> 0 | I58: =IF(B58<>"",SUMIFS('TAB-UI'!$J$11:$J$109,'TAB-UI'!$D$11:$D$109,B58),0) -> 0 | J58: =IF(B58<>"",SUMIFS('TAB-UI'!$K$11:$K$109,'TAB-UI'!$D$11:$D$109,B58),0) -> 0 | K58: =IF(B58<>"",SUMIFS('TAB-UI'!$L$11:$L$109,'TAB-UI'!$D$11:$D$109,B58),0) -> 0 | L58: =IF(B58<>"",SUMIFS('TAB-UI'!$M$11:$M$109,'TAB-UI'!$D$11:$D$109,B58),0) -> 0 | M58: =IF(B58<>"",SUMIFS('TAB-UI'!$N$11:$N$109,'TAB-UI'!$D$11:$D$109,B58),0) -> 0 | N58: =IF(B58<>"",SUMIFS('TAB-UI'!$O$11:$O$109,'TAB-UI'!$D$11:$D$109,B58),0) -> 0
A59: 49 | B59: =CONDOMINI!B59 -> C49 | D59: =IF(C59<>"",IFERROR(VLOOKUP(B59,CONDOMINI!$B$11:$C$109,2,FALSE),""),"") ->  | E59: =IF(B59<>"",SUMIFS('TAB-UI'!$F$11:$F$109,'TAB-UI'!$D$11:$D$109,B59),0) -> 0 | F59: =IF(B59<>"",SUMIFS('TAB-UI'!$G$11:$G$109,'TAB-UI'!$D$11:$D$109,B59),0) -> 0 | G59: =IF(B59<>"",SUMIFS('TAB-UI'!$H$11:$H$109,'TAB-UI'!$D$11:$D$109,B59),0) -> 0 | H59: =IF(B59<>"",SUMIFS('TAB-UI'!$I$11:$I$109,'TAB-UI'!$D$11:$D$109,B59),0) -> 0 | I59: =IF(B59<>"",SUMIFS('TAB-UI'!$J$11:$J$109,'TAB-UI'!$D$11:$D$109,B59),0) -> 0 | J59: =IF(B59<>"",SUMIFS('TAB-UI'!$K$11:$K$109,'TAB-UI'!$D$11:$D$109,B59),0) -> 0 | K59: =IF(B59<>"",SUMIFS('TAB-UI'!$L$11:$L$109,'TAB-UI'!$D$11:$D$109,B59),0) -> 0 | L59: =IF(B59<>"",SUMIFS('TAB-UI'!$M$11:$M$109,'TAB-UI'!$D$11:$D$109,B59),0) -> 0 | M59: =IF(B59<>"",SUMIFS('TAB-UI'!$N$11:$N$109,'TAB-UI'!$D$11:$D$109,B59),0) -> 0 | N59: =IF(B59<>"",SUMIFS('TAB-UI'!$O$11:$O$109,'TAB-UI'!$D$11:$D$109,B59),0) -> 0
A60: 50 | B60: =CONDOMINI!B60 -> C50 | D60: =IF(C60<>"",IFERROR(VLOOKUP(B60,CONDOMINI!$B$11:$C$109,2,FALSE),""),"") ->  | E60: =IF(B60<>"",SUMIFS('TAB-UI'!$F$11:$F$109,'TAB-UI'!$D$11:$D$109,B60),0) -> 0 | F60: =IF(B60<>"",SUMIFS('TAB-UI'!$G$11:$G$109,'TAB-UI'!$D$11:$D$109,B60),0) -> 0 | G60: =IF(B60<>"",SUMIFS('TAB-UI'!$H$11:$H$109,'TAB-UI'!$D$11:$D$109,B60),0) -> 0 | H60: =IF(B60<>"",SUMIFS('TAB-UI'!$I$11:$I$109,'TAB-UI'!$D$11:$D$109,B60),0) -> 0 | I60: =IF(B60<>"",SUMIFS('TAB-UI'!$J$11:$J$109,'TAB-UI'!$D$11:$D$109,B60),0) -> 0 | J60: =IF(B60<>"",SUMIFS('TAB-UI'!$K$11:$K$109,'TAB-UI'!$D$11:$D$109,B60),0) -> 0 | K60: =IF(B60<>"",SUMIFS('TAB-UI'!$L$11:$L$109,'TAB-UI'!$D$11:$D$109,B60),0) -> 0 | L60: =IF(B60<>"",SUMIFS('TAB-UI'!$M$11:$M$109,'TAB-UI'!$D$11:$D$109,B60),0) -> 0 | M60: =IF(B60<>"",SUMIFS('TAB-UI'!$N$11:$N$109,'TAB-UI'!$D$11:$D$109,B60),0) -> 0 | N60: =IF(B60<>"",SUMIFS('TAB-UI'!$O$11:$O$109,'TAB-UI'!$D$11:$D$109,B60),0) -> 0
A61: 51 | B61: =CONDOMINI!B61 -> C51 | D61: =IF(C61<>"",IFERROR(VLOOKUP(B61,CONDOMINI!$B$11:$C$109,2,FALSE),""),"") ->  | E61: =IF(B61<>"",SUMIFS('TAB-UI'!$F$11:$F$109,'TAB-UI'!$D$11:$D$109,B61),0) -> 0 | F61: =IF(B61<>"",SUMIFS('TAB-UI'!$G$11:$G$109,'TAB-UI'!$D$11:$D$109,B61),0) -> 0 | G61: =IF(B61<>"",SUMIFS('TAB-UI'!$H$11:$H$109,'TAB-UI'!$D$11:$D$109,B61),0) -> 0 | H61: =IF(B61<>"",SUMIFS('TAB-UI'!$I$11:$I$109,'TAB-UI'!$D$11:$D$109,B61),0) -> 0 | I61: =IF(B61<>"",SUMIFS('TAB-UI'!$J$11:$J$109,'TAB-UI'!$D$11:$D$109,B61),0) -> 0 | J61: =IF(B61<>"",SUMIFS('TAB-UI'!$K$11:$K$109,'TAB-UI'!$D$11:$D$109,B61),0) -> 0 | K61: =IF(B61<>"",SUMIFS('TAB-UI'!$L$11:$L$109,'TAB-UI'!$D$11:$D$109,B61),0) -> 0 | L61: =IF(B61<>"",SUMIFS('TAB-UI'!$M$11:$M$109,'TAB-UI'!$D$11:$D$109,B61),0) -> 0 | M61: =IF(B61<>"",SUMIFS('TAB-UI'!$N$11:$N$109,'TAB-UI'!$D$11:$D$109,B61),0) -> 0 | N61: =IF(B61<>"",SUMIFS('TAB-UI'!$O$11:$O$109,'TAB-UI'!$D$11:$D$109,B61),0) -> 0
A62: 52 | B62: =CONDOMINI!B62 -> C52 | D62: =IF(C62<>"",IFERROR(VLOOKUP(B62,CONDOMINI!$B$11:$C$109,2,FALSE),""),"") ->  | E62: =IF(B62<>"",SUMIFS('TAB-UI'!$F$11:$F$109,'TAB-UI'!$D$11:$D$109,B62),0) -> 0 | F62: =IF(B62<>"",SUMIFS('TAB-UI'!$G$11:$G$109,'TAB-UI'!$D$11:$D$109,B62),0) -> 0 | G62: =IF(B62<>"",SUMIFS('TAB-UI'!$H$11:$H$109,'TAB-UI'!$D$11:$D$109,B62),0) -> 0 | H62: =IF(B62<>"",SUMIFS('TAB-UI'!$I$11:$I$109,'TAB-UI'!$D$11:$D$109,B62),0) -> 0 | I62: =IF(B62<>"",SUMIFS('TAB-UI'!$J$11:$J$109,'TAB-UI'!$D$11:$D$109,B62),0) -> 0 | J62: =IF(B62<>"",SUMIFS('TAB-UI'!$K$11:$K$109,'TAB-UI'!$D$11:$D$109,B62),0) -> 0 | K62: =IF(B62<>"",SUMIFS('TAB-UI'!$L$11:$L$109,'TAB-UI'!$D$11:$D$109,B62),0) -> 0 | L62: =IF(B62<>"",SUMIFS('TAB-UI'!$M$11:$M$109,'TAB-UI'!$D$11:$D$109,B62),0) -> 0 | M62: =IF(B62<>"",SUMIFS('TAB-UI'!$N$11:$N$109,'TAB-UI'!$D$11:$D$109,B62),0) -> 0 | N62: =IF(B62<>"",SUMIFS('TAB-UI'!$O$11:$O$109,'TAB-UI'!$D$11:$D$109,B62),0) -> 0
A63: 53 | B63: =CONDOMINI!B63 -> C53 | D63: =IF(C63<>"",IFERROR(VLOOKUP(B63,CONDOMINI!$B$11:$C$109,2,FALSE),""),"") ->  | E63: =IF(B63<>"",SUMIFS('TAB-UI'!$F$11:$F$109,'TAB-UI'!$D$11:$D$109,B63),0) -> 0 | F63: =IF(B63<>"",SUMIFS('TAB-UI'!$G$11:$G$109,'TAB-UI'!$D$11:$D$109,B63),0) -> 0 | G63: =IF(B63<>"",SUMIFS('TAB-UI'!$H$11:$H$109,'TAB-UI'!$D$11:$D$109,B63),0) -> 0 | H63: =IF(B63<>"",SUMIFS('TAB-UI'!$I$11:$I$109,'TAB-UI'!$D$11:$D$109,B63),0) -> 0 | I63: =IF(B63<>"",SUMIFS('TAB-UI'!$J$11:$J$109,'TAB-UI'!$D$11:$D$109,B63),0) -> 0 | J63: =IF(B63<>"",SUMIFS('TAB-UI'!$K$11:$K$109,'TAB-UI'!$D$11:$D$109,B63),0) -> 0 | K63: =IF(B63<>"",SUMIFS('TAB-UI'!$L$11:$L$109,'TAB-UI'!$D$11:$D$109,B63),0) -> 0 | L63: =IF(B63<>"",SUMIFS('TAB-UI'!$M$11:$M$109,'TAB-UI'!$D$11:$D$109,B63),0) -> 0 | M63: =IF(B63<>"",SUMIFS('TAB-UI'!$N$11:$N$109,'TAB-UI'!$D$11:$D$109,B63),0) -> 0 | N63: =IF(B63<>"",SUMIFS('TAB-UI'!$O$11:$O$109,'TAB-UI'!$D$11:$D$109,B63),0) -> 0
A64: 54 | B64: =CONDOMINI!B64 -> C54 | D64: =IF(C64<>"",IFERROR(VLOOKUP(B64,CONDOMINI!$B$11:$C$109,2,FALSE),""),"") ->  | E64: =IF(B64<>"",SUMIFS('TAB-UI'!$F$11:$F$109,'TAB-UI'!$D$11:$D$109,B64),0) -> 0 | F64: =IF(B64<>"",SUMIFS('TAB-UI'!$G$11:$G$109,'TAB-UI'!$D$11:$D$109,B64),0) -> 0 | G64: =IF(B64<>"",SUMIFS('TAB-UI'!$H$11:$H$109,'TAB-UI'!$D$11:$D$109,B64),0) -> 0 | H64: =IF(B64<>"",SUMIFS('TAB-UI'!$I$11:$I$109,'TAB-UI'!$D$11:$D$109,B64),0) -> 0 | I64: =IF(B64<>"",SUMIFS('TAB-UI'!$J$11:$J$109,'TAB-UI'!$D$11:$D$109,B64),0) -> 0 | J64: =IF(B64<>"",SUMIFS('TAB-UI'!$K$11:$K$109,'TAB-UI'!$D$11:$D$109,B64),0) -> 0 | K64: =IF(B64<>"",SUMIFS('TAB-UI'!$L$11:$L$109,'TAB-UI'!$D$11:$D$109,B64),0) -> 0 | L64: =IF(B64<>"",SUMIFS('TAB-UI'!$M$11:$M$109,'TAB-UI'!$D$11:$D$109,B64),0) -> 0 | M64: =IF(B64<>"",SUMIFS('TAB-UI'!$N$11:$N$109,'TAB-UI'!$D$11:$D$109,B64),0) -> 0 | N64: =IF(B64<>"",SUMIFS('TAB-UI'!$O$11:$O$109,'TAB-UI'!$D$11:$D$109,B64),0) -> 0
A65: 55 | B65: =CONDOMINI!B65 -> C55 | D65: =IF(C65<>"",IFERROR(VLOOKUP(B65,CONDOMINI!$B$11:$C$109,2,FALSE),""),"") ->  | E65: =IF(B65<>"",SUMIFS('TAB-UI'!$F$11:$F$109,'TAB-UI'!$D$11:$D$109,B65),0) -> 0 | F65: =IF(B65<>"",SUMIFS('TAB-UI'!$G$11:$G$109,'TAB-UI'!$D$11:$D$109,B65),0) -> 0 | G65: =IF(B65<>"",SUMIFS('TAB-UI'!$H$11:$H$109,'TAB-UI'!$D$11:$D$109,B65),0) -> 0 | H65: =IF(B65<>"",SUMIFS('TAB-UI'!$I$11:$I$109,'TAB-UI'!$D$11:$D$109,B65),0) -> 0 | I65: =IF(B65<>"",SUMIFS('TAB-UI'!$J$11:$J$109,'TAB-UI'!$D$11:$D$109,B65),0) -> 0 | J65: =IF(B65<>"",SUMIFS('TAB-UI'!$K$11:$K$109,'TAB-UI'!$D$11:$D$109,B65),0) -> 0 | K65: =IF(B65<>"",SUMIFS('TAB-UI'!$L$11:$L$109,'TAB-UI'!$D$11:$D$109,B65),0) -> 0 | L65: =IF(B65<>"",SUMIFS('TAB-UI'!$M$11:$M$109,'TAB-UI'!$D$11:$D$109,B65),0) -> 0 | M65: =IF(B65<>"",SUMIFS('TAB-UI'!$N$11:$N$109,'TAB-UI'!$D$11:$D$109,B65),0) -> 0 | N65: =IF(B65<>"",SUMIFS('TAB-UI'!$O$11:$O$109,'TAB-UI'!$D$11:$D$109,B65),0) -> 0
A66: 56 | B66: =CONDOMINI!B66 -> C56 | D66: =IF(C66<>"",IFERROR(VLOOKUP(B66,CONDOMINI!$B$11:$C$109,2,FALSE),""),"") ->  | E66: =IF(B66<>"",SUMIFS('TAB-UI'!$F$11:$F$109,'TAB-UI'!$D$11:$D$109,B66),0) -> 0 | F66: =IF(B66<>"",SUMIFS('TAB-UI'!$G$11:$G$109,'TAB-UI'!$D$11:$D$109,B66),0) -> 0 | G66: =IF(B66<>"",SUMIFS('TAB-UI'!$H$11:$H$109,'TAB-UI'!$D$11:$D$109,B66),0) -> 0 | H66: =IF(B66<>"",SUMIFS('TAB-UI'!$I$11:$I$109,'TAB-UI'!$D$11:$D$109,B66),0) -> 0 | I66: =IF(B66<>"",SUMIFS('TAB-UI'!$J$11:$J$109,'TAB-UI'!$D$11:$D$109,B66),0) -> 0 | J66: =IF(B66<>"",SUMIFS('TAB-UI'!$K$11:$K$109,'TAB-UI'!$D$11:$D$109,B66),0) -> 0 | K66: =IF(B66<>"",SUMIFS('TAB-UI'!$L$11:$L$109,'TAB-UI'!$D$11:$D$109,B66),0) -> 0 | L66: =IF(B66<>"",SUMIFS('TAB-UI'!$M$11:$M$109,'TAB-UI'!$D$11:$D$109,B66),0) -> 0 | M66: =IF(B66<>"",SUMIFS('TAB-UI'!$N$11:$N$109,'TAB-UI'!$D$11:$D$109,B66),0) -> 0 | N66: =IF(B66<>"",SUMIFS('TAB-UI'!$O$11:$O$109,'TAB-UI'!$D$11:$D$109,B66),0) -> 0
A67: 57 | B67: =CONDOMINI!B67 -> C57 | D67: =IF(C67<>"",IFERROR(VLOOKUP(B67,CONDOMINI!$B$11:$C$109,2,FALSE),""),"") ->  | E67: =IF(B67<>"",SUMIFS('TAB-UI'!$F$11:$F$109,'TAB-UI'!$D$11:$D$109,B67),0) -> 0 | F67: =IF(B67<>"",SUMIFS('TAB-UI'!$G$11:$G$109,'TAB-UI'!$D$11:$D$109,B67),0) -> 0 | G67: =IF(B67<>"",SUMIFS('TAB-UI'!$H$11:$H$109,'TAB-UI'!$D$11:$D$109,B67),0) -> 0 | H67: =IF(B67<>"",SUMIFS('TAB-UI'!$I$11:$I$109,'TAB-UI'!$D$11:$D$109,B67),0) -> 0 | I67: =IF(B67<>"",SUMIFS('TAB-UI'!$J$11:$J$109,'TAB-UI'!$D$11:$D$109,B67),0) -> 0 | J67: =IF(B67<>"",SUMIFS('TAB-UI'!$K$11:$K$109,'TAB-UI'!$D$11:$D$109,B67),0) -> 0 | K67: =IF(B67<>"",SUMIFS('TAB-UI'!$L$11:$L$109,'TAB-UI'!$D$11:$D$109,B67),0) -> 0 | L67: =IF(B67<>"",SUMIFS('TAB-UI'!$M$11:$M$109,'TAB-UI'!$D$11:$D$109,B67),0) -> 0 | M67: =IF(B67<>"",SUMIFS('TAB-UI'!$N$11:$N$109,'TAB-UI'!$D$11:$D$109,B67),0) -> 0 | N67: =IF(B67<>"",SUMIFS('TAB-UI'!$O$11:$O$109,'TAB-UI'!$D$11:$D$109,B67),0) -> 0
A68: 58 | B68: =CONDOMINI!B68 -> C58 | D68: =IF(C68<>"",IFERROR(VLOOKUP(B68,CONDOMINI!$B$11:$C$109,2,FALSE),""),"") ->  | E68: =IF(B68<>"",SUMIFS('TAB-UI'!$F$11:$F$109,'TAB-UI'!$D$11:$D$109,B68),0) -> 0 | F68: =IF(B68<>"",SUMIFS('TAB-UI'!$G$11:$G$109,'TAB-UI'!$D$11:$D$109,B68),0) -> 0 | G68: =IF(B68<>"",SUMIFS('TAB-UI'!$H$11:$H$109,'TAB-UI'!$D$11:$D$109,B68),0) -> 0 | H68: =IF(B68<>"",SUMIFS('TAB-UI'!$I$11:$I$109,'TAB-UI'!$D$11:$D$109,B68),0) -> 0 | I68: =IF(B68<>"",SUMIFS('TAB-UI'!$J$11:$J$109,'TAB-UI'!$D$11:$D$109,B68),0) -> 0 | J68: =IF(B68<>"",SUMIFS('TAB-UI'!$K$11:$K$109,'TAB-UI'!$D$11:$D$109,B68),0) -> 0 | K68: =IF(B68<>"",SUMIFS('TAB-UI'!$L$11:$L$109,'TAB-UI'!$D$11:$D$109,B68),0) -> 0 | L68: =IF(B68<>"",SUMIFS('TAB-UI'!$M$11:$M$109,'TAB-UI'!$D$11:$D$109,B68),0) -> 0 | M68: =IF(B68<>"",SUMIFS('TAB-UI'!$N$11:$N$109,'TAB-UI'!$D$11:$D$109,B68),0) -> 0 | N68: =IF(B68<>"",SUMIFS('TAB-UI'!$O$11:$O$109,'TAB-UI'!$D$11:$D$109,B68),0) -> 0
A69: 59 | B69: =CONDOMINI!B69 -> C59 | D69: =IF(C69<>"",IFERROR(VLOOKUP(B69,CONDOMINI!$B$11:$C$109,2,FALSE),""),"") ->  | E69: =IF(B69<>"",SUMIFS('TAB-UI'!$F$11:$F$109,'TAB-UI'!$D$11:$D$109,B69),0) -> 0 | F69: =IF(B69<>"",SUMIFS('TAB-UI'!$G$11:$G$109,'TAB-UI'!$D$11:$D$109,B69),0) -> 0 | G69: =IF(B69<>"",SUMIFS('TAB-UI'!$H$11:$H$109,'TAB-UI'!$D$11:$D$109,B69),0) -> 0 | H69: =IF(B69<>"",SUMIFS('TAB-UI'!$I$11:$I$109,'TAB-UI'!$D$11:$D$109,B69),0) -> 0 | I69: =IF(B69<>"",SUMIFS('TAB-UI'!$J$11:$J$109,'TAB-UI'!$D$11:$D$109,B69),0) -> 0 | J69: =IF(B69<>"",SUMIFS('TAB-UI'!$K$11:$K$109,'TAB-UI'!$D$11:$D$109,B69),0) -> 0 | K69: =IF(B69<>"",SUMIFS('TAB-UI'!$L$11:$L$109,'TAB-UI'!$D$11:$D$109,B69),0) -> 0 | L69: =IF(B69<>"",SUMIFS('TAB-UI'!$M$11:$M$109,'TAB-UI'!$D$11:$D$109,B69),0) -> 0 | M69: =IF(B69<>"",SUMIFS('TAB-UI'!$N$11:$N$109,'TAB-UI'!$D$11:$D$109,B69),0) -> 0 | N69: =IF(B69<>"",SUMIFS('TAB-UI'!$O$11:$O$109,'TAB-UI'!$D$11:$D$109,B69),0) -> 0
A70: 60 | B70: =CONDOMINI!B70 -> C60 | D70: =IF(C70<>"",IFERROR(VLOOKUP(B70,CONDOMINI!$B$11:$C$109,2,FALSE),""),"") ->  | E70: =IF(B70<>"",SUMIFS('TAB-UI'!$F$11:$F$109,'TAB-UI'!$D$11:$D$109,B70),0) -> 0 | F70: =IF(B70<>"",SUMIFS('TAB-UI'!$G$11:$G$109,'TAB-UI'!$D$11:$D$109,B70),0) -> 0 | G70: =IF(B70<>"",SUMIFS('TAB-UI'!$H$11:$H$109,'TAB-UI'!$D$11:$D$109,B70),0) -> 0 | H70: =IF(B70<>"",SUMIFS('TAB-UI'!$I$11:$I$109,'TAB-UI'!$D$11:$D$109,B70),0) -> 0 | I70: =IF(B70<>"",SUMIFS('TAB-UI'!$J$11:$J$109,'TAB-UI'!$D$11:$D$109,B70),0) -> 0 | J70: =IF(B70<>"",SUMIFS('TAB-UI'!$K$11:$K$109,'TAB-UI'!$D$11:$D$109,B70),0) -> 0 | K70: =IF(B70<>"",SUMIFS('TAB-UI'!$L$11:$L$109,'TAB-UI'!$D$11:$D$109,B70),0) -> 0 | L70: =IF(B70<>"",SUMIFS('TAB-UI'!$M$11:$M$109,'TAB-UI'!$D$11:$D$109,B70),0) -> 0 | M70: =IF(B70<>"",SUMIFS('TAB-UI'!$N$11:$N$109,'TAB-UI'!$D$11:$D$109,B70),0) -> 0 | N70: =IF(B70<>"",SUMIFS('TAB-UI'!$O$11:$O$109,'TAB-UI'!$D$11:$D$109,B70),0) -> 0
A71: 61 | B71: =CONDOMINI!B71 -> C61 | D71: =IF(C71<>"",IFERROR(VLOOKUP(B71,CONDOMINI!$B$11:$C$109,2,FALSE),""),"") ->  | E71: =IF(B71<>"",SUMIFS('TAB-UI'!$F$11:$F$109,'TAB-UI'!$D$11:$D$109,B71),0) -> 0 | F71: =IF(B71<>"",SUMIFS('TAB-UI'!$G$11:$G$109,'TAB-UI'!$D$11:$D$109,B71),0) -> 0 | G71: =IF(B71<>"",SUMIFS('TAB-UI'!$H$11:$H$109,'TAB-UI'!$D$11:$D$109,B71),0) -> 0 | H71: =IF(B71<>"",SUMIFS('TAB-UI'!$I$11:$I$109,'TAB-UI'!$D$11:$D$109,B71),0) -> 0 | I71: =IF(B71<>"",SUMIFS('TAB-UI'!$J$11:$J$109,'TAB-UI'!$D$11:$D$109,B71),0) -> 0 | J71: =IF(B71<>"",SUMIFS('TAB-UI'!$K$11:$K$109,'TAB-UI'!$D$11:$D$109,B71),0) -> 0 | K71: =IF(B71<>"",SUMIFS('TAB-UI'!$L$11:$L$109,'TAB-UI'!$D$11:$D$109,B71),0) -> 0 | L71: =IF(B71<>"",SUMIFS('TAB-UI'!$M$11:$M$109,'TAB-UI'!$D$11:$D$109,B71),0) -> 0 | M71: =IF(B71<>"",SUMIFS('TAB-UI'!$N$11:$N$109,'TAB-UI'!$D$11:$D$109,B71),0) -> 0 | N71: =IF(B71<>"",SUMIFS('TAB-UI'!$O$11:$O$109,'TAB-UI'!$D$11:$D$109,B71),0) -> 0
A72: 62 | B72: =CONDOMINI!B72 -> C62 | D72: =IF(C72<>"",IFERROR(VLOOKUP(B72,CONDOMINI!$B$11:$C$109,2,FALSE),""),"") ->  | E72: =IF(B72<>"",SUMIFS('TAB-UI'!$F$11:$F$109,'TAB-UI'!$D$11:$D$109,B72),0) -> 0 | F72: =IF(B72<>"",SUMIFS('TAB-UI'!$G$11:$G$109,'TAB-UI'!$D$11:$D$109,B72),0) -> 0 | G72: =IF(B72<>"",SUMIFS('TAB-UI'!$H$11:$H$109,'TAB-UI'!$D$11:$D$109,B72),0) -> 0 | H72: =IF(B72<>"",SUMIFS('TAB-UI'!$I$11:$I$109,'TAB-UI'!$D$11:$D$109,B72),0) -> 0 | I72: =IF(B72<>"",SUMIFS('TAB-UI'!$J$11:$J$109,'TAB-UI'!$D$11:$D$109,B72),0) -> 0 | J72: =IF(B72<>"",SUMIFS('TAB-UI'!$K$11:$K$109,'TAB-UI'!$D$11:$D$109,B72),0) -> 0 | K72: =IF(B72<>"",SUMIFS('TAB-UI'!$L$11:$L$109,'TAB-UI'!$D$11:$D$109,B72),0) -> 0 | L72: =IF(B72<>"",SUMIFS('TAB-UI'!$M$11:$M$109,'TAB-UI'!$D$11:$D$109,B72),0) -> 0 | M72: =IF(B72<>"",SUMIFS('TAB-UI'!$N$11:$N$109,'TAB-UI'!$D$11:$D$109,B72),0) -> 0 | N72: =IF(B72<>"",SUMIFS('TAB-UI'!$O$11:$O$109,'TAB-UI'!$D$11:$D$109,B72),0) -> 0
A73: 63 | B73: =CONDOMINI!B73 -> C63 | D73: =IF(C73<>"",IFERROR(VLOOKUP(B73,CONDOMINI!$B$11:$C$109,2,FALSE),""),"") ->  | E73: =IF(B73<>"",SUMIFS('TAB-UI'!$F$11:$F$109,'TAB-UI'!$D$11:$D$109,B73),0) -> 0 | F73: =IF(B73<>"",SUMIFS('TAB-UI'!$G$11:$G$109,'TAB-UI'!$D$11:$D$109,B73),0) -> 0 | G73: =IF(B73<>"",SUMIFS('TAB-UI'!$H$11:$H$109,'TAB-UI'!$D$11:$D$109,B73),0) -> 0 | H73: =IF(B73<>"",SUMIFS('TAB-UI'!$I$11:$I$109,'TAB-UI'!$D$11:$D$109,B73),0) -> 0 | I73: =IF(B73<>"",SUMIFS('TAB-UI'!$J$11:$J$109,'TAB-UI'!$D$11:$D$109,B73),0) -> 0 | J73: =IF(B73<>"",SUMIFS('TAB-UI'!$K$11:$K$109,'TAB-UI'!$D$11:$D$109,B73),0) -> 0 | K73: =IF(B73<>"",SUMIFS('TAB-UI'!$L$11:$L$109,'TAB-UI'!$D$11:$D$109,B73),0) -> 0 | L73: =IF(B73<>"",SUMIFS('TAB-UI'!$M$11:$M$109,'TAB-UI'!$D$11:$D$109,B73),0) -> 0 | M73: =IF(B73<>"",SUMIFS('TAB-UI'!$N$11:$N$109,'TAB-UI'!$D$11:$D$109,B73),0) -> 0 | N73: =IF(B73<>"",SUMIFS('TAB-UI'!$O$11:$O$109,'TAB-UI'!$D$11:$D$109,B73),0) -> 0
A74: 64 | B74: =CONDOMINI!B74 -> C64 | D74: =IF(C74<>"",IFERROR(VLOOKUP(B74,CONDOMINI!$B$11:$C$109,2,FALSE),""),"") ->  | E74: =IF(B74<>"",SUMIFS('TAB-UI'!$F$11:$F$109,'TAB-UI'!$D$11:$D$109,B74),0) -> 0 | F74: =IF(B74<>"",SUMIFS('TAB-UI'!$G$11:$G$109,'TAB-UI'!$D$11:$D$109,B74),0) -> 0 | G74: =IF(B74<>"",SUMIFS('TAB-UI'!$H$11:$H$109,'TAB-UI'!$D$11:$D$109,B74),0) -> 0 | H74: =IF(B74<>"",SUMIFS('TAB-UI'!$I$11:$I$109,'TAB-UI'!$D$11:$D$109,B74),0) -> 0 | I74: =IF(B74<>"",SUMIFS('TAB-UI'!$J$11:$J$109,'TAB-UI'!$D$11:$D$109,B74),0) -> 0 | J74: =IF(B74<>"",SUMIFS('TAB-UI'!$K$11:$K$109,'TAB-UI'!$D$11:$D$109,B74),0) -> 0 | K74: =IF(B74<>"",SUMIFS('TAB-UI'!$L$11:$L$109,'TAB-UI'!$D$11:$D$109,B74),0) -> 0 | L74: =IF(B74<>"",SUMIFS('TAB-UI'!$M$11:$M$109,'TAB-UI'!$D$11:$D$109,B74),0) -> 0 | M74: =IF(B74<>"",SUMIFS('TAB-UI'!$N$11:$N$109,'TAB-UI'!$D$11:$D$109,B74),0) -> 0 | N74: =IF(B74<>"",SUMIFS('TAB-UI'!$O$11:$O$109,'TAB-UI'!$D$11:$D$109,B74),0) -> 0
A75: 65 | B75: =CONDOMINI!B75 -> C65 | D75: =IF(C75<>"",IFERROR(VLOOKUP(B75,CONDOMINI!$B$11:$C$109,2,FALSE),""),"") ->  | E75: =IF(B75<>"",SUMIFS('TAB-UI'!$F$11:$F$109,'TAB-UI'!$D$11:$D$109,B75),0) -> 0 | F75: =IF(B75<>"",SUMIFS('TAB-UI'!$G$11:$G$109,'TAB-UI'!$D$11:$D$109,B75),0) -> 0 | G75: =IF(B75<>"",SUMIFS('TAB-UI'!$H$11:$H$109,'TAB-UI'!$D$11:$D$109,B75),0) -> 0 | H75: =IF(B75<>"",SUMIFS('TAB-UI'!$I$11:$I$109,'TAB-UI'!$D$11:$D$109,B75),0) -> 0 | I75: =IF(B75<>"",SUMIFS('TAB-UI'!$J$11:$J$109,'TAB-UI'!$D$11:$D$109,B75),0) -> 0 | J75: =IF(B75<>"",SUMIFS('TAB-UI'!$K$11:$K$109,'TAB-UI'!$D$11:$D$109,B75),0) -> 0 | K75: =IF(B75<>"",SUMIFS('TAB-UI'!$L$11:$L$109,'TAB-UI'!$D$11:$D$109,B75),0) -> 0 | L75: =IF(B75<>"",SUMIFS('TAB-UI'!$M$11:$M$109,'TAB-UI'!$D$11:$D$109,B75),0) -> 0 | M75: =IF(B75<>"",SUMIFS('TAB-UI'!$N$11:$N$109,'TAB-UI'!$D$11:$D$109,B75),0) -> 0 | N75: =IF(B75<>"",SUMIFS('TAB-UI'!$O$11:$O$109,'TAB-UI'!$D$11:$D$109,B75),0) -> 0
A76: 66 | B76: =CONDOMINI!B76 -> C66 | D76: =IF(C76<>"",IFERROR(VLOOKUP(B76,CONDOMINI!$B$11:$C$109,2,FALSE),""),"") ->  | E76: =IF(B76<>"",SUMIFS('TAB-UI'!$F$11:$F$109,'TAB-UI'!$D$11:$D$109,B76),0) -> 0 | F76: =IF(B76<>"",SUMIFS('TAB-UI'!$G$11:$G$109,'TAB-UI'!$D$11:$D$109,B76),0) -> 0 | G76: =IF(B76<>"",SUMIFS('TAB-UI'!$H$11:$H$109,'TAB-UI'!$D$11:$D$109,B76),0) -> 0 | H76: =IF(B76<>"",SUMIFS('TAB-UI'!$I$11:$I$109,'TAB-UI'!$D$11:$D$109,B76),0) -> 0 | I76: =IF(B76<>"",SUMIFS('TAB-UI'!$J$11:$J$109,'TAB-UI'!$D$11:$D$109,B76),0) -> 0 | J76: =IF(B76<>"",SUMIFS('TAB-UI'!$K$11:$K$109,'TAB-UI'!$D$11:$D$109,B76),0) -> 0 | K76: =IF(B76<>"",SUMIFS('TAB-UI'!$L$11:$L$109,'TAB-UI'!$D$11:$D$109,B76),0) -> 0 | L76: =IF(B76<>"",SUMIFS('TAB-UI'!$M$11:$M$109,'TAB-UI'!$D$11:$D$109,B76),0) -> 0 | M76: =IF(B76<>"",SUMIFS('TAB-UI'!$N$11:$N$109,'TAB-UI'!$D$11:$D$109,B76),0) -> 0 | N76: =IF(B76<>"",SUMIFS('TAB-UI'!$O$11:$O$109,'TAB-UI'!$D$11:$D$109,B76),0) -> 0
A77: 67 | B77: =CONDOMINI!B77 -> C67 | D77: =IF(C77<>"",IFERROR(VLOOKUP(B77,CONDOMINI!$B$11:$C$109,2,FALSE),""),"") ->  | E77: =IF(B77<>"",SUMIFS('TAB-UI'!$F$11:$F$109,'TAB-UI'!$D$11:$D$109,B77),0) -> 0 | F77: =IF(B77<>"",SUMIFS('TAB-UI'!$G$11:$G$109,'TAB-UI'!$D$11:$D$109,B77),0) -> 0 | G77: =IF(B77<>"",SUMIFS('TAB-UI'!$H$11:$H$109,'TAB-UI'!$D$11:$D$109,B77),0) -> 0 | H77: =IF(B77<>"",SUMIFS('TAB-UI'!$I$11:$I$109,'TAB-UI'!$D$11:$D$109,B77),0) -> 0 | I77: =IF(B77<>"",SUMIFS('TAB-UI'!$J$11:$J$109,'TAB-UI'!$D$11:$D$109,B77),0) -> 0 | J77: =IF(B77<>"",SUMIFS('TAB-UI'!$K$11:$K$109,'TAB-UI'!$D$11:$D$109,B77),0) -> 0 | K77: =IF(B77<>"",SUMIFS('TAB-UI'!$L$11:$L$109,'TAB-UI'!$D$11:$D$109,B77),0) -> 0 | L77: =IF(B77<>"",SUMIFS('TAB-UI'!$M$11:$M$109,'TAB-UI'!$D$11:$D$109,B77),0) -> 0 | M77: =IF(B77<>"",SUMIFS('TAB-UI'!$N$11:$N$109,'TAB-UI'!$D$11:$D$109,B77),0) -> 0 | N77: =IF(B77<>"",SUMIFS('TAB-UI'!$O$11:$O$109,'TAB-UI'!$D$11:$D$109,B77),0) -> 0
A78: 68 | B78: =CONDOMINI!B78 -> C68 | D78: =IF(C78<>"",IFERROR(VLOOKUP(B78,CONDOMINI!$B$11:$C$109,2,FALSE),""),"") ->  | E78: =IF(B78<>"",SUMIFS('TAB-UI'!$F$11:$F$109,'TAB-UI'!$D$11:$D$109,B78),0) -> 0 | F78: =IF(B78<>"",SUMIFS('TAB-UI'!$G$11:$G$109,'TAB-UI'!$D$11:$D$109,B78),0) -> 0 | G78: =IF(B78<>"",SUMIFS('TAB-UI'!$H$11:$H$109,'TAB-UI'!$D$11:$D$109,B78),0) -> 0 | H78: =IF(B78<>"",SUMIFS('TAB-UI'!$I$11:$I$109,'TAB-UI'!$D$11:$D$109,B78),0) -> 0 | I78: =IF(B78<>"",SUMIFS('TAB-UI'!$J$11:$J$109,'TAB-UI'!$D$11:$D$109,B78),0) -> 0 | J78: =IF(B78<>"",SUMIFS('TAB-UI'!$K$11:$K$109,'TAB-UI'!$D$11:$D$109,B78),0) -> 0 | K78: =IF(B78<>"",SUMIFS('TAB-UI'!$L$11:$L$109,'TAB-UI'!$D$11:$D$109,B78),0) -> 0 | L78: =IF(B78<>"",SUMIFS('TAB-UI'!$M$11:$M$109,'TAB-UI'!$D$11:$D$109,B78),0) -> 0 | M78: =IF(B78<>"",SUMIFS('TAB-UI'!$N$11:$N$109,'TAB-UI'!$D$11:$D$109,B78),0) -> 0 | N78: =IF(B78<>"",SUMIFS('TAB-UI'!$O$11:$O$109,'TAB-UI'!$D$11:$D$109,B78),0) -> 0
A79: 69 | B79: =CONDOMINI!B79 -> C69 | D79: =IF(C79<>"",IFERROR(VLOOKUP(B79,CONDOMINI!$B$11:$C$109,2,FALSE),""),"") ->  | E79: =IF(B79<>"",SUMIFS('TAB-UI'!$F$11:$F$109,'TAB-UI'!$D$11:$D$109,B79),0) -> 0 | F79: =IF(B79<>"",SUMIFS('TAB-UI'!$G$11:$G$109,'TAB-UI'!$D$11:$D$109,B79),0) -> 0 | G79: =IF(B79<>"",SUMIFS('TAB-UI'!$H$11:$H$109,'TAB-UI'!$D$11:$D$109,B79),0) -> 0 | H79: =IF(B79<>"",SUMIFS('TAB-UI'!$I$11:$I$109,'TAB-UI'!$D$11:$D$109,B79),0) -> 0 | I79: =IF(B79<>"",SUMIFS('TAB-UI'!$J$11:$J$109,'TAB-UI'!$D$11:$D$109,B79),0) -> 0 | J79: =IF(B79<>"",SUMIFS('TAB-UI'!$K$11:$K$109,'TAB-UI'!$D$11:$D$109,B79),0) -> 0 | K79: =IF(B79<>"",SUMIFS('TAB-UI'!$L$11:$L$109,'TAB-UI'!$D$11:$D$109,B79),0) -> 0 | L79: =IF(B79<>"",SUMIFS('TAB-UI'!$M$11:$M$109,'TAB-UI'!$D$11:$D$109,B79),0) -> 0 | M79: =IF(B79<>"",SUMIFS('TAB-UI'!$N$11:$N$109,'TAB-UI'!$D$11:$D$109,B79),0) -> 0 | N79: =IF(B79<>"",SUMIFS('TAB-UI'!$O$11:$O$109,'TAB-UI'!$D$11:$D$109,B79),0) -> 0
A80: 70 | B80: =CONDOMINI!B80 -> C70 | D80: =IF(C80<>"",IFERROR(VLOOKUP(B80,CONDOMINI!$B$11:$C$109,2,FALSE),""),"") ->  | E80: =IF(B80<>"",SUMIFS('TAB-UI'!$F$11:$F$109,'TAB-UI'!$D$11:$D$109,B80),0) -> 0 | F80: =IF(B80<>"",SUMIFS('TAB-UI'!$G$11:$G$109,'TAB-UI'!$D$11:$D$109,B80),0) -> 0 | G80: =IF(B80<>"",SUMIFS('TAB-UI'!$H$11:$H$109,'TAB-UI'!$D$11:$D$109,B80),0) -> 0 | H80: =IF(B80<>"",SUMIFS('TAB-UI'!$I$11:$I$109,'TAB-UI'!$D$11:$D$109,B80),0) -> 0 | I80: =IF(B80<>"",SUMIFS('TAB-UI'!$J$11:$J$109,'TAB-UI'!$D$11:$D$109,B80),0) -> 0 | J80: =IF(B80<>"",SUMIFS('TAB-UI'!$K$11:$K$109,'TAB-UI'!$D$11:$D$109,B80),0) -> 0 | K80: =IF(B80<>"",SUMIFS('TAB-UI'!$L$11:$L$109,'TAB-UI'!$D$11:$D$109,B80),0) -> 0 | L80: =IF(B80<>"",SUMIFS('TAB-UI'!$M$11:$M$109,'TAB-UI'!$D$11:$D$109,B80),0) -> 0 | M80: =IF(B80<>"",SUMIFS('TAB-UI'!$N$11:$N$109,'TAB-UI'!$D$11:$D$109,B80),0) -> 0 | N80: =IF(B80<>"",SUMIFS('TAB-UI'!$O$11:$O$109,'TAB-UI'!$D$11:$D$109,B80),0) -> 0
A81: 71 | B81: =CONDOMINI!B81 -> C71 | D81: =IF(C81<>"",IFERROR(VLOOKUP(B81,CONDOMINI!$B$11:$C$109,2,FALSE),""),"") ->  | E81: =IF(B81<>"",SUMIFS('TAB-UI'!$F$11:$F$109,'TAB-UI'!$D$11:$D$109,B81),0) -> 0 | F81: =IF(B81<>"",SUMIFS('TAB-UI'!$G$11:$G$109,'TAB-UI'!$D$11:$D$109,B81),0) -> 0 | G81: =IF(B81<>"",SUMIFS('TAB-UI'!$H$11:$H$109,'TAB-UI'!$D$11:$D$109,B81),0) -> 0 | H81: =IF(B81<>"",SUMIFS('TAB-UI'!$I$11:$I$109,'TAB-UI'!$D$11:$D$109,B81),0) -> 0 | I81: =IF(B81<>"",SUMIFS('TAB-UI'!$J$11:$J$109,'TAB-UI'!$D$11:$D$109,B81),0) -> 0 | J81: =IF(B81<>"",SUMIFS('TAB-UI'!$K$11:$K$109,'TAB-UI'!$D$11:$D$109,B81),0) -> 0 | K81: =IF(B81<>"",SUMIFS('TAB-UI'!$L$11:$L$109,'TAB-UI'!$D$11:$D$109,B81),0) -> 0 | L81: =IF(B81<>"",SUMIFS('TAB-UI'!$M$11:$M$109,'TAB-UI'!$D$11:$D$109,B81),0) -> 0 | M81: =IF(B81<>"",SUMIFS('TAB-UI'!$N$11:$N$109,'TAB-UI'!$D$11:$D$109,B81),0) -> 0 | N81: =IF(B81<>"",SUMIFS('TAB-UI'!$O$11:$O$109,'TAB-UI'!$D$11:$D$109,B81),0) -> 0
A82: 72 | B82: =CONDOMINI!B82 -> C72 | D82: =IF(C82<>"",IFERROR(VLOOKUP(B82,CONDOMINI!$B$11:$C$109,2,FALSE),""),"") ->  | E82: =IF(B82<>"",SUMIFS('TAB-UI'!$F$11:$F$109,'TAB-UI'!$D$11:$D$109,B82),0) -> 0 | F82: =IF(B82<>"",SUMIFS('TAB-UI'!$G$11:$G$109,'TAB-UI'!$D$11:$D$109,B82),0) -> 0 | G82: =IF(B82<>"",SUMIFS('TAB-UI'!$H$11:$H$109,'TAB-UI'!$D$11:$D$109,B82),0) -> 0 | H82: =IF(B82<>"",SUMIFS('TAB-UI'!$I$11:$I$109,'TAB-UI'!$D$11:$D$109,B82),0) -> 0 | I82: =IF(B82<>"",SUMIFS('TAB-UI'!$J$11:$J$109,'TAB-UI'!$D$11:$D$109,B82),0) -> 0 | J82: =IF(B82<>"",SUMIFS('TAB-UI'!$K$11:$K$109,'TAB-UI'!$D$11:$D$109,B82),0) -> 0 | K82: =IF(B82<>"",SUMIFS('TAB-UI'!$L$11:$L$109,'TAB-UI'!$D$11:$D$109,B82),0) -> 0 | L82: =IF(B82<>"",SUMIFS('TAB-UI'!$M$11:$M$109,'TAB-UI'!$D$11:$D$109,B82),0) -> 0 | M82: =IF(B82<>"",SUMIFS('TAB-UI'!$N$11:$N$109,'TAB-UI'!$D$11:$D$109,B82),0) -> 0 | N82: =IF(B82<>"",SUMIFS('TAB-UI'!$O$11:$O$109,'TAB-UI'!$D$11:$D$109,B82),0) -> 0
A83: 73 | B83: =CONDOMINI!B83 -> C73 | D83: =IF(C83<>"",IFERROR(VLOOKUP(B83,CONDOMINI!$B$11:$C$109,2,FALSE),""),"") ->  | E83: =IF(B83<>"",SUMIFS('TAB-UI'!$F$11:$F$109,'TAB-UI'!$D$11:$D$109,B83),0) -> 0 | F83: =IF(B83<>"",SUMIFS('TAB-UI'!$G$11:$G$109,'TAB-UI'!$D$11:$D$109,B83),0) -> 0 | G83: =IF(B83<>"",SUMIFS('TAB-UI'!$H$11:$H$109,'TAB-UI'!$D$11:$D$109,B83),0) -> 0 | H83: =IF(B83<>"",SUMIFS('TAB-UI'!$I$11:$I$109,'TAB-UI'!$D$11:$D$109,B83),0) -> 0 | I83: =IF(B83<>"",SUMIFS('TAB-UI'!$J$11:$J$109,'TAB-UI'!$D$11:$D$109,B83),0) -> 0 | J83: =IF(B83<>"",SUMIFS('TAB-UI'!$K$11:$K$109,'TAB-UI'!$D$11:$D$109,B83),0) -> 0 | K83: =IF(B83<>"",SUMIFS('TAB-UI'!$L$11:$L$109,'TAB-UI'!$D$11:$D$109,B83),0) -> 0 | L83: =IF(B83<>"",SUMIFS('TAB-UI'!$M$11:$M$109,'TAB-UI'!$D$11:$D$109,B83),0) -> 0 | M83: =IF(B83<>"",SUMIFS('TAB-UI'!$N$11:$N$109,'TAB-UI'!$D$11:$D$109,B83),0) -> 0 | N83: =IF(B83<>"",SUMIFS('TAB-UI'!$O$11:$O$109,'TAB-UI'!$D$11:$D$109,B83),0) -> 0
A84: 74 | B84: =CONDOMINI!B84 -> C74 | D84: =IF(C84<>"",IFERROR(VLOOKUP(B84,CONDOMINI!$B$11:$C$109,2,FALSE),""),"") ->  | E84: =IF(B84<>"",SUMIFS('TAB-UI'!$F$11:$F$109,'TAB-UI'!$D$11:$D$109,B84),0) -> 0 | F84: =IF(B84<>"",SUMIFS('TAB-UI'!$G$11:$G$109,'TAB-UI'!$D$11:$D$109,B84),0) -> 0 | G84: =IF(B84<>"",SUMIFS('TAB-UI'!$H$11:$H$109,'TAB-UI'!$D$11:$D$109,B84),0) -> 0 | H84: =IF(B84<>"",SUMIFS('TAB-UI'!$I$11:$I$109,'TAB-UI'!$D$11:$D$109,B84),0) -> 0 | I84: =IF(B84<>"",SUMIFS('TAB-UI'!$J$11:$J$109,'TAB-UI'!$D$11:$D$109,B84),0) -> 0 | J84: =IF(B84<>"",SUMIFS('TAB-UI'!$K$11:$K$109,'TAB-UI'!$D$11:$D$109,B84),0) -> 0 | K84: =IF(B84<>"",SUMIFS('TAB-UI'!$L$11:$L$109,'TAB-UI'!$D$11:$D$109,B84),0) -> 0 | L84: =IF(B84<>"",SUMIFS('TAB-UI'!$M$11:$M$109,'TAB-UI'!$D$11:$D$109,B84),0) -> 0 | M84: =IF(B84<>"",SUMIFS('TAB-UI'!$N$11:$N$109,'TAB-UI'!$D$11:$D$109,B84),0) -> 0 | N84: =IF(B84<>"",SUMIFS('TAB-UI'!$O$11:$O$109,'TAB-UI'!$D$11:$D$109,B84),0) -> 0
A85: 75 | B85: =CONDOMINI!B85 -> C75 | D85: =IF(C85<>"",IFERROR(VLOOKUP(B85,CONDOMINI!$B$11:$C$109,2,FALSE),""),"") ->  | E85: =IF(B85<>"",SUMIFS('TAB-UI'!$F$11:$F$109,'TAB-UI'!$D$11:$D$109,B85),0) -> 0 | F85: =IF(B85<>"",SUMIFS('TAB-UI'!$G$11:$G$109,'TAB-UI'!$D$11:$D$109,B85),0) -> 0 | G85: =IF(B85<>"",SUMIFS('TAB-UI'!$H$11:$H$109,'TAB-UI'!$D$11:$D$109,B85),0) -> 0 | H85: =IF(B85<>"",SUMIFS('TAB-UI'!$I$11:$I$109,'TAB-UI'!$D$11:$D$109,B85),0) -> 0 | I85: =IF(B85<>"",SUMIFS('TAB-UI'!$J$11:$J$109,'TAB-UI'!$D$11:$D$109,B85),0) -> 0 | J85: =IF(B85<>"",SUMIFS('TAB-UI'!$K$11:$K$109,'TAB-UI'!$D$11:$D$109,B85),0) -> 0 | K85: =IF(B85<>"",SUMIFS('TAB-UI'!$L$11:$L$109,'TAB-UI'!$D$11:$D$109,B85),0) -> 0 | L85: =IF(B85<>"",SUMIFS('TAB-UI'!$M$11:$M$109,'TAB-UI'!$D$11:$D$109,B85),0) -> 0 | M85: =IF(B85<>"",SUMIFS('TAB-UI'!$N$11:$N$109,'TAB-UI'!$D$11:$D$109,B85),0) -> 0 | N85: =IF(B85<>"",SUMIFS('TAB-UI'!$O$11:$O$109,'TAB-UI'!$D$11:$D$109,B85),0) -> 0
A86: 76 | B86: =CONDOMINI!B86 -> C76 | D86: =IF(C86<>"",IFERROR(VLOOKUP(B86,CONDOMINI!$B$11:$C$109,2,FALSE),""),"") ->  | E86: =IF(B86<>"",SUMIFS('TAB-UI'!$F$11:$F$109,'TAB-UI'!$D$11:$D$109,B86),0) -> 0 | F86: =IF(B86<>"",SUMIFS('TAB-UI'!$G$11:$G$109,'TAB-UI'!$D$11:$D$109,B86),0) -> 0 | G86: =IF(B86<>"",SUMIFS('TAB-UI'!$H$11:$H$109,'TAB-UI'!$D$11:$D$109,B86),0) -> 0 | H86: =IF(B86<>"",SUMIFS('TAB-UI'!$I$11:$I$109,'TAB-UI'!$D$11:$D$109,B86),0) -> 0 | I86: =IF(B86<>"",SUMIFS('TAB-UI'!$J$11:$J$109,'TAB-UI'!$D$11:$D$109,B86),0) -> 0 | J86: =IF(B86<>"",SUMIFS('TAB-UI'!$K$11:$K$109,'TAB-UI'!$D$11:$D$109,B86),0) -> 0 | K86: =IF(B86<>"",SUMIFS('TAB-UI'!$L$11:$L$109,'TAB-UI'!$D$11:$D$109,B86),0) -> 0 | L86: =IF(B86<>"",SUMIFS('TAB-UI'!$M$11:$M$109,'TAB-UI'!$D$11:$D$109,B86),0) -> 0 | M86: =IF(B86<>"",SUMIFS('TAB-UI'!$N$11:$N$109,'TAB-UI'!$D$11:$D$109,B86),0) -> 0 | N86: =IF(B86<>"",SUMIFS('TAB-UI'!$O$11:$O$109,'TAB-UI'!$D$11:$D$109,B86),0) -> 0
A87: 77 | B87: =CONDOMINI!B87 -> C77 | D87: =IF(C87<>"",IFERROR(VLOOKUP(B87,CONDOMINI!$B$11:$C$109,2,FALSE),""),"") ->  | E87: =IF(B87<>"",SUMIFS('TAB-UI'!$F$11:$F$109,'TAB-UI'!$D$11:$D$109,B87),0) -> 0 | F87: =IF(B87<>"",SUMIFS('TAB-UI'!$G$11:$G$109,'TAB-UI'!$D$11:$D$109,B87),0) -> 0 | G87: =IF(B87<>"",SUMIFS('TAB-UI'!$H$11:$H$109,'TAB-UI'!$D$11:$D$109,B87),0) -> 0 | H87: =IF(B87<>"",SUMIFS('TAB-UI'!$I$11:$I$109,'TAB-UI'!$D$11:$D$109,B87),0) -> 0 | I87: =IF(B87<>"",SUMIFS('TAB-UI'!$J$11:$J$109,'TAB-UI'!$D$11:$D$109,B87),0) -> 0 | J87: =IF(B87<>"",SUMIFS('TAB-UI'!$K$11:$K$109,'TAB-UI'!$D$11:$D$109,B87),0) -> 0 | K87: =IF(B87<>"",SUMIFS('TAB-UI'!$L$11:$L$109,'TAB-UI'!$D$11:$D$109,B87),0) -> 0 | L87: =IF(B87<>"",SUMIFS('TAB-UI'!$M$11:$M$109,'TAB-UI'!$D$11:$D$109,B87),0) -> 0 | M87: =IF(B87<>"",SUMIFS('TAB-UI'!$N$11:$N$109,'TAB-UI'!$D$11:$D$109,B87),0) -> 0 | N87: =IF(B87<>"",SUMIFS('TAB-UI'!$O$11:$O$109,'TAB-UI'!$D$11:$D$109,B87),0) -> 0
A88: 78 | B88: =CONDOMINI!B88 -> C78 | D88: =IF(C88<>"",IFERROR(VLOOKUP(B88,CONDOMINI!$B$11:$C$109,2,FALSE),""),"") ->  | E88: =IF(B88<>"",SUMIFS('TAB-UI'!$F$11:$F$109,'TAB-UI'!$D$11:$D$109,B88),0) -> 0 | F88: =IF(B88<>"",SUMIFS('TAB-UI'!$G$11:$G$109,'TAB-UI'!$D$11:$D$109,B88),0) -> 0 | G88: =IF(B88<>"",SUMIFS('TAB-UI'!$H$11:$H$109,'TAB-UI'!$D$11:$D$109,B88),0) -> 0 | H88: =IF(B88<>"",SUMIFS('TAB-UI'!$I$11:$I$109,'TAB-UI'!$D$11:$D$109,B88),0) -> 0 | I88: =IF(B88<>"",SUMIFS('TAB-UI'!$J$11:$J$109,'TAB-UI'!$D$11:$D$109,B88),0) -> 0 | J88: =IF(B88<>"",SUMIFS('TAB-UI'!$K$11:$K$109,'TAB-UI'!$D$11:$D$109,B88),0) -> 0 | K88: =IF(B88<>"",SUMIFS('TAB-UI'!$L$11:$L$109,'TAB-UI'!$D$11:$D$109,B88),0) -> 0 | L88: =IF(B88<>"",SUMIFS('TAB-UI'!$M$11:$M$109,'TAB-UI'!$D$11:$D$109,B88),0) -> 0 | M88: =IF(B88<>"",SUMIFS('TAB-UI'!$N$11:$N$109,'TAB-UI'!$D$11:$D$109,B88),0) -> 0 | N88: =IF(B88<>"",SUMIFS('TAB-UI'!$O$11:$O$109,'TAB-UI'!$D$11:$D$109,B88),0) -> 0
A89: 79 | B89: =CONDOMINI!B89 -> C79 | D89: =IF(C89<>"",IFERROR(VLOOKUP(B89,CONDOMINI!$B$11:$C$109,2,FALSE),""),"") ->  | E89: =IF(B89<>"",SUMIFS('TAB-UI'!$F$11:$F$109,'TAB-UI'!$D$11:$D$109,B89),0) -> 0 | F89: =IF(B89<>"",SUMIFS('TAB-UI'!$G$11:$G$109,'TAB-UI'!$D$11:$D$109,B89),0) -> 0 | G89: =IF(B89<>"",SUMIFS('TAB-UI'!$H$11:$H$109,'TAB-UI'!$D$11:$D$109,B89),0) -> 0 | H89: =IF(B89<>"",SUMIFS('TAB-UI'!$I$11:$I$109,'TAB-UI'!$D$11:$D$109,B89),0) -> 0 | I89: =IF(B89<>"",SUMIFS('TAB-UI'!$J$11:$J$109,'TAB-UI'!$D$11:$D$109,B89),0) -> 0 | J89: =IF(B89<>"",SUMIFS('TAB-UI'!$K$11:$K$109,'TAB-UI'!$D$11:$D$109,B89),0) -> 0 | K89: =IF(B89<>"",SUMIFS('TAB-UI'!$L$11:$L$109,'TAB-UI'!$D$11:$D$109,B89),0) -> 0 | L89: =IF(B89<>"",SUMIFS('TAB-UI'!$M$11:$M$109,'TAB-UI'!$D$11:$D$109,B89),0) -> 0 | M89: =IF(B89<>"",SUMIFS('TAB-UI'!$N$11:$N$109,'TAB-UI'!$D$11:$D$109,B89),0) -> 0 | N89: =IF(B89<>"",SUMIFS('TAB-UI'!$O$11:$O$109,'TAB-UI'!$D$11:$D$109,B89),0) -> 0
A90: 80 | B90: =CONDOMINI!B90 -> C80 | D90: =IF(C90<>"",IFERROR(VLOOKUP(B90,CONDOMINI!$B$11:$C$109,2,FALSE),""),"") ->  | E90: =IF(B90<>"",SUMIFS('TAB-UI'!$F$11:$F$109,'TAB-UI'!$D$11:$D$109,B90),0) -> 0 | F90: =IF(B90<>"",SUMIFS('TAB-UI'!$G$11:$G$109,'TAB-UI'!$D$11:$D$109,B90),0) -> 0 | G90: =IF(B90<>"",SUMIFS('TAB-UI'!$H$11:$H$109,'TAB-UI'!$D$11:$D$109,B90),0) -> 0 | H90: =IF(B90<>"",SUMIFS('TAB-UI'!$I$11:$I$109,'TAB-UI'!$D$11:$D$109,B90),0) -> 0 | I90: =IF(B90<>"",SUMIFS('TAB-UI'!$J$11:$J$109,'TAB-UI'!$D$11:$D$109,B90),0) -> 0 | J90: =IF(B90<>"",SUMIFS('TAB-UI'!$K$11:$K$109,'TAB-UI'!$D$11:$D$109,B90),0) -> 0 | K90: =IF(B90<>"",SUMIFS('TAB-UI'!$L$11:$L$109,'TAB-UI'!$D$11:$D$109,B90),0) -> 0 | L90: =IF(B90<>"",SUMIFS('TAB-UI'!$M$11:$M$109,'TAB-UI'!$D$11:$D$109,B90),0) -> 0 | M90: =IF(B90<>"",SUMIFS('TAB-UI'!$N$11:$N$109,'TAB-UI'!$D$11:$D$109,B90),0) -> 0 | N90: =IF(B90<>"",SUMIFS('TAB-UI'!$O$11:$O$109,'TAB-UI'!$D$11:$D$109,B90),0) -> 0
A91: 81 | B91: =CONDOMINI!B91 -> C81 | D91: =IF(C91<>"",IFERROR(VLOOKUP(B91,CONDOMINI!$B$11:$C$109,2,FALSE),""),"") ->  | E91: =IF(B91<>"",SUMIFS('TAB-UI'!$F$11:$F$109,'TAB-UI'!$D$11:$D$109,B91),0) -> 0 | F91: =IF(B91<>"",SUMIFS('TAB-UI'!$G$11:$G$109,'TAB-UI'!$D$11:$D$109,B91),0) -> 0 | G91: =IF(B91<>"",SUMIFS('TAB-UI'!$H$11:$H$109,'TAB-UI'!$D$11:$D$109,B91),0) -> 0 | H91: =IF(B91<>"",SUMIFS('TAB-UI'!$I$11:$I$109,'TAB-UI'!$D$11:$D$109,B91),0) -> 0 | I91: =IF(B91<>"",SUMIFS('TAB-UI'!$J$11:$J$109,'TAB-UI'!$D$11:$D$109,B91),0) -> 0 | J91: =IF(B91<>"",SUMIFS('TAB-UI'!$K$11:$K$109,'TAB-UI'!$D$11:$D$109,B91),0) -> 0 | K91: =IF(B91<>"",SUMIFS('TAB-UI'!$L$11:$L$109,'TAB-UI'!$D$11:$D$109,B91),0) -> 0 | L91: =IF(B91<>"",SUMIFS('TAB-UI'!$M$11:$M$109,'TAB-UI'!$D$11:$D$109,B91),0) -> 0 | M91: =IF(B91<>"",SUMIFS('TAB-UI'!$N$11:$N$109,'TAB-UI'!$D$11:$D$109,B91),0) -> 0 | N91: =IF(B91<>"",SUMIFS('TAB-UI'!$O$11:$O$109,'TAB-UI'!$D$11:$D$109,B91),0) -> 0
A92: 82 | B92: =CONDOMINI!B92 -> C82 | D92: =IF(C92<>"",IFERROR(VLOOKUP(B92,CONDOMINI!$B$11:$C$109,2,FALSE),""),"") ->  | E92: =IF(B92<>"",SUMIFS('TAB-UI'!$F$11:$F$109,'TAB-UI'!$D$11:$D$109,B92),0) -> 0 | F92: =IF(B92<>"",SUMIFS('TAB-UI'!$G$11:$G$109,'TAB-UI'!$D$11:$D$109,B92),0) -> 0 | G92: =IF(B92<>"",SUMIFS('TAB-UI'!$H$11:$H$109,'TAB-UI'!$D$11:$D$109,B92),0) -> 0 | H92: =IF(B92<>"",SUMIFS('TAB-UI'!$I$11:$I$109,'TAB-UI'!$D$11:$D$109,B92),0) -> 0 | I92: =IF(B92<>"",SUMIFS('TAB-UI'!$J$11:$J$109,'TAB-UI'!$D$11:$D$109,B92),0) -> 0 | J92: =IF(B92<>"",SUMIFS('TAB-UI'!$K$11:$K$109,'TAB-UI'!$D$11:$D$109,B92),0) -> 0 | K92: =IF(B92<>"",SUMIFS('TAB-UI'!$L$11:$L$109,'TAB-UI'!$D$11:$D$109,B92),0) -> 0 | L92: =IF(B92<>"",SUMIFS('TAB-UI'!$M$11:$M$109,'TAB-UI'!$D$11:$D$109,B92),0) -> 0 | M92: =IF(B92<>"",SUMIFS('TAB-UI'!$N$11:$N$109,'TAB-UI'!$D$11:$D$109,B92),0) -> 0 | N92: =IF(B92<>"",SUMIFS('TAB-UI'!$O$11:$O$109,'TAB-UI'!$D$11:$D$109,B92),0) -> 0
A93: 83 | B93: =CONDOMINI!B93 -> C83 | D93: =IF(C93<>"",IFERROR(VLOOKUP(B93,CONDOMINI!$B$11:$C$109,2,FALSE),""),"") ->  | E93: =IF(B93<>"",SUMIFS('TAB-UI'!$F$11:$F$109,'TAB-UI'!$D$11:$D$109,B93),0) -> 0 | F93: =IF(B93<>"",SUMIFS('TAB-UI'!$G$11:$G$109,'TAB-UI'!$D$11:$D$109,B93),0) -> 0 | G93: =IF(B93<>"",SUMIFS('TAB-UI'!$H$11:$H$109,'TAB-UI'!$D$11:$D$109,B93),0) -> 0 | H93: =IF(B93<>"",SUMIFS('TAB-UI'!$I$11:$I$109,'TAB-UI'!$D$11:$D$109,B93),0) -> 0 | I93: =IF(B93<>"",SUMIFS('TAB-UI'!$J$11:$J$109,'TAB-UI'!$D$11:$D$109,B93),0) -> 0 | J93: =IF(B93<>"",SUMIFS('TAB-UI'!$K$11:$K$109,'TAB-UI'!$D$11:$D$109,B93),0) -> 0 | K93: =IF(B93<>"",SUMIFS('TAB-UI'!$L$11:$L$109,'TAB-UI'!$D$11:$D$109,B93),0) -> 0 | L93: =IF(B93<>"",SUMIFS('TAB-UI'!$M$11:$M$109,'TAB-UI'!$D$11:$D$109,B93),0) -> 0 | M93: =IF(B93<>"",SUMIFS('TAB-UI'!$N$11:$N$109,'TAB-UI'!$D$11:$D$109,B93),0) -> 0 | N93: =IF(B93<>"",SUMIFS('TAB-UI'!$O$11:$O$109,'TAB-UI'!$D$11:$D$109,B93),0) -> 0
A94: 84 | B94: =CONDOMINI!B94 -> C84 | D94: =IF(C94<>"",IFERROR(VLOOKUP(B94,CONDOMINI!$B$11:$C$109,2,FALSE),""),"") ->  | E94: =IF(B94<>"",SUMIFS('TAB-UI'!$F$11:$F$109,'TAB-UI'!$D$11:$D$109,B94),0) -> 0 | F94: =IF(B94<>"",SUMIFS('TAB-UI'!$G$11:$G$109,'TAB-UI'!$D$11:$D$109,B94),0) -> 0 | G94: =IF(B94<>"",SUMIFS('TAB-UI'!$H$11:$H$109,'TAB-UI'!$D$11:$D$109,B94),0) -> 0 | H94: =IF(B94<>"",SUMIFS('TAB-UI'!$I$11:$I$109,'TAB-UI'!$D$11:$D$109,B94),0) -> 0 | I94: =IF(B94<>"",SUMIFS('TAB-UI'!$J$11:$J$109,'TAB-UI'!$D$11:$D$109,B94),0) -> 0 | J94: =IF(B94<>"",SUMIFS('TAB-UI'!$K$11:$K$109,'TAB-UI'!$D$11:$D$109,B94),0) -> 0 | K94: =IF(B94<>"",SUMIFS('TAB-UI'!$L$11:$L$109,'TAB-UI'!$D$11:$D$109,B94),0) -> 0 | L94: =IF(B94<>"",SUMIFS('TAB-UI'!$M$11:$M$109,'TAB-UI'!$D$11:$D$109,B94),0) -> 0 | M94: =IF(B94<>"",SUMIFS('TAB-UI'!$N$11:$N$109,'TAB-UI'!$D$11:$D$109,B94),0) -> 0 | N94: =IF(B94<>"",SUMIFS('TAB-UI'!$O$11:$O$109,'TAB-UI'!$D$11:$D$109,B94),0) -> 0
A95: 85 | B95: =CONDOMINI!B95 -> C85 | D95: =IF(C95<>"",IFERROR(VLOOKUP(B95,CONDOMINI!$B$11:$C$109,2,FALSE),""),"") ->  | E95: =IF(B95<>"",SUMIFS('TAB-UI'!$F$11:$F$109,'TAB-UI'!$D$11:$D$109,B95),0) -> 0 | F95: =IF(B95<>"",SUMIFS('TAB-UI'!$G$11:$G$109,'TAB-UI'!$D$11:$D$109,B95),0) -> 0 | G95: =IF(B95<>"",SUMIFS('TAB-UI'!$H$11:$H$109,'TAB-UI'!$D$11:$D$109,B95),0) -> 0 | H95: =IF(B95<>"",SUMIFS('TAB-UI'!$I$11:$I$109,'TAB-UI'!$D$11:$D$109,B95),0) -> 0 | I95: =IF(B95<>"",SUMIFS('TAB-UI'!$J$11:$J$109,'TAB-UI'!$D$11:$D$109,B95),0) -> 0 | J95: =IF(B95<>"",SUMIFS('TAB-UI'!$K$11:$K$109,'TAB-UI'!$D$11:$D$109,B95),0) -> 0 | K95: =IF(B95<>"",SUMIFS('TAB-UI'!$L$11:$L$109,'TAB-UI'!$D$11:$D$109,B95),0) -> 0 | L95: =IF(B95<>"",SUMIFS('TAB-UI'!$M$11:$M$109,'TAB-UI'!$D$11:$D$109,B95),0) -> 0 | M95: =IF(B95<>"",SUMIFS('TAB-UI'!$N$11:$N$109,'TAB-UI'!$D$11:$D$109,B95),0) -> 0 | N95: =IF(B95<>"",SUMIFS('TAB-UI'!$O$11:$O$109,'TAB-UI'!$D$11:$D$109,B95),0) -> 0
A96: 86 | B96: =CONDOMINI!B96 -> C86 | D96: =IF(C96<>"",IFERROR(VLOOKUP(B96,CONDOMINI!$B$11:$C$109,2,FALSE),""),"") ->  | E96: =IF(B96<>"",SUMIFS('TAB-UI'!$F$11:$F$109,'TAB-UI'!$D$11:$D$109,B96),0) -> 0 | F96: =IF(B96<>"",SUMIFS('TAB-UI'!$G$11:$G$109,'TAB-UI'!$D$11:$D$109,B96),0) -> 0 | G96: =IF(B96<>"",SUMIFS('TAB-UI'!$H$11:$H$109,'TAB-UI'!$D$11:$D$109,B96),0) -> 0 | H96: =IF(B96<>"",SUMIFS('TAB-UI'!$I$11:$I$109,'TAB-UI'!$D$11:$D$109,B96),0) -> 0 | I96: =IF(B96<>"",SUMIFS('TAB-UI'!$J$11:$J$109,'TAB-UI'!$D$11:$D$109,B96),0) -> 0 | J96: =IF(B96<>"",SUMIFS('TAB-UI'!$K$11:$K$109,'TAB-UI'!$D$11:$D$109,B96),0) -> 0 | K96: =IF(B96<>"",SUMIFS('TAB-UI'!$L$11:$L$109,'TAB-UI'!$D$11:$D$109,B96),0) -> 0 | L96: =IF(B96<>"",SUMIFS('TAB-UI'!$M$11:$M$109,'TAB-UI'!$D$11:$D$109,B96),0) -> 0 | M96: =IF(B96<>"",SUMIFS('TAB-UI'!$N$11:$N$109,'TAB-UI'!$D$11:$D$109,B96),0) -> 0 | N96: =IF(B96<>"",SUMIFS('TAB-UI'!$O$11:$O$109,'TAB-UI'!$D$11:$D$109,B96),0) -> 0
A97: 87 | B97: =CONDOMINI!B97 -> C87 | D97: =IF(C97<>"",IFERROR(VLOOKUP(B97,CONDOMINI!$B$11:$C$109,2,FALSE),""),"") ->  | E97: =IF(B97<>"",SUMIFS('TAB-UI'!$F$11:$F$109,'TAB-UI'!$D$11:$D$109,B97),0) -> 0 | F97: =IF(B97<>"",SUMIFS('TAB-UI'!$G$11:$G$109,'TAB-UI'!$D$11:$D$109,B97),0) -> 0 | G97: =IF(B97<>"",SUMIFS('TAB-UI'!$H$11:$H$109,'TAB-UI'!$D$11:$D$109,B97),0) -> 0 | H97: =IF(B97<>"",SUMIFS('TAB-UI'!$I$11:$I$109,'TAB-UI'!$D$11:$D$109,B97),0) -> 0 | I97: =IF(B97<>"",SUMIFS('TAB-UI'!$J$11:$J$109,'TAB-UI'!$D$11:$D$109,B97),0) -> 0 | J97: =IF(B97<>"",SUMIFS('TAB-UI'!$K$11:$K$109,'TAB-UI'!$D$11:$D$109,B97),0) -> 0 | K97: =IF(B97<>"",SUMIFS('TAB-UI'!$L$11:$L$109,'TAB-UI'!$D$11:$D$109,B97),0) -> 0 | L97: =IF(B97<>"",SUMIFS('TAB-UI'!$M$11:$M$109,'TAB-UI'!$D$11:$D$109,B97),0) -> 0 | M97: =IF(B97<>"",SUMIFS('TAB-UI'!$N$11:$N$109,'TAB-UI'!$D$11:$D$109,B97),0) -> 0 | N97: =IF(B97<>"",SUMIFS('TAB-UI'!$O$11:$O$109,'TAB-UI'!$D$11:$D$109,B97),0) -> 0
A98: 88 | B98: =CONDOMINI!B98 -> C88 | D98: =IF(C98<>"",IFERROR(VLOOKUP(B98,CONDOMINI!$B$11:$C$109,2,FALSE),""),"") ->  | E98: =IF(B98<>"",SUMIFS('TAB-UI'!$F$11:$F$109,'TAB-UI'!$D$11:$D$109,B98),0) -> 0 | F98: =IF(B98<>"",SUMIFS('TAB-UI'!$G$11:$G$109,'TAB-UI'!$D$11:$D$109,B98),0) -> 0 | G98: =IF(B98<>"",SUMIFS('TAB-UI'!$H$11:$H$109,'TAB-UI'!$D$11:$D$109,B98),0) -> 0 | H98: =IF(B98<>"",SUMIFS('TAB-UI'!$I$11:$I$109,'TAB-UI'!$D$11:$D$109,B98),0) -> 0 | I98: =IF(B98<>"",SUMIFS('TAB-UI'!$J$11:$J$109,'TAB-UI'!$D$11:$D$109,B98),0) -> 0 | J98: =IF(B98<>"",SUMIFS('TAB-UI'!$K$11:$K$109,'TAB-UI'!$D$11:$D$109,B98),0) -> 0 | K98: =IF(B98<>"",SUMIFS('TAB-UI'!$L$11:$L$109,'TAB-UI'!$D$11:$D$109,B98),0) -> 0 | L98: =IF(B98<>"",SUMIFS('TAB-UI'!$M$11:$M$109,'TAB-UI'!$D$11:$D$109,B98),0) -> 0 | M98: =IF(B98<>"",SUMIFS('TAB-UI'!$N$11:$N$109,'TAB-UI'!$D$11:$D$109,B98),0) -> 0 | N98: =IF(B98<>"",SUMIFS('TAB-UI'!$O$11:$O$109,'TAB-UI'!$D$11:$D$109,B98),0) -> 0
A99: 89 | B99: =CONDOMINI!B99 -> C89 | D99: =IF(C99<>"",IFERROR(VLOOKUP(B99,CONDOMINI!$B$11:$C$109,2,FALSE),""),"") ->  | E99: =IF(B99<>"",SUMIFS('TAB-UI'!$F$11:$F$109,'TAB-UI'!$D$11:$D$109,B99),0) -> 0 | F99: =IF(B99<>"",SUMIFS('TAB-UI'!$G$11:$G$109,'TAB-UI'!$D$11:$D$109,B99),0) -> 0 | G99: =IF(B99<>"",SUMIFS('TAB-UI'!$H$11:$H$109,'TAB-UI'!$D$11:$D$109,B99),0) -> 0 | H99: =IF(B99<>"",SUMIFS('TAB-UI'!$I$11:$I$109,'TAB-UI'!$D$11:$D$109,B99),0) -> 0 | I99: =IF(B99<>"",SUMIFS('TAB-UI'!$J$11:$J$109,'TAB-UI'!$D$11:$D$109,B99),0) -> 0 | J99: =IF(B99<>"",SUMIFS('TAB-UI'!$K$11:$K$109,'TAB-UI'!$D$11:$D$109,B99),0) -> 0 | K99: =IF(B99<>"",SUMIFS('TAB-UI'!$L$11:$L$109,'TAB-UI'!$D$11:$D$109,B99),0) -> 0 | L99: =IF(B99<>"",SUMIFS('TAB-UI'!$M$11:$M$109,'TAB-UI'!$D$11:$D$109,B99),0) -> 0 | M99: =IF(B99<>"",SUMIFS('TAB-UI'!$N$11:$N$109,'TAB-UI'!$D$11:$D$109,B99),0) -> 0 | N99: =IF(B99<>"",SUMIFS('TAB-UI'!$O$11:$O$109,'TAB-UI'!$D$11:$D$109,B99),0) -> 0
A100: 90 | B100: =CONDOMINI!B100 -> C90 | D100: =IF(C100<>"",IFERROR(VLOOKUP(B100,CONDOMINI!$B$11:$C$109,2,FALSE),""),"") ->  | E100: =IF(B100<>"",SUMIFS('TAB-UI'!$F$11:$F$109,'TAB-UI'!$D$11:$D$109,B100),0) -> 0 | F100: =IF(B100<>"",SUMIFS('TAB-UI'!$G$11:$G$109,'TAB-UI'!$D$11:$D$109,B100),0) -> 0 | G100: =IF(B100<>"",SUMIFS('TAB-UI'!$H$11:$H$109,'TAB-UI'!$D$11:$D$109,B100),0) -> 0 | H100: =IF(B100<>"",SUMIFS('TAB-UI'!$I$11:$I$109,'TAB-UI'!$D$11:$D$109,B100),0) -> 0 | I100: =IF(B100<>"",SUMIFS('TAB-UI'!$J$11:$J$109,'TAB-UI'!$D$11:$D$109,B100),0) -> 0 | J100: =IF(B100<>"",SUMIFS('TAB-UI'!$K$11:$K$109,'TAB-UI'!$D$11:$D$109,B100),0) -> 0 | K100: =IF(B100<>"",SUMIFS('TAB-UI'!$L$11:$L$109,'TAB-UI'!$D$11:$D$109,B100),0) -> 0 | L100: =IF(B100<>"",SUMIFS('TAB-UI'!$M$11:$M$109,'TAB-UI'!$D$11:$D$109,B100),0) -> 0 | M100: =IF(B100<>"",SUMIFS('TAB-UI'!$N$11:$N$109,'TAB-UI'!$D$11:$D$109,B100),0) -> 0 | N100: =IF(B100<>"",SUMIFS('TAB-UI'!$O$11:$O$109,'TAB-UI'!$D$11:$D$109,B100),0) -> 0
A101: 91 | B101: =CONDOMINI!B101 -> C91 | D101: =IF(C101<>"",IFERROR(VLOOKUP(B101,CONDOMINI!$B$11:$C$109,2,FALSE),""),"") ->  | E101: =IF(B101<>"",SUMIFS('TAB-UI'!$F$11:$F$109,'TAB-UI'!$D$11:$D$109,B101),0) -> 0 | F101: =IF(B101<>"",SUMIFS('TAB-UI'!$G$11:$G$109,'TAB-UI'!$D$11:$D$109,B101),0) -> 0 | G101: =IF(B101<>"",SUMIFS('TAB-UI'!$H$11:$H$109,'TAB-UI'!$D$11:$D$109,B101),0) -> 0 | H101: =IF(B101<>"",SUMIFS('TAB-UI'!$I$11:$I$109,'TAB-UI'!$D$11:$D$109,B101),0) -> 0 | I101: =IF(B101<>"",SUMIFS('TAB-UI'!$J$11:$J$109,'TAB-UI'!$D$11:$D$109,B101),0) -> 0 | J101: =IF(B101<>"",SUMIFS('TAB-UI'!$K$11:$K$109,'TAB-UI'!$D$11:$D$109,B101),0) -> 0 | K101: =IF(B101<>"",SUMIFS('TAB-UI'!$L$11:$L$109,'TAB-UI'!$D$11:$D$109,B101),0) -> 0 | L101: =IF(B101<>"",SUMIFS('TAB-UI'!$M$11:$M$109,'TAB-UI'!$D$11:$D$109,B101),0) -> 0 | M101: =IF(B101<>"",SUMIFS('TAB-UI'!$N$11:$N$109,'TAB-UI'!$D$11:$D$109,B101),0) -> 0 | N101: =IF(B101<>"",SUMIFS('TAB-UI'!$O$11:$O$109,'TAB-UI'!$D$11:$D$109,B101),0) -> 0
A102: 92 | B102: =CONDOMINI!B102 -> C92 | D102: =IF(C102<>"",IFERROR(VLOOKUP(B102,CONDOMINI!$B$11:$C$109,2,FALSE),""),"") ->  | E102: =IF(B102<>"",SUMIFS('TAB-UI'!$F$11:$F$109,'TAB-UI'!$D$11:$D$109,B102),0) -> 0 | F102: =IF(B102<>"",SUMIFS('TAB-UI'!$G$11:$G$109,'TAB-UI'!$D$11:$D$109,B102),0) -> 0 | G102: =IF(B102<>"",SUMIFS('TAB-UI'!$H$11:$H$109,'TAB-UI'!$D$11:$D$109,B102),0) -> 0 | H102: =IF(B102<>"",SUMIFS('TAB-UI'!$I$11:$I$109,'TAB-UI'!$D$11:$D$109,B102),0) -> 0 | I102: =IF(B102<>"",SUMIFS('TAB-UI'!$J$11:$J$109,'TAB-UI'!$D$11:$D$109,B102),0) -> 0 | J102: =IF(B102<>"",SUMIFS('TAB-UI'!$K$11:$K$109,'TAB-UI'!$D$11:$D$109,B102),0) -> 0 | K102: =IF(B102<>"",SUMIFS('TAB-UI'!$L$11:$L$109,'TAB-UI'!$D$11:$D$109,B102),0) -> 0 | L102: =IF(B102<>"",SUMIFS('TAB-UI'!$M$11:$M$109,'TAB-UI'!$D$11:$D$109,B102),0) -> 0 | M102: =IF(B102<>"",SUMIFS('TAB-UI'!$N$11:$N$109,'TAB-UI'!$D$11:$D$109,B102),0) -> 0 | N102: =IF(B102<>"",SUMIFS('TAB-UI'!$O$11:$O$109,'TAB-UI'!$D$11:$D$109,B102),0) -> 0
A103: 93 | B103: =CONDOMINI!B103 -> C93 | D103: =IF(C103<>"",IFERROR(VLOOKUP(B103,CONDOMINI!$B$11:$C$109,2,FALSE),""),"") ->  | E103: =IF(B103<>"",SUMIFS('TAB-UI'!$F$11:$F$109,'TAB-UI'!$D$11:$D$109,B103),0) -> 0 | F103: =IF(B103<>"",SUMIFS('TAB-UI'!$G$11:$G$109,'TAB-UI'!$D$11:$D$109,B103),0) -> 0 | G103: =IF(B103<>"",SUMIFS('TAB-UI'!$H$11:$H$109,'TAB-UI'!$D$11:$D$109,B103),0) -> 0 | H103: =IF(B103<>"",SUMIFS('TAB-UI'!$I$11:$I$109,'TAB-UI'!$D$11:$D$109,B103),0) -> 0 | I103: =IF(B103<>"",SUMIFS('TAB-UI'!$J$11:$J$109,'TAB-UI'!$D$11:$D$109,B103),0) -> 0 | J103: =IF(B103<>"",SUMIFS('TAB-UI'!$K$11:$K$109,'TAB-UI'!$D$11:$D$109,B103),0) -> 0 | K103: =IF(B103<>"",SUMIFS('TAB-UI'!$L$11:$L$109,'TAB-UI'!$D$11:$D$109,B103),0) -> 0 | L103: =IF(B103<>"",SUMIFS('TAB-UI'!$M$11:$M$109,'TAB-UI'!$D$11:$D$109,B103),0) -> 0 | M103: =IF(B103<>"",SUMIFS('TAB-UI'!$N$11:$N$109,'TAB-UI'!$D$11:$D$109,B103),0) -> 0 | N103: =IF(B103<>"",SUMIFS('TAB-UI'!$O$11:$O$109,'TAB-UI'!$D$11:$D$109,B103),0) -> 0
A104: 94 | B104: =CONDOMINI!B104 -> C94 | D104: =IF(C104<>"",IFERROR(VLOOKUP(B104,CONDOMINI!$B$11:$C$109,2,FALSE),""),"") ->  | E104: =IF(B104<>"",SUMIFS('TAB-UI'!$F$11:$F$109,'TAB-UI'!$D$11:$D$109,B104),0) -> 0 | F104: =IF(B104<>"",SUMIFS('TAB-UI'!$G$11:$G$109,'TAB-UI'!$D$11:$D$109,B104),0) -> 0 | G104: =IF(B104<>"",SUMIFS('TAB-UI'!$H$11:$H$109,'TAB-UI'!$D$11:$D$109,B104),0) -> 0 | H104: =IF(B104<>"",SUMIFS('TAB-UI'!$I$11:$I$109,'TAB-UI'!$D$11:$D$109,B104),0) -> 0 | I104: =IF(B104<>"",SUMIFS('TAB-UI'!$J$11:$J$109,'TAB-UI'!$D$11:$D$109,B104),0) -> 0 | J104: =IF(B104<>"",SUMIFS('TAB-UI'!$K$11:$K$109,'TAB-UI'!$D$11:$D$109,B104),0) -> 0 | K104: =IF(B104<>"",SUMIFS('TAB-UI'!$L$11:$L$109,'TAB-UI'!$D$11:$D$109,B104),0) -> 0 | L104: =IF(B104<>"",SUMIFS('TAB-UI'!$M$11:$M$109,'TAB-UI'!$D$11:$D$109,B104),0) -> 0 | M104: =IF(B104<>"",SUMIFS('TAB-UI'!$N$11:$N$109,'TAB-UI'!$D$11:$D$109,B104),0) -> 0 | N104: =IF(B104<>"",SUMIFS('TAB-UI'!$O$11:$O$109,'TAB-UI'!$D$11:$D$109,B104),0) -> 0
A105: 95 | B105: =CONDOMINI!B105 -> C95 | D105: =IF(C105<>"",IFERROR(VLOOKUP(B105,CONDOMINI!$B$11:$C$109,2,FALSE),""),"") ->  | E105: =IF(B105<>"",SUMIFS('TAB-UI'!$F$11:$F$109,'TAB-UI'!$D$11:$D$109,B105),0) -> 0 | F105: =IF(B105<>"",SUMIFS('TAB-UI'!$G$11:$G$109,'TAB-UI'!$D$11:$D$109,B105),0) -> 0 | G105: =IF(B105<>"",SUMIFS('TAB-UI'!$H$11:$H$109,'TAB-UI'!$D$11:$D$109,B105),0) -> 0 | H105: =IF(B105<>"",SUMIFS('TAB-UI'!$I$11:$I$109,'TAB-UI'!$D$11:$D$109,B105),0) -> 0 | I105: =IF(B105<>"",SUMIFS('TAB-UI'!$J$11:$J$109,'TAB-UI'!$D$11:$D$109,B105),0) -> 0 | J105: =IF(B105<>"",SUMIFS('TAB-UI'!$K$11:$K$109,'TAB-UI'!$D$11:$D$109,B105),0) -> 0 | K105: =IF(B105<>"",SUMIFS('TAB-UI'!$L$11:$L$109,'TAB-UI'!$D$11:$D$109,B105),0) -> 0 | L105: =IF(B105<>"",SUMIFS('TAB-UI'!$M$11:$M$109,'TAB-UI'!$D$11:$D$109,B105),0) -> 0 | M105: =IF(B105<>"",SUMIFS('TAB-UI'!$N$11:$N$109,'TAB-UI'!$D$11:$D$109,B105),0) -> 0 | N105: =IF(B105<>"",SUMIFS('TAB-UI'!$O$11:$O$109,'TAB-UI'!$D$11:$D$109,B105),0) -> 0
A106: 96 | B106: =CONDOMINI!B106 -> C96 | D106: =IF(C106<>"",IFERROR(VLOOKUP(B106,CONDOMINI!$B$11:$C$109,2,FALSE),""),"") ->  | E106: =IF(B106<>"",SUMIFS('TAB-UI'!$F$11:$F$109,'TAB-UI'!$D$11:$D$109,B106),0) -> 0 | F106: =IF(B106<>"",SUMIFS('TAB-UI'!$G$11:$G$109,'TAB-UI'!$D$11:$D$109,B106),0) -> 0 | G106: =IF(B106<>"",SUMIFS('TAB-UI'!$H$11:$H$109,'TAB-UI'!$D$11:$D$109,B106),0) -> 0 | H106: =IF(B106<>"",SUMIFS('TAB-UI'!$I$11:$I$109,'TAB-UI'!$D$11:$D$109,B106),0) -> 0 | I106: =IF(B106<>"",SUMIFS('TAB-UI'!$J$11:$J$109,'TAB-UI'!$D$11:$D$109,B106),0) -> 0 | J106: =IF(B106<>"",SUMIFS('TAB-UI'!$K$11:$K$109,'TAB-UI'!$D$11:$D$109,B106),0) -> 0 | K106: =IF(B106<>"",SUMIFS('TAB-UI'!$L$11:$L$109,'TAB-UI'!$D$11:$D$109,B106),0) -> 0 | L106: =IF(B106<>"",SUMIFS('TAB-UI'!$M$11:$M$109,'TAB-UI'!$D$11:$D$109,B106),0) -> 0 | M106: =IF(B106<>"",SUMIFS('TAB-UI'!$N$11:$N$109,'TAB-UI'!$D$11:$D$109,B106),0) -> 0 | N106: =IF(B106<>"",SUMIFS('TAB-UI'!$O$11:$O$109,'TAB-UI'!$D$11:$D$109,B106),0) -> 0
A107: 97 | B107: =CONDOMINI!B107 -> C97 | D107: =IF(C107<>"",IFERROR(VLOOKUP(B107,CONDOMINI!$B$11:$C$109,2,FALSE),""),"") ->  | E107: =IF(B107<>"",SUMIFS('TAB-UI'!$F$11:$F$109,'TAB-UI'!$D$11:$D$109,B107),0) -> 0 | F107: =IF(B107<>"",SUMIFS('TAB-UI'!$G$11:$G$109,'TAB-UI'!$D$11:$D$109,B107),0) -> 0 | G107: =IF(B107<>"",SUMIFS('TAB-UI'!$H$11:$H$109,'TAB-UI'!$D$11:$D$109,B107),0) -> 0 | H107: =IF(B107<>"",SUMIFS('TAB-UI'!$I$11:$I$109,'TAB-UI'!$D$11:$D$109,B107),0) -> 0 | I107: =IF(B107<>"",SUMIFS('TAB-UI'!$J$11:$J$109,'TAB-UI'!$D$11:$D$109,B107),0) -> 0 | J107: =IF(B107<>"",SUMIFS('TAB-UI'!$K$11:$K$109,'TAB-UI'!$D$11:$D$109,B107),0) -> 0 | K107: =IF(B107<>"",SUMIFS('TAB-UI'!$L$11:$L$109,'TAB-UI'!$D$11:$D$109,B107),0) -> 0 | L107: =IF(B107<>"",SUMIFS('TAB-UI'!$M$11:$M$109,'TAB-UI'!$D$11:$D$109,B107),0) -> 0 | M107: =IF(B107<>"",SUMIFS('TAB-UI'!$N$11:$N$109,'TAB-UI'!$D$11:$D$109,B107),0) -> 0 | N107: =IF(B107<>"",SUMIFS('TAB-UI'!$O$11:$O$109,'TAB-UI'!$D$11:$D$109,B107),0) -> 0
A108: 98 | B108: =CONDOMINI!B108 -> C98 | D108: =IF(C108<>"",IFERROR(VLOOKUP(B108,CONDOMINI!$B$11:$C$109,2,FALSE),""),"") ->  | E108: =IF(B108<>"",SUMIFS('TAB-UI'!$F$11:$F$109,'TAB-UI'!$D$11:$D$109,B108),0) -> 0 | F108: =IF(B108<>"",SUMIFS('TAB-UI'!$G$11:$G$109,'TAB-UI'!$D$11:$D$109,B108),0) -> 0 | G108: =IF(B108<>"",SUMIFS('TAB-UI'!$H$11:$H$109,'TAB-UI'!$D$11:$D$109,B108),0) -> 0 | H108: =IF(B108<>"",SUMIFS('TAB-UI'!$I$11:$I$109,'TAB-UI'!$D$11:$D$109,B108),0) -> 0 | I108: =IF(B108<>"",SUMIFS('TAB-UI'!$J$11:$J$109,'TAB-UI'!$D$11:$D$109,B108),0) -> 0 | J108: =IF(B108<>"",SUMIFS('TAB-UI'!$K$11:$K$109,'TAB-UI'!$D$11:$D$109,B108),0) -> 0 | K108: =IF(B108<>"",SUMIFS('TAB-UI'!$L$11:$L$109,'TAB-UI'!$D$11:$D$109,B108),0) -> 0 | L108: =IF(B108<>"",SUMIFS('TAB-UI'!$M$11:$M$109,'TAB-UI'!$D$11:$D$109,B108),0) -> 0 | M108: =IF(B108<>"",SUMIFS('TAB-UI'!$N$11:$N$109,'TAB-UI'!$D$11:$D$109,B108),0) -> 0 | N108: =IF(B108<>"",SUMIFS('TAB-UI'!$O$11:$O$109,'TAB-UI'!$D$11:$D$109,B108),0) -> 0
A109: 99 | B109: =CONDOMINI!B109 -> C99 | D109: =IF(C109<>"",IFERROR(VLOOKUP(B109,CONDOMINI!$B$11:$C$109,2,FALSE),""),"") ->  | E109: =IF(B109<>"",SUMIFS('TAB-UI'!$F$11:$F$109,'TAB-UI'!$D$11:$D$109,B109),0) -> 0 | F109: =IF(B109<>"",SUMIFS('TAB-UI'!$G$11:$G$109,'TAB-UI'!$D$11:$D$109,B109),0) -> 0 | G109: =IF(B109<>"",SUMIFS('TAB-UI'!$H$11:$H$109,'TAB-UI'!$D$11:$D$109,B109),0) -> 0 | H109: =IF(B109<>"",SUMIFS('TAB-UI'!$I$11:$I$109,'TAB-UI'!$D$11:$D$109,B109),0) -> 0 | I109: =IF(B109<>"",SUMIFS('TAB-UI'!$J$11:$J$109,'TAB-UI'!$D$11:$D$109,B109),0) -> 0 | J109: =IF(B109<>"",SUMIFS('TAB-UI'!$K$11:$K$109,'TAB-UI'!$D$11:$D$109,B109),0) -> 0 | K109: =IF(B109<>"",SUMIFS('TAB-UI'!$L$11:$L$109,'TAB-UI'!$D$11:$D$109,B109),0) -> 0 | L109: =IF(B109<>"",SUMIFS('TAB-UI'!$M$11:$M$109,'TAB-UI'!$D$11:$D$109,B109),0) -> 0 | M109: =IF(B109<>"",SUMIFS('TAB-UI'!$N$11:$N$109,'TAB-UI'!$D$11:$D$109,B109),0) -> 0 | N109: =IF(B109<>"",SUMIFS('TAB-UI'!$O$11:$O$109,'TAB-UI'!$D$11:$D$109,B109),0) -> 0
D110: TOTALI | E110: =SUM(E11:E109) -> 1000 | F110: =SUM(F11:F109) -> 1000 | G110: 1000 | H110: 0 | I110: 0 | J110: =SUM(J11:J109) -> 0 | K110: 0 | L110: 0 | M110: 0 | N110: 0
A111: 0 | O111: 0

Sheet PIANOCONTI_U (hidden)
A1: !!! Non variare il contenuto delle celle con sfondo colorato. | D1: 0
A5: PIANI DEI CONTI DEL FONDO LAVORI
A6: =DATIG!A40 -> Lavori messa in sicurezza fondazioni da infiltrazioni fognarie
A7: ="Codice del fondo: " & DATIG!A37 -> Codice del fondo: LAVORO-01
A8: PIANO DELLE USCITE
A9: CAPITOLI e VOCI | B9: TABELLA | C9: CODICE
A11: SPESE GENERALI e NON DETRABILI | B11: RIPART. | C11: S.01
A12: SPESE VARIE AMMINISTRATIVE (tabella A) | B12: A | C12: S.01.01
A13: SPESE VARIE AMMINISTRATIVE (tabella B) | B13: B | C13: S.01.02
A14: SPESE VARIE AMMINISTRATIVE (tabella C) | B14: C | C14: S.01.03
A15: DIRITTI BOLLI TASSE (tabella A) | B15: A | C15: S.01.04
A16: DIRITTI BOLLI TASSE (tabella B) | B16: B | C16: S.01.05
A17: DIRITTI BOLLI TASSE (tabella C) | B17: C | C17: S.01.06
A18: COMPENSI A TERZI (tabella A) | B18: A | C18: S.01.07
A19: COMPENSI A TERZI (tabella B) | B19: B | C19: S.01.08
A20: COMPENSI A TERZI (tabella C) | B20: C | C20: S.01.09
A21: ALTRE SPESE DOCUMENTATI (tabella A) | B21: A | C21: S.01.10
A22: ALTRE SPESE DOCUMENTATI (tabella B) | B22: B | C22: S.01.11
A23: ALTRE SPESE DOCUMENTATI (tabella C) | B23: C | C23: S.01.12
C24: S.01.11
C25: S.01.12
C26: S.01.13
A27: COMPETENZE TECNICHE - Prog., D.L. e collaudi (detr.) | C27: S.02
A28: Ricadenti in Tabella A | B28: A | C28: S.02.01
A29: Ricadenti in Tabella B | B29: B | C29: S.02.02
A30: Ricadenti in Tabella C | B30: C | C30: S.02.03
C31: S.02.04
C32: S.02.05
C33: S.02.06
C34: S.02.07
C35: S.02.08
C36: S.02.09
C37: S.02.10
A38: LAVORI (detraibili) | C38: S.03
A39: Importo lavori ricadenti in tabella A | B39: A | C39: S.03.01
A40: Importo lavori ricadenti in tabella B | B40: B | C40: S.03.02
A41: Importo lavori ricadenti in tabella C | B41: C | C41: S.03.03
C42: S.03.04
C43: S.03.05
C44: S.03.06
C45: S.03.07
C46: S.03.08
C47: S.03.09
C48: S.03.10
A49: SPESE VARIE E IMPREVISTI (detraibili) | C49: S.04
A50: Ricadenti in Tabella A | B50: A | C50: S.04.01
A51: Ricadenti in Tabella B | B51: B | C51: S.04.02
A52: Ricadenti in Tabella C | B52: C | C52: S.04.03
C53: S.04.04
C54: S.04.05
C55: S.04.06
C56: S.04.07
C57: S.04.08
C58: S.04.09
C59: S.04.10
A60: LAVORI (non detraibili) | C60: S.05
A61: Ricadenti in Tabella A | B61: A | C61: S.05.01
A62: Ricadenti in Tabella B | B62: B | C62: S.05.02
C63: S.05.03
C64: S.05.04
C65: S.05.05
C66: S.05.06
C67: S.05.07
C68: S.05.08
C69: S.05.09
C70: S.05.10
C71: S.06
C72: S.06.01
C73: S.06.02
C74: S.06.03
C75: S.06.04
C76: S.06.05
C77: S.07
C78: S.07.01
C79: S.07.02
C80: S.07.03
C81: S.07.04
C82: S.07.05
C83: L
C84: L.00.01
C85: L.00.02
C86: L.00.03
C87: L.00.04
C88: L.00.05
C89: G
C90: G.00.01
C91: G.00.02
C92: G.00.03
C93: G.00.04
C94: G.00.05
A95: SPESE PERSONALI PER UNITÀ FUNZIONALE (detraibili) | C95: P
A96: ="Unità funzionale condominiale " & UF!B11 -> Unità funzionale condominiale UFC01 | C96: P.00.01
A97: ="Unità funzionale condominiale " & UF!B12 -> Unità funzionale condominiale UFC02 | C97: P.00.02
A98: ="Unità funzionale condominiale " & UF!B13 -> Unità funzionale condominiale UFC03 | C98: P.00.03
A99: ="Unità funzionale condominiale " & UF!B14 -> Unità funzionale condominiale UFC04 | C99: P.00.04
A100: ="Unità funzionale condominiale " & UF!B15 -> Unità funzionale condominiale UFC05 | C100: P.00.05
A101: ="Unità funzionale condominiale " & UF!B16 -> Unità funzionale condominiale UFC06 | C101: P.00.06
A102: ="Unità funzionale condominiale " & UF!B17 -> Unità funzionale condominiale UFC07 | C102: P.00.07
A103: ="Unità funzionale condominiale " & UF!B18 -> Unità funzionale condominiale UFC08 | C103: P.00.08
A104: ="Unità funzionale condominiale " & UF!B19 -> Unità funzionale condominiale UFC09 | C104: P.00.09
A105: ="Unità funzionale condominiale " & UF!B20 -> Unità funzionale condominiale UFC10 | C105: P.00.10
A106: ="Unità funzionale condominiale " & UF!B21 -> Unità funzionale condominiale UFC11 | C106: P.00.11
A107: ="Unità funzionale condominiale " & UF!B22 -> Unità funzionale condominiale UFC12 | C107: P.00.12
A108: ="Unità funzionale condominiale " & UF!B23 -> Unità funzionale condominiale UFC13 | C108: P.00.13
A109: ="Unità funzionale condominiale " & UF!B24 -> Unità funzionale condominiale UFC14 | C109: P.00.14
A110: ="Unità funzionale condominiale " & UF!B25 -> Unità funzionale condominiale UFC15 | C110: P.00.15
A111: ="Unità funzionale condominiale " & UF!B26 -> Unità funzionale condominiale UFC16 | C111: P.00.16
A112: ="Unità funzionale condominiale " & UF!B27 -> Unità funzionale condominiale UFC17 | C112: P.00.17
A113: ="Unità funzionale condominiale " & UF!B28 -> Unità funzionale condominiale UFC18 | C113: P.00.18
A114: ="Unità funzionale condominiale " & UF!B29 -> Unità funzionale condominiale UFC19 | C114: P.00.19
A115: ="Unità funzionale condominiale " & UF!B30 -> Unità funzionale condominiale UFC20 | C115: P.00.20
A116: ="Unità funzionale condominiale " & UF!B31 -> Unità funzionale condominiale UFC21 | C116: P.00.21
A117: ="Unità funzionale condominiale " & UF!B32 -> Unità funzionale condominiale UFC22 | C117: P.00.22
A118: ="Unità funzionale condominiale " & UF!B33 -> Unità funzionale condominiale UFC23 | C118: P.00.23
A119: ="Unità funzionale condominiale " & UF!B34 -> Unità funzionale condominiale UFC24 | C119: P.00.24
A120: ="Unità funzionale condominiale " & UF!B35 -> Unità funzionale condominiale UFC25 | C120: P.00.25
A121: ="Unità funzionale condominiale " & UF!B36 -> Unità funzionale condominiale UFC26 | C121: P.00.26
A122: ="Unità funzionale condominiale " & UF!B37 -> Unità funzionale condominiale UFC27 | C122: P.00.27
A123: ="Unità funzionale condominiale " & UF!B38 -> Unità funzionale condominiale UFC28 | C123: P.00.28
A124: ="Unità funzionale condominiale " & UF!B39 -> Unità funzionale condominiale UFC29 | C124: P.00.29
A125: ="Unità funzionale condominiale " & UF!B40 -> Unità funzionale condominiale UFC30 | C125: P.00.30
A126: ="Unità funzionale condominiale " & UF!B41 -> Unità funzionale condominiale UFC31 | C126: P.00.31
A127: ="Unità funzionale condominiale " & UF!B42 -> Unità funzionale condominiale UFC32 | C127: P.00.32
A128: ="Unità funzionale condominiale " & UF!B43 -> Unità funzionale condominiale UFC33 | C128: P.00.33
A129: ="Unità funzionale condominiale " & UF!B44 -> Unità funzionale condominiale UFC34 | C129: P.00.34
A130: ="Unità funzionale condominiale " & UF!B45 -> Unità funzionale condominiale UFC35 | C130: P.00.35
A131: ="Unità funzionale condominiale " & UF!B46 -> Unità funzionale condominiale UFC36 | C131: P.00.36
A132: ="Unità funzionale condominiale " & UF!B47 -> Unità funzionale condominiale UFC37 | C132: P.00.37
A133: ="Unità funzionale condominiale " & UF!B48 -> Unità funzionale condominiale UFC38 | C133: P.00.38
A134: ="Unità funzionale condominiale " & UF!B49 -> Unità funzionale condominiale UFC39 | C134: P.00.39
A135: ="Unità funzionale condominiale " & UF!B50 -> Unità funzionale condominiale UFC40 | C135: P.00.40
A136: ="Unità funzionale condominiale " & UF!B51 -> Unità funzionale condominiale UFC41 | C136: P.00.41
A137: ="Unità funzionale condominiale " & UF!B52 -> Unità funzionale condominiale UFC42 | C137: P.00.42
A138: ="Unità funzionale condominiale " & UF!B53 -> Unità funzionale condominiale UFC43 | C138: P.00.43
A139: ="Unità funzionale condominiale " & UF!B54 -> Unità funzionale condominiale UFC44 | C139: P.00.44
A140: ="Unità funzionale condominiale " & UF!B55 -> Unità funzionale condominiale UFC45 | C140: P.00.45
A141: ="Unità funzionale condominiale " & UF!B56 -> Unità funzionale condominiale UFC46 | C141: P.00.46
A142: ="Unità funzionale condominiale " & UF!B57 -> Unità funzionale condominiale UFC47 | C142: P.00.47
A143: ="Unità funzionale condominiale " & UF!B58 -> Unità funzionale condominiale UFC48 | C143: P.00.48
A144: ="Unità funzionale condominiale " & UF!B59 -> Unità funzionale condominiale UFC49 | C144: P.00.49
A145: ="Unità funzionale condominiale " & UF!B60 -> Unità funzionale condominiale UFC50 | C145: P.00.50
A146: ="Unità funzionale condominiale " & UF!B61 -> Unità funzionale condominiale UFC51 | C146: P.00.51
A147: ="Unità funzionale condominiale " & UF!B62 -> Unità funzionale condominiale UFC52 | C147: P.00.52
A148: ="Unità funzionale condominiale " & UF!B63 -> Unità funzionale condominiale UFC53 | C148: P.00.53
A149: ="Unità funzionale condominiale " & UF!B64 -> Unità funzionale condominiale UFC54 | C149: P.00.54
A150: ="Unità funzionale condominiale " & UF!B65 -> Unità funzionale condominiale UFC55 | C150: P.00.55
A151: ="Unità funzionale condominiale " & UF!B66 -> Unità funzionale condominiale UFC56 | C151: P.00.56
A152: ="Unità funzionale condominiale " & UF!B67 -> Unità funzionale condominiale UFC57 | C152: P.00.57
A153: ="Unità funzionale condominiale " & UF!B68 -> Unità funzionale condominiale UFC58 | C153: P.00.58
A154: ="Unità funzionale condominiale " & UF!B69 -> Unità funzionale condominiale UFC59 | C154: P.00.59
A155: ="Unità funzionale condominiale " & UF!B70 -> Unità funzionale condominiale UFC60 | C155: P.00.60
A156: ="Unità funzionale condominiale " & UF!B71 -> Unità funzionale condominiale UFC61 | C156: P.00.61
A157: ="Unità funzionale condominiale " & UF!B72 -> Unità funzionale condominiale UFC62 | C157: P.00.62
A158: ="Unità funzionale condominiale " & UF!B73 -> Unità funzionale condominiale UFC63 | C158: P.00.63
A159: ="Unità funzionale condominiale " & UF!B74 -> Unità funzionale condominiale UFC64 | C159: P.00.64
A160: ="Unità funzionale condominiale " & UF!B75 -> Unità funzionale condominiale UFC65 | C160: P.00.65
A161: ="Unità funzionale condominiale " & UF!B76 -> Unità funzionale condominiale UFC66 | C161: P.00.66
A162: ="Unità funzionale condominiale " & UF!B77 -> Unità funzionale condominiale UFC67 | C162: P.00.67
A163: ="Unità funzionale condominiale " & UF!B78 -> Unità funzionale condominiale UFC68 | C163: P.00.68
A164: ="Unità funzionale condominiale " & UF!B79 -> Unità funzionale condominiale UFC69 | C164: P.00.69
A165: ="Unità funzionale condominiale " & UF!B80 -> Unità funzionale condominiale UFC70 | C165: P.00.70
A166: ="Unità funzionale condominiale " & UF!B81 -> Unità funzionale condominiale UFC71 | C166: P.00.71
A167: ="Unità funzionale condominiale " & UF!B82 -> Unità funzionale condominiale UFC72 | C167: P.00.72
A168: ="Unità funzionale condominiale " & UF!B83 -> Unità funzionale condominiale UFC73 | C168: P.00.73
A169: ="Unità funzionale condominiale " & UF!B84 -> Unità funzionale condominiale UFC74 | C169: P.00.74
A170: ="Unità funzionale condominiale " & UF!B85 -> Unità funzionale condominiale UFC75 | C170: P.00.75
A171: ="Unità funzionale condominiale " & UF!B86 -> Unità funzionale condominiale UFC76 | C171: P.00.76
A172: ="Unità funzionale condominiale " & UF!B87 -> Unità funzionale condominiale UFC77 | C172: P.00.77
A173: ="Unità funzionale condominiale " & UF!B88 -> Unità funzionale condominiale UFC78 | C173: P.00.78
A174: ="Unità funzionale condominiale " & UF!B89 -> Unità funzionale condominiale UFC79 | C174: P.00.79
A175: ="Unità funzionale condominiale " & UF!B90 -> Unità funzionale condominiale UFC80 | C175: P.00.80
A176: ="Unità funzionale condominiale " & UF!B91 -> Unità funzionale condominiale UFC81 | C176: P.00.81
A177: ="Unità funzionale condominiale " & UF!B92 -> Unità funzionale condominiale UFC82 | C177: P.00.82
A178: ="Unità funzionale condominiale " & UF!B93 -> Unità funzionale condominiale UFC83 | C178: P.00.83
A179: ="Unità funzionale condominiale " & UF!B94 -> Unità funzionale condominiale UFC84 | C179: P.00.84
A180: ="Unità funzionale condominiale " & UF!B95 -> Unità funzionale condominiale UFC85 | C180: P.00.85
A181: ="Unità funzionale condominiale " & UF!B96 -> Unità funzionale condominiale UFC86 | C181: P.00.86
A182: ="Unità funzionale condominiale " & UF!B97 -> Unità funzionale condominiale UFC87 | C182: P.00.87
A183: ="Unità funzionale condominiale " & UF!B98 -> Unità funzionale condominiale UFC88 | C183: P.00.88
A184: ="Unità funzionale condominiale " & UF!B99 -> Unità funzionale condominiale UFC89 | C184: P.00.89
A185: ="Unità funzionale condominiale " & UF!B100 -> Unità funzionale condominiale UFC90 | C185: P.00.90
A186: ="Unità funzionale condominiale " & UF!B101 -> Unità funzionale condominiale UFC91 | C186: P.00.91
A187: ="Unità funzionale condominiale " & UF!B102 -> Unità funzionale condominiale UFC92 | C187: P.00.92
A188: ="Unità funzionale condominiale " & UF!B103 -> Unità funzionale condominiale UFC93 | C188: P.00.93
A189: ="Unità funzionale condominiale " & UF!B104 -> Unità funzionale condominiale UFC94 | C189: P.00.94
A190: ="Unità funzionale condominiale " & UF!B105 -> Unità funzionale condominiale UFC95 | C190: P.00.95
A191: ="Unità funzionale condominiale " & UF!B106 -> Unità funzionale condominiale UFC96 | C191: P.00.96
A192: ="Unità funzionale condominiale " & UF!B107 -> Unità funzionale condominiale UFC97 | C192: P.00.97
A193: ="Unità funzionale condominiale " & UF!B108 -> Unità funzionale condominiale UFC98 | C193: P.00.98
A194: ="Unità funzionale condominiale " & UF!B109 -> Unità funzionale condominiale UFC99 | C194: P.00.99
A195: PAGAMENTI DEBITI E RESTITUZIONI VARIE | C195: U
A196: Restituzioni a Condomini (versamenti in eccesso) | C196: U.00.01
A197: Restituzioni Prestiti (a Gestione Ordinaria) | C197: U.00.02
A198: Restituzione Prestiti (a Terzi) | C198: U.00.03
C199: U.00.04
C200: U.00.05
A202: 0 | D202: 0

Sheet PIANOCONTI_E (hidden)
A1: !!! Non variare il contenuto delle celle con sfondo colorato. | C1: 0
A6: PIANO DEI CONTI DEL FONDO LAVORI
A7: =DATIG!A40 -> Lavori messa in sicurezza fondazioni da infiltrazioni fognarie
A8: ="Codice del fondo: " & DATIG!A37 -> Codice del fondo: LAVORO-01
A9: PIANO DELLE ENTRATE
A10: VOCE | B10: CODICI
A11: PROVENTI DIVERSI | B11: E
A12: Rimborso da Assicurazione | B12: E.01.01
B13: E.01.02
B14: E.01.03
B15: E.01.04
B16: E.01.05
A39: INCASSO QUOTE PER UNITÀ IMMOBILIARE | B39: Q (QUOTE)
A40: =IF(UI!E11<>"","QUOTA Unità " & UI!B11 & " di proprietà "& UI!E11,"") -> QUOTA Unità U01 di proprietà CONDOMINO01 | B40: =IF(UI!E11<>"","Q." & RIGHT(UI!B11,2) & "." & RIGHT(UI!E11,2),"") -> Q.01.01
A41: =IF(UI!E12<>"","QUOTA Unità " & UI!B12 & " di proprietà "& UI!E12,"") -> QUOTA Unità U02 di proprietà CONDOMINO02 | B41: =IF(UI!E12<>"","Q." & RIGHT(UI!B12,2) & "." & RIGHT(UI!E12,2),"") -> Q.02.02
A42: =IF(UI!E13<>"","QUOTA Unità " & UI!B13 & " di proprietà "& UI!E13,"") -> QUOTA Unità U03 di proprietà CONDOMINO03 | B42: =IF(UI!E13<>"","Q." & RIGHT(UI!B13,2) & "." & RIGHT(UI!E13,2),"") -> Q.03.03
A43: =IF(UI!E14<>"","QUOTA Unità " & UI!B14 & " di proprietà "& UI!E14,"") -> QUOTA Unità U04 di proprietà CONDOMINO04 | B43: =IF(UI!E14<>"","Q." & RIGHT(UI!B14,2) & "." & RIGHT(UI!E14,2),"") -> Q.04.04
A44: =IF(UI!E15<>"","QUOTA Unità " & UI!B15 & " di proprietà "& UI!E15,"") -> QUOTA Unità U05 di proprietà CONDOMINO05 | B44: =IF(UI!E15<>"","Q." & RIGHT(UI!B15,2) & "." & RIGHT(UI!E15,2),"") -> Q.05.05
A45: =IF(UI!E16<>"","QUOTA Unità " & UI!B16 & " di proprietà "& UI!E16,"") -> QUOTA Unità U06 di proprietà CONDOMINO06 | B45: =IF(UI!E16<>"","Q." & RIGHT(UI!B16,2) & "." & RIGHT(UI!E16,2),"") -> Q.06.06
A46: =IF(UI!E17<>"","QUOTA Unità " & UI!B17 & " di proprietà "& UI!E17,"") -> QUOTA Unità U07 di proprietà CONDOMINO07 | B46: =IF(UI!E17<>"","Q." & RIGHT(UI!B17,2) & "." & RIGHT(UI!E17,2),"") -> Q.07.07
A47: =IF(UI!E18<>"","QUOTA Unità " & UI!B18 & " di proprietà "& UI!E18,"") -> QUOTA Unità U08 di proprietà CONDOMINO08 | B47: =IF(UI!E18<>"","Q." & RIGHT(UI!B18,2) & "." & RIGHT(UI!E18,2),"") -> Q.08.08
A48: =IF(UI!E19<>"","QUOTA Unità " & UI!B19 & " di proprietà "& UI!E19,"") -> QUOTA Unità U09 di proprietà CONDOMINO09 | B48: =IF(UI!E19<>"","Q." & RIGHT(UI!B19,2) & "." & RIGHT(UI!E19,2),"") -> Q.09.09
A49: =IF(UI!E20<>"","QUOTA Unità " & UI!B20 & " di proprietà "& UI!E20,"") -> QUOTA Unità U10 di proprietà CONDOMINO10 | B49: =IF(UI!E20<>"","Q." & RIGHT(UI!B20,2) & "." & RIGHT(UI!E20,2),"") -> Q.10.10
A50: =IF(UI!E21<>"","QUOTA Unità " & UI!B21 & " di proprietà "& UI!E21,"") -> QUOTA Unità U11 di proprietà CONDOMINO11 | B50: =IF(UI!E21<>"","Q." & RIGHT(UI!B21,2) & "." & RIGHT(UI!E21,2),"") -> Q.11.11
A51: =IF(UI!E22<>"","QUOTA Unità " & UI!B22 & " di proprietà "& UI!E22,"") -> QUOTA Unità U12 di proprietà CONDOMINO12 | B51: =IF(UI!E22<>"","Q." & RIGHT(UI!B22,2) & "." & RIGHT(UI!E22,2),"") -> Q.12.12
A52: =IF(UI!E23<>"","QUOTA Unità " & UI!B23 & " di proprietà "& UI!E23,"") -> QUOTA Unità U13 di proprietà CONDOMINO13 | B52: =IF(UI!E23<>"","Q." & RIGHT(UI!B23,2) & "." & RIGHT(UI!E23,2),"") -> Q.13.13
A53: =IF(UI!E24<>"","QUOTA Unità " & UI!B24 & " di proprietà "& UI!E24,"") -> QUOTA Unità U14 di proprietà CONDOMINO14 | B53: =IF(UI!E24<>"","Q." & RIGHT(UI!B24,2) & "." & RIGHT(UI!E24,2),"") -> Q.14.14
A54: =IF(UI!E25<>"","QUOTA Unità " & UI!B25 & " di proprietà "& UI!E25,"") -> QUOTA Unità U15 di proprietà CONDOMINO15 | B54: =IF(UI!E25<>"","Q." & RIGHT(UI!B25,2) & "." & RIGHT(UI!E25,2),"") -> Q.15.15
A55: =IF(UI!E26<>"","QUOTA Unità " & UI!B26 & " di proprietà "& UI!E26,"") -> QUOTA Unità U16 di proprietà CONDOMINO16 | B55: =IF(UI!E26<>"","Q." & RIGHT(UI!B26,2) & "." & RIGHT(UI!E26,2),"") -> Q.16.16
A56: =IF(UI!E27<>"","QUOTA Unità " & UI!B27 & " di proprietà "& UI!E27,"") -> QUOTA Unità U17 di proprietà CONDOMINO17 | B56: =IF(UI!E27<>"","Q." & RIGHT(UI!B27,2) & "." & RIGHT(UI!E27,2),"") -> Q.17.17
A57: =IF(UI!E28<>"","QUOTA Unità " & UI!B28 & " di proprietà "& UI!E28,"") -> QUOTA Unità U18 di proprietà CONDOMINO18 | B57: =IF(UI!E28<>"","Q." & RIGHT(UI!B28,2) & "." & RIGHT(UI!E28,2),"") -> Q.18.18
A58: =IF(UI!E29<>"","QUOTA Unità " & UI!B29 & " di proprietà "& UI!E29,"") -> QUOTA Unità U19 di proprietà CONDOMINO19 | B58: =IF(UI!E29<>"","Q." & RIGHT(UI!B29,2) & "." & RIGHT(UI!E29,2),"") -> Q.19.19
A59: =IF(UI!E30<>"","QUOTA Unità " & UI!B30 & " di proprietà "& UI!E30,"") -> QUOTA Unità U20 di proprietà CONDOMINO07 | B59: =IF(UI!E30<>"","Q." & RIGHT(UI!B30,2) & "." & RIGHT(UI!E30,2),"") -> Q.20.07
A60: =IF(UI!E31<>"","QUOTA Unità " & UI!B31 & " di proprietà "& UI!E31,"") -> QUOTA Unità U21 di proprietà CONDOMINO08 | B60: =IF(UI!E31<>"","Q." & RIGHT(UI!B31,2) & "." & RIGHT(UI!E31,2),"") -> Q.21.08
A61: =IF(UI!E32<>"","QUOTA Unità " & UI!B32 & " di proprietà "& UI!E32,"") -> QUOTA Unità U22 di proprietà CONDOMINO19 | B61: =IF(UI!E32<>"","Q." & RIGHT(UI!B32,2) & "." & RIGHT(UI!E32,2),"") -> Q.22.19
A62: =IF(UI!E33<>"","QUOTA Unità " & UI!B33 & " di proprietà "& UI!E33,"") ->  | B62: =IF(UI!E33<>"","Q." & RIGHT(UI!B33,2) & "." & RIGHT(UI!E33,2),"") -> 
A63: =IF(UI!E34<>"","QUOTA Unità " & UI!B34 & " di proprietà "& UI!E34,"") ->  | B63: =IF(UI!E34<>"","Q." & RIGHT(UI!B34,2) & "." & RIGHT(UI!E34,2),"") -> 
A64: =IF(UI!E35<>"","QUOTA Unità " & UI!B35 & " di proprietà "& UI!E35,"") ->  | B64: =IF(UI!E35<>"","Q." & RIGHT(UI!B35,2) & "." & RIGHT(UI!E35,2),"") -> 
A65: =IF(UI!E36<>"","QUOTA Unità " & UI!B36 & " di proprietà "& UI!E36,"") ->  | B65: =IF(UI!E36<>"","Q." & RIGHT(UI!B36,2) & "." & RIGHT(UI!E36,2),"") -> 
A66: =IF(UI!E37<>"","QUOTA Unità " & UI!B37 & " di proprietà "& UI!E37,"") ->  | B66: =IF(UI!E37<>"","Q." & RIGHT(UI!B37,2) & "." & RIGHT(UI!E37,2),"") -> 
A67: =IF(UI!E38<>"","QUOTA Unità " & UI!B38 & " di proprietà "& UI!E38,"") ->  | B67: =IF(UI!E38<>"","Q." & RIGHT(UI!B38,2) & "." & RIGHT(UI!E38,2),"") -> 
A68: =IF(UI!E39<>"","QUOTA Unità " & UI!B39 & " di proprietà "& UI!E39,"") ->  | B68: =IF(UI!E39<>"","Q." & RIGHT(UI!B39,2) & "." & RIGHT(UI!E39,2),"") -> 
A69: =IF(UI!E40<>"","QUOTA Unità " & UI!B40 & " di proprietà "& UI!E40,"") ->  | B69: =IF(UI!E40<>"","Q." & RIGHT(UI!B40,2) & "." & RIGHT(UI!E40,2),"") -> 
A70: =IF(UI!E41<>"","QUOTA Unità " & UI!B41 & " di proprietà "& UI!E41,"") ->  | B70: =IF(UI!E41<>"","Q." & RIGHT(UI!B41,2) & "." & RIGHT(UI!E41,2),"") -> 
A71: =IF(UI!E42<>"","QUOTA Unità " & UI!B42 & " di proprietà "& UI!E42,"") ->  | B71: =IF(UI!E42<>"","Q." & RIGHT(UI!B42,2) & "." & RIGHT(UI!E42,2),"") -> 
A72: =IF(UI!E43<>"","QUOTA Unità " & UI!B43 & " di proprietà "& UI!E43,"") ->  | B72: =IF(UI!E43<>"","Q." & RIGHT(UI!B43,2) & "." & RIGHT(UI!E43,2),"") -> 
A73: =IF(UI!E44<>"","QUOTA Unità " & UI!B44 & " di proprietà "& UI!E44,"") ->  | B73: =IF(UI!E44<>"","Q." & RIGHT(UI!B44,2) & "." & RIGHT(UI!E44,2),"") -> 
A74: =IF(UI!E45<>"","QUOTA Unità " & UI!B45 & " di proprietà "& UI!E45,"") ->  | B74: =IF(UI!E45<>"","Q." & RIGHT(UI!B45,2) & "." & RIGHT(UI!E45,2),"") -> 
A75: =IF(UI!E46<>"","QUOTA Unità " & UI!B46 & " di proprietà "& UI!E46,"") ->  | B75: =IF(UI!E46<>"","Q." & RIGHT(UI!B46,2) & "." & RIGHT(UI!E46,2),"") -> 
A76: =IF(UI!E47<>"","QUOTA Unità " & UI!B47 & " di proprietà "& UI!E47,"") ->  | B76: =IF(UI!E47<>"","Q." & RIGHT(UI!B47,2) & "." & RIGHT(UI!E47,2),"") -> 
A77: =IF(UI!E48<>"","QUOTA Unità " & UI!B48 & " di proprietà "& UI!E48,"") ->  | B77: =IF(UI!E48<>"","Q." & RIGHT(UI!B48,2) & "." & RIGHT(UI!E48,2),"") -> 
A78: =IF(UI!E49<>"","QUOTA Unità " & UI!B49 & " di proprietà "& UI!E49,"") ->  | B78: =IF(UI!E49<>"","Q." & RIGHT(UI!B49,2) & "." & RIGHT(UI!E49,2),"") -> 
A79: =IF(UI!E50<>"","QUOTA Unità " & UI!B50 & " di proprietà "& UI!E50,"") ->  | B79: =IF(UI!E50<>"","Q." & RIGHT(UI!B50,2) & "." & RIGHT(UI!E50,2),"") -> 
A80: =IF(UI!E51<>"","QUOTA Unità " & UI!B51 & " di proprietà "& UI!E51,"") ->  | B80: =IF(UI!E51<>"","Q." & RIGHT(UI!B51,2) & "." & RIGHT(UI!E51,2),"") -> 
A81: =IF(UI!E52<>"","QUOTA Unità " & UI!B52 & " di proprietà "& UI!E52,"") ->  | B81: =IF(UI!E52<>"","Q." & RIGHT(UI!B52,2) & "." & RIGHT(UI!E52,2),"") -> 
A82: =IF(UI!E53<>"","QUOTA Unità " & UI!B53 & " di proprietà "& UI!E53,"") ->  | B82: =IF(UI!E53<>"","Q." & RIGHT(UI!B53,2) & "." & RIGHT(UI!E53,2),"") -> 
A83: =IF(UI!E54<>"","QUOTA Unità " & UI!B54 & " di proprietà "& UI!E54,"") ->  | B83: =IF(UI!E54<>"","Q." & RIGHT(UI!B54,2) & "." & RIGHT(UI!E54,2),"") -> 
A84: =IF(UI!E55<>"","QUOTA Unità " & UI!B55 & " di proprietà "& UI!E55,"") ->  | B84: =IF(UI!E55<>"","Q." & RIGHT(UI!B55,2) & "." & RIGHT(UI!E55,2),"") -> 
A85: =IF(UI!E56<>"","QUOTA Unità " & UI!B56 & " di proprietà "& UI!E56,"") ->  | B85: =IF(UI!E56<>"","Q." & RIGHT(UI!B56,2) & "." & RIGHT(UI!E56,2),"") -> 
A86: =IF(UI!E57<>"","QUOTA Unità " & UI!B57 & " di proprietà "& UI!E57,"") ->  | B86: =IF(UI!E57<>"","Q." & RIGHT(UI!B57,2) & "." & RIGHT(UI!E57,2),"") -> 
A87: =IF(UI!E58<>"","QUOTA Unità " & UI!B58 & " di proprietà "& UI!E58,"") ->  | B87: =IF(UI!E58<>"","Q." & RIGHT(UI!B58,2) & "." & RIGHT(UI!E58,2),"") -> 
A88: =IF(UI!E59<>"","QUOTA Unità " & UI!B59 & " di proprietà "& UI!E59,"") ->  | B88: =IF(UI!E59<>"","Q." & RIGHT(UI!B59,2) & "." & RIGHT(UI!E59,2),"") -> 
A89: =IF(UI!E60<>"","QUOTA Unità " & UI!B60 & " di proprietà "& UI!E60,"") ->  | B89: =IF(UI!E60<>"","Q." & RIGHT(UI!B60,2) & "." & RIGHT(UI!E60,2),"") -> 
A90: =IF(UI!E61<>"","QUOTA Unità " & UI!B61 & " di proprietà "& UI!E61,"") ->  | B90: =IF(UI!E61<>"","Q." & RIGHT(UI!B61,2) & "." & RIGHT(UI!E61,2),"") -> 
A91: =IF(UI!E62<>"","QUOTA Unità " & UI!B62 & " di proprietà "& UI!E62,"") ->  | B91: =IF(UI!E62<>"","Q." & RIGHT(UI!B62,2) & "." & RIGHT(UI!E62,2),"") -> 
A92: =IF(UI!E63<>"","QUOTA Unità " & UI!B63 & " di proprietà "& UI!E63,"") ->  | B92: =IF(UI!E63<>"","Q." & RIGHT(UI!B63,2) & "." & RIGHT(UI!E63,2),"") -> 
A93: =IF(UI!E64<>"","QUOTA Unità " & UI!B64 & " di proprietà "& UI!E64,"") ->  | B93: =IF(UI!E64<>"","Q." & RIGHT(UI!B64,2) & "." & RIGHT(UI!E64,2),"") -> 
A94: =IF(UI!E65<>"","QUOTA Unità " & UI!B65 & " di proprietà "& UI!E65,"") ->  | B94: =IF(UI!E65<>"","Q." & RIGHT(UI!B65,2) & "." & RIGHT(UI!E65,2),"") -> 
A95: =IF(UI!E66<>"","QUOTA Unità " & UI!B66 & " di proprietà "& UI!E66,"") ->  | B95: =IF(UI!E66<>"","Q." & RIGHT(UI!B66,2) & "." & RIGHT(UI!E66,2),"") -> 
A96: =IF(UI!E67<>"","QUOTA Unità " & UI!B67 & " di proprietà "& UI!E67,"") ->  | B96: =IF(UI!E67<>"","Q." & RIGHT(UI!B67,2) & "." & RIGHT(UI!E67,2),"") -> 
A97: =IF(UI!E68<>"","QUOTA Unità " & UI!B68 & " di proprietà "& UI!E68,"") ->  | B97: =IF(UI!E68<>"","Q." & RIGHT(UI!B68,2) & "." & RIGHT(UI!E68,2),"") -> 
A98: =IF(UI!E69<>"","QUOTA Unità " & UI!B69 & " di proprietà "& UI!E69,"") ->  | B98: =IF(UI!E69<>"","Q." & RIGHT(UI!B69,2) & "." & RIGHT(UI!E69,2),"") -> 
A99: =IF(UI!E70<>"","QUOTA Unità " & UI!B70 & " di proprietà "& UI!E70,"") ->  | B99: =IF(UI!E70<>"","Q." & RIGHT(UI!B70,2) & "." & RIGHT(UI!E70,2),"") -> 
A100: =IF(UI!E71<>"","QUOTA Unità " & UI!B71 & " di proprietà "& UI!E71,"") ->  | B100: =IF(UI!E71<>"","Q." & RIGHT(UI!B71,2) & "." & RIGHT(UI!E71,2),"") -> 
A101: =IF(UI!E72<>"","QUOTA Unità " & UI!B72 & " di proprietà "& UI!E72,"") ->  | B101: =IF(UI!E72<>"","Q." & RIGHT(UI!B72,2) & "." & RIGHT(UI!E72,2),"") -> 
A102: =IF(UI!E73<>"","QUOTA Unità " & UI!B73 & " di proprietà "& UI!E73,"") ->  | B102: =IF(UI!E73<>"","Q." & RIGHT(UI!B73,2) & "." & RIGHT(UI!E73,2),"") -> 
A103: =IF(UI!E74<>"","QUOTA Unità " & UI!B74 & " di proprietà "& UI!E74,"") ->  | B103: =IF(UI!E74<>"","Q." & RIGHT(UI!B74,2) & "." & RIGHT(UI!E74,2),"") -> 
A104: =IF(UI!E75<>"","QUOTA Unità " & UI!B75 & " di proprietà "& UI!E75,"") ->  | B104: =IF(UI!E75<>"","Q." & RIGHT(UI!B75,2) & "." & RIGHT(UI!E75,2),"") -> 
A105: =IF(UI!E76<>"","QUOTA Unità " & UI!B76 & " di proprietà "& UI!E76,"") ->  | B105: =IF(UI!E76<>"","Q." & RIGHT(UI!B76,2) & "." & RIGHT(UI!E76,2),"") -> 
A106: =IF(UI!E77<>"","QUOTA Unità " & UI!B77 & " di proprietà "& UI!E77,"") ->  | B106: =IF(UI!E77<>"","Q." & RIGHT(UI!B77,2) & "." & RIGHT(UI!E77,2),"") -> 
A107: =IF(UI!E78<>"","QUOTA Unità " & UI!B78 & " di proprietà "& UI!E78,"") ->  | B107: =IF(UI!E78<>"","Q." & RIGHT(UI!B78,2) & "." & RIGHT(UI!E78,2),"") -> 
A108: =IF(UI!E79<>"","QUOTA Unità " & UI!B79 & " di proprietà "& UI!E79,"") ->  | B108: =IF(UI!E79<>"","Q." & RIGHT(UI!B79,2) & "." & RIGHT(UI!E79,2),"") -> 
A109: =IF(UI!E80<>"","QUOTA Unità " & UI!B80 & " di proprietà "& UI!E80,"") ->  | B109: =IF(UI!E80<>"","Q." & RIGHT(UI!B80,2) & "." & RIGHT(UI!E80,2),"") -> 
A110: =IF(UI!E81<>"","QUOTA Unità " & UI!B81 & " di proprietà "& UI!E81,"") ->  | B110: =IF(UI!E81<>"","Q." & RIGHT(UI!B81,2) & "." & RIGHT(UI!E81,2),"") -> 
A111: =IF(UI!E82<>"","QUOTA Unità " & UI!B82 & " di proprietà "& UI!E82,"") ->  | B111: =IF(UI!E82<>"","Q." & RIGHT(UI!B82,2) & "." & RIGHT(UI!E82,2),"") -> 
A112: =IF(UI!E83<>"","QUOTA Unità " & UI!B83 & " di proprietà "& UI!E83,"") ->  | B112: =IF(UI!E83<>"","Q." & RIGHT(UI!B83,2) & "." & RIGHT(UI!E83,2),"") -> 
A113: =IF(UI!E84<>"","QUOTA Unità " & UI!B84 & " di proprietà "& UI!E84,"") ->  | B113: =IF(UI!E84<>"","Q." & RIGHT(UI!B84,2) & "." & RIGHT(UI!E84,2),"") -> 
A114: =IF(UI!E85<>"","QUOTA Unità " & UI!B85 & " di proprietà "& UI!E85,"") ->  | B114: =IF(UI!E85<>"","Q." & RIGHT(UI!B85,2) & "." & RIGHT(UI!E85,2),"") -> 
A115: =IF(UI!E86<>"","QUOTA Unità " & UI!B86 & " di proprietà "& UI!E86,"") ->  | B115: =IF(UI!E86<>"","Q." & RIGHT(UI!B86,2) & "." & RIGHT(UI!E86,2),"") -> 
A116: =IF(UI!E87<>"","QUOTA Unità " & UI!B87 & " di proprietà "& UI!E87,"") ->  | B116: =IF(UI!E87<>"","Q." & RIGHT(UI!B87,2) & "." & RIGHT(UI!E87,2),"") -> 
A117: =IF(UI!E88<>"","QUOTA Unità " & UI!B88 & " di proprietà "& UI!E88,"") ->  | B117: =IF(UI!E88<>"","Q." & RIGHT(UI!B88,2) & "." & RIGHT(UI!E88,2),"") -> 
A118: =IF(UI!E89<>"","QUOTA Unità " & UI!B89 & " di proprietà "& UI!E89,"") ->  | B118: =IF(UI!E89<>"","Q." & RIGHT(UI!B89,2) & "." & RIGHT(UI!E89,2),"") -> 
A119: =IF(UI!E90<>"","QUOTA Unità " & UI!B90 & " di proprietà "& UI!E90,"") ->  | B119: =IF(UI!E90<>"","Q." & RIGHT(UI!B90,2) & "." & RIGHT(UI!E90,2),"") -> 
A120: =IF(UI!E91<>"","QUOTA Unità " & UI!B91 & " di proprietà "& UI!E91,"") ->  | B120: =IF(UI!E91<>"","Q." & RIGHT(UI!B91,2) & "." & RIGHT(UI!E91,2),"") -> 
A121: =IF(UI!E92<>"","QUOTA Unità " & UI!B92 & " di proprietà "& UI!E92,"") ->  | B121: =IF(UI!E92<>"","Q." & RIGHT(UI!B92,2) & "." & RIGHT(UI!E92,2),"") -> 
A122: =IF(UI!E93<>"","QUOTA Unità " & UI!B93 & " di proprietà "& UI!E93,"") ->  | B122: =IF(UI!E93<>"","Q." & RIGHT(UI!B93,2) & "." & RIGHT(UI!E93,2),"") -> 
A123: =IF(UI!E94<>"","QUOTA Unità " & UI!B94 & " di proprietà "& UI!E94,"") ->  | B123: =IF(UI!E94<>"","Q." & RIGHT(UI!B94,2) & "." & RIGHT(UI!E94,2),"") -> 
A124: =IF(UI!E95<>"","QUOTA Unità " & UI!B95 & " di proprietà "& UI!E95,"") ->  | B124: =IF(UI!E95<>"","Q." & RIGHT(UI!B95,2) & "." & RIGHT(UI!E95,2),"") -> 
A125: =IF(UI!E96<>"","QUOTA Unità " & UI!B96 & " di proprietà "& UI!E96,"") ->  | B125: =IF(UI!E96<>"","Q." & RIGHT(UI!B96,2) & "." & RIGHT(UI!E96,2),"") -> 
A126: =IF(UI!E97<>"","QUOTA Unità " & UI!B97 & " di proprietà "& UI!E97,"") ->  | B126: =IF(UI!E97<>"","Q." & RIGHT(UI!B97,2) & "." & RIGHT(UI!E97,2),"") -> 
A127: =IF(UI!E98<>"","QUOTA Unità " & UI!B98 & " di proprietà "& UI!E98,"") ->  | B127: =IF(UI!E98<>"","Q." & RIGHT(UI!B98,2) & "." & RIGHT(UI!E98,2),"") -> 
A128: =IF(UI!E99<>"","QUOTA Unità " & UI!B99 & " di proprietà "& UI!E99,"") ->  | B128: =IF(UI!E99<>"","Q." & RIGHT(UI!B99,2) & "." & RIGHT(UI!E99,2),"") -> 
A129: =IF(UI!E100<>"","QUOTA Unità " & UI!B100 & " di proprietà "& UI!E100,"") ->  | B129: =IF(UI!E100<>"","Q." & RIGHT(UI!B100,2) & "." & RIGHT(UI!E100,2),"") -> 
A130: =IF(UI!E101<>"","QUOTA Unità " & UI!B101 & " di proprietà "& UI!E101,"") ->  | B130: =IF(UI!E101<>"","Q." & RIGHT(UI!B101,2) & "." & RIGHT(UI!E101,2),"") -> 
A131: =IF(UI!E102<>"","QUOTA Unità " & UI!B102 & " di proprietà "& UI!E102,"") ->  | B131: =IF(UI!E102<>"","Q." & RIGHT(UI!B102,2) & "." & RIGHT(UI!E102,2),"") -> 
A132: =IF(UI!E103<>"","QUOTA Unità " & UI!B103 & " di proprietà "& UI!E103,"") ->  | B132: =IF(UI!E103<>"","Q." & RIGHT(UI!B103,2) & "." & RIGHT(UI!E103,2),"") -> 
A133: =IF(UI!E104<>"","QUOTA Unità " & UI!B104 & " di proprietà "& UI!E104,"") ->  | B133: =IF(UI!E104<>"","Q." & RIGHT(UI!B104,2) & "." & RIGHT(UI!E104,2),"") -> 
A134: =IF(UI!E105<>"","QUOTA Unità " & UI!B105 & " di proprietà "& UI!E105,"") ->  | B134: =IF(UI!E105<>"","Q." & RIGHT(UI!B105,2) & "." & RIGHT(UI!E105,2),"") -> 
A135: =IF(UI!E106<>"","QUOTA Unità " & UI!B106 & " di proprietà "& UI!E106,"") ->  | B135: =IF(UI!E106<>"","Q." & RIGHT(UI!B106,2) & "." & RIGHT(UI!E106,2),"") -> 
A136: =IF(UI!E107<>"","QUOTA Unità " & UI!B107 & " di proprietà "& UI!E107,"") ->  | B136: =IF(UI!E107<>"","Q." & RIGHT(UI!B107,2) & "." & RIGHT(UI!E107,2),"") -> 
A137: =IF(UI!E108<>"","QUOTA Unità " & UI!B108 & " di proprietà "& UI!E108,"") ->  | B137: =IF(UI!E108<>"","Q." & RIGHT(UI!B108,2) & "." & RIGHT(UI!E108,2),"") -> 
A138: =IF(UI!E109<>"","QUOTA Unità " & UI!B109 & " di proprietà "& UI!E109,"") ->  | B138: =IF(UI!E109<>"","Q." & RIGHT(UI!B109,2) & "." & RIGHT(UI!E109,2),"") -> 
A139: PRESTITI RICEVUTI ED ENTRATE VARIE DI GIRO | B139: V
A140: Prestiti ricevuti (da Gestione Ordinaria) | B140: V.00.01
A141: Prestiti ricevuti (da Terzi) | B141: V.00.02
B142: V.00.03
B143: V.00.04
B144: V.00.05
A146: 0 | C146: 0

Sheet PIANOCONTI_CD (hidden)
A1: !!! Non variare il contenuto delle celle con sfondo colorato. | F1: 0
A5: PIANO DEI CONTI DEL FONDO LAVORI | D5: PIANO DEI CONTI DEL FONDO LAVORI
A6: =DATIG!A40 -> Lavori messa in sicurezza fondazioni da infiltrazioni fognarie | D6: =DATIG!A40 -> Lavori messa in sicurezza fondazioni da infiltrazioni fognarie
A7: ="Codice del fondo: " & DATIG!A37 -> Codice del fondo: LAVORO-01 | D7: ="Codice del fondo: " & DATIG!A37 -> Codice del fondo: LAVORO-01
A8: PIANO DEI CREDITI | D8: PIANO DEI DEBITI
A9: VOCE | D9: VOCE
B10: Codice | E10: Codice
B11: C.01 | E11: D.01
A17: da TERZI PRIVATI | B17: C.02 | D17: v/s TERZI PRIVATI | E17: D.02
A18: da FORNITORI | B18: C.02.01 | D18: v/s FORNITORI per FATTURE RICEVUTE | E18: D.02.01
A19: da DEBITORI DIVERSI | B19: C.02.02 | D19: v/s FORNITORI per AVVISI DI FATTURA RICEVUTI | E19: D.02.02
B20: C.02.03 | D20: v/s FORNITORI per PREVISIONE DI SPESA | E20: D.02.03
B21: C.02.04 | D21: v/s CREDITORI DIVERSI | E21: D.02.04
B22: C.02.05 | D22: v/s GESTIONE ORDINARIA | E22: D.02.05
D23: v/s TERZI PUBBLICI | E23: D.03
D24: v/s ERARIO per ritenute d'acconto operate | E24: D.03.01
E25: D.03.02
E26: D.03.03
E27: D.03.04
E28: D.03.05
A29: da CONDOMINI | B29: C.04 per quote da versare | D29: v/s CONDOMINI | E29: D.04 per quote in eccedenza
A30: =IF(CONDOMINI!C11<>"",CONDOMINI!C11,"") -> CONDOMINO01 | B30: C.04.01 | D30: =IF(CONDOMINI!C11<>"",CONDOMINI!C11,"") -> CONDOMINO01 | E30: D.04.01
A31: =IF(CONDOMINI!C12<>"",CONDOMINI!C12,"") -> CONDOMINO02 | B31: C.04.02 | D31: =IF(CONDOMINI!C12<>"",CONDOMINI!C12,"") -> CONDOMINO02 | E31: D.04.02
A32: =IF(CONDOMINI!C13<>"",CONDOMINI!C13,"") -> CONDOMINO03 | B32: C.04.03 | D32: =IF(CONDOMINI!C13<>"",CONDOMINI!C13,"") -> CONDOMINO03 | E32: D.04.03
A33: =IF(CONDOMINI!C14<>"",CONDOMINI!C14,"") -> CONDOMINO04 | B33: C.04.04 | D33: =IF(CONDOMINI!C14<>"",CONDOMINI!C14,"") -> CONDOMINO04 | E33: D.04.04
A34: =IF(CONDOMINI!C15<>"",CONDOMINI!C15,"") -> CONDOMINO05 | B34: C.04.05 | D34: =IF(CONDOMINI!C15<>"",CONDOMINI!C15,"") -> CONDOMINO05 | E34: D.04.05
A35: =IF(CONDOMINI!C16<>"",CONDOMINI!C16,"") -> CONDOMINO06 | B35: C.04.06 | D35: =IF(CONDOMINI!C16<>"",CONDOMINI!C16,"") -> CONDOMINO06 | E35: D.04.06
A36: =IF(CONDOMINI!C17<>"",CONDOMINI!C17,"") -> CONDOMINO07 | B36: C.04.07 | D36: =IF(CONDOMINI!C17<>"",CONDOMINI!C17,"") -> CONDOMINO07 | E36: D.04.07
A37: =IF(CONDOMINI!C18<>"",CONDOMINI!C18,"") -> CONDOMINO08 | B37: C.04.08 | D37: =IF(CONDOMINI!C18<>"",CONDOMINI!C18,"") -> CONDOMINO08 | E37: D.04.08
A38: =IF(CONDOMINI!C19<>"",CONDOMINI!C19,"") -> CONDOMINO09 | B38: C.04.09 | D38: =IF(CONDOMINI!C19<>"",CONDOMINI!C19,"") -> CONDOMINO09 | E38: D.04.09
A39: =IF(CONDOMINI!C20<>"",CONDOMINI!C20,"") -> CONDOMINO10 | B39: C.04.10 | D39: =IF(CONDOMINI!C20<>"",CONDOMINI!C20,"") -> CONDOMINO10 | E39: D.04.10
A40: =IF(CONDOMINI!C21<>"",CONDOMINI!C21,"") -> CONDOMINO11 | B40: C.04.11 | D40: =IF(CONDOMINI!C21<>"",CONDOMINI!C21,"") -> CONDOMINO11 | E40: D.04.11
A41: =IF(CONDOMINI!C22<>"",CONDOMINI!C22,"") -> CONDOMINO12 | B41: C.04.12 | D41: =IF(CONDOMINI!C22<>"",CONDOMINI!C22,"") -> CONDOMINO12 | E41: D.04.12
A42: =IF(CONDOMINI!C23<>"",CONDOMINI!C23,"") -> CONDOMINO13 | B42: C.04.13 | D42: =IF(CONDOMINI!C23<>"",CONDOMINI!C23,"") -> CONDOMINO13 | E42: D.04.13
A43: =IF(CONDOMINI!C24<>"",CONDOMINI!C24,"") -> CONDOMINO14 | B43: C.04.14 | D43: =IF(CONDOMINI!C24<>"",CONDOMINI!C24,"") -> CONDOMINO14 | E43: D.04.14
A44: =IF(CONDOMINI!C25<>"",CONDOMINI!C25,"") -> CONDOMINO15 | B44: C.04.15 | D44: =IF(CONDOMINI!C25<>"",CONDOMINI!C25,"") -> CONDOMINO15 | E44: D.04.15
A45: =IF(CONDOMINI!C26<>"",CONDOMINI!C26,"") -> CONDOMINO16 | B45: C.04.16 | D45: =IF(CONDOMINI!C26<>"",CONDOMINI!C26,"") -> CONDOMINO16 | E45: D.04.16
A46: =IF(CONDOMINI!C27<>"",CONDOMINI!C27,"") -> CONDOMINO17 | B46: C.04.17 | D46: =IF(CONDOMINI!C27<>"",CONDOMINI!C27,"") -> CONDOMINO17 | E46: D.04.17
A47: =IF(CONDOMINI!C28<>"",CONDOMINI!C28,"") -> CONDOMINO18 | B47: C.04.18 | D47: =IF(CONDOMINI!C28<>"",CONDOMINI!C28,"") -> CONDOMINO18 | E47: D.04.18
A48: =IF(CONDOMINI!C29<>"",CONDOMINI!C29,"") -> CONDOMINO19 | B48: C.04.19 | D48: =IF(CONDOMINI!C29<>"",CONDOMINI!C29,"") -> CONDOMINO19 | E48: D.04.19
A49: =IF(CONDOMINI!C30<>"",CONDOMINI!C30,"") ->  | B49: C.04.20 | D49: =IF(CONDOMINI!C30<>"",CONDOMINI!C30,"") ->  | E49: D.04.20
A50: =IF(CONDOMINI!C31<>"",CONDOMINI!C31,"") ->  | B50: C.04.21 | D50: =IF(CONDOMINI!C31<>"",CONDOMINI!C31,"") ->  | E50: D.04.21
A51: =IF(CONDOMINI!C32<>"",CONDOMINI!C32,"") ->  | B51: C.04.22 | D51: =IF(CONDOMINI!C32<>"",CONDOMINI!C32,"") ->  | E51: D.04.22
A52: =IF(CONDOMINI!C33<>"",CONDOMINI!C33,"") ->  | B52: C.04.23 | D52: =IF(CONDOMINI!C33<>"",CONDOMINI!C33,"") ->  | E52: D.04.23
A53: =IF(CONDOMINI!C34<>"",CONDOMINI!C34,"") ->  | B53: C.04.24 | D53: =IF(CONDOMINI!C34<>"",CONDOMINI!C34,"") ->  | E53: D.04.24
A54: =IF(CONDOMINI!C35<>"",CONDOMINI!C35,"") ->  | B54: C.04.25 | D54: =IF(CONDOMINI!C35<>"",CONDOMINI!C35,"") ->  | E54: D.04.25
A55: =IF(CONDOMINI!C36<>"",CONDOMINI!C36,"") ->  | B55: C.04.26 | D55: =IF(CONDOMINI!C36<>"",CONDOMINI!C36,"") ->  | E55: D.04.26
A56: =IF(CONDOMINI!C37<>"",CONDOMINI!C37,"") ->  | B56: C.04.27 | D56: =IF(CONDOMINI!C37<>"",CONDOMINI!C37,"") ->  | E56: D.04.27
A57: =IF(CONDOMINI!C38<>"",CONDOMINI!C38,"") ->  | B57: C.04.28 | D57: =IF(CONDOMINI!C38<>"",CONDOMINI!C38,"") ->  | E57: D.04.28
A58: =IF(CONDOMINI!C39<>"",CONDOMINI!C39,"") ->  | B58: C.04.29 | D58: =IF(CONDOMINI!C39<>"",CONDOMINI!C39,"") ->  | E58: D.04.29
A59: =IF(CONDOMINI!C40<>"",CONDOMINI!C40,"") ->  | B59: C.04.30 | D59: =IF(CONDOMINI!C40<>"",CONDOMINI!C40,"") ->  | E59: D.04.30
A60: =IF(CONDOMINI!C41<>"",CONDOMINI!C41,"") ->  | B60: C.04.31 | D60: =IF(CONDOMINI!C41<>"",CONDOMINI!C41,"") ->  | E60: D.04.31
A61: =IF(CONDOMINI!C42<>"",CONDOMINI!C42,"") ->  | B61: C.04.32 | D61: =IF(CONDOMINI!C42<>"",CONDOMINI!C42,"") ->  | E61: D.04.32
A62: =IF(CONDOMINI!C43<>"",CONDOMINI!C43,"") ->  | B62: C.04.33 | D62: =IF(CONDOMINI!C43<>"",CONDOMINI!C43,"") ->  | E62: D.04.33
A63: =IF(CONDOMINI!C44<>"",CONDOMINI!C44,"") ->  | B63: C.04.34 | D63: =IF(CONDOMINI!C44<>"",CONDOMINI!C44,"") ->  | E63: D.04.34
A64: =IF(CONDOMINI!C45<>"",CONDOMINI!C45,"") ->  | B64: C.04.35 | D64: =IF(CONDOMINI!C45<>"",CONDOMINI!C45,"") ->  | E64: D.04.35
A65: =IF(CONDOMINI!C46<>"",CONDOMINI!C46,"") ->  | B65: C.04.36 | D65: =IF(CONDOMINI!C46<>"",CONDOMINI!C46,"") ->  | E65: D.04.36
A66: =IF(CONDOMINI!C47<>"",CONDOMINI!C47,"") ->  | B66: C.04.37 | D66: =IF(CONDOMINI!C47<>"",CONDOMINI!C47,"") ->  | E66: D.04.37
A67: =IF(CONDOMINI!C48<>"",CONDOMINI!C48,"") ->  | B67: C.04.38 | D67: =IF(CONDOMINI!C48<>"",CONDOMINI!C48,"") ->  | E67: D.04.38
A68: =IF(CONDOMINI!C49<>"",CONDOMINI!C49,"") ->  | B68: C.04.39 | D68: =IF(CONDOMINI!C49<>"",CONDOMINI!C49,"") ->  | E68: D.04.39
A69: =IF(CONDOMINI!C50<>"",CONDOMINI!C50,"") ->  | B69: C.04.40 | D69: =IF(CONDOMINI!C50<>"",CONDOMINI!C50,"") ->  | E69: D.04.40
A70: =IF(CONDOMINI!C51<>"",CONDOMINI!C51,"") ->  | B70: C.04.41 | D70: =IF(CONDOMINI!C51<>"",CONDOMINI!C51,"") ->  | E70: D.04.41
A71: =IF(CONDOMINI!C52<>"",CONDOMINI!C52,"") ->  | B71: C.04.42 | D71: =IF(CONDOMINI!C52<>"",CONDOMINI!C52,"") ->  | E71: D.04.42
A72: =IF(CONDOMINI!C53<>"",CONDOMINI!C53,"") ->  | B72: C.04.43 | D72: =IF(CONDOMINI!C53<>"",CONDOMINI!C53,"") ->  | E72: D.04.43
A73: =IF(CONDOMINI!C54<>"",CONDOMINI!C54,"") ->  | B73: C.04.44 | D73: =IF(CONDOMINI!C54<>"",CONDOMINI!C54,"") ->  | E73: D.04.44
A74: =IF(CONDOMINI!C55<>"",CONDOMINI!C55,"") ->  | B74: C.04.45 | D74: =IF(CONDOMINI!C55<>"",CONDOMINI!C55,"") ->  | E74: D.04.45
A75: =IF(CONDOMINI!C56<>"",CONDOMINI!C56,"") ->  | B75: C.04.46 | D75: =IF(CONDOMINI!C56<>"",CONDOMINI!C56,"") ->  | E75: D.04.46
A76: =IF(CONDOMINI!C57<>"",CONDOMINI!C57,"") ->  | B76: C.04.47 | D76: =IF(CONDOMINI!C57<>"",CONDOMINI!C57,"") ->  | E76: D.04.47
A77: =IF(CONDOMINI!C58<>"",CONDOMINI!C58,"") ->  | B77: C.04.48 | D77: =IF(CONDOMINI!C58<>"",CONDOMINI!C58,"") ->  | E77: D.04.48
A78: =IF(CONDOMINI!C59<>"",CONDOMINI!C59,"") ->  | B78: C.04.49 | D78: =IF(CONDOMINI!C59<>"",CONDOMINI!C59,"") ->  | E78: D.04.49
A79: =IF(CONDOMINI!C60<>"",CONDOMINI!C60,"") ->  | B79: C.04.50 | D79: =IF(CONDOMINI!C60<>"",CONDOMINI!C60,"") ->  | E79: D.04.50
A80: =IF(CONDOMINI!C61<>"",CONDOMINI!C61,"") ->  | B80: C.04.51 | D80: =IF(CONDOMINI!C61<>"",CONDOMINI!C61,"") ->  | E80: D.04.51
A81: =IF(CONDOMINI!C62<>"",CONDOMINI!C62,"") ->  | B81: C.04.52 | D81: =IF(CONDOMINI!C62<>"",CONDOMINI!C62,"") ->  | E81: D.04.52
A82: =IF(CONDOMINI!C63<>"",CONDOMINI!C63,"") ->  | B82: C.04.53 | D82: =IF(CONDOMINI!C63<>"",CONDOMINI!C63,"") ->  | E82: D.04.53
A83: =IF(CONDOMINI!C64<>"",CONDOMINI!C64,"") ->  | B83: C.04.54 | D83: =IF(CONDOMINI!C64<>"",CONDOMINI!C64,"") ->  | E83: D.04.54
A84: =IF(CONDOMINI!C65<>"",CONDOMINI!C65,"") ->  | B84: C.04.55 | D84: =IF(CONDOMINI!C65<>"",CONDOMINI!C65,"") ->  | E84: D.04.55
A85: =IF(CONDOMINI!C66<>"",CONDOMINI!C66,"") ->  | B85: C.04.56 | D85: =IF(CONDOMINI!C66<>"",CONDOMINI!C66,"") ->  | E85: D.04.56
A86: =IF(CONDOMINI!C67<>"",CONDOMINI!C67,"") ->  | B86: C.04.57 | D86: =IF(CONDOMINI!C67<>"",CONDOMINI!C67,"") ->  | E86: D.04.57
A87: =IF(CONDOMINI!C68<>"",CONDOMINI!C68,"") ->  | B87: C.04.58 | D87: =IF(CONDOMINI!C68<>"",CONDOMINI!C68,"") ->  | E87: D.04.58
A88: =IF(CONDOMINI!C69<>"",CONDOMINI!C69,"") ->  | B88: C.04.59 | D88: =IF(CONDOMINI!C69<>"",CONDOMINI!C69,"") ->  | E88: D.04.59
A89: =IF(CONDOMINI!C70<>"",CONDOMINI!C70,"") ->  | B89: C.04.60 | D89: =IF(CONDOMINI!C70<>"",CONDOMINI!C70,"") ->  | E89: D.04.60
A90: =IF(CONDOMINI!C71<>"",CONDOMINI!C71,"") ->  | B90: C.04.61 | D90: =IF(CONDOMINI!C71<>"",CONDOMINI!C71,"") ->  | E90: D.04.61
A91: =IF(CONDOMINI!C72<>"",CONDOMINI!C72,"") ->  | B91: C.04.62 | D91: =IF(CONDOMINI!C72<>"",CONDOMINI!C72,"") ->  | E91: D.04.62
A92: =IF(CONDOMINI!C73<>"",CONDOMINI!C73,"") ->  | B92: C.04.63 | D92: =IF(CONDOMINI!C73<>"",CONDOMINI!C73,"") ->  | E92: D.04.63
A93: =IF(CONDOMINI!C74<>"",CONDOMINI!C74,"") ->  | B93: C.04.64 | D93: =IF(CONDOMINI!C74<>"",CONDOMINI!C74,"") ->  | E93: D.04.64
A94: =IF(CONDOMINI!C75<>"",CONDOMINI!C75,"") ->  | B94: C.04.65 | D94: =IF(CONDOMINI!C75<>"",CONDOMINI!C75,"") ->  | E94: D.04.65
A95: =IF(CONDOMINI!C76<>"",CONDOMINI!C76,"") ->  | B95: C.04.66 | D95: =IF(CONDOMINI!C76<>"",CONDOMINI!C76,"") ->  | E95: D.04.66
A96: =IF(CONDOMINI!C77<>"",CONDOMINI!C77,"") ->  | B96: C.04.67 | D96: =IF(CONDOMINI!C77<>"",CONDOMINI!C77,"") ->  | E96: D.04.67
A97: =IF(CONDOMINI!C78<>"",CONDOMINI!C78,"") ->  | B97: C.04.68 | D97: =IF(CONDOMINI!C78<>"",CONDOMINI!C78,"") ->  | E97: D.04.68
A98: =IF(CONDOMINI!C79<>"",CONDOMINI!C79,"") ->  | B98: C.04.69 | D98: =IF(CONDOMINI!C79<>"",CONDOMINI!C79,"") ->  | E98: D.04.69
A99: =IF(CONDOMINI!C80<>"",CONDOMINI!C80,"") ->  | B99: C.04.70 | D99: =IF(CONDOMINI!C80<>"",CONDOMINI!C80,"") ->  | E99: D.04.70
A100: =IF(CONDOMINI!C81<>"",CONDOMINI!C81,"") ->  | B100: C.04.71 | D100: =IF(CONDOMINI!C81<>"",CONDOMINI!C81,"") ->  | E100: D.04.71
A101: =IF(CONDOMINI!C82<>"",CONDOMINI!C82,"") ->  | B101: C.04.72 | D101: =IF(CONDOMINI!C82<>"",CONDOMINI!C82,"") ->  | E101: D.04.72
A102: =IF(CONDOMINI!C83<>"",CONDOMINI!C83,"") ->  | B102: C.04.73 | D102: =IF(CONDOMINI!C83<>"",CONDOMINI!C83,"") ->  | E102: D.04.73
A103: =IF(CONDOMINI!C84<>"",CONDOMINI!C84,"") ->  | B103: C.04.74 | D103: =IF(CONDOMINI!C84<>"",CONDOMINI!C84,"") ->  | E103: D.04.74
A104: =IF(CONDOMINI!C85<>"",CONDOMINI!C85,"") ->  | B104: C.04.75 | D104: =IF(CONDOMINI!C85<>"",CONDOMINI!C85,"") ->  | E104: D.04.75
A105: =IF(CONDOMINI!C86<>"",CONDOMINI!C86,"") ->  | B105: C.04.76 | D105: =IF(CONDOMINI!C86<>"",CONDOMINI!C86,"") ->  | E105: D.04.76
A106: =IF(CONDOMINI!C87<>"",CONDOMINI!C87,"") ->  | B106: C.04.77 | D106: =IF(CONDOMINI!C87<>"",CONDOMINI!C87,"") ->  | E106: D.04.77
A107: =IF(CONDOMINI!C88<>"",CONDOMINI!C88,"") ->  | B107: C.04.78 | D107: =IF(CONDOMINI!C88<>"",CONDOMINI!C88,"") ->  | E107: D.04.78
A108: =IF(CONDOMINI!C89<>"",CONDOMINI!C89,"") ->  | B108: C.04.79 | D108: =IF(CONDOMINI!C89<>"",CONDOMINI!C89,"") ->  | E108: D.04.79
A109: =IF(CONDOMINI!C90<>"",CONDOMINI!C90,"") ->  | B109: C.04.80 | D109: =IF(CONDOMINI!C90<>"",CONDOMINI!C90,"") ->  | E109: D.04.80
A110: =IF(CONDOMINI!C91<>"",CONDOMINI!C91,"") ->  | B110: C.04.81 | D110: =IF(CONDOMINI!C91<>"",CONDOMINI!C91,"") ->  | E110: D.04.81
A111: =IF(CONDOMINI!C92<>"",CONDOMINI!C92,"") ->  | B111: C.04.82 | D111: =IF(CONDOMINI!C92<>"",CONDOMINI!C92,"") ->  | E111: D.04.82
A112: =IF(CONDOMINI!C93<>"",CONDOMINI!C93,"") ->  | B112: C.04.83 | D112: =IF(CONDOMINI!C93<>"",CONDOMINI!C93,"") ->  | E112: D.04.83
A113: =IF(CONDOMINI!C94<>"",CONDOMINI!C94,"") ->  | B113: C.04.84 | D113: =IF(CONDOMINI!C94<>"",CONDOMINI!C94,"") ->  | E113: D.04.84
A114: =IF(CONDOMINI!C95<>"",CONDOMINI!C95,"") ->  | B114: C.04.85 | D114: =IF(CONDOMINI!C95<>"",CONDOMINI!C95,"") ->  | E114: D.04.85
A115: =IF(CONDOMINI!C96<>"",CONDOMINI!C96,"") ->  | B115: C.04.86 | D115: =IF(CONDOMINI!C96<>"",CONDOMINI!C96,"") ->  | E115: D.04.86
A116: =IF(CONDOMINI!C97<>"",CONDOMINI!C97,"") ->  | B116: C.04.87 | D116: =IF(CONDOMINI!C97<>"",CONDOMINI!C97,"") ->  | E116: D.04.87
A117: =IF(CONDOMINI!C98<>"",CONDOMINI!C98,"") ->  | B117: C.04.88 | D117: =IF(CONDOMINI!C98<>"",CONDOMINI!C98,"") ->  | E117: D.04.88
A118: =IF(CONDOMINI!C99<>"",CONDOMINI!C99,"") ->  | B118: C.04.89 | D118: =IF(CONDOMINI!C99<>"",CONDOMINI!C99,"") ->  | E118: D.04.89
A119: =IF(CONDOMINI!C100<>"",CONDOMINI!C100,"") ->  | B119: C.04.90 | D119: =IF(CONDOMINI!C100<>"",CONDOMINI!C100,"") ->  | E119: D.04.90
A120: =IF(CONDOMINI!C101<>"",CONDOMINI!C101,"") ->  | B120: C.04.91 | D120: =IF(CONDOMINI!C101<>"",CONDOMINI!C101,"") ->  | E120: D.04.91
A121: =IF(CONDOMINI!C102<>"",CONDOMINI!C102,"") ->  | B121: C.04.92 | D121: =IF(CONDOMINI!C102<>"",CONDOMINI!C102,"") ->  | E121: D.04.92
A122: =IF(CONDOMINI!C103<>"",CONDOMINI!C103,"") ->  | B122: C.04.93 | D122: =IF(CONDOMINI!C103<>"",CONDOMINI!C103,"") ->  | E122: D.04.93
A123: =IF(CONDOMINI!C104<>"",CONDOMINI!C104,"") ->  | B123: C.04.94 | D123: =IF(CONDOMINI!C104<>"",CONDOMINI!C104,"") ->  | E123: D.04.94
A124: =IF(CONDOMINI!C105<>"",CONDOMINI!C105,"") ->  | B124: C.04.95 | D124: =IF(CONDOMINI!C105<>"",CONDOMINI!C105,"") ->  | E124: D.04.95
A125: =IF(CONDOMINI!C106<>"",CONDOMINI!C106,"") ->  | B125: C.04.96 | D125: =IF(CONDOMINI!C106<>"",CONDOMINI!C106,"") ->  | E125: D.04.96
A126: =IF(CONDOMINI!C107<>"",CONDOMINI!C107,"") ->  | B126: C.04.97 | D126: =IF(CONDOMINI!C107<>"",CONDOMINI!C107,"") ->  | E126: D.04.97
A127: =IF(CONDOMINI!C108<>"",CONDOMINI!C108,"") ->  | B127: C.04.98 | D127: =IF(CONDOMINI!C108<>"",CONDOMINI!C108,"") ->  | E127: D.04.98
A128: =IF(CONDOMINI!C109<>"",CONDOMINI!C109,"") ->  | B128: C.04.99 | D128: =IF(CONDOMINI!C109<>"",CONDOMINI!C109,"") ->  | E128: D.04.99
A130: 0 | F130: 0

Sheet SOM-BP (hidden)
A2: Il fascicolo del bilancio preventivo è costituito dai seguenti prospetti:
A4: 1 | B4: - QUADRO ECONOMICO DI PREVENTIVAZIONE DELLE SPESE
C5: Riporta gli importi delle spese che si stima occorre affrontare per eseguire i lavori, raggruppati per capitoli e voci. Il totale del quadro economico rappresenta l'importo del FONDO, che si costituisce per l'esecuzione dei Lavori.
A7: 2 | B7: - RIPARTO DELLE SPESE PREVISTE FRA I CONDOMINI
C8: Riporta le quote ovvero gli importi con i quali i singoli condomini devono concorrere al pagamento di quanto preventivato. Tali importi sono suddivisi fra le varie tabelle di spesa.
A10: 3 | B10: - QUOTE, RATEAZIONI E SCADENZE DEI PAGAMENTI DOVUTI DAI SINGOLI CONDOMINI
C11: Riporta le quote dovute da ciascun condomino suddivise in rate, secondo i criteri della delibera assembleare di approvazione. Di ogni rata è riportata la data di scadenza del relativo pagamento.

Sheet USCITE_P (hidden)
A1: !!! Non variare il contenuto delle celle con sfondo colorato. | E1: 0
A8: ="QUADRO ECONOMICO di PREVENTIVO del FONDO LAVORI" & CHAR(10) & DATIG!A40 & CHAR(10) & "Codice FONDO: " & DATIG!A37 -> QUADRO ECONOMICO di PREVENTIVO del FONDO LAVORI Lavori messa in sicurezza fondazioni da infiltrazioni fognarie Codice FONDO: LAVORO-01
A9: CONTO | B9: VOCI DI SPESA | C9: TABELLA | D9: IMPORTI
D10: VOCE
A11: =PIANOCONTI_U!C11 -> S.01 | B11: =PIANOCONTI_U!A11 -> SPESE GENERALI e NON DETRABILI | D11: =SUMIFS(D12:D26,C12:C26,"=?") -> 1170
A12: =PIANOCONTI_U!C12 -> S.01.01 | B12: =PIANOCONTI_U!A12 -> SPESE VARIE AMMINISTRATIVE (tabella A) | C12: =PIANOCONTI_U!B12 -> A | D12: 100
A13: =PIANOCONTI_U!C13 -> S.01.02 | B13: =PIANOCONTI_U!A13 -> SPESE VARIE AMMINISTRATIVE (tabella B) | C13: =PIANOCONTI_U!B13 -> B | D13: 100
A14: =PIANOCONTI_U!C14 -> S.01.03 | B14: =PIANOCONTI_U!A14 -> SPESE VARIE AMMINISTRATIVE (tabella C) | C14: =PIANOCONTI_U!B14 -> C | D14: 100
A15: =PIANOCONTI_U!C15 -> S.01.04 | B15: =PIANOCONTI_U!A15 -> DIRITTI BOLLI TASSE (tabella A) | C15: =PIANOCONTI_U!B15 -> A | D15: 80
A16: =PIANOCONTI_U!C16 -> S.01.05 | B16: =PIANOCONTI_U!A16 -> DIRITTI BOLLI TASSE (tabella B) | C16: =PIANOCONTI_U!B16 -> B | D16: 80
A17: =PIANOCONTI_U!C17 -> S.01.06 | B17: =PIANOCONTI_U!A17 -> DIRITTI BOLLI TASSE (tabella C) | C17: =PIANOCONTI_U!B17 -> C | D17: 80
A18: =PIANOCONTI_U!C18 -> S.01.07 | B18: =PIANOCONTI_U!A18 -> COMPENSI A TERZI (tabella A) | C18: =PIANOCONTI_U!B18 -> A | D18: 200
A19: =PIANOCONTI_U!C19 -> S.01.08 | B19: =PIANOCONTI_U!A19 -> COMPENSI A TERZI (tabella B) | C19: =PIANOCONTI_U!B19 -> B | D19: 200
A20: =PIANOCONTI_U!C20 -> S.01.09 | B20: =PIANOCONTI_U!A20 -> COMPENSI A TERZI (tabella C) | C20: =PIANOCONTI_U!B20 -> C | D20: 200
A21: =PIANOCONTI_U!C21 -> S.01.10 | B21: =PIANOCONTI_U!A21 -> ALTRE SPESE DOCUMENTATI (tabella A) | C21: =PIANOCONTI_U!B21 -> A | D21: 10
A22: =PIANOCONTI_U!C22 -> S.01.11 | B22: =PIANOCONTI_U!A22 -> ALTRE SPESE DOCUMENTATI (tabella B) | C22: =PIANOCONTI_U!B22 -> B | D22: 10
A23: =PIANOCONTI_U!C23 -> S.01.12 | B23: =PIANOCONTI_U!A23 -> ALTRE SPESE DOCUMENTATI (tabella C) | C23: =PIANOCONTI_U!B23 -> C | D23: 10
A24: =PIANOCONTI_U!C24 -> S.01.11 | B24: =PIANOCONTI_U!A24 -> 0 | C24: =PIANOCONTI_U!B24 -> 0 | D24: 0
A25: =PIANOCONTI_U!C25 -> S.01.12 | B25: =PIANOCONTI_U!A25 -> 0 | C25: =PIANOCONTI_U!B25 -> 0 | D25: 0
A26: =PIANOCONTI_U!C26 -> S.01.13 | B26: =PIANOCONTI_U!A26 -> 0 | C26: =PIANOCONTI_U!B26 -> 0
A27: =PIANOCONTI_U!C27 -> S.02 | B27: =PIANOCONTI_U!A27 -> COMPETENZE TECNICHE - Prog., D.L. e collaudi (detr.) | D27: =SUMIFS(D28:D37,C28:C37,"=?") -> 1500
A28: =PIANOCONTI_U!C28 -> S.02.01 | B28: =PIANOCONTI_U!A28 -> Ricadenti in Tabella A | C28: =PIANOCONTI_U!B28 -> A | D28: 450
A29: =PIANOCONTI_U!C29 -> S.02.02 | B29: =PIANOCONTI_U!A29 -> Ricadenti in Tabella B | C29: =PIANOCONTI_U!B29 -> B | D29: 500
A30: =PIANOCONTI_U!C30 -> S.02.03 | B30: =PIANOCONTI_U!A30 -> Ricadenti in Tabella C | C30: =PIANOCONTI_U!B30 -> C | D30: 550
A31: =PIANOCONTI_U!C31 -> S.02.04 | B31: =PIANOCONTI_U!A31 -> 0 | C31: =PIANOCONTI_U!B31 -> 0
A32: =PIANOCONTI_U!C32 -> S.02.05 | B32: =PIANOCONTI_U!A32 -> 0 | C32: =PIANOCONTI_U!B32 -> 0
A33: =PIANOCONTI_U!C33 -> S.02.06 | B33: =PIANOCONTI_U!A33 -> 0 | C33: =PIANOCONTI_U!B33 -> 0
A34: =PIANOCONTI_U!C34 -> S.02.07 | B34: =PIANOCONTI_U!A34 -> 0 | C34: =PIANOCONTI_U!B34 -> 0
A35: =PIANOCONTI_U!C35 -> S.02.08 | B35: =PIANOCONTI_U!A35 -> 0 | C35: =PIANOCONTI_U!B35 -> 0
A36: =PIANOCONTI_U!C36 -> S.02.09 | B36: =PIANOCONTI_U!A36 -> 0 | C36: =PIANOCONTI_U!B36 -> 0
A37: =PIANOCONTI_U!C37 -> S.02.10 | B37: =PIANOCONTI_U!A37 -> 0 | C37: =PIANOCONTI_U!B37 -> 0
A38: =PIANOCONTI_U!C38 -> S.03 | B38: =PIANOCONTI_U!A38 -> LAVORI (detraibili) | D38: =SUMIFS(D39:D48,C39:C48,"=?") -> 12370
A39: =PIANOCONTI_U!C39 -> S.03.01 | B39: =PIANOCONTI_U!A39 -> Importo lavori ricadenti in tabella A | C39: =PIANOCONTI_U!B39 -> A | D39: 3560
A40: =PIANOCONTI_U!C40 -> S.03.02 | B40: =PIANOCONTI_U!A40 -> Importo lavori ricadenti in tabella B | C40: =PIANOCONTI_U!B40 -> B | D40: 3920
A41: =PIANOCONTI_U!C41 -> S.03.03 | B41: =PIANOCONTI_U!A41 -> Importo lavori ricadenti in tabella C | C41: =PIANOCONTI_U!B41 -> C | D41: 4890
A42: =PIANOCONTI_U!C42 -> S.03.04 | B42: =PIANOCONTI_U!A42 -> 0 | C42: =PIANOCONTI_U!B42 -> 0
A43: =PIANOCONTI_U!C43 -> S.03.05 | B43: =PIANOCONTI_U!A43 -> 0 | C43: =PIANOCONTI_U!B43 -> 0
A44: =PIANOCONTI_U!C44 -> S.03.06 | B44: =PIANOCONTI_U!A44 -> 0 | C44: =PIANOCONTI_U!B44 -> 0
A45: =PIANOCONTI_U!C45 -> S.03.07 | B45: =PIANOCONTI_U!A45 -> 0 | C45: =PIANOCONTI_U!B45 -> 0
A46: =PIANOCONTI_U!C46 -> S.03.08 | B46: =PIANOCONTI_U!A46 -> 0 | C46: =PIANOCONTI_U!B46 -> 0
A47: =PIANOCONTI_U!C47 -> S.03.09 | B47: =PIANOCONTI_U!A47 -> 0 | C47: =PIANOCONTI_U!B47 -> 0
A48: =PIANOCONTI_U!C48 -> S.03.10 | B48: =PIANOCONTI_U!A48 -> 0 | C48: =PIANOCONTI_U!B48 -> 0 | D48: 0
A49: =PIANOCONTI_U!C49 -> S.04 | B49: =PIANOCONTI_U!A49 -> SPESE VARIE E IMPREVISTI (detraibili) | D49: =SUMIFS(D50:D59,C50:C59,"=?") -> 600
A50: =PIANOCONTI_U!C50 -> S.04.01 | B50: =PIANOCONTI_U!A50 -> Ricadenti in Tabella A | C50: =PIANOCONTI_U!B50 -> A | D50: 200
A51: =PIANOCONTI_U!C51 -> S.04.02 | B51: =PIANOCONTI_U!A51 -> Ricadenti in Tabella B | C51: =PIANOCONTI_U!B51 -> B | D51: 200
A52: =PIANOCONTI_U!C52 -> S.04.03 | B52: =PIANOCONTI_U!A52 -> Ricadenti in Tabella C | C52: =PIANOCONTI_U!B52 -> C | D52: 200
A53: =PIANOCONTI_U!C53 -> S.04.04 | B53: =PIANOCONTI_U!A53 -> 0 | C53: =PIANOCONTI_U!B53 -> 0
A54: =PIANOCONTI_U!C54 -> S.04.05 | B54: =PIANOCONTI_U!A54 -> 0 | C54: =PIANOCONTI_U!B54 -> 0
A55: =PIANOCONTI_U!C55 -> S.04.06 | B55: =PIANOCONTI_U!A55 -> 0 | C55: =PIANOCONTI_U!B55 -> 0
A56: =PIANOCONTI_U!C56 -> S.04.07 | B56: =PIANOCONTI_U!A56 -> 0 | C56: =PIANOCONTI_U!B56 -> 0
A57: =PIANOCONTI_U!C57 -> S.04.08 | B57: =PIANOCONTI_U!A57 -> 0 | C57: =PIANOCONTI_U!B57 -> 0
A58: =PIANOCONTI_U!C58 -> S.04.09 | B58: =PIANOCONTI_U!A58 -> 0 | C58: =PIANOCONTI_U!B58 -> 0
A59: =PIANOCONTI_U!C59 -> S.04.10 | B59: =PIANOCONTI_U!A59 -> 0 | C59: =PIANOCONTI_U!B59 -> 0
A60: =PIANOCONTI_U!C60 -> S.05 | B60: =PIANOCONTI_U!A60 -> LAVORI (non detraibili) | D60: =SUM(D61:D70) -> 600
A61: =PIANOCONTI_U!C61 -> S.05.01 | B61: =PIANOCONTI_U!A61 -> Ricadenti in Tabella A | C61: =PIANOCONTI_U!B61 -> A | D61: 400
A62: =PIANOCONTI_U!C62 -> S.05.02 | B62: =PIANOCONTI_U!A62 -> Ricadenti in Tabella B | C62: =PIANOCONTI_U!B62 -> B | D62: 200
A63: =PIANOCONTI_U!C63 -> S.05.03 | B63: =PIANOCONTI_U!A63 -> 0 | C63: =PIANOCONTI_U!B63 -> 0
A64: =PIANOCONTI_U!C64 -> S.05.04 | B64: =PIANOCONTI_U!A64 -> 0 | C64: =PIANOCONTI_U!B64 -> 0
A65: =PIANOCONTI_U!C65 -> S.05.05 | B65: =PIANOCONTI_U!A65 -> 0 | C65: =PIANOCONTI_U!B65 -> 0
A66: =PIANOCONTI_U!C66 -> S.05.06 | B66: =PIANOCONTI_U!A66 -> 0 | C66: =PIANOCONTI_U!B66 -> 0
A67: =PIANOCONTI_U!C67 -> S.05.07 | B67: =PIANOCONTI_U!A67 -> 0 | C67: =PIANOCONTI_U!B67 -> 0
A68: =PIANOCONTI_U!C68 -> S.05.08 | B68: =PIANOCONTI_U!A68 -> 0 | C68: =PIANOCONTI_U!B68 -> 0
A69: =PIANOCONTI_U!C69 -> S.05.09 | B69: =PIANOCONTI_U!A69 -> 0 | C69: =PIANOCONTI_U!B69 -> 0
A70: =PIANOCONTI_U!C70 -> S.05.10 | B70: =PIANOCONTI_U!A70 -> 0 | C70: =PIANOCONTI_U!B70 -> 0
A71: =PIANOCONTI_U!C71 -> S.06 | B71: =PIANOCONTI_U!A71 -> 0 | D71: =SUMIFS(D72:D76,C72:C76,"=?") -> 0
A72: =PIANOCONTI_U!C72 -> S.06.01 | B72: =PIANOCONTI_U!A72 -> 0 | C72: =PIANOCONTI_U!B72 -> 0
A73: =PIANOCONTI_U!C73 -> S.06.02 | B73: =PIANOCONTI_U!A73 -> 0 | C73: =PIANOCONTI_U!B73 -> 0
A74: =PIANOCONTI_U!C74 -> S.06.03 | B74: =PIANOCONTI_U!A74 -> 0 | C74: =PIANOCONTI_U!B74 -> 0
A75: =PIANOCONTI_U!C75 -> S.06.04 | B75: =PIANOCONTI_U!A75 -> 0 | C75: =PIANOCONTI_U!B75 -> 0
A76: =PIANOCONTI_U!C76 -> S.06.05 | B76: =PIANOCONTI_U!A76 -> 0 | C76: =PIANOCONTI_U!B76 -> 0
A77: =PIANOCONTI_U!C77 -> S.07 | B77: =PIANOCONTI_U!A77 -> 0 | D77: =SUMIFS(D78:D82,C78:C82,"=?") -> 0
A78: =PIANOCONTI_U!C78 -> S.07.01 | B78: =PIANOCONTI_U!A78 -> 0 | C78: =PIANOCONTI_U!B78 -> 0
A79: =PIANOCONTI_U!C79 -> S.07.02 | B79: =PIANOCONTI_U!A79 -> 0 | C79: =PIANOCONTI_U!B79 -> 0
A80: =PIANOCONTI_U!C80 -> S.07.03 | B80: =PIANOCONTI_U!A80 -> 0 | C80: =PIANOCONTI_U!B80 -> 0
A81: =PIANOCONTI_U!C81 -> S.07.04 | B81: =PIANOCONTI_U!A81 -> 0 | C81: =PIANOCONTI_U!B81 -> 0
A82: =PIANOCONTI_U!C82 -> S.07.05 | B82: =PIANOCONTI_U!A82 -> 0 | C82: =PIANOCONTI_U!B82 -> 0
A83: =PIANOCONTI_U!C83 -> L | B83: =PIANOCONTI_U!A83 -> 0 | D83: =SUMIFS(D84:D96,C84:C96,"=?") -> 0
A84: =PIANOCONTI_U!C84 -> L.00.01 | B84: =PIANOCONTI_U!A84 -> 0 | C84: =PIANOCONTI_U!B84 -> 0
A85: =PIANOCONTI_U!C85 -> L.00.02 | B85: =PIANOCONTI_U!A85 -> 0 | C85: =PIANOCONTI_U!B85 -> 0
A86: =PIANOCONTI_U!C86 -> L.00.03 | B86: =PIANOCONTI_U!A86 -> 0 | C86: =PIANOCONTI_U!B86 -> 0
A87: =PIANOCONTI_U!C87 -> L.00.04 | B87: =PIANOCONTI_U!A87 -> 0 | C87: =PIANOCONTI_U!B87 -> 0
A88: =PIANOCONTI_U!C88 -> L.00.05 | B88: =PIANOCONTI_U!A88 -> 0 | C88: =PIANOCONTI_U!B88 -> 0
A89: =PIANOCONTI_U!C89 -> G | B89: =PIANOCONTI_U!A89 -> 0 | D89: =SUMIFS(D90:D102,C90:C102,"=?") -> 0
A90: =PIANOCONTI_U!C90 -> G.00.01 | B90: =PIANOCONTI_U!A90 -> 0 | C90: =PIANOCONTI_U!B90 -> 0
A91: =PIANOCONTI_U!C91 -> G.00.02 | B91: =PIANOCONTI_U!A91 -> 0 | C91: =PIANOCONTI_U!B91 -> 0
A92: =PIANOCONTI_U!C92 -> G.00.03 | B92: =PIANOCONTI_U!A92 -> 0 | C92: =PIANOCONTI_U!B92 -> 0
A93: =PIANOCONTI_U!C93 -> G.00.04 | B93: =PIANOCONTI_U!A93 -> 0 | C93: =PIANOCONTI_U!B93 -> 0
A94: =PIANOCONTI_U!C94 -> G.00.05 | B94: =PIANOCONTI_U!A94 -> 0 | C94: =PIANOCONTI_U!B94 -> 0
A95: =PIANOCONTI_U!C95 -> P | B95: =PIANOCONTI_U!A95 -> SPESE PERSONALI PER UNITÀ FUNZIONALE (detraibili)
A96: =PIANOCONTI_U!C96 -> P.00.01 | B96: =PIANOCONTI_U!A96 -> Unità funzionale condominiale UFC01 | C96: =PIANOCONTI_U!B96 -> 0
A97: =PIANOCONTI_U!C97 -> P.00.02 | B97: =PIANOCONTI_U!A97 -> Unità funzionale condominiale UFC02 | C97: =PIANOCONTI_U!B97 -> 0
A98: =PIANOCONTI_U!C98 -> P.00.03 | B98: =PIANOCONTI_U!A98 -> Unità funzionale condominiale UFC03 | C98: =PIANOCONTI_U!B98 -> 0 | D98: 200
A99: =PIANOCONTI_U!C99 -> P.00.04 | B99: =PIANOCONTI_U!A99 -> Unità funzionale condominiale UFC04 | C99: =PIANOCONTI_U!B99 -> 0
A100: =PIANOCONTI_U!C100 -> P.00.05 | B100: =PIANOCONTI_U!A100 -> Unità funzionale condominiale UFC05 | C100: =PIANOCONTI_U!B100 -> 0
A101: =PIANOCONTI_U!C101 -> P.00.06 | B101: =PIANOCONTI_U!A101 -> Unità funzionale condominiale UFC06 | C101: =PIANOCONTI_U!B101 -> 0
A102: =PIANOCONTI_U!C102 -> P.00.07 | B102: =PIANOCONTI_U!A102 -> Unità funzionale condominiale UFC07 | C102: =PIANOCONTI_U!B102 -> 0
A103: =PIANOCONTI_U!C103 -> P.00.08 | B103: =PIANOCONTI_U!A103 -> Unità funzionale condominiale UFC08 | C103: =PIANOCONTI_U!B103 -> 0
A104: =PIANOCONTI_U!C104 -> P.00.09 | B104: =PIANOCONTI_U!A104 -> Unità funzionale condominiale UFC09 | C104: =PIANOCONTI_U!B104 -> 0
A105: =PIANOCONTI_U!C105 -> P.00.10 | B105: =PIANOCONTI_U!A105 -> Unità funzionale condominiale UFC10 | C105: =PIANOCONTI_U!B105 -> 0
A106: =PIANOCONTI_U!C106 -> P.00.11 | B106: =PIANOCONTI_U!A106 -> Unità funzionale condominiale UFC11 | C106: =PIANOCONTI_U!B106 -> 0
A107: =PIANOCONTI_U!C107 -> P.00.12 | B107: =PIANOCONTI_U!A107 -> Unità funzionale condominiale UFC12 | C107: =PIANOCONTI_U!B107 -> 0 | D107: 400
A108: =PIANOCONTI_U!C108 -> P.00.13 | B108: =PIANOCONTI_U!A108 -> Unità funzionale condominiale UFC13 | C108: =PIANOCONTI_U!B108 -> 0
A109: =PIANOCONTI_U!C109 -> P.00.14 | B109: =PIANOCONTI_U!A109 -> Unità funzionale condominiale UFC14 | C109: =PIANOCONTI_U!B109 -> 0
A110: =PIANOCONTI_U!C110 -> P.00.15 | B110: =PIANOCONTI_U!A110 -> Unità funzionale condominiale UFC15 | C110: =PIANOCONTI_U!B110 -> 0
A111: =PIANOCONTI_U!C111 -> P.00.16 | B111: =PIANOCONTI_U!A111 -> Unità funzionale condominiale UFC16 | C111: =PIANOCONTI_U!B111 -> 0
A112: =PIANOCONTI_U!C112 -> P.00.17 | B112: =PIANOCONTI_U!A112 -> Unità funzionale condominiale UFC17 | C112: =PIANOCONTI_U!B112 -> 0
A113: =PIANOCONTI_U!C113 -> P.00.18 | B113: =PIANOCONTI_U!A113 -> Unità funzionale condominiale UFC18 | C113: =PIANOCONTI_U!B113 -> 0 | D113: 350
A114: =PIANOCONTI_U!C114 -> P.00.19 | B114: =PIANOCONTI_U!A114 -> Unità funzionale condominiale UFC19 | C114: =PIANOCONTI_U!B114 -> 0
A115: =PIANOCONTI_U!C115 -> P.00.20 | B115: =PIANOCONTI_U!A115 -> Unità funzionale condominiale UFC20 | C115: =PIANOCONTI_U!B115 -> 0
A116: =PIANOCONTI_U!C116 -> P.00.21 | B116: =PIANOCONTI_U!A116 -> Unità funzionale condominiale UFC21 | C116: =PIANOCONTI_U!B116 -> 0
A117: =PIANOCONTI_U!C117 -> P.00.22 | B117: =PIANOCONTI_U!A117 -> Unità funzionale condominiale UFC22 | C117: =PIANOCONTI_U!B117 -> 0
A118: =PIANOCONTI_U!C118 -> P.00.23 | B118: =PIANOCONTI_U!A118 -> Unità funzionale condominiale UFC23 | C118: =PIANOCONTI_U!B118 -> 0
A119: =PIANOCONTI_U!C119 -> P.00.24 | B119: =PIANOCONTI_U!A119 -> Unità funzionale condominiale UFC24 | C119: =PIANOCONTI_U!B119 -> 0
A120: =PIANOCONTI_U!C120 -> P.00.25 | B120: =PIANOCONTI_U!A120 -> Unità funzionale condominiale UFC25 | C120: =PIANOCONTI_U!B120 -> 0
A121: =PIANOCONTI_U!C121 -> P.00.26 | B121: =PIANOCONTI_U!A121 -> Unità funzionale condominiale UFC26 | C121: =PIANOCONTI_U!B121 -> 0
A122: =PIANOCONTI_U!C122 -> P.00.27 | B122: =PIANOCONTI_U!A122 -> Unità funzionale condominiale UFC27 | C122: =PIANOCONTI_U!B122 -> 0
A123: =PIANOCONTI_U!C123 -> P.00.28 | B123: =PIANOCONTI_U!A123 -> Unità funzionale condominiale UFC28 | C123: =PIANOCONTI_U!B123 -> 0
A124: =PIANOCONTI_U!C124 -> P.00.29 | B124: =PIANOCONTI_U!A124 -> Unità funzionale condominiale UFC29 | C124: =PIANOCONTI_U!B124 -> 0
A125: =PIANOCONTI_U!C125 -> P.00.30 | B125: =PIANOCONTI_U!A125 -> Unità funzionale condominiale UFC30 | C125: =PIANOCONTI_U!B125 -> 0
A126: =PIANOCONTI_U!C126 -> P.00.31 | B126: =PIANOCONTI_U!A126 -> Unità funzionale condominiale UFC31 | C126: =PIANOCONTI_U!B126 -> 0
A127: =PIANOCONTI_U!C127 -> P.00.32 | B127: =PIANOCONTI_U!A127 -> Unità funzionale condominiale UFC32 | C127: =PIANOCONTI_U!B127 -> 0
A128: =PIANOCONTI_U!C128 -> P.00.33 | B128: =PIANOCONTI_U!A128 -> Unità funzionale condominiale UFC33 | C128: =PIANOCONTI_U!B128 -> 0
A129: =PIANOCONTI_U!C129 -> P.00.34 | B129: =PIANOCONTI_U!A129 -> Unità funzionale condominiale UFC34 | C129: =PIANOCONTI_U!B129 -> 0
A130: =PIANOCONTI_U!C130 -> P.00.35 | B130: =PIANOCONTI_U!A130 -> Unità funzionale condominiale UFC35 | C130: =PIANOCONTI_U!B130 -> 0
